Workbook

Sheet Menu
Z1: 2
Z4: 2
A6: Coastal Bend Extension District - 11
D8: Budgets
D11: Forage Crops
D13: =CoastalHay!A3 -> Coastal Bermudagrass Hay and Grazing (3 Cuttings)
D14: =CoastalPasture!A3 -> Coastal Bermudagrass Pasture
D15: =SorghumHay!A3 -> Sorghum Hay (2 Cuttings)
D17: Field Crops - Irrigated
B18: Comparative Returns
D19: =IrrigatedCotton!A3 -> Cotton - Genetically Modified Seed, Conv. Till-24 Row, Irrigated, 1250 lb. Yield Goal
B20: Links | D20: =IrrigatedSorghumLCB!A3 -> Sorghum - Conventional Till-24 Row, Irrigated, 100 bu. Yield Goal
D21: =IrrigatedSesame!A3 -> Sesame - Conventional Till-12 Row, Irrigated, 1100 lb. Yield Goal
D22: =IrrigatedWheatLCB!A3 -> Hard Red Spring Wheat, Irrigated, 60 bu. Yield Goal
D24: Field Crops - Lower Coast Dryland
D26: =CanolaLCB!A3 -> Canola, Dryland, 1500 lb. Yield Goal - Lower Coast
D27: =+CottonLCB!A3 -> Cotton - Conventional Seed, Till-24 Row, Dryland, 800 lb. Yield Goal - Lower Coast
D28: =Cotton!A3 -> Cotton - Genetically Modified Seed, Conv. Till-24 Row, Dryland, 800 lb. Yield Goal - Lower Coast
D29: =Sesame!A3 -> Sesame - Conventional Till-12 Row, Dryland, 800 lb. Yield Goal - Lower Coast
D30: =SorghumLCB!A3 -> Sorghum - Conventional Till-24 Row, Dryland, 72 bu. Yield Goal - Lower Coast
D31: =WheatLCB!A3 -> Hard Red Spring Wheat, Dryland, 35 bu. Yield Goal - Lower Coast
D32: =WheatNW!A3 -> Hard Red Spring Wheat, Dryland, 35 bu. Yield Goal, Northwest - Lower Coast
D34: Field Crops - Upper Coast Dryland
D36: =Corn!A3 -> Corn - GMO Seed, Conventional Till-12 Row, Dryland, 100 bu. Yield Goal - Upper Coast
D37: =CottonUCB!A3 -> Cotton - GMO Seed, Conv. Till-12 Row, Dryland, 900 lb. Yield Goal - Upper Coast
D38: =SorghumUCB!A3 -> Sorghum - Conventional Till-12 Row, Dryland, 90 bu. Yield Goal - Upper Coast
D39: =Soybeans!A3 -> Soybeans - GMO Seed, Conventional Till-12 Row, Dryland, 30 bu. Yield Goal - Upper Coast
D40: =WheatUCB!A3 -> Soft Red Winter Wheat, 45 bu. Yield Goal - Upper Coast
D42: Rice
D44: =RiceFirstCrop!A3 -> Rice West of Houston, 1st Crop, Surface Water
D45: =RiceSecondCrop!A3 -> Rice West of Houston, 2nd Crop, Surface Water
D47: Livestock
D49: =+CowCalf!A3 -> Cow-Calf Improved Pasture
D50: =+StockersSummer!A3 -> Summer Stocker Calf Budget (160 Days Grazing)
D51: =StockerWinter!A3 -> Winter Stocker Calf Budget (110 Says Grazing)
D53: Other Budgets
D55: ='Livestock Budget'!A3 -> Livestock Budget
D56: ='Crop Budget'!A3 -> Crop Enterprise
A73: Developed by Extension Economists, Texas A&M AgriLife Extension Service, budgets@tamu.edu.

Sheet Links
B2: Texas Crop and Livestock Budgets
B3: A Program of the Texas A&M AgriLife Extension Service
B4: Agricultural Economics Department, The Texas A&M University System
B6: Developed by Texas A&M AgriLife Extension Service Economists and Other Specialists
B8: Contact Us | G8: Clickable Logos
B10: Resources
B12: Decision Aids (includes Machinery Cost Estimator)
B14: Custom Rate Survey
B16: Basis Data
B18: Master Marketer
B20: Extension Ag Economics
B22: Department of Agricultural Economics
B24: Menu Page
B26: Links last checked 4/17/2020

Sheet CottonLCB
A1: Projections for Planning Purposes Only -- Not to be Used without Updating
A2: 2021 Estimated Costs and Returns per Acre
A3: Cotton - Conventional Seed, Till-24 Row, Dryland, 800 lb. Yield Goal - Lower Coast
A4: Enter your name for this budget in the cell above.
A5: Enter Your Values in the cells highlighed in MAROON.
E6: Your Acres | R6: Your
C7: Crop Acres | D7: 500 | L7: Your | Q7: Enterprise | R7: Enterprise
E8: Your | H8: Your | I8: Cash | J8: Your | K8: Landlord | L8: Landlord | N8: Your | P8: Your | Q8: Total | R8: Total
A9: REVENUE | D9: Quantity | E9: Quantity | F9: Units | G9: $/Unit | H9: $/Unit | I9: Total | J9: Total | K9: Share | L9: Share | M9: Landlord | N9: Landlord | O9: Tenant | P9: Tenant | Q9: (500 acres) | R9: ="(" & E7 & " acres)" -> ( acres)
B10: Cotton Lint | D10: 800 | F10: Pound | G10: 0.67 | I10: 536 | J10: =E10*H10 -> 0 | K10: 0 | M10: 0 | N10: =J10*L10 -> 0 | O10: 536 | P10: =+J10-N10 -> 0 | Q10: 268000 | R10: =+J10*E$7 -> 0
B11: Cottonseed | D11: 0.58 | F11: Ton | G11: 175 | I11: 101.5 | J11: 0 | K11: 0 | M11: 0 | N11: 0 | O11: 101.5 | P11: 0 | Q11: 50750 | R11: 0
D12: 0 | G12: 0 | I12: 0 | J12: 0 | K12: 0 | M12: 0 | N12: 0 | O12: 0 | P12: 0 | Q12: 0 | R12: 0
D13: 0 | G13: 0 | I13: 0 | J13: 0 | K13: 0 | M13: 0 | N13: 0 | O13: 0 | P13: 0 | Q13: 0 | R13: 0
A14: Total Revenue | I14: 637.5 | J14: =SUM(J10:J13) -> 0 | M14: 0 | N14: =SUM(N10:N13) -> 0 | O14: 637.5 | P14: =SUM(P10:P13) -> 0 | Q14: 318750 | R14: =SUM(R10:R13) -> 0
Q15: Enterprise | R15: Enterprise
A16: VARIABLE COSTS | D16: Quantity | E16: Quantity | F16: Units | G16: $/Unit | H16: $/Unit | I16: Total | J16: Total | K16: Share | L16: Share | M16: Landlord | N16: Landlord | O16: Tenant | P16: Tenant | Q16: Total | R16: Total
A17: Production Costs
B18: Custom
C19: Fertilizer Application | D19: 1 | F19: Ounce | G19: 0.15 | I19: 0.15 | J19: =E19*H19 -> 0 | K19: 0 | M19: 0 | N19: =J19*L19 -> 0 | O19: 0.15 | P19: =+J19-N19 -> 0 | Q19: 75 | R19: =+J19*E$7 -> 0
C20: Pick and Module | D20: 800 | F20: Pound | G20: 0.13 | I20: 104 | J20: 0 | K20: 0 | M20: 0 | N20: 0 | O20: 104 | P20: 0 | Q20: 52000 | R20: 0
C21: Ginning - Picker | D21: 800 | F21: Pound | G21: 0.125 | I21: 100 | J21: 0 | K21: 0 | M21: 0 | N21: 0 | O21: 100 | P21: 0 | Q21: 50000 | R21: 0
B22: Fertilizer
C23: 24-8-0 | D23: 0.1665 | F23: Ton | G23: 266 | I23: 44.289 | J23: 0 | K23: 0 | M23: 0 | N23: 0 | O23: 44.289 | P23: 0 | Q23: 22144.5 | R23: 0
B24: Herbicide
C25: Trifluralin | D25: 32 | F25: Ounce | G25: 0.19 | I25: 6.08 | J25: 0 | K25: 0 | M25: 0 | N25: 0 | O25: 6.08 | P25: 0 | Q25: 3040 | R25: 0
C26: 2, 4D Amine | D26: 2 | F26: Pint | G26: 2.07 | I26: 4.14 | J26: 0 | K26: 0 | M26: 0 | N26: 0 | O26: 4.14 | P26: 0 | Q26: 2070 | R26: 0
C27: Cotton PreEmerge Herbicide | D27: 1 | F27: Quart | G27: 11.17 | I27: 11.17 | J27: 0 | K27: 0 | M27: 0 | N27: 0 | O27: 11.17 | P27: 0 | Q27: 5585 | R27: 0
C28: Cotton Early Season Herbicide | D28: 0.1 | F28: Quart | G28: 16.24 | I28: 1.624 | J28: 0 | K28: 0 | M28: 0 | N28: 0 | O28: 1.624 | P28: 0 | Q28: 812 | R28: 0
C29: Cotton Mid Season Herbicide | D29: 3 | F29: Ounce | G29: 4.94 | I29: 14.82 | J29: 0 | K29: 0 | M29: 0 | N29: 0 | O29: 14.82 | P29: 0 | Q29: 7410 | R29: 0
C30: Select | D30: 1 | F30: Pint | G30: 9.9 | I30: 9.9 | J30: 0 | K30: 0 | M30: 0 | N30: 0 | O30: 9.9 | P30: 0 | Q30: 4950 | R30: 0
B31: Seed
C32: Cotton Seed | D32: 52.8 | F32: Thousand | G32: 0.74 | I32: 39.072 | J32: 0 | K32: 0 | M32: 0 | N32: 0 | O32: 39.072 | P32: 0 | Q32: 19536 | R32: 0
C33: Cotton Seed - Insect Treatment | D33: 52.8 | F33: Thousand | G33: 0.17 | I33: 8.976 | J33: 0 | K33: 0 | M33: 0 | N33: 0 | O33: 8.976 | P33: 0 | Q33: 4488 | R33: 0
B34: Miscellaneous
C35: Crop Insurance -Cotton LC | D35: 1 | F35: Acre | G35: 12.7 | I35: 12.7 | J35: 0 | K35: 0 | M35: 0 | N35: 0 | O35: 12.7 | P35: 0 | Q35: 6350 | R35: 0
C36: Pickup Milage Charge | D36: 1 | F36: Acre | G36: 3.88 | I36: 3.88 | J36: 0 | K36: 0 | M36: 0 | N36: 0 | O36: 3.88 | P36: 0 | Q36: 1940 | R36: 0
C37: Boll Weevil Program LC | D37: 1.6 | F37: Bale | G37: 3.5 | I37: 5.6 | J37: 0 | K37: 0 | M37: 0 | N37: 0 | O37: 5.6 | P37: 0 | Q37: 2800 | R37: 0
B38: Other Chemicals
C39: 2, 4D Amine | D39: 2 | F39: Pint | G39: 2.07 | I39: 4.14 | J39: 0 | K39: 0 | M39: 0 | N39: 0 | O39: 4.14 | P39: 0 | Q39: 2070 | R39: 0
C40: Glyphosate | D40: 1 | F40: Quart | G40: 5.5 | I40: 5.5 | J40: 0 | K40: 0 | M40: 0 | N40: 0 | O40: 5.5 | P40: 0 | Q40: 2750 | R40: 0
C41: Generic PIX | D41: 32 | F41: Ounce | G41: 0.06 | I41: 1.92 | J41: 0 | K41: 0 | M41: 0 | N41: 0 | O41: 1.92 | P41: 0 | Q41: 960 | R41: 0
C42: Defoliants - Picker | D42: 4 | F42: Ounce | G42: 1.05 | I42: 4.2 | J42: 0 | K42: 0 | M42: 0 | N42: 0 | O42: 4.2 | P42: 0 | Q42: 2100 | R42: 0
C43: Ethephon | D43: 21 | F43: Ounce | G43: 0.15 | I43: 3.15 | J43: 0 | K43: 0 | M43: 0 | N43: 0 | O43: 3.15 | P43: 0 | Q43: 1575 | R43: 0
B44: Other Labor
C45: Hand Labor | D45: 0.08 | F45: Hour | G45: 16 | I45: 1.28 | J45: 0 | K45: 0 | M45: 0 | N45: 0 | O45: 1.28 | P45: 0 | Q45: 640 | R45: 0
B46: Insecticide
C47: Fleahopper Control LC | D47: 1.6 | F47: Ounce | G47: 1.08 | I47: 1.728 | J47: 0 | K47: 0 | M47: 0 | N47: 0 | O47: 1.728 | P47: 0 | Q47: 864 | R47: 0
D48: 0 | G48: 0 | I48: 0 | J48: 0 | K48: 0 | M48: 0 | N48: 0 | O48: 0 | P48: 0 | Q48: 0 | R48: 0
D49: 0 | G49: 0 | I49: 0 | J49: 0 | K49: 0 | M49: 0 | N49: 0 | O49: 0 | P49: 0 | Q49: 0 | R49: 0
D50: 0 | G50: 0 | I50: 0 | J50: =E50*H50 -> 0 | K50: 0 | M50: 0 | N50: =J50*L50 -> 0 | O50: 0 | P50: =+J50-N50 -> 0 | Q50: 0 | R50: =+J50*E$7 -> 0
B51: Machinery Labor
C52: Tractors/Self-Propelled | D52: 0.51 | F52: Hour | G52: 19.5 | I52: 9.945 | J52: =E52*H52 -> 0 | K52: 0 | M52: 0 | N52: =J52*L52 -> 0 | O52: 9.945 | P52: =+J52-N52 -> 0 | Q52: 4972.5 | R52: =+J52*E$7 -> 0
C53: Other Labor | D53: 0 | F53: Hour | G53: 19.5 | I53: 0 | J53: =E53*H53 -> 0 | K53: 0 | M53: 0 | N53: =J53*L53 -> 0 | O53: 0 | P53: =+J53-N53 -> 0 | Q53: 0 | R53: =+J53*E$7 -> 0
B55: Diesel Fuel
C56: Pickup/General Use Equipment | D56: 1 | F56: Acre | G56: 0 | I56: 0 | J56: =E56*H56 -> 0 | K56: 0 | M56: 0 | N56: =J56*L56 -> 0 | O56: 0 | P56: =+J56-N56 -> 0 | Q56: 0 | R56: =+J56*E$7 -> 0
C57: Tractors/Self-Propelled | D57: 6.8 | F57: Gallon | G57: 2.2 | I57: 14.96 | J57: =E57*H57 -> 0 | K57: 0 | M57: 0 | N57: =J57*L57 -> 0 | O57: 14.96 | P57: =+J57-N57 -> 0 | Q57: 7480 | R57: =+J57*E$7 -> 0
B59: Gasoline
C60: Pickup/General Use Equipment | D60: 1 | F60: Acre | G60: 0 | I60: 0 | J60: =E60*H60 -> 0 | K60: 0 | M60: 0 | N60: =J60*L60 -> 0 | O60: 0 | P60: =+J60-N60 -> 0 | Q60: 0 | R60: =+J60*E$7 -> 0
C61: Tractors/Self-Propelled | D61: 0 | F61: Gallon | G61: 2.4 | I61: 0 | J61: =E61*H61 -> 0 | K61: 0 | M61: 0 | N61: =J61*L61 -> 0 | O61: 0 | P61: =+J61-N61 -> 0 | Q61: 0 | R61: =+J61*E$7 -> 0
B63: Repairs & Maintenance
C64: Pickup/General Use Equipment | D64: 1 | F64: Acre | G64: 0 | I64: 0 | J64: =E64*H64 -> 0 | K64: 0 | M64: 0 | N64: =J64*L64 -> 0 | O64: 0 | P64: =+J64-N64 -> 0 | Q64: 0 | R64: =+J64*E$7 -> 0
C65: Irrigation Equipment | D65: 1 | F65: Acre | G65: 0 | I65: 0 | J65: 0 | K65: 0 | M65: 0 | N65: 0 | O65: 0 | P65: 0 | Q65: 0 | R65: 0
C66: Tractors/Self-Propelled | D66: 1 | F66: Acre | G66: 17.40224521 | I66: 17.40224521 | J66: 0 | K66: 0 | M66: 0 | N66: 0 | O66: 17.40224521 | P66: 0 | Q66: 8701.122604 | R66: 0
C67: Implements | D67: 1 | F67: Acre | G67: 18.59403747 | I67: 18.59403747 | J67: 0 | K67: 0 | M67: 0 | N67: 0 | O67: 18.59403747 | P67: 0 | Q67: 9297.018737 | R67: 0
I68: 0 | J68: 0 | K68: 0 | M68: 0 | N68: 0 | O68: 0 | P68: 0 | Q68: 0 | R68: =+J68*E$7 -> 0
I69: 0 | J69: 0 | K69: 0 | M69: 0 | N69: 0 | O69: 0 | P69: 0 | Q69: 0 | R69: 0
B70: Interest on Credit Line | G70: 0.06 | I70: 9.177818173 | J70: =+SUM(J18:J69)/2*H70 -> 0 | M70: 0 | N70: =+SUM(N18:N69)/2*L70 -> 0 | O70: 9.177818173 | P70: =+SUM(P18:P69)/2*L70 -> 0 | Q70: 4588.909086 | R70: =+J70*E$7 -> 0
A71: Total Variable Costs | I71: 458.3981009 | J71: =SUM(J19:J70) -> 0 | M71: 0 | N71: =SUM(N19:N70) -> 0 | O71: 458.3981009 | P71: =SUM(P19:P70) -> 0 | Q71: 229199.0504 | R71: =SUM(R19:R70) -> 0
A72: Planned Returns Above Variable Costs: | I72: 179.1018991 | J72: =+J14-J71 -> 0 | M72: 0 | N72: =+N14-N71 -> 0 | O72: 179.1018991 | P72: =+P14-P71 -> 0 | Q72: 89550.94957 | R72: =+R14-R71 -> 0
B73: Breakeven Price to Cover Variable Costs | G73: 0.4461226261 | H73: =IF(E10=0,"n/a",(YVarExp-(YTotExp+YTotRet-J10))/E10) -> n/a | I73: Pound
Q74: Enterprise | R74: Enterprise
A75: FIXED COSTS | D75: Quantity | E75: Quantity | F75: Units | G75: $/Unit | H75: $/Unit | J75: Total | K75: Share | L75: Share | M75: Landlord | N75: Landlord | O75: Tenant | P75: Tenant | Q75: Total | R75: Total
B76: Machinery Depreciation
C77: Tractors/Self-Propelled | D77: 1 | F77: Acre | G77: 25.58224596 | I77: 25.58224596 | J77: =E77*H77 -> 0 | K77: 0 | M77: 0 | N77: =J77*L77 -> 0 | O77: 25.58224596 | P77: =+J77-N77 -> 0 | Q77: 12791.12298 | R77: =+J77*E$7 -> 0
C78: Implements | D78: 1 | F78: Acre | G78: 24.66784596 | I78: 24.66784596 | J78: 0 | K78: 0 | M78: 0 | N78: =J78*L78 -> 0 | O78: 24.66784596 | P78: 0 | Q78: 12333.92298 | R78: 0
B79: Equipment Investment
C80: Tractors/Self-Propelled | D80: 195.7627605 | F80: Dollars | G80: 0.06 | I80: 11.74576563 | J80: =E80*H80 -> 0 | K80: 0 | M80: 0 | N80: =J80*L80 -> 0 | O80: 11.74576563 | P80: =+J80-N80 -> 0 | Q80: 5872.882816 | R80: =+J80*E$7 -> 0
C81: Implements | D81: 106.418739 | F81: Dollars | G81: 0.06 | I81: 6.385124342 | J81: 0 | K81: 0 | M81: 0 | N81: =J81*L81 -> 0 | O81: 6.385124342 | P81: 0 | Q81: 3192.562171 | R81: 0
B82: Salaried Labor | D82: 1 | F82: Acre | G82: 0 | I82: 0 | J82: 0 | K82: 0 | M82: 0 | N82: =J82*L82 -> 0 | O82: 0 | P82: =+J82-N82 -> 0 | Q82: 0 | R82: =+J82*E$7 -> 0
B83: Management Fee, Owner/Operator Labor | D83: 1 | F83: Acre | G83: 31.875 | I83: 31.875 | J83: 0 | K83: 0 | M83: 0 | N83: 0 | O83: 31.875 | P83: 0 | Q83: 15937.5 | R83: 0
B84: Allocated Establishment Cost | D84: 1 | F84: Acre | G84: 0 | I84: 0 | J84: 0 | K84: 0 | M84: 0 | N84: 0 | O84: 0 | P84: 0 | Q84: 0 | R84: 0
B85: LCB - Land Charge | D85: 1 | F85: Acre | G85: 70 | I85: 70 | J85: 0 | K85: 0 | M85: 0 | N85: 0 | O85: 70 | P85: 0 | Q85: 35000 | R85: 0
B86: Property Taxes | D86: 1 | F86: Acre | G86: 0 | I86: 0 | J86: =E86*H86 -> 0 | K86: 0 | M86: 0 | N86: 0 | O86: 0 | P86: 0 | Q86: 0 | R86: =+J86*E$7 -> 0
B87: Whole Farm Insurance | D87: 1 | F87: Acre | G87: 0 | I87: 0 | J87: 0 | K87: 0 | M87: 0 | N87: 0 | O87: 0 | P87: 0 | Q87: 0 | R87: 0
D88: 1 | G88: 0 | I88: 0 | J88: 0 | K88: 0 | M88: 0 | N88: 0 | O88: 0 | P88: 0 | Q88: 0 | R88: 0
D89: 1 | G89: 0 | I89: 0 | J89: 0 | K89: 0 | M89: 0 | N89: 0 | O89: 0 | P89: 0 | Q89: 0 | R89: 0
A90: Total Fixed Costs | I90: 170.2559819 | J90: =+SUM(J77:J89) -> 0 | M90: 0 | N90: =+SUM(N77:N89) -> 0 | O90: 170.2559819 | P90: =+SUM(P77:P89) -> 0 | Q90: 85127.99095 | R90: =+SUM(R77:R89) -> 0
A91: Total Specified Costs | I91: 628.6540828 | J91: =+J71+J90 -> 0 | M91: 0 | N91: =+N71+N90 -> 0 | O91: 628.6540828 | P91: =+P71+P90 -> 0 | Q91: 314327.0414 | R91: =+R71+R90 -> 0
A93: Returns Above Specified Costs | I93: 8.845917248 | J93: =+J14-J91 -> 0 | M93: 0 | N93: =+N14-N91 -> 0 | O93: 8.845917248 | P93: =+P14-P91 -> 0 | Q93: 4422.958624 | R93: =+R14-R91 -> 0
A95: Breakeven Price to Cover Total Costs | G95: 0.6589426034 | H95: =IF(E10=0,"n/a",(YTotExp-(YTotExp+YTotRet-J10))/E10) -> n/a | I95: Pound
D97: Example Breakeven Prices
B98: Example | C98: Example | D98: To Cover | G98: To Cover
B99: Yield | C99: Yield | D99: Variable | G99: Total
B100: Percent | C100: Pound | D100: Costs | G100: Costs
B101: 0.75 | C101: 600 | D101: 0.5948301681 | G101: 0.8785901379
B102: 0.9 | C102: 720 | D102: 0.4956918067 | G102: 0.7321584483
B103: 1 | C103: 800 | D103: 0.4461226261 | G103: 0.6589426034
B104: 1.1 | C104: 880 | D104: 0.4055660237 | G104: 0.5990387304
B105: 1.25 | C105: 1000 | D105: 0.3568981009 | G105: 0.5271540828
A107: Developed by Extension Economists, Texas A&M AgriLife Extension Service, budgets@tamu.edu.
A109: Information presented is prepared solely as a general guide and not intended to recognize or predict the costs and returns from any one operation. Brand names are mentioned only as examples and imply no endorsement.

Sheet SorghumLCB
A1: Projections for Planning Purposes Only -- Not to be Used without Updating
A2: 2021 Estimated Costs and Returns per Acre
A3: Sorghum - Conventional Till-24 Row, Dryland, 72 bu. Yield Goal - Lower Coast
A4: Enter your name for this budget in the cell above.
A5: Enter Your Values in the cells highlighed in MAROON.
E6: Your Acres | R6: Your
C7: Crop Acres | D7: 500 | L7: Your | Q7: Enterprise | R7: Enterprise
E8: Your | H8: Your | I8: Cash | J8: Your | K8: Landlord | L8: Landlord | N8: Your | P8: Your | Q8: Total | R8: Total
A9: REVENUE | D9: Quantity | E9: Quantity | F9: Units | G9: $/Unit | H9: $/Unit | I9: Total | J9: Total | K9: Share | L9: Share | M9: Landlord | N9: Landlord | O9: Tenant | P9: Tenant | Q9: (500 acres) | R9: ="(" & E7 & " acres)" -> ( acres)
B10: Grain Sorghum, Lower Coast | D10: 72 | F10: Bushel | G10: 3.6 | I10: 259.2 | J10: =E10*H10 -> 0 | K10: 0 | M10: 0 | N10: =J10*L10 -> 0 | O10: 259.2 | P10: =+J10-N10 -> 0 | Q10: 129600 | R10: =+J10*E$7 -> 0
D11: 0 | G11: 0 | I11: 0 | J11: 0 | K11: 0 | M11: 0 | N11: 0 | O11: 0 | P11: =+J11-N11 -> 0 | Q11: 0 | R11: 0
D12: 0 | G12: 0 | I12: 0 | J12: 0 | K12: 0 | M12: 0 | N12: 0 | O12: 0 | P12: 0 | Q12: 0 | R12: 0
A13: Total Revenue | I13: 259.2 | J13: =SUM(J10:J12) -> 0 | M13: 0 | N13: =SUM(N10:N12) -> 0 | O13: 259.2 | P13: =SUM(P10:P12) -> 0 | Q13: 129600 | R13: =SUM(R10:R12) -> 0
Q14: Enterprise | R14: Enterprise
A15: VARIABLE COSTS | D15: Quantity | E15: Quantity | F15: Units | G15: $/Unit | H15: $/Unit | I15: Total | J15: Total | K15: Share | L15: Share | M15: Landlord | N15: Landlord | O15: Tenant | P15: Tenant | Q15: Total | R15: Total
A16: Production Costs
B17: Custom
C18: Fertilizer Application | D18: 1 | F18: Ounce | G18: 0.15 | I18: 0.15 | J18: =E18*H18 -> 0 | K18: 0 | M18: 0 | N18: =J18*L18 -> 0 | O18: 0.15 | P18: =+J18-N18 -> 0 | Q18: 75 | R18: =+J18*E$7 -> 0
C19: Custom Haul - Sorghum | D19: 42 | F19: CWT | G19: 0.55 | I19: 23.1 | J19: 0 | K19: 0 | M19: 0 | N19: 0 | O19: 23.1 | P19: 0 | Q19: 11550 | R19: 0
B20: Fertilizer
C21: 24-8-0 | D21: 0.165 | F21: Ton | G21: 266 | I21: 43.89 | J21: 0 | K21: 0 | M21: 0 | N21: 0 | O21: 43.89 | P21: 0 | Q21: 21945 | R21: 0
B22: Herbicide
C23: Atrazine 4L | D23: 2 | F23: Quart | G23: 3 | I23: 6 | J23: 0 | K23: 0 | M23: 0 | N23: 0 | O23: 6 | P23: 0 | Q23: 3000 | R23: 0
C24: Sorghum PreEmerge Herbicide | D24: 14 | F24: Ounce | G24: 0.92 | I24: 12.88 | J24: 0 | K24: 0 | M24: 0 | N24: 0 | O24: 12.88 | P24: 0 | Q24: 6440 | R24: 0
B25: Insecticide
C26: Headworn Control | D26: 2.6 | F26: Ounce | G26: 1.16 | I26: 3.016 | J26: 0 | K26: 0 | M26: 0 | N26: 0 | O26: 3.016 | P26: 0 | Q26: 1508 | R26: 0
C27: Transform | D27: 1 | F27: Ounce | G27: 7.73 | I27: 7.73 | J27: 0 | K27: 0 | M27: 0 | N27: 0 | O27: 7.73 | P27: 0 | Q27: 3865 | R27: 0
C28: Stinkbug Control | D28: 2 | F28: Ounce | G28: 0.33 | I28: 0.66 | J28: 0 | K28: 0 | M28: 0 | N28: 0 | O28: 0.66 | P28: 0 | Q28: 330 | R28: 0
B29: Miscellaneous
C30: Crop Insurance -Sorghum LC | D30: 1 | F30: Acre | G30: 5.75 | I30: 5.75 | J30: 0 | K30: 0 | M30: 0 | N30: 0 | O30: 5.75 | P30: 0 | Q30: 2875 | R30: 0
C31: Pickup Milage Charge | D31: 1 | F31: Acre | G31: 3.88 | I31: 3.88 | J31: 0 | K31: 0 | M31: 0 | N31: 0 | O31: 3.88 | P31: 0 | Q31: 1940 | R31: 0
B32: Other Labor
C33: Hand Labor | D33: 0.04 | F33: Hour | G33: 16 | I33: 0.64 | J33: 0 | K33: 0 | M33: 0 | N33: 0 | O33: 0.64 | P33: 0 | Q33: 320 | R33: 0
B34: Seed
C35: Treated Sorghum Seed | D35: 4.5 | F35: Pound | G35: 3.2 | I35: 14.4 | J35: 0 | K35: 0 | M35: 0 | N35: 0 | O35: 14.4 | P35: 0 | Q35: 7200 | R35: 0
D36: 0 | G36: 0 | I36: 0 | J36: 0 | K36: 0 | M36: 0 | N36: 0 | O36: 0 | P36: 0 | Q36: 0 | R36: 0
D37: 0 | G37: 0 | I37: 0 | J37: 0 | K37: 0 | M37: 0 | N37: 0 | O37: 0 | P37: 0 | Q37: 0 | R37: 0
D38: 0 | G38: 0 | I38: 0 | J38: =E38*H38 -> 0 | K38: 0 | M38: 0 | N38: =J38*L38 -> 0 | O38: 0 | P38: =+J38-N38 -> 0 | Q38: 0 | R38: =+J38*E$7 -> 0
B39: Machinery Labor
C40: Tractors/Self-Propelled | D40: 0.83 | F40: Hour | G40: 19.5 | I40: 16.185 | J40: =E40*H40 -> 0 | K40: 0 | M40: 0 | N40: =J40*L40 -> 0 | O40: 16.185 | P40: =+J40-N40 -> 0 | Q40: 8092.5 | R40: =+J40*E$7 -> 0
C41: Other Labor | D41: 0 | F41: Hour | G41: 19.5 | I41: 0 | J41: =E41*H41 -> 0 | K41: 0 | M41: 0 | N41: =J41*L41 -> 0 | O41: 0 | P41: =+J41-N41 -> 0 | Q41: 0 | R41: =+J41*E$7 -> 0
B43: Diesel Fuel
C44: Pickup/General Use Equipment | D44: 1 | F44: Acre | G44: 0 | I44: 0 | J44: =E44*H44 -> 0 | K44: 0 | M44: 0 | N44: =J44*L44 -> 0 | O44: 0 | P44: =+J44-N44 -> 0 | Q44: 0 | R44: =+J44*E$7 -> 0
C45: Tractors/Self-Propelled | D45: 9.85 | F45: Gallon | G45: 2.2 | I45: 21.67 | J45: =E45*H45 -> 0 | K45: 0 | M45: 0 | N45: =J45*L45 -> 0 | O45: 21.67 | P45: =+J45-N45 -> 0 | Q45: 10835 | R45: =+J45*E$7 -> 0
B47: Gasoline
C48: Pickup/General Use Equipment | D48: 1 | F48: Acre | G48: 0 | I48: 0 | J48: =E48*H48 -> 0 | K48: 0 | M48: 0 | N48: =J48*L48 -> 0 | O48: 0 | P48: =+J48-N48 -> 0 | Q48: 0 | R48: =+J48*E$7 -> 0
C49: Tractors/Self-Propelled | D49: 0 | F49: Gallon | G49: 2.4 | I49: 0 | J49: =E49*H49 -> 0 | K49: 0 | M49: 0 | N49: =J49*L49 -> 0 | O49: 0 | P49: =+J49-N49 -> 0 | Q49: 0 | R49: =+J49*E$7 -> 0
B51: Repairs & Maintenance
C52: Pickup/General Use Equipment | D52: 1 | F52: Acre | G52: 0 | I52: 0 | J52: =E52*H52 -> 0 | K52: 0 | M52: 0 | N52: =J52*L52 -> 0 | O52: 0 | P52: =+J52-N52 -> 0 | Q52: 0 | R52: =+J52*E$7 -> 0
C53: Irrigation Equipment | D53: 1 | F53: Acre | G53: 0 | I53: 0 | J53: 0 | K53: 0 | M53: 0 | N53: 0 | O53: 0 | P53: 0 | Q53: 0 | R53: 0
C54: Tractors/Self-Propelled | D54: 1 | F54: Acre | G54: 33.85872878 | I54: 33.85872878 | J54: 0 | K54: 0 | M54: 0 | N54: 0 | O54: 33.85872878 | P54: 0 | Q54: 16929.36439 | R54: 0
C55: Implements | D55: 1 | F55: Acre | G55: 22.0889709 | I55: 22.0889709 | J55: 0 | K55: 0 | M55: 0 | N55: 0 | O55: 22.0889709 | P55: 0 | Q55: 11044.48545 | R55: 0
I56: 0 | J56: 0 | K56: 0 | M56: 0 | N56: 0 | O56: 0 | P56: 0 | Q56: 0 | R56: 0
I57: 0 | J57: 0 | K57: 0 | M57: 0 | N57: 0 | O57: 0 | P57: 0 | Q57: 0 | R57: 0
B58: Interest on Credit Line | G58: 0.06 | I58: 6.005971549 | J58: =+SUM(J17:J57)/2*H58 -> 0 | M58: 0 | N58: =+SUM(N17:N57)/2*L58 -> 0 | O58: 6.005971549 | P58: =+SUM(P17:P57)/2*L58 -> 0 | Q58: 3002.985774 | R58: =+J58*E$7 -> 0
A59: Total Variable Costs | I59: 221.9046712 | J59: =SUM(J18:J58) -> 0 | M59: 0 | N59: =SUM(N18:N58) -> 0 | O59: 221.9046712 | P59: =SUM(P18:P58) -> 0 | Q59: 110952.3356 | R59: =SUM(R18:R58) -> 0
A60: Planned Returns Above Variable Costs: | I60: 37.29532878 | J60: =+J13-J59 -> 0 | M60: 0 | N60: =+N13-N59 -> 0 | O60: 37.29532878 | P60: =+P13-P59 -> 0 | Q60: 18647.66439 | R60: =+R13-R59 -> 0
B61: Breakeven Price to Cover Variable Costs | G61: 3.082009323 | H61: =IF(E10=0,"n/a",(YVarExp-(YTotExp+YTotRet-J10))/E10) -> n/a | I61: Bushel
Q62: Enterprise | R62: Enterprise
A63: FIXED COSTS | D63: Quantity | E63: Quantity | F63: Units | G63: $/Unit | H63: $/Unit | I63: Total | J63: Total | K63: Share | L63: Share | M63: Landlord | N63: Landlord | O63: Tenant | P63: Tenant | Q63: Total | R63: Total
B64: Machinery Depreciation
C65: Tractors/Self-Propelled | D65: 1 | F65: Acre | G65: 38.62458428 | I65: 38.62458428 | J65: =E65*H65 -> 0 | K65: 0 | M65: 0 | N65: =J65*L65 -> 0 | O65: 38.62458428 | P65: =+J65-N65 -> 0 | Q65: 19312.29214 | R65: =+J65*E$7 -> 0
C66: Implements | D66: 1 | F66: Acre | G66: 28.53494373 | I66: 28.53494373 | J66: 0 | K66: 0 | M66: 0 | N66: =J66*L66 -> 0 | O66: 28.53494373 | P66: 0 | Q66: 14267.47187 | R66: 0
B67: Equipment Investment
C68: Tractors/Self-Propelled | D68: 294.7946401 | F68: Dollars | G68: 0.06 | I68: 17.68767841 | J68: =E68*H68 -> 0 | K68: 0 | M68: 0 | N68: =J68*L68 -> 0 | O68: 17.68767841 | P68: =+J68-N68 -> 0 | Q68: 8843.839203 | R68: =+J68*E$7 -> 0
C69: Implements | D69: 147.2245745 | F69: Dollars | G69: 0.06 | I69: 8.833474468 | J69: 0 | K69: 0 | M69: 0 | N69: =J69*L69 -> 0 | O69: 8.833474468 | P69: 0 | Q69: 4416.737234 | R69: 0
B70: Salaried Labor | D70: 1 | F70: Acre | G70: 0 | I70: 0 | J70: 0 | K70: 0 | M70: 0 | N70: =J70*L70 -> 0 | O70: 0 | P70: =+J70-N70 -> 0 | Q70: 0 | R70: =+J70*E$7 -> 0
B71: Management Fee, Owner/Operator Labor | D71: 1 | F71: Acre | G71: 12.96 | I71: 12.96 | J71: 0 | K71: 0 | M71: 0 | N71: 0 | O71: 12.96 | P71: 0 | Q71: 6480 | R71: 0
B72: Allocated Establishment Cost | D72: 1 | F72: Acre | G72: 0 | I72: 0 | J72: 0 | K72: 0 | M72: 0 | N72: 0 | O72: 0 | P72: 0 | Q72: 0 | R72: 0
B73: LCB - Land Charge | D73: 1 | F73: Acre | G73: 70 | I73: 70 | J73: 0 | K73: 0 | M73: 0 | N73: 0 | O73: 70 | P73: 0 | Q73: 35000 | R73: 0
B74: Property Taxes | D74: 1 | F74: Acre | G74: 0 | I74: 0 | J74: 0 | K74: 0 | M74: 0 | N74: 0 | O74: 0 | P74: 0 | Q74: 0 | R74: 0
B75: Whole Farm Insurance | D75: 1 | F75: Acre | G75: 0 | I75: 0 | J75: 0 | K75: 0 | M75: 0 | N75: 0 | O75: 0 | P75: 0 | Q75: 0 | R75: 0
D76: 1 | G76: 0 | I76: 0 | J76: 0 | K76: 0 | M76: 0 | N76: 0 | O76: 0 | P76: 0 | Q76: 0 | R76: 0
D77: 1 | G77: 0 | I77: 0 | J77: =E77*H77 -> 0 | K77: 0 | M77: 0 | N77: 0 | O77: 0 | P77: 0 | Q77: 0 | R77: 0
A78: Total Fixed Costs | I78: 176.6406809 | J78: =+SUM(J65:J77) -> 0 | M78: 0 | N78: =+SUM(N65:N77) -> 0 | O78: 176.6406809 | P78: =+SUM(P65:P77) -> 0 | Q78: 88320.34044 | R78: =+SUM(R65:R77) -> 0
A79: Total Specified Costs | I79: 398.5453521 | J79: =+J59+J78 -> 0 | M79: 0 | N79: =+N59+N78 -> 0 | O79: 398.5453521 | P79: =+P59+P78 -> 0 | Q79: 199272.6761 | R79: =+R59+R78 -> 0
A81: Returns Above Specified Costs | I81: -139.3453521 | J81: =+J13-J79 -> 0 | M81: 0 | N81: =+N13-N79 -> 0 | O81: -139.3453521 | P81: =+P13-P79 -> 0 | Q81: -69672.67606 | R81: =+R13-R79 -> 0
A83: Breakeven Price to Cover Total Costs | G83: 5.535352113 | H83: =IF(E10=0,"n/a",(YTotExp-(YTotExp+YTotRet-J10))/E10) -> n/a | I83: Bushel
D85: Example Breakeven Prices
B86: Example | C86: Example | D86: To Cover | G86: To Cover
B87: Yield | C87: Yield | D87: Variable | G87: Total
B88: Percent | C88: Bushel | D88: Costs | G88: Costs
B89: 0.75 | C89: 54 | D89: 4.109345763 | G89: 7.380469484
B90: 0.9 | C90: 64.8 | D90: 3.424454803 | G90: 6.150391236
B91: 1 | C91: 72 | D91: 3.082009323 | G91: 5.535352113
B92: 1.1 | C92: 79.2 | D92: 2.801826657 | G92: 5.032138284
B93: 1.25 | C93: 90 | D93: 2.465607458 | G93: 4.42828169
A95: Developed by Extension Economists, Texas A&M AgriLife Extension Service, budgets@tamu.edu.
A97: Information presented is prepared solely as a general guide and not intended to recognize or predict the costs and returns from any one operation. Brand names are mentioned only as examples and imply no endorsement.

Sheet WheatLCB
A1: Projections for Planning Purposes Only -- Not to be Used without Updating
A2: 2021 Estimated Costs and Returns per Acre
A3: Hard Red Spring Wheat, Dryland, 35 bu. Yield Goal - Lower Coast
A4: Enter your name for this budget in the cell above.
A5: Enter Your Values in the cells highlighed in MAROON.
E6: Your Acres | R6: Your
C7: Crop Acres | D7: 500 | L7: Your | Q7: Enterprise | R7: Enterprise
E8: Your | H8: Your | I8: Cash | J8: Your | K8: Landlord | L8: Landlord | N8: Your | P8: Your | Q8: Total | R8: Total
A9: REVENUE | D9: Quantity | E9: Quantity | F9: Units | G9: $/Unit | H9: $/Unit | I9: Total | J9: Total | K9: Share | L9: Share | M9: Landlord | N9: Landlord | O9: Tenant | P9: Tenant | Q9: (500 acres) | R9: ="(" & E7 & " acres)" -> ( acres)
B10: Hard Red Spring Wheat | D10: 35 | F10: Bushel | G10: 4.7 | I10: 164.5 | J10: =E10*H10 -> 0 | K10: 0 | M10: 0 | N10: =J10*L10 -> 0 | O10: 164.5 | P10: =+J10-N10 -> 0 | Q10: 82250 | R10: =+J10*E$7 -> 0
D11: 0 | G11: 0 | I11: 0 | J11: 0 | K11: 0 | M11: 0 | N11: 0 | O11: 0 | P11: =+J11-N11 -> 0 | Q11: 0 | R11: 0
D12: 0 | G12: 0 | I12: 0 | J12: 0 | K12: 0 | M12: 0 | N12: 0 | O12: 0 | P12: 0 | Q12: 0 | R12: 0
A13: Total Revenue | I13: 164.5 | J13: =SUM(J10:J12) -> 0 | M13: 0 | N13: =SUM(N10:N12) -> 0 | O13: 164.5 | P13: =SUM(P10:P12) -> 0 | Q13: 82250 | R13: =SUM(R10:R12) -> 0
Q14: Enterprise | R14: Enterprise
A15: VARIABLE COSTS | D15: Quantity | E15: Quantity | F15: Units | G15: $/Unit | H15: $/Unit | I15: Total | J15: Total | K15: Share | L15: Share | M15: Landlord | N15: Landlord | O15: Tenant | P15: Tenant | Q15: Total | R15: Total
A16: Production Costs
B17: Custom
C18: Custom Haul - Wheat | D18: 35 | F18: Bushel | G18: 0.25 | I18: 8.75 | J18: =E18*H18 -> 0 | K18: 0 | M18: 0 | N18: =J18*L18 -> 0 | O18: 8.75 | P18: =+J18-N18 -> 0 | Q18: 4375 | R18: =+J18*E$7 -> 0
C19: Fertilizer Application LC | D19: 1 | F19: Acre | G19: 9 | I19: 9 | J19: 0 | K19: 0 | M19: 0 | N19: 0 | O19: 9 | P19: 0 | Q19: 4500 | R19: 0
B20: Fertilizer
C21: 24-8-0 | D21: 0.1 | F21: Ton | G21: 266 | I21: 26.6 | J21: 0 | K21: 0 | M21: 0 | N21: 0 | O21: 26.6 | P21: 0 | Q21: 13300 | R21: 0
B22: Herbicide
C23: Glyphosate (Generic) | D23: 1 | F23: Quart | G23: 3.38 | I23: 3.38 | J23: 0 | K23: 0 | M23: 0 | N23: 0 | O23: 3.38 | P23: 0 | Q23: 1690 | R23: 0
B24: Insecticide
C25: Wheat Insect Control | D25: 1.5 | F25: Pint | G25: 7.47 | I25: 11.205 | J25: 0 | K25: 0 | M25: 0 | N25: 0 | O25: 11.205 | P25: 0 | Q25: 5602.5 | R25: 0
B26: Miscellaneous
C27: Pickup Milage Charge | D27: 1 | F27: Acre | G27: 3.88 | I27: 3.88 | J27: 0 | K27: 0 | M27: 0 | N27: 0 | O27: 3.88 | P27: 0 | Q27: 1940 | R27: 0
C28: Crop Insurance -Wheat LC | D28: 1 | F28: Acre | G28: 4.08 | I28: 4.08 | J28: 0 | K28: 0 | M28: 0 | N28: 0 | O28: 4.08 | P28: 0 | Q28: 2040 | R28: 0
B29: Seed
C30: HRS Wheat Seed | D30: 90 | F30: Pound | G30: 0.39 | I30: 35.1 | J30: 0 | K30: 0 | M30: 0 | N30: 0 | O30: 35.1 | P30: 0 | Q30: 17550 | R30: 0
B31: Other Labor
C32: Hand Labor | D32: 0.018 | F32: Hour | G32: 16 | I32: 0.288 | J32: 0 | K32: 0 | M32: 0 | N32: 0 | O32: 0.288 | P32: 0 | Q32: 144 | R32: 0
D33: 0 | G33: 0 | I33: 0 | J33: 0 | K33: 0 | M33: 0 | N33: 0 | O33: 0 | P33: 0 | Q33: 0 | R33: 0
D34: 0 | G34: 0 | I34: 0 | J34: 0 | K34: 0 | M34: 0 | N34: 0 | O34: 0 | P34: 0 | Q34: 0 | R34: 0
D35: 0 | G35: 0 | I35: 0 | J35: =E35*H35 -> 0 | K35: 0 | M35: 0 | N35: =J35*L35 -> 0 | O35: 0 | P35: =+J35-N35 -> 0 | Q35: 0 | R35: =+J35*E$7 -> 0
B36: Machinery Labor
C37: Tractors/Self-Propelled | D37: 0.56 | F37: Hour | G37: 19.5 | I37: 10.92 | J37: =E37*H37 -> 0 | K37: 0 | M37: 0 | N37: =J37*L37 -> 0 | O37: 10.92 | P37: =+J37-N37 -> 0 | Q37: 5460 | R37: =+J37*E$7 -> 0
C38: Other Labor | D38: 0 | F38: Hour | G38: 19.5 | I38: 0 | J38: =E38*H38 -> 0 | K38: 0 | M38: 0 | N38: =J38*L38 -> 0 | O38: 0 | P38: =+J38-N38 -> 0 | Q38: 0 | R38: =+J38*E$7 -> 0
B40: Diesel Fuel
C41: Pickup/General Use Equipment | D41: 1 | F41: Acre | G41: 0 | I41: 0 | J41: =E41*H41 -> 0 | K41: 0 | M41: 0 | N41: =J41*L41 -> 0 | O41: 0 | P41: =+J41-N41 -> 0 | Q41: 0 | R41: =+J41*E$7 -> 0
C42: Tractors/Self-Propelled | D42: 6.33 | F42: Gallon | G42: 2.2 | I42: 13.926 | J42: =E42*H42 -> 0 | K42: 0 | M42: 0 | N42: =J42*L42 -> 0 | O42: 13.926 | P42: =+J42-N42 -> 0 | Q42: 6963 | R42: =+J42*E$7 -> 0
B44: Gasoline
C45: Pickup/General Use Equipment | D45: 1 | F45: Acre | G45: 0 | I45: 0 | J45: =E45*H45 -> 0 | K45: 0 | M45: 0 | N45: =J45*L45 -> 0 | O45: 0 | P45: =+J45-N45 -> 0 | Q45: 0 | R45: =+J45*E$7 -> 0
C46: Tractors/Self-Propelled | D46: 0 | F46: Gallon | G46: 2.4 | I46: 0 | J46: =E46*H46 -> 0 | K46: 0 | M46: 0 | N46: =J46*L46 -> 0 | O46: 0 | P46: =+J46-N46 -> 0 | Q46: 0 | R46: =+J46*E$7 -> 0
B48: Repairs & Maintenance
C49: Pickup/General Use Equipment | D49: 1 | F49: Acre | G49: 0 | I49: 0 | J49: =E49*H49 -> 0 | K49: 0 | M49: 0 | N49: =J49*L49 -> 0 | O49: 0 | P49: =+J49-N49 -> 0 | Q49: 0 | R49: =+J49*E$7 -> 0
C50: Irrigation Equipment | D50: 1 | F50: Acre | G50: 0 | I50: 0 | J50: 0 | K50: 0 | M50: 0 | N50: 0 | O50: 0 | P50: 0 | Q50: 0 | R50: 0
C51: Tractors/Self-Propelled | D51: 1 | F51: Acre | G51: 24.58577889 | I51: 24.58577889 | J51: 0 | K51: 0 | M51: 0 | N51: 0 | O51: 24.58577889 | P51: 0 | Q51: 12292.88944 | R51: 0
C52: Implements | D52: 1 | F52: Acre | G52: 11.442164 | I52: 11.442164 | J52: 0 | K52: 0 | M52: 0 | N52: 0 | O52: 11.442164 | P52: 0 | Q52: 5721.082002 | R52: 0
I53: 0 | J53: 0 | K53: 0 | M53: 0 | N53: 0 | O53: 0 | P53: 0 | Q53: 0 | R53: 0
I54: 0 | J54: 0 | K54: 0 | M54: 0 | N54: 0 | O54: 0 | P54: 0 | Q54: 0 | R54: 0
B55: Interest on Credit Line | G55: 0.06 | I55: 5.030850374 | J55: =+SUM(J17:J54)/2*H55 -> 0 | M55: 0 | N55: =+SUM(N17:N54)/2*L55 -> 0 | O55: 5.030850374 | P55: =+SUM(P17:P54)/2*L55 -> 0 | Q55: 2515.425187 | R55: =+J55*E$7 -> 0
A56: Total Variable Costs | I56: 168.1877933 | J56: =SUM(J18:J55) -> 0 | M56: 0 | N56: =SUM(N18:N55) -> 0 | O56: 168.1877933 | P56: =SUM(P18:P55) -> 0 | Q56: 84093.89663 | R56: =SUM(R18:R55) -> 0
A57: Planned Returns Above Variable Costs: | I57: -3.687793264 | J57: =+J13-J56 -> 0 | M57: 0 | N57: =+N13-N56 -> 0 | O57: -3.687793264 | P57: =+P13-P56 -> 0 | Q57: -1843.896632 | R57: =+R13-R56 -> 0
B58: Breakeven Price to Cover Variable Costs | G58: 4.805365522 | H58: =IF(E10=0,"n/a",(YVarExp-(YTotExp+YTotRet-J10))/E10) -> n/a | I58: Bushel
Q59: Enterprise | R59: Enterprise
A60: FIXED COSTS | D60: Quantity | E60: Quantity | F60: Units | G60: $/Unit | H60: $/Unit | I60: Total | J60: Total | K60: Share | L60: Share | M60: Landlord | N60: Landlord | O60: Tenant | P60: Tenant | Q60: Total | R60: Total
B61: Machinery Depreciation
C62: Tractors/Self-Propelled | D62: 1 | F62: Acre | G62: 25.78542496 | I62: 25.78542496 | J62: =E62*H62 -> 0 | K62: 0 | M62: 0 | N62: =J62*L62 -> 0 | O62: 25.78542496 | P62: =+J62-N62 -> 0 | Q62: 12892.71248 | R62: =+J62*E$7 -> 0
C63: Implements | D63: 1 | F63: Acre | G63: 14.00628701 | I63: 14.00628701 | J63: 0 | K63: 0 | M63: 0 | N63: =J63*L63 -> 0 | O63: 14.00628701 | P63: 0 | Q63: 7003.143507 | R63: 0
B64: Equipment Investment
C65: Tractors/Self-Propelled | D65: 196.2868135 | F65: Dollars | G65: 0.06 | I65: 11.77720881 | J65: =E65*H65 -> 0 | K65: 0 | M65: 0 | N65: =J65*L65 -> 0 | O65: 11.77720881 | P65: =+J65-N65 -> 0 | Q65: 5888.604405 | R65: =+J65*E$7 -> 0
C66: Implements | D66: 84.17903386 | F66: Dollars | G66: 0.06 | I66: 5.050742032 | J66: 0 | K66: 0 | M66: 0 | N66: =J66*L66 -> 0 | O66: 5.050742032 | P66: 0 | Q66: 2525.371016 | R66: 0
B67: Salaried Labor | D67: 1 | F67: Acre | G67: 0 | I67: 0 | J67: 0 | K67: 0 | M67: 0 | N67: =J67*L67 -> 0 | O67: 0 | P67: =+J67-N67 -> 0 | Q67: 0 | R67: =+J67*E$7 -> 0
B68: Management Fee, Owner/Operator Labor | D68: 1 | F68: Acre | G68: 8.225 | I68: 8.225 | J68: 0 | K68: 0 | M68: 0 | N68: 0 | O68: 8.225 | P68: 0 | Q68: 4112.5 | R68: 0
B69: Allocated Establishment Cost | D69: 1 | F69: Acre | G69: 0 | I69: 0 | J69: 0 | K69: 0 | M69: 0 | N69: 0 | O69: 0 | P69: 0 | Q69: 0 | R69: 0
B70: LCB - Land Charge | D70: 1 | F70: Acre | G70: 70 | I70: 70 | J70: 0 | K70: 0 | M70: 0 | N70: 0 | O70: 70 | P70: 0 | Q70: 35000 | R70: 0
B71: Property Taxes | D71: 1 | F71: Acre | G71: 0 | I71: 0 | J71: 0 | K71: 0 | M71: 0 | N71: 0 | O71: 0 | P71: 0 | Q71: 0 | R71: 0
B72: Whole Farm Insurance | D72: 1 | F72: Acre | G72: 0 | I72: 0 | J72: 0 | K72: 0 | M72: 0 | N72: 0 | O72: 0 | P72: 0 | Q72: 0 | R72: 0
D73: 1 | G73: 0 | I73: 0 | J73: 0 | K73: 0 | M73: 0 | N73: 0 | O73: 0 | P73: 0 | Q73: 0 | R73: 0
D74: 1 | G74: 0 | I74: 0 | J74: =E74*H74 -> 0 | K74: 0 | M74: 0 | N74: 0 | O74: 0 | P74: 0 | Q74: 0 | R74: 0
A75: Total Fixed Costs | I75: 134.8446628 | J75: =+SUM(J62:J74) -> 0 | M75: 0 | N75: =+SUM(N62:N74) -> 0 | O75: 134.8446628 | P75: =+SUM(P62:P74) -> 0 | Q75: 67422.33141 | R75: =+SUM(R62:R74) -> 0
A76: Total Specified Costs | I76: 303.0324561 | J76: =+J56+J75 -> 0 | M76: 0 | N76: =+N56+N75 -> 0 | O76: 303.0324561 | P76: =+P56+P75 -> 0 | Q76: 151516.228 | R76: =+R56+R75 -> 0
A78: Returns Above Specified Costs | I78: -138.5324561 | J78: =+J13-J76 -> 0 | M78: 0 | N78: =+N13-N76 -> 0 | O78: -138.5324561 | P78: =+P13-P76 -> 0 | Q78: -69266.22804 | R78: =+R13-R76 -> 0
A80: Breakeven Price to Cover Total Costs | G80: 8.658070174 | H80: =IF(E10=0,"n/a",(YTotExp-(YTotExp+YTotRet-J10))/E10) -> n/a | I80: Bushel
D82: Example Breakeven Prices
B83: Example | C83: Example | D83: To Cover | G83: To Cover
B84: Yield | C84: Yield | D84: Variable | G84: Total
B85: Percent | C85: Bushel | D85: Costs | G85: Costs
B86: 0.75 | C86: 26.25 | D86: 6.407154029 | G86: 11.54409356
B87: 0.9 | C87: 31.5 | D87: 5.339295024 | G87: 9.620077971
B88: 1 | C88: 35 | D88: 4.805365522 | G88: 8.658070174
B89: 1.1 | C89: 38.5 | D89: 4.368514111 | G89: 7.870972885
B90: 1.25 | C90: 43.75 | D90: 3.844292417 | G90: 6.926456139
A92: Developed by Extension Economists, Texas A&M AgriLife Extension Service, budgets@tamu.edu.
A94: Information presented is prepared solely as a general guide and not intended to recognize or predict the costs and returns from any one operation. Brand names are mentioned only as examples and imply no endorsement.

Sheet CanolaLCB
A1: Projections for Planning Purposes Only -- Not to be Used without Updating
A2: 2021 Estimated Costs and Returns per Acre
A3: Canola, Dryland, 1500 lb. Yield Goal - Lower Coast
A4: Enter your name for this budget in the cell above.
A5: Enter Your Values in the cells highlighed in MAROON.
E6: Your Acres | R6: Your
C7: Crop Acres | D7: 500 | L7: Your | Q7: Enterprise | R7: Enterprise
E8: Your | H8: Your | I8: Cash | J8: Your | K8: Landlord | L8: Landlord | N8: Your | P8: Your | Q8: Total | R8: Total
A9: REVENUE | D9: Quantity | E9: Quantity | F9: Units | G9: $/Unit | H9: $/Unit | I9: Total | J9: Total | K9: Share | L9: Share | M9: Landlord | N9: Landlord | O9: Tenant | P9: Tenant | Q9: (500 acres) | R9: ="(" & E7 & " acres)" -> ( acres)
B10: Canola | D10: 1500 | F10: Pound | G10: 0.15 | I10: 225 | J10: =E10*H10 -> 0 | K10: 0 | M10: 0 | N10: =J10*L10 -> 0 | O10: 225 | P10: =+J10-N10 -> 0 | Q10: 112500 | R10: =+J10*E$7 -> 0
D11: 0 | G11: 0 | I11: 0 | J11: 0 | K11: 0 | M11: 0 | N11: 0 | O11: 0 | P11: =+J11-N11 -> 0 | Q11: 0 | R11: 0
D12: 0 | G12: 0 | I12: 0 | J12: 0 | K12: 0 | M12: 0 | N12: 0 | O12: 0 | P12: 0 | Q12: 0 | R12: 0
A13: Total Revenue | I13: 225 | J13: =SUM(J10:J12) -> 0 | M13: 0 | N13: =SUM(N10:N12) -> 0 | O13: 225 | P13: =SUM(P10:P12) -> 0 | Q13: 112500 | R13: =SUM(R10:R12) -> 0
Q14: Enterprise | R14: Enterprise
A15: VARIABLE COSTS | D15: Quantity | E15: Quantity | F15: Units | G15: $/Unit | H15: $/Unit | I15: Total | J15: Total | K15: Share | L15: Share | M15: Landlord | N15: Landlord | O15: Tenant | P15: Tenant | Q15: Total | R15: Total
A16: Production Costs
B17: Custom
C18: Fertilizer Application LC | D18: 1 | F18: Acre | G18: 9 | I18: 9 | J18: =E18*H18 -> 0 | K18: 0 | M18: 0 | N18: =J18*L18 -> 0 | O18: 9 | P18: =+J18-N18 -> 0 | Q18: 4500 | R18: =+J18*E$7 -> 0
C19: Custom Haul - Canola | D19: 15 | F19: CWT | G19: 1 | I19: 15 | J19: 0 | K19: 0 | M19: 0 | N19: 0 | O19: 15 | P19: 0 | Q19: 7500 | R19: 0
B20: Fertilizer
C21: 32-11-3 6S | D21: 0.12 | F21: Ton | G21: 411 | I21: 49.32 | J21: 0 | K21: 0 | M21: 0 | N21: 0 | O21: 49.32 | P21: 0 | Q21: 24660 | R21: 0
B22: Herbicide
C23: Glyphosate (Generic) | D23: 2 | F23: Quart | G23: 3.38 | I23: 6.76 | J23: 0 | K23: 0 | M23: 0 | N23: 0 | O23: 6.76 | P23: 0 | Q23: 3380 | R23: 0
B24: Insecticide
C25: Aphid Control | D25: 10 | F25: Ounce | G25: 2.07 | I25: 20.7 | J25: 0 | K25: 0 | M25: 0 | N25: 0 | O25: 20.7 | P25: 0 | Q25: 10350 | R25: 0
B26: Miscellaneous
C27: Pickup Milage Charge | D27: 1 | F27: Acre | G27: 3.88 | I27: 3.88 | J27: 0 | K27: 0 | M27: 0 | N27: 0 | O27: 3.88 | P27: 0 | Q27: 1940 | R27: 0
C28: Crop Insurance -Canola | D28: 1 | F28: Acre | G28: 16.4 | I28: 16.4 | J28: 0 | K28: 0 | M28: 0 | N28: 0 | O28: 16.4 | P28: 0 | Q28: 8200 | R28: 0
B29: Seed
C30: Roundup Ready Canola Seed | D30: 4 | F30: Pound | G30: 5.8 | I30: 23.2 | J30: 0 | K30: 0 | M30: 0 | N30: 0 | O30: 23.2 | P30: 0 | Q30: 11600 | R30: 0
B31: Other Labor
C32: Hand Labor | D32: 0.018 | F32: Hour | G32: 16 | I32: 0.288 | J32: 0 | K32: 0 | M32: 0 | N32: 0 | O32: 0.288 | P32: 0 | Q32: 144 | R32: 0
D33: 0 | G33: 0 | I33: 0 | J33: 0 | K33: 0 | M33: 0 | N33: 0 | O33: 0 | P33: 0 | Q33: 0 | R33: 0
D34: 0 | G34: 0 | I34: 0 | J34: 0 | K34: 0 | M34: 0 | N34: 0 | O34: 0 | P34: 0 | Q34: 0 | R34: 0
D35: 0 | G35: 0 | I35: 0 | J35: =E35*H35 -> 0 | K35: 0 | M35: 0 | N35: =J35*L35 -> 0 | O35: 0 | P35: =+J35-N35 -> 0 | Q35: 0 | R35: =+J35*E$7 -> 0
B36: Machinery Labor
C37: Tractors/Self-Propelled | D37: 0.57 | F37: Hour | G37: 19.5 | I37: 11.115 | J37: =E37*H37 -> 0 | K37: 0 | M37: 0 | N37: =J37*L37 -> 0 | O37: 11.115 | P37: =+J37-N37 -> 0 | Q37: 5557.5 | R37: =+J37*E$7 -> 0
C38: Other Labor | D38: 0 | F38: Hour | G38: 19.5 | I38: 0 | J38: =E38*H38 -> 0 | K38: 0 | M38: 0 | N38: =J38*L38 -> 0 | O38: 0 | P38: =+J38-N38 -> 0 | Q38: 0 | R38: =+J38*E$7 -> 0
B40: Diesel Fuel
C41: Pickup/General Use Equipment | D41: 1 | F41: Acre | G41: 0 | I41: 0 | J41: =E41*H41 -> 0 | K41: 0 | M41: 0 | N41: =J41*L41 -> 0 | O41: 0 | P41: =+J41-N41 -> 0 | Q41: 0 | R41: =+J41*E$7 -> 0
C42: Tractors/Self-Propelled | D42: 6.56 | F42: Gallon | G42: 2.2 | I42: 14.432 | J42: =E42*H42 -> 0 | K42: 0 | M42: 0 | N42: =J42*L42 -> 0 | O42: 14.432 | P42: =+J42-N42 -> 0 | Q42: 7216 | R42: =+J42*E$7 -> 0
B44: Gasoline
C45: Pickup/General Use Equipment | D45: 1 | F45: Acre | G45: 0 | I45: 0 | J45: =E45*H45 -> 0 | K45: 0 | M45: 0 | N45: =J45*L45 -> 0 | O45: 0 | P45: =+J45-N45 -> 0 | Q45: 0 | R45: =+J45*E$7 -> 0
C46: Tractors/Self-Propelled | D46: 0 | F46: Gallon | G46: 2.4 | I46: 0 | J46: =E46*H46 -> 0 | K46: 0 | M46: 0 | N46: =J46*L46 -> 0 | O46: 0 | P46: =+J46-N46 -> 0 | Q46: 0 | R46: =+J46*E$7 -> 0
B48: Repairs & Maintenance
C49: Pickup/General Use Equipment | D49: 1 | F49: Acre | G49: 0 | I49: 0 | J49: =E49*H49 -> 0 | K49: 0 | M49: 0 | N49: =J49*L49 -> 0 | O49: 0 | P49: =+J49-N49 -> 0 | Q49: 0 | R49: =+J49*E$7 -> 0
C50: Irrigation Equipment | D50: 1 | F50: Acre | G50: 0 | I50: 0 | J50: 0 | K50: 0 | M50: 0 | N50: 0 | O50: 0 | P50: 0 | Q50: 0 | R50: 0
C51: Tractors/Self-Propelled | D51: 1 | F51: Acre | G51: 24.88459642 | I51: 24.88459642 | J51: 0 | K51: 0 | M51: 0 | N51: 0 | O51: 24.88459642 | P51: 0 | Q51: 12442.29821 | R51: 0
C52: Implements | D52: 1 | F52: Acre | G52: 11.442164 | I52: 11.442164 | J52: 0 | K52: 0 | M52: 0 | N52: 0 | O52: 11.442164 | P52: 0 | Q52: 5721.082002 | R52: 0
I53: 0 | J53: 0 | K53: 0 | M53: 0 | N53: 0 | O53: 0 | P53: 0 | Q53: 0 | R53: 0
I54: 0 | J54: 0 | K54: 0 | M54: 0 | N54: 0 | O54: 0 | P54: 0 | Q54: 0 | R54: 0
B55: Interest on Credit Line | G55: 0.06 | I55: 6.597089037 | J55: =+SUM(J17:J54)/2*H55 -> 0 | M55: 0 | N55: =+SUM(N17:N54)/2*L55 -> 0 | O55: 6.597089037 | P55: =+SUM(P17:P54)/2*L55 -> 0 | Q55: 3298.544518 | R55: =+J55*E$7 -> 0
A56: Total Variable Costs | I56: 213.0188495 | J56: =SUM(J18:J55) -> 0 | M56: 0 | N56: =SUM(N18:N55) -> 0 | O56: 213.0188495 | P56: =SUM(P18:P55) -> 0 | Q56: 106509.4247 | R56: =SUM(R18:R55) -> 0
A57: Planned Returns Above Variable Costs: | I57: 11.98115054 | J57: =+J13-J56 -> 0 | M57: 0 | N57: =+N13-N56 -> 0 | O57: 11.98115054 | P57: =+P13-P56 -> 0 | Q57: 5990.575271 | R57: =+R13-R56 -> 0
B58: Breakeven Price to Cover Variable Costs | G58: 0.1420125663 | H58: =IF(E10=0,"n/a",(YVarExp-(YTotExp+YTotRet-J10))/E10) -> n/a | I58: Pound
Q59: Enterprise | R59: Enterprise
A60: FIXED COSTS | D60: Quantity | E60: Quantity | F60: Units | G60: $/Unit | H60: $/Unit | I60: Total | J60: Total | K60: Share | L60: Share | M60: Landlord | N60: Landlord | O60: Tenant | P60: Tenant | Q60: Total | R60: Total
B61: Machinery Depreciation
C62: Tractors/Self-Propelled | D62: 1 | F62: Acre | G62: 27.17990678 | I62: 27.17990678 | J62: =E62*H62 -> 0 | K62: 0 | M62: 0 | N62: =J62*L62 -> 0 | O62: 27.17990678 | P62: =+J62-N62 -> 0 | Q62: 13589.95339 | R62: =+J62*E$7 -> 0
C63: Implements | D63: 1 | F63: Acre | G63: 14.00628701 | I63: 14.00628701 | J63: 0 | K63: 0 | M63: 0 | N63: =J63*L63 -> 0 | O63: 14.00628701 | P63: 0 | Q63: 7003.143507 | R63: 0
B64: Equipment Investment
C65: Tractors/Self-Propelled | D65: 206.6458213 | F65: Dollars | G65: 0.06 | I65: 12.39874928 | J65: =E65*H65 -> 0 | K65: 0 | M65: 0 | N65: =J65*L65 -> 0 | O65: 12.39874928 | P65: =+J65-N65 -> 0 | Q65: 6199.374639 | R65: =+J65*E$7 -> 0
C66: Implements | D66: 84.17903386 | F66: Dollars | G66: 0.06 | I66: 5.050742032 | J66: 0 | K66: 0 | M66: 0 | N66: =J66*L66 -> 0 | O66: 5.050742032 | P66: 0 | Q66: 2525.371016 | R66: 0
B67: Salaried Labor | D67: 1 | F67: Acre | G67: 0 | I67: 0 | J67: 0 | K67: 0 | M67: 0 | N67: =J67*L67 -> 0 | O67: 0 | P67: =+J67-N67 -> 0 | Q67: 0 | R67: =+J67*E$7 -> 0
B68: Management Fee, Owner/Operator Labor | D68: 1 | F68: Acre | G68: 11.25 | I68: 11.25 | J68: 0 | K68: 0 | M68: 0 | N68: 0 | O68: 11.25 | P68: 0 | Q68: 5625 | R68: 0
B69: Allocated Establishment Cost | D69: 1 | F69: Acre | G69: 0 | I69: 0 | J69: 0 | K69: 0 | M69: 0 | N69: 0 | O69: 0 | P69: 0 | Q69: 0 | R69: 0
B70: LCB - Land Charge | D70: 1 | F70: Acre | G70: 70 | I70: 70 | J70: 0 | K70: 0 | M70: 0 | N70: 0 | O70: 70 | P70: 0 | Q70: 35000 | R70: 0
B71: Property Taxes | D71: 1 | F71: Acre | G71: 0 | I71: 0 | J71: 0 | K71: 0 | M71: 0 | N71: 0 | O71: 0 | P71: 0 | Q71: 0 | R71: 0
B72: Whole Farm Insurance | D72: 1 | F72: Acre | G72: 0 | I72: 0 | J72: 0 | K72: 0 | M72: 0 | N72: 0 | O72: 0 | P72: 0 | Q72: 0 | R72: 0
D73: 1 | G73: 0 | I73: 0 | J73: 0 | K73: 0 | M73: 0 | N73: 0 | O73: 0 | P73: 0 | Q73: 0 | R73: 0
D74: 1 | G74: 0 | I74: 0 | J74: =E74*H74 -> 0 | K74: 0 | M74: 0 | N74: 0 | O74: 0 | P74: 0 | Q74: 0 | R74: 0
A75: Total Fixed Costs | I75: 139.8856851 | J75: =+SUM(J62:J74) -> 0 | M75: 0 | N75: =+SUM(N62:N74) -> 0 | O75: 139.8856851 | P75: =+SUM(P62:P74) -> 0 | Q75: 69942.84255 | R75: =+SUM(R62:R74) -> 0
A76: Total Specified Costs | I76: 352.9045346 | J76: =+J56+J75 -> 0 | M76: 0 | N76: =+N56+N75 -> 0 | O76: 352.9045346 | P76: =+P56+P75 -> 0 | Q76: 176452.2673 | R76: =+R56+R75 -> 0
A78: Returns Above Specified Costs | I78: -127.9045346 | J78: =+J13-J76 -> 0 | M78: 0 | N78: =+N13-N76 -> 0 | O78: -127.9045346 | P78: =+P13-P76 -> 0 | Q78: -63952.26728 | R78: =+R13-R76 -> 0
A80: Breakeven Price to Cover Total Costs | G80: 0.2352696897 | H80: =IF(E10=0,"n/a",(YTotExp-(YTotExp+YTotRet-J10))/E10) -> n/a | I80: Pound
D82: Example Breakeven Prices
B83: Example | C83: Example | D83: To Cover | G83: To Cover
B84: Yield | C84: Yield | D84: Variable | G84: Total
B85: Percent | C85: Pound | D85: Costs | G85: Costs
B86: 0.75 | C86: 1125 | D86: 0.1893500884 | G86: 0.3136929196
B87: 0.9 | C87: 1350 | D87: 0.1577917403 | G87: 0.2614107663
B88: 1 | C88: 1500 | D88: 0.1420125663 | G88: 0.2352696897
B89: 1.1 | C89: 1650 | D89: 0.129102333 | G89: 0.2138815361
B90: 1.25 | C90: 1875 | D90: 0.113610053 | G90: 0.1882157518
A92: Developed by Extension Economists, Texas A&M AgriLife Extension Service, budgets@tamu.edu.
A94: Information presented is prepared solely as a general guide and not intended to recognize or predict the costs and returns from any one operation. Brand names are mentioned only as examples and imply no endorsement.

Sheet WheatNW
A1: Projections for Planning Purposes Only -- Not to be Used without Updating
A2: 2021 Estimated Costs and Returns per Acre
A3: Hard Red Spring Wheat, Dryland, 35 bu. Yield Goal, Northwest - Lower Coast
A4: Enter your name for this budget in the cell above.
A5: Enter Your Values in the cells highlighed in MAROON.
E6: Your Acres | R6: Your
C7: Crop Acres | D7: 500 | L7: Your | Q7: Enterprise | R7: Enterprise
E8: Your | H8: Your | I8: Cash | J8: Your | K8: Landlord | L8: Landlord | N8: Your | P8: Your | Q8: Total | R8: Total
A9: REVENUE | D9: Quantity | E9: Quantity | F9: Units | G9: $/Unit | H9: $/Unit | I9: Total | J9: Total | K9: Share | L9: Share | M9: Landlord | N9: Landlord | O9: Tenant | P9: Tenant | Q9: (500 acres) | R9: ="(" & E7 & " acres)" -> ( acres)
B10: Hard Red Spring Wheat | D10: 35 | F10: Bushel | G10: 4.7 | I10: 164.5 | J10: =E10*H10 -> 0 | K10: 0 | M10: 0 | N10: =J10*L10 -> 0 | O10: 164.5 | P10: =+J10-N10 -> 0 | Q10: 82250 | R10: =+J10*E$7 -> 0
D11: 0 | G11: 0 | I11: 0 | J11: 0 | K11: 0 | M11: 0 | N11: 0 | O11: 0 | P11: =+J11-N11 -> 0 | Q11: 0 | R11: 0
D12: 0 | G12: 0 | I12: 0 | J12: 0 | K12: 0 | M12: 0 | N12: 0 | O12: 0 | P12: 0 | Q12: 0 | R12: 0
A13: Total Revenue | I13: 164.5 | J13: =SUM(J10:J12) -> 0 | M13: 0 | N13: =SUM(N10:N12) -> 0 | O13: 164.5 | P13: =SUM(P10:P12) -> 0 | Q13: 82250 | R13: =SUM(R10:R12) -> 0
Q14: Enterprise | R14: Enterprise
A15: VARIABLE COSTS | D15: Quantity | E15: Quantity | F15: Units | G15: $/Unit | H15: $/Unit | I15: Total | J15: Total | K15: Share | L15: Share | M15: Landlord | N15: Landlord | O15: Tenant | P15: Tenant | Q15: Total | R15: Total
A16: Production Costs
B17: Custom
C18: Fertilizer Application | D18: 1 | F18: Ounce | G18: 0.15 | I18: 0.15 | J18: =E18*H18 -> 0 | K18: 0 | M18: 0 | N18: =J18*L18 -> 0 | O18: 0.15 | P18: =+J18-N18 -> 0 | Q18: 75 | R18: =+J18*E$7 -> 0
C19: Custom Haul - Wheat | D19: 35 | F19: Bushel | G19: 0.25 | I19: 8.75 | J19: 0 | K19: 0 | M19: 0 | N19: 0 | O19: 8.75 | P19: 0 | Q19: 4375 | R19: 0
B20: Fertilizer
C21: 24-8-0 | D21: 0.1 | F21: Ton | G21: 266 | I21: 26.6 | J21: 0 | K21: 0 | M21: 0 | N21: 0 | O21: 26.6 | P21: 0 | Q21: 13300 | R21: 0
B22: Herbicide
C23: Glyphosate (Generic) | D23: 1 | F23: Quart | G23: 3.38 | I23: 3.38 | J23: 0 | K23: 0 | M23: 0 | N23: 0 | O23: 3.38 | P23: 0 | Q23: 1690 | R23: 0
B24: Insecticide
C25: Wheat Insect Control | D25: 1.5 | F25: Pint | G25: 7.47 | I25: 11.205 | J25: 0 | K25: 0 | M25: 0 | N25: 0 | O25: 11.205 | P25: 0 | Q25: 5602.5 | R25: 0
B26: Miscellaneous
C27: Pickup Milage Charge | D27: 1 | F27: Acre | G27: 3.88 | I27: 3.88 | J27: 0 | K27: 0 | M27: 0 | N27: 0 | O27: 3.88 | P27: 0 | Q27: 1940 | R27: 0
C28: Crop Insurance -Wheat LC | D28: 1 | F28: Acre | G28: 4.08 | I28: 4.08 | J28: 0 | K28: 0 | M28: 0 | N28: 0 | O28: 4.08 | P28: 0 | Q28: 2040 | R28: 0
B29: Seed
C30: HRS Wheat Seed | D30: 125 | F30: Pound | G30: 0.39 | I30: 48.75 | J30: 0 | K30: 0 | M30: 0 | N30: 0 | O30: 48.75 | P30: 0 | Q30: 24375 | R30: 0
B31: Other Labor
C32: Hand Labor | D32: 0.018 | F32: Hour | G32: 16 | I32: 0.288 | J32: 0 | K32: 0 | M32: 0 | N32: 0 | O32: 0.288 | P32: 0 | Q32: 144 | R32: 0
D33: 0 | G33: 0 | I33: 0 | J33: 0 | K33: 0 | M33: 0 | N33: 0 | O33: 0 | P33: 0 | Q33: 0 | R33: 0
D34: 0 | G34: 0 | I34: 0 | J34: 0 | K34: 0 | M34: 0 | N34: 0 | O34: 0 | P34: 0 | Q34: 0 | R34: 0
D35: 0 | G35: 0 | I35: 0 | J35: =E35*H35 -> 0 | K35: 0 | M35: 0 | N35: =J35*L35 -> 0 | O35: 0 | P35: =+J35-N35 -> 0 | Q35: 0 | R35: =+J35*E$7 -> 0
B36: Machinery Labor
C37: Tractors/Self-Propelled | D37: 0.56 | F37: Hour | G37: 19.5 | I37: 10.92 | J37: =E37*H37 -> 0 | K37: 0 | M37: 0 | N37: =J37*L37 -> 0 | O37: 10.92 | P37: =+J37-N37 -> 0 | Q37: 5460 | R37: =+J37*E$7 -> 0
C38: Other Labor | D38: 0 | F38: Hour | G38: 19.5 | I38: 0 | J38: =E38*H38 -> 0 | K38: 0 | M38: 0 | N38: =J38*L38 -> 0 | O38: 0 | P38: =+J38-N38 -> 0 | Q38: 0 | R38: =+J38*E$7 -> 0
B40: Diesel Fuel
C41: Pickup/General Use Equipment | D41: 1 | F41: Acre | G41: 0 | I41: 0 | J41: =E41*H41 -> 0 | K41: 0 | M41: 0 | N41: =J41*L41 -> 0 | O41: 0 | P41: =+J41-N41 -> 0 | Q41: 0 | R41: =+J41*E$7 -> 0
C42: Tractors/Self-Propelled | D42: 6.33 | F42: Gallon | G42: 2.2 | I42: 13.926 | J42: =E42*H42 -> 0 | K42: 0 | M42: 0 | N42: =J42*L42 -> 0 | O42: 13.926 | P42: =+J42-N42 -> 0 | Q42: 6963 | R42: =+J42*E$7 -> 0
B44: Gasoline
C45: Pickup/General Use Equipment | D45: 1 | F45: Acre | G45: 0 | I45: 0 | J45: =E45*H45 -> 0 | K45: 0 | M45: 0 | N45: =J45*L45 -> 0 | O45: 0 | P45: =+J45-N45 -> 0 | Q45: 0 | R45: =+J45*E$7 -> 0
C46: Tractors/Self-Propelled | D46: 0 | F46: Gallon | G46: 2.4 | I46: 0 | J46: =E46*H46 -> 0 | K46: 0 | M46: 0 | N46: =J46*L46 -> 0 | O46: 0 | P46: =+J46-N46 -> 0 | Q46: 0 | R46: =+J46*E$7 -> 0
B48: Repairs & Maintenance
C49: Pickup/General Use Equipment | D49: 1 | F49: Acre | G49: 0 | I49: 0 | J49: =E49*H49 -> 0 | K49: 0 | M49: 0 | N49: =J49*L49 -> 0 | O49: 0 | P49: =+J49-N49 -> 0 | Q49: 0 | R49: =+J49*E$7 -> 0
C50: Irrigation Equipment | D50: 1 | F50: Acre | G50: 0 | I50: 0 | J50: 0 | K50: 0 | M50: 0 | N50: 0 | O50: 0 | P50: 0 | Q50: 0 | R50: 0
C51: Tractors/Self-Propelled | D51: 1 | F51: Acre | G51: 24.58577889 | I51: 24.58577889 | J51: 0 | K51: 0 | M51: 0 | N51: 0 | O51: 24.58577889 | P51: 0 | Q51: 12292.88944 | R51: 0
C52: Implements | D52: 1 | F52: Acre | G52: 11.442164 | I52: 11.442164 | J52: 0 | K52: 0 | M52: 0 | N52: 0 | O52: 11.442164 | P52: 0 | Q52: 5721.082002 | R52: 0
I53: 0 | J53: 0 | K53: 0 | M53: 0 | N53: 0 | O53: 0 | P53: 0 | Q53: 0 | R53: 0
I54: 0 | J54: 0 | K54: 0 | M54: 0 | N54: 0 | O54: 0 | P54: 0 | Q54: 0 | R54: 0
B55: Interest on Credit Line | G55: 0.06 | I55: 4.941809791 | J55: =+SUM(J17:J54)/2*H55 -> 0 | M55: 0 | N55: =+SUM(N17:N54)/2*L55 -> 0 | O55: 4.941809791 | P55: =+SUM(P17:P54)/2*L55 -> 0 | Q55: 2470.904896 | R55: =+J55*E$7 -> 0
A56: Total Variable Costs | I56: 172.8987527 | J56: =SUM(J18:J55) -> 0 | M56: 0 | N56: =SUM(N18:N55) -> 0 | O56: 172.8987527 | P56: =SUM(P18:P55) -> 0 | Q56: 86449.37634 | R56: =SUM(R18:R55) -> 0
A57: Planned Returns Above Variable Costs: | I57: -8.398752681 | J57: =+J13-J56 -> 0 | M57: 0 | N57: =+N13-N56 -> 0 | O57: -8.398752681 | P57: =+P13-P56 -> 0 | Q57: -4199.37634 | R57: =+R13-R56 -> 0
B58: Breakeven Price to Cover Variable Costs | G58: 4.939964362 | H58: =IF(E10=0,"n/a",(YVarExp-(YTotExp+YTotRet-J10))/E10) -> n/a | I58: Bushel
Q59: Enterprise | R59: Enterprise
A60: FIXED COSTS | D60: Quantity | E60: Quantity | F60: Units | G60: $/Unit | H60: $/Unit | I60: Total | J60: Total | K60: Share | L60: Share | M60: Landlord | N60: Landlord | O60: Tenant | P60: Tenant | Q60: Total | R60: Total
B61: Machinery Depreciation
C62: Tractors/Self-Propelled | D62: 1 | F62: Acre | G62: 25.78542496 | I62: 25.78542496 | J62: =E62*H62 -> 0 | K62: 0 | M62: 0 | N62: =J62*L62 -> 0 | O62: 25.78542496 | P62: =+J62-N62 -> 0 | Q62: 12892.71248 | R62: =+J62*E$7 -> 0
C63: Implements | D63: 1 | F63: Acre | G63: 14.00628701 | I63: 14.00628701 | J63: 0 | K63: 0 | M63: 0 | N63: =J63*L63 -> 0 | O63: 14.00628701 | P63: 0 | Q63: 7003.143507 | R63: 0
B64: Equipment Investment
C65: Tractors/Self-Propelled | D65: 196.2868135 | F65: Dollars | G65: 0.06 | I65: 11.77720881 | J65: =E65*H65 -> 0 | K65: 0 | M65: 0 | N65: =J65*L65 -> 0 | O65: 11.77720881 | P65: =+J65-N65 -> 0 | Q65: 5888.604405 | R65: =+J65*E$7 -> 0
C66: Implements | D66: 84.17903386 | F66: Dollars | G66: 0.06 | I66: 5.050742032 | J66: 0 | K66: 0 | M66: 0 | N66: =J66*L66 -> 0 | O66: 5.050742032 | P66: 0 | Q66: 2525.371016 | R66: 0
B67: Salaried Labor | D67: 1 | F67: Acre | G67: 0 | I67: 0 | J67: 0 | K67: 0 | M67: 0 | N67: =J67*L67 -> 0 | O67: 0 | P67: =+J67-N67 -> 0 | Q67: 0 | R67: =+J67*E$7 -> 0
B68: Management Fee, Owner/Operator Labor | D68: 1 | F68: Acre | G68: 8.225 | I68: 8.225 | J68: 0 | K68: 0 | M68: 0 | N68: 0 | O68: 8.225 | P68: 0 | Q68: 4112.5 | R68: 0
B69: Allocated Establishment Cost | D69: 1 | F69: Acre | G69: 0 | I69: 0 | J69: 0 | K69: 0 | M69: 0 | N69: 0 | O69: 0 | P69: 0 | Q69: 0 | R69: 0
B70: LCB - Land Charge | D70: 1 | F70: Acre | G70: 70 | I70: 70 | J70: 0 | K70: 0 | M70: 0 | N70: 0 | O70: 70 | P70: 0 | Q70: 35000 | R70: 0
B71: Property Taxes | D71: 1 | F71: Acre | G71: 0 | I71: 0 | J71: 0 | K71: 0 | M71: 0 | N71: 0 | O71: 0 | P71: 0 | Q71: 0 | R71: 0
B72: Whole Farm Insurance | D72: 1 | F72: Acre | G72: 0 | I72: 0 | J72: 0 | K72: 0 | M72: 0 | N72: 0 | O72: 0 | P72: 0 | Q72: 0 | R72: 0
D73: 1 | G73: 0 | I73: 0 | J73: 0 | K73: 0 | M73: 0 | N73: 0 | O73: 0 | P73: 0 | Q73: 0 | R73: 0
D74: 1 | G74: 0 | I74: 0 | J74: =E74*H74 -> 0 | K74: 0 | M74: 0 | N74: 0 | O74: 0 | P74: 0 | Q74: 0 | R74: 0
A75: Total Fixed Costs | I75: 134.8446628 | J75: =+SUM(J62:J74) -> 0 | M75: 0 | N75: =+SUM(N62:N74) -> 0 | O75: 134.8446628 | P75: =+SUM(P62:P74) -> 0 | Q75: 67422.33141 | R75: =+SUM(R62:R74) -> 0
A76: Total Specified Costs | I76: 307.7434155 | J76: =+J56+J75 -> 0 | M76: 0 | N76: =+N56+N75 -> 0 | O76: 307.7434155 | P76: =+P56+P75 -> 0 | Q76: 153871.7077 | R76: =+R56+R75 -> 0
A78: Returns Above Specified Costs | I78: -143.2434155 | J78: =+J13-J76 -> 0 | M78: 0 | N78: =+N13-N76 -> 0 | O78: -143.2434155 | P78: =+P13-P76 -> 0 | Q78: -71621.70775 | R78: =+R13-R76 -> 0
A80: Breakeven Price to Cover Total Costs | G80: 8.792669014 | H80: =IF(E10=0,"n/a",(YTotExp-(YTotExp+YTotRet-J10))/E10) -> n/a | I80: Bushel
D82: Example Breakeven Prices
B83: Example | C83: Example | D83: To Cover | G83: To Cover
B84: Yield | C84: Yield | D84: Variable | G84: Total
B85: Percent | C85: Bushel | D85: Costs | G85: Costs
B86: 0.75 | C86: 26.25 | D86: 6.58661915 | G86: 11.72355869
B87: 0.9 | C87: 31.5 | D87: 5.488849291 | G87: 9.769632238
B88: 1 | C88: 35 | D88: 4.939964362 | G88: 8.792669014
B89: 1.1 | C89: 38.5 | D89: 4.490876693 | G89: 7.993335467
B90: 1.25 | C90: 43.75 | D90: 3.95197149 | G90: 7.034135211
A92: Developed by Extension Economists, Texas A&M AgriLife Extension Service, budgets@tamu.edu.
A94: Information presented is prepared solely as a general guide and not intended to recognize or predict the costs and returns from any one operation. Brand names are mentioned only as examples and imply no endorsement.

Sheet Cotton
A1: Projections for Planning Purposes Only -- Not to be Used without Updating
A2: 2021 Estimated Costs and Returns per Acre
A3: Cotton - Genetically Modified Seed, Conv. Till-24 Row, Dryland, 800 lb. Yield Goal - Lower Coast
A4: Enter your name for this budget in the cell above.
A5: Enter Your Values in the cells highlighed in MAROON.
E6: Your Acres | R6: Your
C7: Crop Acres | D7: 500 | L7: Your | Q7: Enterprise | R7: Enterprise
E8: Your | H8: Your | I8: Cash | J8: Your | K8: Landlord | L8: Landlord | N8: Your | P8: Your | Q8: Total | R8: Total
A9: REVENUE | D9: Quantity | E9: Quantity | F9: Units | G9: $/Unit | H9: $/Unit | I9: Total | J9: Total | K9: Share | L9: Share | M9: Landlord | N9: Landlord | O9: Tenant | P9: Tenant | Q9: (500 acres) | R9: ="(" & E7 & " acres)" -> ( acres)
B10: Cotton Lint | D10: 800 | F10: Pound | G10: 0.67 | I10: 536 | J10: =E10*H10 -> 0 | K10: 0 | M10: 0 | N10: =J10*L10 -> 0 | O10: 536 | P10: =+J10-N10 -> 0 | Q10: 268000 | R10: =+J10*E$7 -> 0
B11: Cottonseed | D11: 0.58 | F11: Ton | G11: 175 | I11: 101.5 | J11: 0 | K11: 0 | M11: 0 | N11: 0 | O11: 101.5 | P11: =+J11-N11 -> 0 | Q11: 50750 | R11: 0
D12: 0 | G12: 0 | I12: 0 | J12: 0 | K12: 0 | M12: 0 | N12: 0 | O12: 0 | P12: 0 | Q12: 0 | R12: 0
D13: 0 | G13: 0 | I13: 0 | J13: 0 | K13: 0 | M13: 0 | N13: 0 | O13: 0 | P13: 0 | Q13: 0 | R13: 0
A14: Total Revenue | I14: 637.5 | J14: =SUM(J10:J13) -> 0 | M14: 0 | N14: =SUM(N10:N13) -> 0 | O14: 637.5 | P14: =SUM(P10:P13) -> 0 | Q14: 318750 | R14: =SUM(R10:R13) -> 0
Q15: Enterprise | R15: Enterprise
A16: VARIABLE COSTS | D16: Quantity | E16: Quantity | F16: Units | G16: $/Unit | H16: $/Unit | I16: Total | J16: Total | K16: Share | L16: Share | M16: Landlord | N16: Landlord | O16: Tenant | P16: Tenant | Q16: Total | R16: Total
A17: Production Costs
B18: Custom
C19: Fertilizer Application | D19: 1 | F19: Ounce | G19: 0.15 | I19: 0.15 | J19: =E19*H19 -> 0 | K19: 0 | M19: 0 | N19: =J19*L19 -> 0 | O19: 0.15 | P19: =+J19-N19 -> 0 | Q19: 75 | R19: =+J19*E$7 -> 0
C20: Pick and Module | D20: 800 | F20: Pound | G20: 0.13 | I20: 104 | J20: 0 | K20: 0 | M20: 0 | N20: 0 | O20: 104 | P20: 0 | Q20: 52000 | R20: 0
C21: Ginning - Picker | D21: 800 | F21: Pound | G21: 0.125 | I21: 100 | J21: 0 | K21: 0 | M21: 0 | N21: 0 | O21: 100 | P21: 0 | Q21: 50000 | R21: 0
B22: Fertilizer
C23: 24-8-0 | D23: 0.1665 | F23: Ton | G23: 266 | I23: 44.289 | J23: 0 | K23: 0 | M23: 0 | N23: 0 | O23: 44.289 | P23: 0 | Q23: 22144.5 | R23: 0
B24: Herbicide
C25: Glyphosate | D25: 1 | F25: Quart | G25: 5.5 | I25: 5.5 | J25: 0 | K25: 0 | M25: 0 | N25: 0 | O25: 5.5 | P25: 0 | Q25: 2750 | R25: 0
C26: Trifluralin | D26: 32 | F26: Ounce | G26: 0.19 | I26: 6.08 | J26: 0 | K26: 0 | M26: 0 | N26: 0 | O26: 6.08 | P26: 0 | Q26: 3040 | R26: 0
C27: Cotton Early Season Herbicide | D27: 2 | F27: Quart | G27: 16.24 | I27: 32.48 | J27: 0 | K27: 0 | M27: 0 | N27: 0 | O27: 32.48 | P27: 0 | Q27: 16240 | R27: 0
C28: 2, 4D Amine | D28: 2 | F28: Pint | G28: 2.07 | I28: 4.14 | J28: 0 | K28: 0 | M28: 0 | N28: 0 | O28: 4.14 | P28: 0 | Q28: 2070 | R28: 0
B29: Insecticide
C30: Fleahopper Control LC | D30: 1.6 | F30: Ounce | G30: 1.08 | I30: 1.728 | J30: 0 | K30: 0 | M30: 0 | N30: 0 | O30: 1.728 | P30: 0 | Q30: 864 | R30: 0
B31: Miscellaneous
C32: Crop Insurance -Cotton LC | D32: 1 | F32: Acre | G32: 12.7 | I32: 12.7 | J32: 0 | K32: 0 | M32: 0 | N32: 0 | O32: 12.7 | P32: 0 | Q32: 6350 | R32: 0
C33: Pickup Milage Charge | D33: 1 | F33: Acre | G33: 3.88 | I33: 3.88 | J33: 0 | K33: 0 | M33: 0 | N33: 0 | O33: 3.88 | P33: 0 | Q33: 1940 | R33: 0
C34: Boll Weevil Program LC | D34: 1.6 | F34: Bale | G34: 3.5 | I34: 5.6 | J34: 0 | K34: 0 | M34: 0 | N34: 0 | O34: 5.6 | P34: 0 | Q34: 2800 | R34: 0
B35: Seed
C36: Cotton Seed - B2RF | D36: 40 | F36: Thousand | G36: 1.84 | I36: 73.6 | J36: 0 | K36: 0 | M36: 0 | N36: 0 | O36: 73.6 | P36: 0 | Q36: 36800 | R36: 0
C37: Cotton Seed - Insect Treatment | D37: 40 | F37: Thousand | G37: 0.17 | I37: 6.8 | J37: 0 | K37: 0 | M37: 0 | N37: 0 | O37: 6.8 | P37: 0 | Q37: 3400 | R37: 0
C38: Tech Fee - B2RF | D38: 1 | F38: Acre | G38: 0 | I38: 0 | J38: 0 | K38: 0 | M38: 0 | N38: 0 | O38: 0 | P38: 0 | Q38: 0 | R38: 0
B39: Other Chemicals
C40: Generic PIX | D40: 32 | F40: Ounce | G40: 0.06 | I40: 1.92 | J40: 0 | K40: 0 | M40: 0 | N40: 0 | O40: 1.92 | P40: 0 | Q40: 960 | R40: 0
C41: Defoliants - Picker | D41: 4 | F41: Ounce | G41: 1.05 | I41: 4.2 | J41: 0 | K41: 0 | M41: 0 | N41: 0 | O41: 4.2 | P41: 0 | Q41: 2100 | R41: 0
C42: Ethephon | D42: 1.6 | F42: Ounce | G42: 0.15 | I42: 0.24 | J42: 0 | K42: 0 | M42: 0 | N42: 0 | O42: 0.24 | P42: 0 | Q42: 120 | R42: 0
B43: Other Labor
C44: Hand Labor | D44: 0.08 | F44: Hour | G44: 16 | I44: 1.28 | J44: 0 | K44: 0 | M44: 0 | N44: 0 | O44: 1.28 | P44: 0 | Q44: 640 | R44: 0
D45: 0 | G45: 0 | I45: 0 | J45: 0 | K45: 0 | M45: 0 | N45: 0 | O45: 0 | P45: 0 | Q45: 0 | R45: 0
D46: 0 | G46: 0 | I46: 0 | J46: 0 | K46: 0 | M46: 0 | N46: 0 | O46: 0 | P46: 0 | Q46: 0 | R46: 0
D47: 0 | G47: 0 | I47: 0 | J47: =E47*H47 -> 0 | K47: 0 | M47: 0 | N47: =J47*L47 -> 0 | O47: 0 | P47: =+J47-N47 -> 0 | Q47: 0 | R47: =+J47*E$7 -> 0
B48: Machinery Labor
C49: Tractors/Self-Propelled | D49: 0.51 | F49: Hour | G49: 19.5 | I49: 9.945 | J49: =E49*H49 -> 0 | K49: 0 | M49: 0 | N49: =J49*L49 -> 0 | O49: 9.945 | P49: =+J49-N49 -> 0 | Q49: 4972.5 | R49: =+J49*E$7 -> 0
C50: Other Labor | D50: 0 | F50: Hour | G50: 19.5 | I50: 0 | J50: =E50*H50 -> 0 | K50: 0 | M50: 0 | N50: =J50*L50 -> 0 | O50: 0 | P50: =+J50-N50 -> 0 | Q50: 0 | R50: =+J50*E$7 -> 0
B52: Diesel Fuel
C53: Pickup/General Use Equipment | D53: 1 | F53: Acre | G53: 0 | I53: 0 | J53: =E53*H53 -> 0 | K53: 0 | M53: 0 | N53: =J53*L53 -> 0 | O53: 0 | P53: =+J53-N53 -> 0 | Q53: 0 | R53: =+J53*E$7 -> 0
C54: Tractors/Self-Propelled | D54: 6.57 | F54: Gallon | G54: 2.2 | I54: 14.454 | J54: =E54*H54 -> 0 | K54: 0 | M54: 0 | N54: =J54*L54 -> 0 | O54: 14.454 | P54: =+J54-N54 -> 0 | Q54: 7227 | R54: =+J54*E$7 -> 0
B56: Gasoline
C57: Pickup/General Use Equipment | D57: 1 | F57: Acre | G57: 0 | I57: 0 | J57: =E57*H57 -> 0 | K57: 0 | M57: 0 | N57: =J57*L57 -> 0 | O57: 0 | P57: =+J57-N57 -> 0 | Q57: 0 | R57: =+J57*E$7 -> 0
C58: Tractors/Self-Propelled | D58: 0 | F58: Gallon | G58: 2.4 | I58: 0 | J58: =E58*H58 -> 0 | K58: 0 | M58: 0 | N58: =J58*L58 -> 0 | O58: 0 | P58: =+J58-N58 -> 0 | Q58: 0 | R58: =+J58*E$7 -> 0
B60: Repairs & Maintenance
C61: Pickup/General Use Equipment | D61: 1 | F61: Acre | G61: 0 | I61: 0 | J61: =E61*H61 -> 0 | K61: 0 | M61: 0 | N61: =J61*L61 -> 0 | O61: 0 | P61: =+J61-N61 -> 0 | Q61: 0 | R61: =+J61*E$7 -> 0
C62: Irrigation Equipment | D62: 1 | F62: Acre | G62: 0 | I62: 0 | J62: 0 | K62: 0 | M62: 0 | N62: 0 | O62: 0 | P62: 0 | Q62: 0 | R62: 0
C63: Tractors/Self-Propelled | D63: 1 | F63: Acre | G63: 17.10342768 | I63: 17.10342768 | J63: 0 | K63: 0 | M63: 0 | N63: 0 | O63: 17.10342768 | P63: 0 | Q63: 8551.713838 | R63: 0
C64: Implements | D64: 1 | F64: Acre | G64: 18.59403747 | I64: 18.59403747 | J64: 0 | K64: 0 | M64: 0 | N64: 0 | O64: 18.59403747 | P64: 0 | Q64: 9297.018737 | R64: 0
I65: 0 | J65: 0 | K65: 0 | M65: 0 | N65: 0 | O65: 0 | P65: 0 | Q65: 0 | R65: 0
I66: 0 | J66: 0 | K66: 0 | M66: 0 | N66: 0 | O66: 0 | P66: 0 | Q66: 0 | R66: 0
B67: Interest on Credit Line | G67: 0.06 | I67: 9.887286147 | J67: =+SUM(J18:J66)/2*H67 -> 0 | M67: 0 | N67: =+SUM(N18:N66)/2*L67 -> 0 | O67: 9.887286147 | P67: =+SUM(P18:P66)/2*L67 -> 0 | Q67: 4943.643073 | R67: =+J67*E$7 -> 0
A68: Total Variable Costs | I68: 478.5707513 | J68: =SUM(J19:J67) -> 0 | M68: 0 | N68: =SUM(N19:N67) -> 0 | O68: 478.5707513 | P68: =SUM(P19:P67) -> 0 | Q68: 239285.3756 | R68: =SUM(R19:R67) -> 0
A69: Planned Returns Above Variable Costs: | I69: 158.9292487 | J69: =+J14-J68 -> 0 | M69: 0 | N69: =+N14-N68 -> 0 | O69: 158.9292487 | P69: =+P14-P68 -> 0 | Q69: 79464.62435 | R69: =+R14-R68 -> 0
B70: Breakeven Price to Cover Variable Costs | G70: 0.4713384391 | H70: =IF(E10=0,"n/a",(YVarExp-(YTotExp+YTotRet-J10))/E10) -> n/a | I70: Pound
Q71: Enterprise | R71: Enterprise
A72: FIXED COSTS | D72: Quantity | E72: Quantity | F72: Units | G72: $/Unit | H72: $/Unit | I72: Total | J72: Total | K72: Share | L72: Share | M72: Landlord | N72: Landlord | O72: Tenant | P72: Tenant | Q72: Total | R72: Total
B73: Machinery Depreciation
C74: Tractors/Self-Propelled | D74: 1 | F74: Acre | G74: 24.18776414 | I74: 24.18776414 | J74: =E74*H74 -> 0 | K74: 0 | M74: 0 | N74: =J74*L74 -> 0 | O74: 24.18776414 | P74: =+J74-N74 -> 0 | Q74: 12093.88207 | R74: =+J74*E$7 -> 0
C75: Implements | D75: 1 | F75: Acre | G75: 24.66784596 | I75: 24.66784596 | J75: 0 | K75: 0 | M75: 0 | N75: =J75*L75 -> 0 | O75: 24.66784596 | P75: 0 | Q75: 12333.92298 | R75: 0
B76: Equipment Investment
C77: Tractors/Self-Propelled | D77: 185.4037527 | F77: Dollars | G77: 0.06 | I77: 11.12422516 | J77: =E77*H77 -> 0 | K77: 0 | M77: 0 | N77: =J77*L77 -> 0 | O77: 11.12422516 | P77: =+J77-N77 -> 0 | Q77: 5562.112582 | R77: =+J77*E$7 -> 0
C78: Implements | D78: 106.418739 | F78: Dollars | G78: 0.06 | I78: 6.385124342 | J78: 0 | K78: 0 | M78: 0 | N78: =J78*L78 -> 0 | O78: 6.385124342 | P78: 0 | Q78: 3192.562171 | R78: 0
B79: Salaried Labor | D79: 1 | F79: Acre | G79: 0 | I79: 0 | J79: 0 | K79: 0 | M79: 0 | N79: =J79*L79 -> 0 | O79: 0 | P79: =+J79-N79 -> 0 | Q79: 0 | R79: =+J79*E$7 -> 0
B80: Management Fee, Owner/Operator Labor | D80: 1 | F80: Acre | G80: 31.875 | I80: 31.875 | J80: 0 | K80: 0 | M80: 0 | N80: 0 | O80: 31.875 | P80: 0 | Q80: 15937.5 | R80: 0
B81: Allocated Establishment Cost | D81: 1 | F81: Acre | G81: 0 | I81: 0 | J81: 0 | K81: 0 | M81: 0 | N81: 0 | O81: 0 | P81: 0 | Q81: 0 | R81: 0
B82: LCB - Land Charge | D82: 1 | F82: Acre | G82: 70 | I82: 70 | J82: 0 | K82: 0 | M82: 0 | N82: 0 | O82: 70 | P82: 0 | Q82: 35000 | R82: 0
B83: Property Taxes | D83: 1 | F83: Acre | G83: 0 | I83: 0 | J83: 0 | K83: 0 | M83: 0 | N83: 0 | O83: 0 | P83: 0 | Q83: 0 | R83: 0
B84: Whole Farm Insurance | D84: 1 | F84: Acre | G84: 0 | I84: 0 | J84: 0 | K84: 0 | M84: 0 | N84: 0 | O84: 0 | P84: 0 | Q84: 0 | R84: 0
D85: 1 | G85: 0 | I85: 0 | J85: 0 | K85: 0 | M85: 0 | N85: 0 | O85: 0 | P85: 0 | Q85: 0 | R85: 0
D86: 1 | G86: 0 | I86: 0 | J86: =E86*H86 -> 0 | K86: 0 | M86: 0 | N86: 0 | O86: 0 | P86: 0 | Q86: 0 | R86: 0
A87: Total Fixed Costs | I87: 168.2399596 | J87: =+SUM(J74:J86) -> 0 | M87: 0 | N87: =+SUM(N74:N86) -> 0 | O87: 168.2399596 | P87: =+SUM(P74:P86) -> 0 | Q87: 84119.97981 | R87: =+SUM(R74:R86) -> 0
A88: Total Specified Costs | I88: 646.8107109 | J88: =+J68+J87 -> 0 | M88: 0 | N88: =+N68+N87 -> 0 | O88: 646.8107109 | P88: =+P68+P87 -> 0 | Q88: 323405.3555 | R88: =+R68+R87 -> 0
A90: Returns Above Specified Costs | I90: -9.310710907 | J90: =+J14-J88 -> 0 | M90: 0 | N90: =+N14-N88 -> 0 | O90: -9.310710907 | P90: =+P14-P88 -> 0 | Q90: -4655.355453 | R90: =+R14-R88 -> 0
A92: Breakeven Price to Cover Total Costs | G92: 0.6816383886 | H92: =IF(E10=0,"n/a",(YTotExp-(YTotExp+YTotRet-J10))/E10) -> n/a | I92: Pound
D94: Example Breakeven Prices
B95: Example | C95: Example | D95: To Cover | G95: To Cover
B96: Yield | C96: Yield | D96: Variable | G96: Total
B97: Percent | C97: Pound | D97: Costs | G97: Costs
B98: 0.75 | C98: 600 | D98: 0.6284512522 | G98: 0.9088511848
B99: 0.9 | C99: 720 | D99: 0.5237093768 | G99: 0.7573759874
B100: 1 | C100: 800 | D100: 0.4713384391 | G100: 0.6816383886
B101: 1.1 | C101: 880 | D101: 0.4284894901 | G101: 0.6196712624
B102: 1.25 | C102: 1000 | D102: 0.3770707513 | G102: 0.5453107109
A104: Developed by Extension Economists, Texas A&M AgriLife Extension Service, budgets@tamu.edu.
A106: Information presented is prepared solely as a general guide and not intended to recognize or predict the costs and returns from any one operation. Brand names are mentioned only as examples and imply no endorsement.

Sheet Sesame
A1: Projections for Planning Purposes Only -- Not to be Used without Updating
A2: 2021 Estimated Costs and Returns per Acre
A3: Sesame - Conventional Till-12 Row, Dryland, 800 lb. Yield Goal - Lower Coast
A4: Enter your name for this budget in the cell above.
A5: Enter Your Values in the cells highlighed in MAROON.
E6: Your Acres | R6: Your
C7: Crop Acres | D7: 500 | L7: Your | Q7: Enterprise | R7: Enterprise
E8: Your | H8: Your | I8: Cash | J8: Your | K8: Landlord | L8: Landlord | N8: Your | P8: Your | Q8: Total | R8: Total
A9: REVENUE | D9: Quantity | E9: Quantity | F9: Units | G9: $/Unit | H9: $/Unit | I9: Total | J9: Total | K9: Share | L9: Share | M9: Landlord | N9: Landlord | O9: Tenant | P9: Tenant | Q9: (500 acres) | R9: ="(" & E7 & " acres)" -> ( acres)
B10: Sesame | D10: 800 | F10: Pound | G10: 0.46 | I10: 368 | J10: =E10*H10 -> 0 | K10: 0 | M10: 0 | N10: =J10*L10 -> 0 | O10: 368 | P10: =+J10-N10 -> 0 | Q10: 184000 | R10: =+J10*E$7 -> 0
D11: 0 | G11: 0 | I11: 0 | J11: 0 | K11: 0 | M11: 0 | N11: 0 | O11: 0 | P11: =+J11-N11 -> 0 | Q11: 0 | R11: 0
D12: 0 | G12: 0 | I12: 0 | J12: 0 | K12: 0 | M12: 0 | N12: 0 | O12: 0 | P12: 0 | Q12: 0 | R12: 0
A13: Total Revenue | I13: 368 | J13: =SUM(J10:J12) -> 0 | M13: 0 | N13: =SUM(N10:N12) -> 0 | O13: 368 | P13: =SUM(P10:P12) -> 0 | Q13: 184000 | R13: =SUM(R10:R12) -> 0
Q14: Enterprise | R14: Enterprise
A15: VARIABLE COSTS | D15: Quantity | E15: Quantity | F15: Units | G15: $/Unit | H15: $/Unit | I15: Total | J15: Total | K15: Share | L15: Share | M15: Landlord | N15: Landlord | O15: Tenant | P15: Tenant | Q15: Total | R15: Total
A16: Production Costs
B17: Fertilizer
C18: 24-8-0 | D18: 0.0833 | F18: Ton | G18: 266 | I18: 22.1578 | J18: =E18*H18 -> 0 | K18: 0 | M18: 0 | N18: =J18*L18 -> 0 | O18: 22.1578 | P18: =+J18-N18 -> 0 | Q18: 11078.9 | R18: =+J18*E$7 -> 0
B19: Herbicide
C20: Glyphosate (Generic) | D20: 2 | F20: Quart | G20: 3.38 | I20: 6.76 | J20: 0 | K20: 0 | M20: 0 | N20: 0 | O20: 6.76 | P20: 0 | Q20: 3380 | R20: 0
C21: Sesame PostEmerge Herbicide | D21: 8 | F21: Ounce | G21: 0.82 | I21: 6.56 | J21: 0 | K21: 0 | M21: 0 | N21: 0 | O21: 6.56 | P21: 0 | Q21: 3280 | R21: 0
B22: Miscellaneous
C23: Pickup Milage Charge | D23: 1 | F23: Acre | G23: 3.88 | I23: 3.88 | J23: 0 | K23: 0 | M23: 0 | N23: 0 | O23: 3.88 | P23: 0 | Q23: 1940 | R23: 0
C24: Crop Insurance -Sesame | D24: 1 | F24: Acre | G24: 25.39 | I24: 25.39 | J24: 0 | K24: 0 | M24: 0 | N24: 0 | O24: 25.39 | P24: 0 | Q24: 12695 | R24: 0
B25: Seed
C26: Sesame | D26: 3 | F26: Pound | G26: 4 | I26: 12 | J26: 0 | K26: 0 | M26: 0 | N26: 0 | O26: 12 | P26: 0 | Q26: 6000 | R26: 0
B27: Other Labor
C28: Hand Labor | D28: 0.08 | F28: Hour | G28: 16 | I28: 1.28 | J28: 0 | K28: 0 | M28: 0 | N28: 0 | O28: 1.28 | P28: 0 | Q28: 640 | R28: 0
D29: 0 | G29: 0 | I29: 0 | J29: 0 | K29: 0 | M29: 0 | N29: 0 | O29: 0 | P29: 0 | Q29: 0 | R29: 0
D30: 0 | G30: 0 | I30: 0 | J30: 0 | K30: 0 | M30: 0 | N30: 0 | O30: 0 | P30: 0 | Q30: 0 | R30: 0
D31: 0 | G31: 0 | I31: 0 | J31: =E31*H31 -> 0 | K31: 0 | M31: 0 | N31: =J31*L31 -> 0 | O31: 0 | P31: =+J31-N31 -> 0 | Q31: 0 | R31: =+J31*E$7 -> 0
B32: Machinery Labor
C33: Tractors/Self-Propelled | D33: 0.79 | F33: Hour | G33: 19.5 | I33: 15.405 | J33: =E33*H33 -> 0 | K33: 0 | M33: 0 | N33: =J33*L33 -> 0 | O33: 15.405 | P33: =+J33-N33 -> 0 | Q33: 7702.5 | R33: =+J33*E$7 -> 0
C34: Other Labor | D34: 0 | F34: Hour | G34: 19.5 | I34: 0 | J34: =E34*H34 -> 0 | K34: 0 | M34: 0 | N34: =J34*L34 -> 0 | O34: 0 | P34: =+J34-N34 -> 0 | Q34: 0 | R34: =+J34*E$7 -> 0
B36: Diesel Fuel
C37: Pickup/General Use Equipment | D37: 1 | F37: Acre | G37: 0 | I37: 0 | J37: =E37*H37 -> 0 | K37: 0 | M37: 0 | N37: =J37*L37 -> 0 | O37: 0 | P37: =+J37-N37 -> 0 | Q37: 0 | R37: =+J37*E$7 -> 0
C38: Tractors/Self-Propelled | D38: 8.92 | F38: Gallon | G38: 2.2 | I38: 19.624 | J38: =E38*H38 -> 0 | K38: 0 | M38: 0 | N38: =J38*L38 -> 0 | O38: 19.624 | P38: =+J38-N38 -> 0 | Q38: 9812 | R38: =+J38*E$7 -> 0
B40: Gasoline
C41: Pickup/General Use Equipment | D41: 1 | F41: Acre | G41: 0 | I41: 0 | J41: =E41*H41 -> 0 | K41: 0 | M41: 0 | N41: =J41*L41 -> 0 | O41: 0 | P41: =+J41-N41 -> 0 | Q41: 0 | R41: =+J41*E$7 -> 0
C42: Tractors/Self-Propelled | D42: 0 | F42: Gallon | G42: 2.4 | I42: 0 | J42: =E42*H42 -> 0 | K42: 0 | M42: 0 | N42: =J42*L42 -> 0 | O42: 0 | P42: =+J42-N42 -> 0 | Q42: 0 | R42: =+J42*E$7 -> 0
B44: Repairs & Maintenance
C45: Pickup/General Use Equipment | D45: 1 | F45: Acre | G45: 0 | I45: 0 | J45: =E45*H45 -> 0 | K45: 0 | M45: 0 | N45: =J45*L45 -> 0 | O45: 0 | P45: =+J45-N45 -> 0 | Q45: 0 | R45: =+J45*E$7 -> 0
C46: Irrigation Equipment | D46: 1 | F46: Acre | G46: 0 | I46: 0 | J46: 0 | K46: 0 | M46: 0 | N46: 0 | O46: 0 | P46: 0 | Q46: 0 | R46: 0
C47: Tractors/Self-Propelled | D47: 1 | F47: Acre | G47: 31.58991069 | I47: 31.58991069 | J47: 0 | K47: 0 | M47: 0 | N47: 0 | O47: 31.58991069 | P47: 0 | Q47: 15794.95534 | R47: 0
C48: Implements | D48: 1 | F48: Acre | G48: 23.08429417 | I48: 23.08429417 | J48: 0 | K48: 0 | M48: 0 | N48: 0 | O48: 23.08429417 | P48: 0 | Q48: 11542.14708 | R48: 0
I49: 0 | J49: 0 | K49: 0 | M49: 0 | N49: 0 | O49: 0 | P49: 0 | Q49: 0 | R49: 0
I50: 0 | J50: 0 | K50: 0 | M50: 0 | N50: 0 | O50: 0 | P50: 0 | Q50: 0 | R50: 0
B51: Interest on Credit Line | G51: 0.06 | I51: 3.871609202 | J51: =+SUM(J17:J50)/2*H51 -> 0 | M51: 0 | N51: =+SUM(N17:N50)/2*L51 -> 0 | O51: 3.871609202 | P51: =+SUM(P17:P50)/2*L51 -> 0 | Q51: 1935.804601 | R51: =+J51*E$7 -> 0
A52: Total Variable Costs | I52: 171.6026141 | J52: =SUM(J18:J51) -> 0 | M52: 0 | N52: =SUM(N18:N51) -> 0 | O52: 171.6026141 | P52: =SUM(P18:P51) -> 0 | Q52: 85801.30703 | R52: =SUM(R18:R51) -> 0
A53: Planned Returns Above Variable Costs: | I53: 196.3973859 | J53: =+J13-J52 -> 0 | M53: 0 | N53: =+N13-N52 -> 0 | O53: 196.3973859 | P53: =+P13-P52 -> 0 | Q53: 98198.69297 | R53: =+R13-R52 -> 0
B54: Breakeven Price to Cover Variable Costs | G54: 0.2145032676 | H54: =IF(E10=0,"n/a",(YVarExp-(YTotExp+YTotRet-J10))/E10) -> n/a | I54: Pound
Q55: Enterprise | R55: Enterprise
A56: FIXED COSTS | D56: Quantity | E56: Quantity | F56: Units | G56: $/Unit | H56: $/Unit | I56: Total | J56: Total | K56: Share | L56: Share | M56: Landlord | N56: Landlord | O56: Tenant | P56: Tenant | Q56: Total | R56: Total
B57: Machinery Depreciation
C58: Tractors/Self-Propelled | D58: 1 | F58: Acre | G58: 34.10873152 | I58: 34.10873152 | J58: =E58*H58 -> 0 | K58: 0 | M58: 0 | N58: =J58*L58 -> 0 | O58: 34.10873152 | P58: =+J58-N58 -> 0 | Q58: 17054.36576 | R58: =+J58*E$7 -> 0
C59: Implements | D59: 1 | F59: Acre | G59: 28.10551905 | I59: 28.10551905 | J59: 0 | K59: 0 | M59: 0 | N59: =J59*L59 -> 0 | O59: 28.10551905 | P59: 0 | Q59: 14052.75953 | R59: 0
B60: Equipment Investment
C61: Tractors/Self-Propelled | D61: 260.6236012 | F61: Dollars | G61: 0.06 | I61: 15.63741607 | J61: =E61*H61 -> 0 | K61: 0 | M61: 0 | N61: =J61*L61 -> 0 | O61: 15.63741607 | P61: =+J61-N61 -> 0 | Q61: 7818.708035 | R61: =+J61*E$7 -> 0
C62: Implements | D62: 158.9114692 | F62: Dollars | G62: 0.06 | I62: 9.534688153 | J62: 0 | K62: 0 | M62: 0 | N62: =J62*L62 -> 0 | O62: 9.534688153 | P62: 0 | Q62: 4767.344077 | R62: 0
B63: Salaried Labor | D63: 1 | F63: Acre | G63: 0 | I63: 0 | J63: 0 | K63: 0 | M63: 0 | N63: =J63*L63 -> 0 | O63: 0 | P63: =+J63-N63 -> 0 | Q63: 0 | R63: =+J63*E$7 -> 0
B64: Management Fee, Owner/Operator Labor | D64: 1 | F64: Acre | G64: 18.4 | I64: 18.4 | J64: 0 | K64: 0 | M64: 0 | N64: 0 | O64: 18.4 | P64: 0 | Q64: 9200 | R64: 0
B65: Allocated Establishment Cost | D65: 1 | F65: Acre | G65: 0 | I65: 0 | J65: 0 | K65: 0 | M65: 0 | N65: 0 | O65: 0 | P65: 0 | Q65: 0 | R65: 0
B66: LCB - Land Charge | D66: 1 | F66: Acre | G66: 70 | I66: 70 | J66: 0 | K66: 0 | M66: 0 | N66: 0 | O66: 70 | P66: 0 | Q66: 35000 | R66: 0
B67: Property Taxes | D67: 1 | F67: Acre | G67: 0 | I67: 0 | J67: 0 | K67: 0 | M67: 0 | N67: 0 | O67: 0 | P67: 0 | Q67: 0 | R67: 0
B68: Whole Farm Insurance | D68: 1 | F68: Acre | G68: 0 | I68: 0 | J68: 0 | K68: 0 | M68: 0 | N68: 0 | O68: 0 | P68: 0 | Q68: 0 | R68: 0
D69: 1 | G69: 0 | I69: 0 | J69: 0 | K69: 0 | M69: 0 | N69: 0 | O69: 0 | P69: 0 | Q69: 0 | R69: 0
D70: 1 | G70: 0 | I70: 0 | J70: =E70*H70 -> 0 | K70: 0 | M70: 0 | N70: 0 | O70: 0 | P70: 0 | Q70: 0 | R70: 0
A71: Total Fixed Costs | I71: 175.7863548 | J71: =+SUM(J58:J70) -> 0 | M71: 0 | N71: =+SUM(N58:N70) -> 0 | O71: 175.7863548 | P71: =+SUM(P58:P70) -> 0 | Q71: 87893.1774 | R71: =+SUM(R58:R70) -> 0
A72: Total Specified Costs | I72: 347.3889688 | J72: =+J52+J71 -> 0 | M72: 0 | N72: =+N52+N71 -> 0 | O72: 347.3889688 | P72: =+P52+P71 -> 0 | Q72: 173694.4844 | R72: =+R52+R71 -> 0
A74: Returns Above Specified Costs | I74: 20.61103115 | J74: =+J13-J72 -> 0 | M74: 0 | N74: =+N13-N72 -> 0 | O74: 20.61103115 | P74: =+P13-P72 -> 0 | Q74: 10305.51558 | R74: =+R13-R72 -> 0
A76: Breakeven Price to Cover Total Costs | G76: 0.4342362111 | H76: =IF(E10=0,"n/a",(YTotExp-(YTotExp+YTotRet-J10))/E10) -> n/a | I76: Pound
D78: Example Breakeven Prices
B79: Example | C79: Example | D79: To Cover | G79: To Cover
B80: Yield | C80: Yield | D80: Variable | G80: Total
B81: Percent | C81: Pound | D81: Costs | G81: Costs
B82: 0.75 | C82: 600 | D82: 0.2860043568 | G82: 0.5789816147
B83: 0.9 | C83: 720 | D83: 0.238336964 | G83: 0.482484679
B84: 1 | C84: 800 | D84: 0.2145032676 | G84: 0.4342362111
B85: 1.1 | C85: 880 | D85: 0.1950029705 | G85: 0.3947601919
B86: 1.25 | C86: 1000 | D86: 0.1716026141 | G86: 0.3473889688
A88: Developed by Extension Economists, Texas A&M AgriLife Extension Service, budgets@tamu.edu.
A90: Information presented is prepared solely as a general guide and not intended to recognize or predict the costs and returns from any one operation. Brand names are mentioned only as examples and imply no endorsement.

Sheet IrrigatedCotton
A1: Projections for Planning Purposes Only -- Not to be Used without Updating
A2: 2021 Estimated Costs and Returns per Acre
A3: Cotton - Genetically Modified Seed, Conv. Till-24 Row, Irrigated, 1250 lb. Yield Goal
A4: Enter your name for this budget in the cell above.
A5: Enter Your Values in the cells highlighed in MAROON.
E6: Your Acres | R6: Your
C7: Crop Acres | D7: 505 | L7: Your | Q7: Enterprise | R7: Enterprise
E8: Your | H8: Your | I8: Cash | J8: Your | K8: Landlord | L8: Landlord | N8: Your | P8: Your | Q8: Total | R8: Total
A9: REVENUE | D9: Quantity | E9: Quantity | F9: Units | G9: $/Unit | H9: $/Unit | I9: Total | J9: Total | K9: Share | L9: Share | M9: Landlord | N9: Landlord | O9: Tenant | P9: Tenant | Q9: (505 acres) | R9: ="(" & E7 & " acres)" -> ( acres)
B10: Cotton Lint | D10: 1250 | F10: Pound | G10: 0.67 | I10: 837.5 | J10: =E10*H10 -> 0 | K10: 0 | M10: 0 | N10: =J10*L10 -> 0 | O10: 837.5 | P10: =+J10-N10 -> 0 | Q10: 422937.5 | R10: =+J10*E$7 -> 0
B11: Cottonseed | D11: 0.86 | F11: Ton | G11: 175 | I11: 150.5 | J11: 0 | K11: 0 | M11: 0 | N11: 0 | O11: 150.5 | P11: =+J11-N11 -> 0 | Q11: 76002.5 | R11: 0
D12: 0 | G12: 0 | I12: 0 | J12: 0 | K12: 0 | M12: 0 | N12: 0 | O12: 0 | P12: 0 | Q12: 0 | R12: 0
D13: 0 | G13: 0 | I13: 0 | J13: 0 | K13: 0 | M13: 0 | N13: 0 | O13: 0 | P13: 0 | Q13: 0 | R13: 0
A14: Total Revenue | I14: 988 | J14: =SUM(J10:J13) -> 0 | M14: 0 | N14: =SUM(N10:N13) -> 0 | O14: 988 | P14: =SUM(P10:P13) -> 0 | Q14: 498940 | R14: =SUM(R10:R13) -> 0
Q15: Enterprise | R15: Enterprise
A16: VARIABLE COSTS | D16: Quantity | E16: Quantity | F16: Units | G16: $/Unit | H16: $/Unit | I16: Total | J16: Total | K16: Share | L16: Share | M16: Landlord | N16: Landlord | O16: Tenant | P16: Tenant | Q16: Total | R16: Total
A17: Production Costs
B18: Custom
C19: Fertilizer Application | D19: 0 | F19: Ounce | G19: 0.15 | I19: 0 | J19: =E19*H19 -> 0 | K19: 0 | M19: 0 | N19: =J19*L19 -> 0 | O19: 0 | P19: =+J19-N19 -> 0 | Q19: 0 | R19: =+J19*E$7 -> 0
C20: Pick and Module | D20: 1250 | F20: Pound | G20: 0.13 | I20: 162.5 | J20: 0 | K20: 0 | M20: 0 | N20: 0 | O20: 162.5 | P20: 0 | Q20: 82062.5 | R20: 0
C21: Ginning - Picker | D21: 1250 | F21: Pound | G21: 0.125 | I21: 156.25 | J21: 0 | K21: 0 | M21: 0 | N21: 0 | O21: 156.25 | P21: 0 | Q21: 78906.25 | R21: 0
B22: Fertilizer
C23: 24-8-0 | D23: 0.165 | F23: Ton | G23: 266 | I23: 43.89 | J23: 0 | K23: 0 | M23: 0 | N23: 0 | O23: 43.89 | P23: 0 | Q23: 22164.45 | R23: 0
B24: Herbicide
C25: Glyphosate | D25: 1 | F25: Quart | G25: 5.5 | I25: 5.5 | J25: 0 | K25: 0 | M25: 0 | N25: 0 | O25: 5.5 | P25: 0 | Q25: 2777.5 | R25: 0
C26: Trifluralin | D26: 32 | F26: Ounce | G26: 0.19 | I26: 6.08 | J26: 0 | K26: 0 | M26: 0 | N26: 0 | O26: 6.08 | P26: 0 | Q26: 3070.4 | R26: 0
C27: Cotton Early Season Herbicide | D27: 2 | F27: Quart | G27: 16.24 | I27: 32.48 | J27: 0 | K27: 0 | M27: 0 | N27: 0 | O27: 32.48 | P27: 0 | Q27: 16402.4 | R27: 0
C28: 2, 4D Amine | D28: 2 | F28: Pint | G28: 2.07 | I28: 4.14 | J28: 0 | K28: 0 | M28: 0 | N28: 0 | O28: 4.14 | P28: 0 | Q28: 2090.7 | R28: 0
B29: Insecticide
C30: Fleahopper Control | D30: 1.6 | F30: Ounce | G30: 1.08 | I30: 1.728 | J30: 0 | K30: 0 | M30: 0 | N30: 0 | O30: 1.728 | P30: 0 | Q30: 872.64 | R30: 0
B31: Miscellaneous
C32: Crop Insurance - Irr Cotton | D32: 1 | F32: Thousand | G32: 0.17 | I32: 0.17 | J32: 0 | K32: 0 | M32: 0 | N32: 0 | O32: 0.17 | P32: 0 | Q32: 85.85 | R32: 0
C33: Pickup Milage Charge | D33: 1 | F33: Acre | G33: 3.88 | I33: 3.88 | J33: 0 | K33: 0 | M33: 0 | N33: 0 | O33: 3.88 | P33: 0 | Q33: 1959.4 | R33: 0
C34: Boll Weevil Program LC | D34: 2.5 | F34: Bale | G34: 3.5 | I34: 8.75 | J34: 0 | K34: 0 | M34: 0 | N34: 0 | O34: 8.75 | P34: 0 | Q34: 4418.75 | R34: 0
B35: Seed
C36: Cotton Seed - B2RF | D36: 45 | F36: Thousand | G36: 1.84 | I36: 82.8 | J36: 0 | K36: 0 | M36: 0 | N36: 0 | O36: 82.8 | P36: 0 | Q36: 41814 | R36: 0
C37: Cotton Seed - Insect Treatment | D37: 45 | F37: Thousand | G37: 0.17 | I37: 7.65 | J37: 0 | K37: 0 | M37: 0 | N37: 0 | O37: 7.65 | P37: 0 | Q37: 3863.25 | R37: 0
C38: Tech Fee - B2RF | D38: 1 | F38: Acre | G38: 0 | I38: 0 | J38: 0 | K38: 0 | M38: 0 | N38: 0 | O38: 0 | P38: 0 | Q38: 0 | R38: 0
B39: Other Labor
C40: Hand Labor | D40: 0.08 | F40: Hour | G40: 16 | I40: 1.28 | J40: 0 | K40: 0 | M40: 0 | N40: 0 | O40: 1.28 | P40: 0 | Q40: 646.4 | R40: 0
B41: Other Chemicals
C42: Dual | D42: 1 | F42: Pint | G42: 6.6 | I42: 6.6 | J42: 0 | K42: 0 | M42: 0 | N42: 0 | O42: 6.6 | P42: 0 | Q42: 3333 | R42: 0
C43: Generic PIX | D43: 32 | F43: Ounce | G43: 0.06 | I43: 1.92 | J43: 0 | K43: 0 | M43: 0 | N43: 0 | O43: 1.92 | P43: 0 | Q43: 969.6 | R43: 0
C44: Defoliants - Picker | D44: 4 | F44: Ounce | G44: 1.05 | I44: 4.2 | J44: 0 | K44: 0 | M44: 0 | N44: 0 | O44: 4.2 | P44: 0 | Q44: 2121 | R44: 0
C45: Ethephon | D45: 1.6 | F45: Ounce | G45: 0.15 | I45: 0.24 | J45: 0 | K45: 0 | M45: 0 | N45: 0 | O45: 0.24 | P45: 0 | Q45: 121.2 | R45: 0
D46: 0 | G46: 0 | I46: 0 | J46: 0 | K46: 0 | M46: 0 | N46: 0 | O46: 0 | P46: 0 | Q46: 0 | R46: 0
D47: 0 | G47: 0 | I47: 0 | J47: 0 | K47: 0 | M47: 0 | N47: 0 | O47: 0 | P47: 0 | Q47: 0 | R47: 0
D48: 0 | G48: 0 | I48: 0 | J48: =E48*H48 -> 0 | K48: 0 | M48: 0 | N48: =J48*L48 -> 0 | O48: 0 | P48: =+J48-N48 -> 0 | Q48: 0 | R48: =+J48*E$7 -> 0
B49: Irrigation
C50: Energy Cost | D50: 10 | F50: AcreInch | G50: 2.1 | I50: 21 | J50: =E50*H50 -> 0 | K50: 0 | M50: 0 | N50: =J50*L50 -> 0 | O50: 21 | P50: =+J50-N50 -> 0 | Q50: 10605 | R50: =+J50*E$7 -> 0
C51: Irrigation Labor | D51: 1.5 | F51: Hour | G51: 19.5 | I51: 29.25 | J51: 0 | K51: 0 | M51: 0 | N51: 0 | O51: 29.25 | P51: 0 | Q51: 14771.25 | R51: 0
B52: Machinery Labor
C53: Tractors/Self-Propelled | D53: 0.51 | F53: Hour | G53: 19.5 | I53: 9.945 | J53: =E53*H53 -> 0 | K53: 0 | M53: 0 | N53: =J53*L53 -> 0 | O53: 9.945 | P53: =+J53-N53 -> 0 | Q53: 5022.225 | R53: =+J53*E$7 -> 0
C54: Other Labor | D54: 0 | F54: Hour | G54: 19.5 | I54: 0 | J54: =E54*H54 -> 0 | K54: 0 | M54: 0 | N54: =J54*L54 -> 0 | O54: 0 | P54: =+J54-N54 -> 0 | Q54: 0 | R54: =+J54*E$7 -> 0
B56: Diesel Fuel
C57: Pickup/General Use Equipment | D57: 1 | F57: Acre | G57: 0 | I57: 0 | J57: =E57*H57 -> 0 | K57: 0 | M57: 0 | N57: =J57*L57 -> 0 | O57: 0 | P57: =+J57-N57 -> 0 | Q57: 0 | R57: =+J57*E$7 -> 0
C58: Tractors/Self-Propelled | D58: 6.57 | F58: Gallon | G58: 2.2 | I58: 14.454 | J58: =E58*H58 -> 0 | K58: 0 | M58: 0 | N58: =J58*L58 -> 0 | O58: 14.454 | P58: =+J58-N58 -> 0 | Q58: 7299.27 | R58: =+J58*E$7 -> 0
B60: Gasoline
C61: Pickup/General Use Equipment | D61: 1 | F61: Acre | G61: 0 | I61: 0 | J61: =E61*H61 -> 0 | K61: 0 | M61: 0 | N61: =J61*L61 -> 0 | O61: 0 | P61: =+J61-N61 -> 0 | Q61: 0 | R61: =+J61*E$7 -> 0
C62: Tractors/Self-Propelled | D62: 0 | F62: Gallon | G62: 2.4 | I62: 0 | J62: =E62*H62 -> 0 | K62: 0 | M62: 0 | N62: =J62*L62 -> 0 | O62: 0 | P62: =+J62-N62 -> 0 | Q62: 0 | R62: =+J62*E$7 -> 0
B64: Repairs & Maintenance
C65: Pickup/General Use Equipment | D65: 1 | F65: Acre | G65: 0 | I65: 0 | J65: =E65*H65 -> 0 | K65: 0 | M65: 0 | N65: =J65*L65 -> 0 | O65: 0 | P65: =+J65-N65 -> 0 | Q65: 0 | R65: =+J65*E$7 -> 0
C66: Irrigation Equipment | D66: 1 | F66: Acre | G66: 25.08250825 | I66: 25.08250825 | J66: 0 | K66: 0 | M66: 0 | N66: 0 | O66: 25.08250825 | P66: 0 | Q66: 12666.66667 | R66: 0
C67: Tractors/Self-Propelled | D67: 1 | F67: Acre | G67: 17.10342768 | I67: 17.10342768 | J67: 0 | K67: 0 | M67: 0 | N67: 0 | O67: 17.10342768 | P67: 0 | Q67: 8637.230976 | R67: 0
C68: Implements | D68: 1 | F68: Acre | G68: 18.59403747 | I68: 18.59403747 | J68: 0 | K68: 0 | M68: 0 | N68: 0 | O68: 18.59403747 | P68: 0 | Q68: 9389.988924 | R68: 0
I69: 0 | J69: 0 | K69: 0 | M69: 0 | N69: 0 | O69: 0 | P69: 0 | Q69: 0 | R69: 0
I70: 0 | J70: 0 | K70: 0 | M70: 0 | N70: 0 | O70: 0 | P70: 0 | Q70: 0 | R70: 0
B71: Interest on Credit Line | G71: 0.06 | I71: 12.58975523 | J71: =+SUM(J18:J70)/2*H71 -> 0 | M71: 0 | N71: =+SUM(N18:N70)/2*L71 -> 0 | O71: 12.58975523 | P71: =+SUM(P18:P70)/2*L71 -> 0 | Q71: 6357.826391 | R71: =+J71*E$7 -> 0
A72: Total Variable Costs | I72: 678.0767286 | J72: =SUM(J19:J71) -> 0 | M72: 0 | N72: =SUM(N19:N71) -> 0 | O72: 678.0767286 | P72: =SUM(P19:P71) -> 0 | Q72: 342428.748 | R72: =SUM(R19:R71) -> 0
A73: Planned Returns Above Variable Costs: | I73: 309.9232714 | J73: =+J14-J72 -> 0 | M73: 0 | N73: =+N14-N72 -> 0 | O73: 309.9232714 | P73: =+P14-P72 -> 0 | Q73: 156511.252 | R73: =+R14-R72 -> 0
B74: Breakeven Price to Cover Variable Costs | G74: 0.4220613829 | H74: =IF(E10=0,"n/a",(YVarExp-(YTotExp+YTotRet-J10))/E10) -> n/a | I74: Pound
Q75: Enterprise | R75: Enterprise
A76: FIXED COSTS | D76: Quantity | E76: Quantity | F76: Units | G76: $/Unit | H76: $/Unit | I76: Total | J76: Total | K76: Share | L76: Share | M76: Landlord | N76: Landlord | O76: Tenant | P76: Tenant | Q76: Total | R76: Total
B77: Machinery Depreciation
C78: Irrigation Equipment | D78: 1 | F78: Acre | G78: 28.18481848 | I78: 28.18481848 | J78: =E78*H78 -> 0 | K78: 0 | M78: 0 | N78: =J78*L78 -> 0 | O78: 28.18481848 | P78: =+J78-N78 -> 0 | Q78: 14233.33333 | R78: =+J78*E$7 -> 0
C79: Tractors/Self-Propelled | D79: 1 | F79: Acre | G79: 24.18776414 | I79: 24.18776414 | J79: 0 | K79: 0 | M79: 0 | N79: =J79*L79 -> 0 | O79: 24.18776414 | P79: 0 | Q79: 12214.82089 | R79: 0
C80: Implements | D80: 1 | F80: Acre | G80: 24.66784596 | I80: 24.66784596 | J80: 0 | K80: 0 | M80: 0 | N80: =J80*L80 -> 0 | O80: 24.66784596 | P80: 0 | Q80: 12457.26221 | R80: 0
B81: Equipment Investment
C82: Irrigation Equipment | D82: 293.5643564 | F82: Dollars | G82: 0.06 | I82: 17.61386139 | J82: =E82*H82 -> 0 | K82: 0 | M82: 0 | N82: =J82*L82 -> 0 | O82: 17.61386139 | P82: =+J82-N82 -> 0 | Q82: 8895 | R82: =+J82*E$7 -> 0
C83: Tractors/Self-Propelled | D83: 185.4037527 | F83: Dollars | G83: 0.06 | I83: 11.12422516 | J83: 0 | K83: 0 | M83: 0 | N83: =J83*L83 -> 0 | O83: 11.12422516 | P83: 0 | Q83: 5617.733708 | R83: 0
C84: Implements | D84: 106.418739 | F84: Dollars | G84: 0.06 | I84: 6.385124342 | J84: 0 | K84: 0 | M84: 0 | N84: =J84*L84 -> 0 | O84: 6.385124342 | P84: 0 | Q84: 3224.487793 | R84: 0
B85: Salaried Labor | D85: 1 | F85: Acre | G85: 0 | I85: 0 | J85: 0 | K85: 0 | M85: 0 | N85: =J85*L85 -> 0 | O85: 0 | P85: =+J85-N85 -> 0 | Q85: 0 | R85: =+J85*E$7 -> 0
B86: Management Fee, Owner/Operator Labor | D86: 1 | F86: Acre | G86: 49.4 | I86: 49.4 | J86: 0 | K86: 0 | M86: 0 | N86: 0 | O86: 49.4 | P86: 0 | Q86: 24947 | R86: 0
B87: Allocated Establishment Cost | D87: 1 | F87: Acre | G87: 0 | I87: 0 | J87: 0 | K87: 0 | M87: 0 | N87: 0 | O87: 0 | P87: 0 | Q87: 0 | R87: 0
B88: LCB - Land Charge | D88: 1 | F88: Acre | G88: 70 | I88: 70 | J88: 0 | K88: 0 | M88: 0 | N88: 0 | O88: 70 | P88: 0 | Q88: 35350 | R88: 0
B89: Property Taxes | D89: 1 | F89: Acre | G89: 0 | I89: 0 | J89: 0 | K89: 0 | M89: 0 | N89: 0 | O89: 0 | P89: 0 | Q89: 0 | R89: 0
B90: Whole Farm Insurance | D90: 1 | F90: Acre | G90: 0 | I90: 0 | J90: 0 | K90: 0 | M90: 0 | N90: 0 | O90: 0 | P90: 0 | Q90: 0 | R90: 0
D91: 1 | G91: 0 | I91: 0 | J91: 0 | K91: 0 | M91: 0 | N91: 0 | O91: 0 | P91: 0 | Q91: 0 | R91: 0
D92: 1 | G92: 0 | I92: 0 | J92: =E92*H92 -> 0 | K92: 0 | M92: 0 | N92: 0 | O92: 0 | P92: 0 | Q92: 0 | R92: 0
A93: Total Fixed Costs | I93: 231.5636395 | J93: =+SUM(J78:J92) -> 0 | M93: 0 | N93: =+SUM(N78:N92) -> 0 | O93: 231.5636395 | P93: =+SUM(P78:P92) -> 0 | Q93: 116939.6379 | R93: =+SUM(R78:R92) -> 0
A94: Total Specified Costs | I94: 909.6403681 | J94: =+J72+J93 -> 0 | M94: 0 | N94: =+N72+N93 -> 0 | O94: 909.6403681 | P94: =+P72+P93 -> 0 | Q94: 459368.3859 | R94: =+R72+R93 -> 0
A96: Returns Above Specified Costs | I96: 78.35963189 | J96: =+J14-J94 -> 0 | M96: 0 | N96: =+N14-N94 -> 0 | O96: 78.35963189 | P96: =+P14-P94 -> 0 | Q96: 39571.61411 | R96: =+R14-R94 -> 0
A98: Breakeven Price to Cover Total Costs | G98: 0.6073122945 | H98: =IF(E10=0,"n/a",(YTotExp-(YTotExp+YTotRet-J10))/E10) -> n/a | I98: Pound
D100: Example Breakeven Prices
B101: Example | C101: Example | D101: To Cover | G101: To Cover
B102: Yield | C102: Yield | D102: Variable | G102: Total
B103: Percent | C103: Pound | D103: Costs | G103: Costs
B104: 0.75 | C104: 937.5 | D104: 0.5627485105 | G104: 0.809749726
B105: 0.9 | C105: 1125 | D105: 0.4689570921 | G105: 0.6747914383
B106: 1 | C106: 1250 | D106: 0.4220613829 | G106: 0.6073122945
B107: 1.1 | C107: 1375 | D107: 0.3836921663 | G107: 0.5521020859
B108: 1.25 | C108: 1562.5 | D108: 0.3376491063 | G108: 0.4858498356
A110: Developed by Extension Economists, Texas A&M AgriLife Extension Service, budgets@tamu.edu.
A112: Information presented is prepared solely as a general guide and not intended to recognize or predict the costs and returns from any one operation. Brand names are mentioned only as examples and imply no endorsement.

Sheet IrrigatedSorghumLCB
A1: Projections for Planning Purposes Only -- Not to be Used without Updating
A2: 2021 Estimated Costs and Returns per Acre
A3: Sorghum - Conventional Till-24 Row, Irrigated, 100 bu. Yield Goal
A4: Enter your name for this budget in the cell above.
A5: Enter Your Values in the cells highlighed in MAROON.
E6: Your Acres | R6: Your
C7: Crop Acres | D7: 505 | L7: Your | Q7: Enterprise | R7: Enterprise
E8: Your | H8: Your | I8: Cash | J8: Your | K8: Landlord | L8: Landlord | N8: Your | P8: Your | Q8: Total | R8: Total
A9: REVENUE | D9: Quantity | E9: Quantity | F9: Units | G9: $/Unit | H9: $/Unit | I9: Total | J9: Total | K9: Share | L9: Share | M9: Landlord | N9: Landlord | O9: Tenant | P9: Tenant | Q9: (505 acres) | R9: ="(" & E7 & " acres)" -> ( acres)
B10: Grain Sorghum, Lower Coast | D10: 100 | F10: Bushel | G10: 3.6 | I10: 360 | J10: =E10*H10 -> 0 | K10: 0 | M10: 0 | N10: =J10*L10 -> 0 | O10: 360 | P10: =+J10-N10 -> 0 | Q10: 181800 | R10: =+J10*E$7 -> 0
D11: 0 | G11: 0 | I11: 0 | J11: 0 | K11: 0 | M11: 0 | N11: 0 | O11: 0 | P11: =+J11-N11 -> 0 | Q11: 0 | R11: 0
D12: 0 | G12: 0 | I12: 0 | J12: 0 | K12: 0 | M12: 0 | N12: 0 | O12: 0 | P12: 0 | Q12: 0 | R12: 0
A13: Total Revenue | I13: 360 | J13: =SUM(J10:J12) -> 0 | M13: 0 | N13: =SUM(N10:N12) -> 0 | O13: 360 | P13: =SUM(P10:P12) -> 0 | Q13: 181800 | R13: =SUM(R10:R12) -> 0
Q14: Enterprise | R14: Enterprise
A15: VARIABLE COSTS | D15: Quantity | E15: Quantity | F15: Units | G15: $/Unit | H15: $/Unit | I15: Total | J15: Total | K15: Share | L15: Share | M15: Landlord | N15: Landlord | O15: Tenant | P15: Tenant | Q15: Total | R15: Total
A16: Production Costs
B17: Custom
C18: Fertilizer Application | D18: 1 | F18: Ounce | G18: 0.15 | I18: 0.15 | J18: =E18*H18 -> 0 | K18: 0 | M18: 0 | N18: =J18*L18 -> 0 | O18: 0.15 | P18: =+J18-N18 -> 0 | Q18: 75.75 | R18: =+J18*E$7 -> 0
C19: Custom Haul - Sorghum | D19: 57 | F19: CWT | G19: 0.55 | I19: 31.35 | J19: 0 | K19: 0 | M19: 0 | N19: 0 | O19: 31.35 | P19: 0 | Q19: 15831.75 | R19: 0
B20: Fertilizer
C21: 24-8-0 | D21: 0.227 | F21: Ton | G21: 266 | I21: 60.382 | J21: 0 | K21: 0 | M21: 0 | N21: 0 | O21: 60.382 | P21: 0 | Q21: 30492.91 | R21: 0
B22: Herbicide
C23: Atrazine 4L | D23: 2 | F23: Quart | G23: 3 | I23: 6 | J23: 0 | K23: 0 | M23: 0 | N23: 0 | O23: 6 | P23: 0 | Q23: 3030 | R23: 0
C24: Sorghum PreEmerge Herbicide | D24: 14 | F24: Ounce | G24: 0.92 | I24: 12.88 | J24: 0 | K24: 0 | M24: 0 | N24: 0 | O24: 12.88 | P24: 0 | Q24: 6504.4 | R24: 0
B25: Insecticide
C26: Headworn Control | D26: 2.6 | F26: Ounce | G26: 1.16 | I26: 3.016 | J26: 0 | K26: 0 | M26: 0 | N26: 0 | O26: 3.016 | P26: 0 | Q26: 1523.08 | R26: 0
C27: Transform | D27: 1 | F27: Ounce | G27: 7.73 | I27: 7.73 | J27: 0 | K27: 0 | M27: 0 | N27: 0 | O27: 7.73 | P27: 0 | Q27: 3903.65 | R27: 0
C28: Stinkbug Control | D28: 2 | F28: Ounce | G28: 0.33 | I28: 0.66 | J28: 0 | K28: 0 | M28: 0 | N28: 0 | O28: 0.66 | P28: 0 | Q28: 333.3 | R28: 0
B29: Miscellaneous
C30: Crop Insurance - Irr Sorghum | D30: 1 | F30: Thousand | G30: 0.17 | I30: 0.17 | J30: 0 | K30: 0 | M30: 0 | N30: 0 | O30: 0.17 | P30: 0 | Q30: 85.85 | R30: 0
C31: Pickup Milage Charge | D31: 1 | F31: Acre | G31: 3.88 | I31: 3.88 | J31: 0 | K31: 0 | M31: 0 | N31: 0 | O31: 3.88 | P31: 0 | Q31: 1959.4 | R31: 0
B32: Seed
C33: Treated Sorghum Seed | D33: 5 | F33: Pound | G33: 3.2 | I33: 16 | J33: 0 | K33: 0 | M33: 0 | N33: 0 | O33: 16 | P33: 0 | Q33: 8080 | R33: 0
B34: Other Labor
C35: Hand Labor | D35: 0.04 | F35: Hour | G35: 16 | I35: 0.64 | J35: 0 | K35: 0 | M35: 0 | N35: 0 | O35: 0.64 | P35: 0 | Q35: 323.2 | R35: 0
D36: 0 | G36: 0 | I36: 0 | J36: 0 | K36: 0 | M36: 0 | N36: 0 | O36: 0 | P36: 0 | Q36: 0 | R36: 0
D37: 0 | G37: 0 | I37: 0 | J37: 0 | K37: 0 | M37: 0 | N37: 0 | O37: 0 | P37: 0 | Q37: 0 | R37: 0
D38: 0 | G38: 0 | I38: 0 | J38: =E38*H38 -> 0 | K38: 0 | M38: 0 | N38: =J38*L38 -> 0 | O38: 0 | P38: =+J38-N38 -> 0 | Q38: 0 | R38: =+J38*E$7 -> 0
B39: Irrigation
C40: Energy Cost | D40: 10 | F40: AcreInch | G40: 2.1 | I40: 21 | J40: =E40*H40 -> 0 | K40: 0 | M40: 0 | N40: =J40*L40 -> 0 | O40: 21 | P40: =+J40-N40 -> 0 | Q40: 10605 | R40: =+J40*E$7 -> 0
C41: Irrigation Labor | D41: 1.5 | F41: Hour | G41: 19.5 | I41: 29.25 | J41: 0 | K41: 0 | M41: 0 | N41: 0 | O41: 29.25 | P41: 0 | Q41: 14771.25 | R41: 0
B42: Machinery Labor
C43: Tractors/Self-Propelled | D43: 0.73 | F43: Hour | G43: 19.5 | I43: 14.235 | J43: =E43*H43 -> 0 | K43: 0 | M43: 0 | N43: =J43*L43 -> 0 | O43: 14.235 | P43: =+J43-N43 -> 0 | Q43: 7188.675 | R43: =+J43*E$7 -> 0
C44: Other Labor | D44: 0 | F44: Hour | G44: 19.5 | I44: 0 | J44: =E44*H44 -> 0 | K44: 0 | M44: 0 | N44: =J44*L44 -> 0 | O44: 0 | P44: =+J44-N44 -> 0 | Q44: 0 | R44: =+J44*E$7 -> 0
B46: Diesel Fuel
C47: Pickup/General Use Equipment | D47: 1 | F47: Acre | G47: 0 | I47: 0 | J47: =E47*H47 -> 0 | K47: 0 | M47: 0 | N47: =J47*L47 -> 0 | O47: 0 | P47: =+J47-N47 -> 0 | Q47: 0 | R47: =+J47*E$7 -> 0
C48: Tractors/Self-Propelled | D48: 8.98 | F48: Gallon | G48: 2.2 | I48: 19.756 | J48: =E48*H48 -> 0 | K48: 0 | M48: 0 | N48: =J48*L48 -> 0 | O48: 19.756 | P48: =+J48-N48 -> 0 | Q48: 9976.78 | R48: =+J48*E$7 -> 0
B50: Gasoline
C51: Pickup/General Use Equipment | D51: 1 | F51: Acre | G51: 0 | I51: 0 | J51: =E51*H51 -> 0 | K51: 0 | M51: 0 | N51: =J51*L51 -> 0 | O51: 0 | P51: =+J51-N51 -> 0 | Q51: 0 | R51: =+J51*E$7 -> 0
C52: Tractors/Self-Propelled | D52: 0 | F52: Gallon | G52: 2.4 | I52: 0 | J52: =E52*H52 -> 0 | K52: 0 | M52: 0 | N52: =J52*L52 -> 0 | O52: 0 | P52: =+J52-N52 -> 0 | Q52: 0 | R52: =+J52*E$7 -> 0
B54: Repairs & Maintenance
C55: Pickup/General Use Equipment | D55: 1 | F55: Acre | G55: 0 | I55: 0 | J55: =E55*H55 -> 0 | K55: 0 | M55: 0 | N55: =J55*L55 -> 0 | O55: 0 | P55: =+J55-N55 -> 0 | Q55: 0 | R55: =+J55*E$7 -> 0
C56: Irrigation Equipment | D56: 1 | F56: Acre | G56: 25.08250825 | I56: 25.08250825 | J56: 0 | K56: 0 | M56: 0 | N56: 0 | O56: 25.08250825 | P56: 0 | Q56: 12666.66667 | R56: 0
C57: Tractors/Self-Propelled | D57: 1 | F57: Acre | G57: 31.5410447 | I57: 31.5410447 | J57: 0 | K57: 0 | M57: 0 | N57: 0 | O57: 31.5410447 | P57: 0 | Q57: 15928.22757 | R57: 0
C58: Implements | D58: 1 | F58: Acre | G58: 23.40110645 | I58: 23.40110645 | J58: 0 | K58: 0 | M58: 0 | N58: 0 | O58: 23.40110645 | P58: 0 | Q58: 11817.55876 | R58: 0
I59: 0 | J59: 0 | K59: 0 | M59: 0 | N59: 0 | O59: 0 | P59: 0 | Q59: 0 | R59: 0
I60: 0 | J60: 0 | K60: 0 | M60: 0 | N60: 0 | O60: 0 | P60: 0 | Q60: 0 | R60: 0
B61: Interest on Credit Line | G61: 0.06 | I61: 8.262949864 | J61: =+SUM(J17:J60)/2*H61 -> 0 | M61: 0 | N61: =+SUM(N17:N60)/2*L61 -> 0 | O61: 8.262949864 | P61: =+SUM(P17:P60)/2*L61 -> 0 | Q61: 4172.789681 | R61: =+J61*E$7 -> 0
A62: Total Variable Costs | I62: 315.3866093 | J62: =SUM(J18:J61) -> 0 | M62: 0 | N62: =SUM(N18:N61) -> 0 | O62: 315.3866093 | P62: =SUM(P18:P61) -> 0 | Q62: 159270.2377 | R62: =SUM(R18:R61) -> 0
A63: Planned Returns Above Variable Costs: | I63: 44.61339074 | J63: =+J13-J62 -> 0 | M63: 0 | N63: =+N13-N62 -> 0 | O63: 44.61339074 | P63: =+P13-P62 -> 0 | Q63: 22529.76233 | R63: =+R13-R62 -> 0
B64: Breakeven Price to Cover Variable Costs | G64: 3.153866093 | H64: =IF(E10=0,"n/a",(YVarExp-(YTotExp+YTotRet-J10))/E10) -> n/a | I64: Bushel
Q65: Enterprise | R65: Enterprise
A66: FIXED COSTS | D66: Quantity | E66: Quantity | F66: Units | G66: $/Unit | H66: $/Unit | I66: Total | J66: Total | K66: Share | L66: Share | M66: Landlord | N66: Landlord | O66: Tenant | P66: Tenant | Q66: Total | R66: Total
B67: Machinery Depreciation
C68: Irrigation Equipment | D68: 1 | F68: Acre | G68: 28.18481848 | I68: 28.18481848 | J68: =E68*H68 -> 0 | K68: 0 | M68: 0 | N68: =J68*L68 -> 0 | O68: 28.18481848 | P68: =+J68-N68 -> 0 | Q68: 14233.33333 | R68: =+J68*E$7 -> 0
C69: Tractors/Self-Propelled | D69: 1 | F69: Acre | G69: 36.22964407 | I69: 36.22964407 | J69: 0 | K69: 0 | M69: 0 | N69: =J69*L69 -> 0 | O69: 36.22964407 | P69: 0 | Q69: 18295.97025 | R69: 0
C70: Implements | D70: 1 | F70: Acre | G70: 29.25037808 | I70: 29.25037808 | J70: 0 | K70: 0 | M70: 0 | N70: =J70*L70 -> 0 | O70: 29.25037808 | P70: 0 | Q70: 14771.44093 | R70: 0
B71: Equipment Investment
C72: Irrigation Equipment | D72: 293.5643564 | F72: Dollars | G72: 0.06 | I72: 17.61386139 | J72: =E72*H72 -> 0 | K72: 0 | M72: 0 | N72: =J72*L72 -> 0 | O72: 17.61386139 | P72: =+J72-N72 -> 0 | Q72: 8895 | R72: =+J72*E$7 -> 0
C73: Tractors/Self-Propelled | D73: 276.1372833 | F73: Dollars | G73: 0.06 | I73: 16.568237 | J73: 0 | K73: 0 | M73: 0 | N73: =J73*L73 -> 0 | O73: 16.568237 | P73: 0 | Q73: 8366.959683 | R73: 0
C74: Implements | D74: 163.8089217 | F74: Dollars | G74: 0.06 | I74: 9.828535304 | J74: 0 | K74: 0 | M74: 0 | N74: =J74*L74 -> 0 | O74: 9.828535304 | P74: 0 | Q74: 4963.410329 | R74: 0
B75: Salaried Labor | D75: 1 | F75: Acre | G75: 0 | I75: 0 | J75: 0 | K75: 0 | M75: 0 | N75: =J75*L75 -> 0 | O75: 0 | P75: =+J75-N75 -> 0 | Q75: 0 | R75: =+J75*E$7 -> 0
B76: Management Fee, Owner/Operator Labor | D76: 1 | F76: Acre | G76: 18 | I76: 18 | J76: 0 | K76: 0 | M76: 0 | N76: 0 | O76: 18 | P76: 0 | Q76: 9090 | R76: 0
B77: Allocated Establishment Cost | D77: 1 | F77: Acre | G77: 0 | I77: 0 | J77: 0 | K77: 0 | M77: 0 | N77: 0 | O77: 0 | P77: 0 | Q77: 0 | R77: 0
B78: LCB - Land Charge | D78: 1 | F78: Acre | G78: 70 | I78: 70 | J78: 0 | K78: 0 | M78: 0 | N78: 0 | O78: 70 | P78: 0 | Q78: 35350 | R78: 0
B79: Property Taxes | D79: 1 | F79: Acre | G79: 0 | I79: 0 | J79: 0 | K79: 0 | M79: 0 | N79: 0 | O79: 0 | P79: 0 | Q79: 0 | R79: 0
B80: Whole Farm Insurance | D80: 1 | F80: Acre | G80: 0 | I80: 0 | J80: 0 | K80: 0 | M80: 0 | N80: 0 | O80: 0 | P80: 0 | Q80: 0 | R80: 0
D81: 1 | G81: 0 | I81: 0 | J81: 0 | K81: 0 | M81: 0 | N81: 0 | O81: 0 | P81: 0 | Q81: 0 | R81: 0
D82: 1 | G82: 0 | I82: 0 | J82: =E82*H82 -> 0 | K82: 0 | M82: 0 | N82: 0 | O82: 0 | P82: 0 | Q82: 0 | R82: 0
A83: Total Fixed Costs | I83: 225.6754743 | J83: =+SUM(J68:J82) -> 0 | M83: 0 | N83: =+SUM(N68:N82) -> 0 | O83: 225.6754743 | P83: =+SUM(P68:P82) -> 0 | Q83: 113966.1145 | R83: =+SUM(R68:R82) -> 0
A84: Total Specified Costs | I84: 541.0620836 | J84: =+J62+J83 -> 0 | M84: 0 | N84: =+N62+N83 -> 0 | O84: 541.0620836 | P84: =+P62+P83 -> 0 | Q84: 273236.3522 | R84: =+R62+R83 -> 0
A86: Returns Above Specified Costs | I86: -181.0620836 | J86: =+J13-J84 -> 0 | M86: 0 | N86: =+N13-N84 -> 0 | O86: -181.0620836 | P86: =+P13-P84 -> 0 | Q86: -91436.3522 | R86: =+R13-R84 -> 0
A88: Breakeven Price to Cover Total Costs | G88: 5.410620836 | H88: =IF(E10=0,"n/a",(YTotExp-(YTotExp+YTotRet-J10))/E10) -> n/a | I88: Bushel
D90: Example Breakeven Prices
B91: Example | C91: Example | D91: To Cover | G91: To Cover
B92: Yield | C92: Yield | D92: Variable | G92: Total
B93: Percent | C93: Bushel | D93: Costs | G93: Costs
B94: 0.75 | C94: 75 | D94: 4.20515479 | G94: 7.214161114
B95: 0.9 | C95: 90 | D95: 3.504295658 | G95: 6.011800929
B96: 1 | C96: 100 | D96: 3.153866093 | G96: 5.410620836
B97: 1.1 | C97: 110 | D97: 2.867150993 | G97: 4.918746214
B98: 1.25 | C98: 125 | D98: 2.523092874 | G98: 4.328496669
A100: Developed by Extension Economists, Texas A&M AgriLife Extension Service, budgets@tamu.edu.
A102: Information presented is prepared solely as a general guide and not intended to recognize or predict the costs and returns from any one operation. Brand names are mentioned only as examples and imply no endorsement.

Sheet IrrigatedSesame
A1: Projections for Planning Purposes Only -- Not to be Used without Updating
A2: 2021 Estimated Costs and Returns per Acre
A3: Sesame - Conventional Till-12 Row, Irrigated, 1100 lb. Yield Goal
A4: Enter your name for this budget in the cell above.
A5: Enter Your Values in the cells highlighed in MAROON.
E6: Your Acres | R6: Your
C7: Crop Acres | D7: 505 | L7: Your | Q7: Enterprise | R7: Enterprise
E8: Your | H8: Your | I8: Cash | J8: Your | K8: Landlord | L8: Landlord | N8: Your | P8: Your | Q8: Total | R8: Total
A9: REVENUE | D9: Quantity | E9: Quantity | F9: Units | G9: $/Unit | H9: $/Unit | I9: Total | J9: Total | K9: Share | L9: Share | M9: Landlord | N9: Landlord | O9: Tenant | P9: Tenant | Q9: (505 acres) | R9: ="(" & E7 & " acres)" -> ( acres)
B10: Sesame | D10: 1100 | F10: Pound | G10: 0.46 | I10: 506 | J10: =E10*H10 -> 0 | K10: 0 | M10: 0 | N10: =J10*L10 -> 0 | O10: 506 | P10: =+J10-N10 -> 0 | Q10: 255530 | R10: =+J10*E$7 -> 0
D11: 0 | G11: 0 | I11: 0 | J11: 0 | K11: 0 | M11: 0 | N11: 0 | O11: 0 | P11: =+J11-N11 -> 0 | Q11: 0 | R11: 0
D12: 0 | G12: 0 | I12: 0 | J12: 0 | K12: 0 | M12: 0 | N12: 0 | O12: 0 | P12: 0 | Q12: 0 | R12: 0
A13: Total Revenue | I13: 506 | J13: =SUM(J10:J12) -> 0 | M13: 0 | N13: =SUM(N10:N12) -> 0 | O13: 506 | P13: =SUM(P10:P12) -> 0 | Q13: 255530 | R13: =SUM(R10:R12) -> 0
Q14: Enterprise | R14: Enterprise
A15: VARIABLE COSTS | D15: Quantity | E15: Quantity | F15: Units | G15: $/Unit | H15: $/Unit | I15: Total | J15: Total | K15: Share | L15: Share | M15: Landlord | N15: Landlord | O15: Tenant | P15: Tenant | Q15: Total | R15: Total
A16: Production Costs
B17: Herbicide
C18: Glyphosate (Generic) | D18: 2 | F18: Quart | G18: 3.38 | I18: 6.76 | J18: =E18*H18 -> 0 | K18: 0 | M18: 0 | N18: =J18*L18 -> 0 | O18: 6.76 | P18: =+J18-N18 -> 0 | Q18: 3413.8 | R18: =+J18*E$7 -> 0
C19: Sesame PostEmerge Herbicide | D19: 8 | F19: Ounce | G19: 0.82 | I19: 6.56 | J19: 0 | K19: 0 | M19: 0 | N19: 0 | O19: 6.56 | P19: 0 | Q19: 3312.8 | R19: 0
B20: Miscellaneous
C21: Pickup Milage Charge | D21: 1 | F21: Acre | G21: 3.88 | I21: 3.88 | J21: 0 | K21: 0 | M21: 0 | N21: 0 | O21: 3.88 | P21: 0 | Q21: 1959.4 | R21: 0
C22: Crop Insurance -Sesame | D22: 1 | F22: Acre | G22: 25.39 | I22: 25.39 | J22: 0 | K22: 0 | M22: 0 | N22: 0 | O22: 25.39 | P22: 0 | Q22: 12821.95 | R22: 0
B23: Other Labor
C24: Hand Labor | D24: 0.08 | F24: Hour | G24: 16 | I24: 1.28 | J24: 0 | K24: 0 | M24: 0 | N24: 0 | O24: 1.28 | P24: 0 | Q24: 646.4 | R24: 0
B25: Seed
C26: Sesame | D26: 3 | F26: Pound | G26: 4 | I26: 12 | J26: 0 | K26: 0 | M26: 0 | N26: 0 | O26: 12 | P26: 0 | Q26: 6060 | R26: 0
D27: 0 | G27: 0 | I27: 0 | J27: 0 | K27: 0 | M27: 0 | N27: 0 | O27: 0 | P27: 0 | Q27: 0 | R27: 0
D28: 0 | G28: 0 | I28: 0 | J28: 0 | K28: 0 | M28: 0 | N28: 0 | O28: 0 | P28: 0 | Q28: 0 | R28: 0
D29: 0 | G29: 0 | I29: 0 | J29: =E29*H29 -> 0 | K29: 0 | M29: 0 | N29: =J29*L29 -> 0 | O29: 0 | P29: =+J29-N29 -> 0 | Q29: 0 | R29: =+J29*E$7 -> 0
B30: Irrigation
C31: Energy Cost | D31: 6 | F31: AcreInch | G31: 2.1 | I31: 12.6 | J31: =E31*H31 -> 0 | K31: 0 | M31: 0 | N31: =J31*L31 -> 0 | O31: 12.6 | P31: =+J31-N31 -> 0 | Q31: 6363 | R31: =+J31*E$7 -> 0
C32: Irrigation Labor | D32: 1.15 | F32: Hour | G32: 19.5 | I32: 22.425 | J32: 0 | K32: 0 | M32: 0 | N32: 0 | O32: 22.425 | P32: 0 | Q32: 11324.625 | R32: 0
B33: Machinery Labor
C34: Tractors/Self-Propelled | D34: 0.79 | F34: Hour | G34: 19.5 | I34: 15.405 | J34: =E34*H34 -> 0 | K34: 0 | M34: 0 | N34: =J34*L34 -> 0 | O34: 15.405 | P34: =+J34-N34 -> 0 | Q34: 7779.525 | R34: =+J34*E$7 -> 0
C35: Other Labor | D35: 0 | F35: Hour | G35: 19.5 | I35: 0 | J35: =E35*H35 -> 0 | K35: 0 | M35: 0 | N35: =J35*L35 -> 0 | O35: 0 | P35: =+J35-N35 -> 0 | Q35: 0 | R35: =+J35*E$7 -> 0
B37: Diesel Fuel
C38: Pickup/General Use Equipment | D38: 1 | F38: Acre | G38: 0 | I38: 0 | J38: =E38*H38 -> 0 | K38: 0 | M38: 0 | N38: =J38*L38 -> 0 | O38: 0 | P38: =+J38-N38 -> 0 | Q38: 0 | R38: =+J38*E$7 -> 0
C39: Tractors/Self-Propelled | D39: 8.92 | F39: Gallon | G39: 2.2 | I39: 19.624 | J39: =E39*H39 -> 0 | K39: 0 | M39: 0 | N39: =J39*L39 -> 0 | O39: 19.624 | P39: =+J39-N39 -> 0 | Q39: 9910.12 | R39: =+J39*E$7 -> 0
B41: Gasoline
C42: Pickup/General Use Equipment | D42: 1 | F42: Acre | G42: 0 | I42: 0 | J42: =E42*H42 -> 0 | K42: 0 | M42: 0 | N42: =J42*L42 -> 0 | O42: 0 | P42: =+J42-N42 -> 0 | Q42: 0 | R42: =+J42*E$7 -> 0
C43: Tractors/Self-Propelled | D43: 0 | F43: Gallon | G43: 2.4 | I43: 0 | J43: =E43*H43 -> 0 | K43: 0 | M43: 0 | N43: =J43*L43 -> 0 | O43: 0 | P43: =+J43-N43 -> 0 | Q43: 0 | R43: =+J43*E$7 -> 0
B45: Repairs & Maintenance
C46: Pickup/General Use Equipment | D46: 1 | F46: Acre | G46: 0 | I46: 0 | J46: =E46*H46 -> 0 | K46: 0 | M46: 0 | N46: =J46*L46 -> 0 | O46: 0 | P46: =+J46-N46 -> 0 | Q46: 0 | R46: =+J46*E$7 -> 0
C47: Irrigation Equipment | D47: 1 | F47: Acre | G47: 25.08250825 | I47: 25.08250825 | J47: 0 | K47: 0 | M47: 0 | N47: 0 | O47: 25.08250825 | P47: 0 | Q47: 12666.66667 | R47: 0
C48: Tractors/Self-Propelled | D48: 1 | F48: Acre | G48: 31.58991069 | I48: 31.58991069 | J48: 0 | K48: 0 | M48: 0 | N48: 0 | O48: 31.58991069 | P48: 0 | Q48: 15952.9049 | R48: 0
C49: Implements | D49: 1 | F49: Acre | G49: 23.08429417 | I49: 23.08429417 | J49: 0 | K49: 0 | M49: 0 | N49: 0 | O49: 23.08429417 | P49: 0 | Q49: 11657.56855 | R49: 0
I50: 0 | J50: 0 | K50: 0 | M50: 0 | N50: 0 | O50: 0 | P50: 0 | Q50: 0 | R50: 0
I51: 0 | J51: 0 | K51: 0 | M51: 0 | N51: 0 | O51: 0 | P51: 0 | Q51: 0 | R51: 0
B52: Interest on Credit Line | G52: 0.06 | I52: 6.367323417 | J52: =+SUM(J17:J51)/2*H52 -> 0 | M52: 0 | N52: =+SUM(N17:N51)/2*L52 -> 0 | O52: 6.367323417 | P52: =+SUM(P17:P51)/2*L52 -> 0 | Q52: 3215.498326 | R52: =+J52*E$7 -> 0
A53: Total Variable Costs | I53: 212.0480365 | J53: =SUM(J18:J52) -> 0 | M53: 0 | N53: =SUM(N18:N52) -> 0 | O53: 212.0480365 | P53: =SUM(P18:P52) -> 0 | Q53: 107084.2584 | R53: =SUM(R18:R52) -> 0
A54: Planned Returns Above Variable Costs: | I54: 293.9519635 | J54: =+J13-J53 -> 0 | M54: 0 | N54: =+N13-N53 -> 0 | O54: 293.9519635 | P54: =+P13-P53 -> 0 | Q54: 148445.7416 | R54: =+R13-R53 -> 0
B55: Breakeven Price to Cover Variable Costs | G55: 0.1927709423 | H55: =IF(E10=0,"n/a",(YVarExp-(YTotExp+YTotRet-J10))/E10) -> n/a | I55: Pound
Q56: Enterprise | R56: Enterprise
A57: FIXED COSTS | D57: Quantity | E57: Quantity | F57: Units | G57: $/Unit | H57: $/Unit | I57: Total | J57: Total | K57: Share | L57: Share | M57: Landlord | N57: Landlord | O57: Tenant | P57: Tenant | Q57: Total | R57: Total
B58: Machinery Depreciation
C59: Irrigation Equipment | D59: 1 | F59: Acre | G59: 28.18481848 | I59: 28.18481848 | J59: =E59*H59 -> 0 | K59: 0 | M59: 0 | N59: =J59*L59 -> 0 | O59: 28.18481848 | P59: =+J59-N59 -> 0 | Q59: 14233.33333 | R59: =+J59*E$7 -> 0
C60: Tractors/Self-Propelled | D60: 1 | F60: Acre | G60: 34.10873152 | I60: 34.10873152 | J60: 0 | K60: 0 | M60: 0 | N60: =J60*L60 -> 0 | O60: 34.10873152 | P60: 0 | Q60: 17224.90942 | R60: 0
C61: Implements | D61: 1 | F61: Acre | G61: 28.10551905 | I61: 28.10551905 | J61: 0 | K61: 0 | M61: 0 | N61: =J61*L61 -> 0 | O61: 28.10551905 | P61: 0 | Q61: 14193.28712 | R61: 0
B62: Equipment Investment
C63: Irrigation Equipment | D63: 293.5643564 | F63: Dollars | G63: 0.06 | I63: 17.61386139 | J63: =E63*H63 -> 0 | K63: 0 | M63: 0 | N63: =J63*L63 -> 0 | O63: 17.61386139 | P63: =+J63-N63 -> 0 | Q63: 8895 | R63: =+J63*E$7 -> 0
C64: Tractors/Self-Propelled | D64: 260.6236012 | F64: Dollars | G64: 0.06 | I64: 15.63741607 | J64: 0 | K64: 0 | M64: 0 | N64: =J64*L64 -> 0 | O64: 15.63741607 | P64: 0 | Q64: 7896.895115 | R64: 0
C65: Implements | D65: 158.9114692 | F65: Dollars | G65: 0.06 | I65: 9.534688153 | J65: 0 | K65: 0 | M65: 0 | N65: =J65*L65 -> 0 | O65: 9.534688153 | P65: 0 | Q65: 4815.017517 | R65: 0
B66: Salaried Labor | D66: 1 | F66: Acre | G66: 0 | I66: 0 | J66: 0 | K66: 0 | M66: 0 | N66: =J66*L66 -> 0 | O66: 0 | P66: =+J66-N66 -> 0 | Q66: 0 | R66: =+J66*E$7 -> 0
B67: Management Fee, Owner/Operator Labor | D67: 1 | F67: Acre | G67: 25.3 | I67: 25.3 | J67: 0 | K67: 0 | M67: 0 | N67: 0 | O67: 25.3 | P67: 0 | Q67: 12776.5 | R67: 0
B68: Allocated Establishment Cost | D68: 1 | F68: Acre | G68: 0 | I68: 0 | J68: 0 | K68: 0 | M68: 0 | N68: 0 | O68: 0 | P68: 0 | Q68: 0 | R68: 0
B69: LCB - Land Charge | D69: 1 | F69: Acre | G69: 70 | I69: 70 | J69: 0 | K69: 0 | M69: 0 | N69: 0 | O69: 70 | P69: 0 | Q69: 35350 | R69: 0
B70: Property Taxes | D70: 1 | F70: Acre | G70: 0 | I70: 0 | J70: 0 | K70: 0 | M70: 0 | N70: 0 | O70: 0 | P70: 0 | Q70: 0 | R70: 0
B71: Whole Farm Insurance | D71: 1 | F71: Acre | G71: 0 | I71: 0 | J71: 0 | K71: 0 | M71: 0 | N71: 0 | O71: 0 | P71: 0 | Q71: 0 | R71: 0
D72: 1 | G72: 0 | I72: 0 | J72: 0 | K72: 0 | M72: 0 | N72: 0 | O72: 0 | P72: 0 | Q72: 0 | R72: 0
D73: 1 | G73: 0 | I73: 0 | J73: =E73*H73 -> 0 | K73: 0 | M73: 0 | N73: 0 | O73: 0 | P73: 0 | Q73: 0 | R73: 0
A74: Total Fixed Costs | I74: 228.4850347 | J74: =+SUM(J59:J73) -> 0 | M74: 0 | N74: =+SUM(N59:N73) -> 0 | O74: 228.4850347 | P74: =+SUM(P59:P73) -> 0 | Q74: 115384.9425 | R74: =+SUM(R59:R73) -> 0
A75: Total Specified Costs | I75: 440.5330712 | J75: =+J53+J74 -> 0 | M75: 0 | N75: =+N53+N74 -> 0 | O75: 440.5330712 | P75: =+P53+P74 -> 0 | Q75: 222469.2009 | R75: =+R53+R74 -> 0
A77: Returns Above Specified Costs | I77: 65.46692882 | J77: =+J13-J75 -> 0 | M77: 0 | N77: =+N13-N75 -> 0 | O77: 65.46692882 | P77: =+P13-P75 -> 0 | Q77: 33060.79905 | R77: =+R13-R75 -> 0
A79: Breakeven Price to Cover Total Costs | G79: 0.4004846102 | H79: =IF(E10=0,"n/a",(YTotExp-(YTotExp+YTotRet-J10))/E10) -> n/a | I79: Pound
D81: Example Breakeven Prices
B82: Example | C82: Example | D82: To Cover | G82: To Cover
B83: Yield | C83: Yield | D83: Variable | G83: Total
B84: Percent | C84: Pound | D84: Costs | G84: Costs
B85: 0.75 | C85: 825 | D85: 0.2570279231 | G85: 0.5339794802
B86: 0.9 | C86: 990 | D86: 0.2141899359 | G86: 0.4449829002
B87: 1 | C87: 1100 | D87: 0.1927709423 | G87: 0.4004846102
B88: 1.1 | C88: 1210 | D88: 0.1752463112 | G88: 0.3640769183
B89: 1.25 | C89: 1375 | D89: 0.1542167538 | G89: 0.3203876881
A91: Developed by Extension Economists, Texas A&M AgriLife Extension Service, budgets@tamu.edu.
A93: Information presented is prepared solely as a general guide and not intended to recognize or predict the costs and returns from any one operation. Brand names are mentioned only as examples and imply no endorsement.

Sheet IrrigatedWheatLCB
A1: Projections for Planning Purposes Only -- Not to be Used without Updating
A2: 2021 Estimated Costs and Returns per Acre
A3: Hard Red Spring Wheat, Irrigated, 60 bu. Yield Goal
A4: Enter your name for this budget in the cell above.
A5: Enter Your Values in the cells highlighed in MAROON.
E6: Your Acres | R6: Your
C7: Crop Acres | D7: 505 | L7: Your | Q7: Enterprise | R7: Enterprise
E8: Your | H8: Your | I8: Cash | J8: Your | K8: Landlord | L8: Landlord | N8: Your | P8: Your | Q8: Total | R8: Total
A9: REVENUE | D9: Quantity | E9: Quantity | F9: Units | G9: $/Unit | H9: $/Unit | I9: Total | J9: Total | K9: Share | L9: Share | M9: Landlord | N9: Landlord | O9: Tenant | P9: Tenant | Q9: (505 acres) | R9: ="(" & E7 & " acres)" -> ( acres)
B10: Hard Red Spring Wheat | D10: 60 | F10: Bushel | G10: 4.7 | I10: 282 | J10: =E10*H10 -> 0 | K10: 0 | M10: 0 | N10: =J10*L10 -> 0 | O10: 282 | P10: =+J10-N10 -> 0 | Q10: 142410 | R10: =+J10*E$7 -> 0
D11: 0 | G11: 0 | I11: 0 | J11: 0 | K11: 0 | M11: 0 | N11: 0 | O11: 0 | P11: =+J11-N11 -> 0 | Q11: 0 | R11: 0
D12: 0 | G12: 0 | I12: 0 | J12: 0 | K12: 0 | M12: 0 | N12: 0 | O12: 0 | P12: 0 | Q12: 0 | R12: 0
A13: Total Revenue | I13: 282 | J13: =SUM(J10:J12) -> 0 | M13: 0 | N13: =SUM(N10:N12) -> 0 | O13: 282 | P13: =SUM(P10:P12) -> 0 | Q13: 142410 | R13: =SUM(R10:R12) -> 0
Q14: Enterprise | R14: Enterprise
A15: VARIABLE COSTS | D15: Quantity | E15: Quantity | F15: Units | G15: $/Unit | H15: $/Unit | I15: Total | J15: Total | K15: Share | L15: Share | M15: Landlord | N15: Landlord | O15: Tenant | P15: Tenant | Q15: Total | R15: Total
A16: Production Costs
B17: Seed
C18: HRS Wheat Seed | D18: 90 | F18: Pound | G18: 0.39 | I18: 35.1 | J18: =E18*H18 -> 0 | K18: 0 | M18: 0 | N18: =J18*L18 -> 0 | O18: 35.1 | P18: =+J18-N18 -> 0 | Q18: 17725.5 | R18: =+J18*E$7 -> 0
B19: Fertilizer
C20: 24-8-0 | D20: 0.125 | F20: Ton | G20: 266 | I20: 33.25 | J20: 0 | K20: 0 | M20: 0 | N20: 0 | O20: 33.25 | P20: 0 | Q20: 16791.25 | R20: 0
B21: Custom
C22: Fertilizer Application | D22: 1 | F22: Ounce | G22: 0.15 | I22: 0.15 | J22: 0 | K22: 0 | M22: 0 | N22: 0 | O22: 0.15 | P22: 0 | Q22: 75.75 | R22: 0
C23: Custom Haul - Wheat | D23: 60 | F23: Bushel | G23: 0.25 | I23: 15 | J23: 0 | K23: 0 | M23: 0 | N23: 0 | O23: 15 | P23: 0 | Q23: 7575 | R23: 0
B24: Herbicide
C25: Glyphosate (Generic) | D25: 1 | F25: Quart | G25: 3.38 | I25: 3.38 | J25: 0 | K25: 0 | M25: 0 | N25: 0 | O25: 3.38 | P25: 0 | Q25: 1706.9 | R25: 0
C26: Affinity | D26: 0.5 | F26: Ounce | G26: 10.38 | I26: 5.19 | J26: 0 | K26: 0 | M26: 0 | N26: 0 | O26: 5.19 | P26: 0 | Q26: 2620.95 | R26: 0
B27: Other Labor
C28: Hand Labor | D28: 0.018 | F28: Hour | G28: 16 | I28: 0.288 | J28: 0 | K28: 0 | M28: 0 | N28: 0 | O28: 0.288 | P28: 0 | Q28: 145.44 | R28: 0
B29: Miscellaneous
C30: Pickup Milage Charge | D30: 1 | F30: Acre | G30: 3.88 | I30: 3.88 | J30: 0 | K30: 0 | M30: 0 | N30: 0 | O30: 3.88 | P30: 0 | Q30: 1959.4 | R30: 0
C31: Crop Insurance - Irr HRS Wheat | D31: 1 | F31: Thousand | G31: 0.17 | I31: 0.17 | J31: 0 | K31: 0 | M31: 0 | N31: 0 | O31: 0.17 | P31: 0 | Q31: 85.85 | R31: 0
B32: Insecticide
C33: Wheat Insect Control | D33: 1.5 | F33: Pint | G33: 7.47 | I33: 11.205 | J33: 0 | K33: 0 | M33: 0 | N33: 0 | O33: 11.205 | P33: 0 | Q33: 5658.525 | R33: 0
D34: 0 | G34: 0 | I34: 0 | J34: 0 | K34: 0 | M34: 0 | N34: 0 | O34: 0 | P34: 0 | Q34: 0 | R34: 0
D35: 0 | G35: 0 | I35: 0 | J35: 0 | K35: 0 | M35: 0 | N35: 0 | O35: 0 | P35: 0 | Q35: 0 | R35: 0
D36: 0 | G36: 0 | I36: 0 | J36: =E36*H36 -> 0 | K36: 0 | M36: 0 | N36: =J36*L36 -> 0 | O36: 0 | P36: =+J36-N36 -> 0 | Q36: 0 | R36: =+J36*E$7 -> 0
B37: Irrigation
C38: Energy Cost | D38: 10 | F38: AcreInch | G38: 2.1 | I38: 21 | J38: =E38*H38 -> 0 | K38: 0 | M38: 0 | N38: =J38*L38 -> 0 | O38: 21 | P38: =+J38-N38 -> 0 | Q38: 10605 | R38: =+J38*E$7 -> 0
C39: Irrigation Labor | D39: 1.5 | F39: Hour | G39: 19.5 | I39: 29.25 | J39: 0 | K39: 0 | M39: 0 | N39: 0 | O39: 29.25 | P39: 0 | Q39: 14771.25 | R39: 0
B40: Machinery Labor
C41: Tractors/Self-Propelled | D41: 0.56 | F41: Hour | G41: 19.5 | I41: 10.92 | J41: =E41*H41 -> 0 | K41: 0 | M41: 0 | N41: =J41*L41 -> 0 | O41: 10.92 | P41: =+J41-N41 -> 0 | Q41: 5514.6 | R41: =+J41*E$7 -> 0
C42: Other Labor | D42: 0 | F42: Hour | G42: 19.5 | I42: 0 | J42: =E42*H42 -> 0 | K42: 0 | M42: 0 | N42: =J42*L42 -> 0 | O42: 0 | P42: =+J42-N42 -> 0 | Q42: 0 | R42: =+J42*E$7 -> 0
B44: Diesel Fuel
C45: Pickup/General Use Equipment | D45: 1 | F45: Acre | G45: 0 | I45: 0 | J45: =E45*H45 -> 0 | K45: 0 | M45: 0 | N45: =J45*L45 -> 0 | O45: 0 | P45: =+J45-N45 -> 0 | Q45: 0 | R45: =+J45*E$7 -> 0
C46: Tractors/Self-Propelled | D46: 7.1 | F46: Gallon | G46: 2.2 | I46: 15.62 | J46: =E46*H46 -> 0 | K46: 0 | M46: 0 | N46: =J46*L46 -> 0 | O46: 15.62 | P46: =+J46-N46 -> 0 | Q46: 7888.1 | R46: =+J46*E$7 -> 0
B48: Gasoline
C49: Pickup/General Use Equipment | D49: 1 | F49: Acre | G49: 0 | I49: 0 | J49: =E49*H49 -> 0 | K49: 0 | M49: 0 | N49: =J49*L49 -> 0 | O49: 0 | P49: =+J49-N49 -> 0 | Q49: 0 | R49: =+J49*E$7 -> 0
C50: Tractors/Self-Propelled | D50: 0 | F50: Gallon | G50: 2.4 | I50: 0 | J50: =E50*H50 -> 0 | K50: 0 | M50: 0 | N50: =J50*L50 -> 0 | O50: 0 | P50: =+J50-N50 -> 0 | Q50: 0 | R50: =+J50*E$7 -> 0
B52: Repairs & Maintenance
C53: Pickup/General Use Equipment | D53: 1 | F53: Acre | G53: 0 | I53: 0 | J53: =E53*H53 -> 0 | K53: 0 | M53: 0 | N53: =J53*L53 -> 0 | O53: 0 | P53: =+J53-N53 -> 0 | Q53: 0 | R53: =+J53*E$7 -> 0
C54: Irrigation Equipment | D54: 1 | F54: Acre | G54: 25.08250825 | I54: 25.08250825 | J54: 0 | K54: 0 | M54: 0 | N54: 0 | O54: 25.08250825 | P54: 0 | Q54: 12666.66667 | R54: 0
C55: Tractors/Self-Propelled | D55: 1 | F55: Acre | G55: 38.13282795 | I55: 38.13282795 | J55: 0 | K55: 0 | M55: 0 | N55: 0 | O55: 38.13282795 | P55: 0 | Q55: 19257.07812 | R55: 0
C56: Implements | D56: 1 | F56: Acre | G56: 11.442164 | I56: 11.442164 | J56: 0 | K56: 0 | M56: 0 | N56: 0 | O56: 11.442164 | P56: 0 | Q56: 5778.292822 | R56: 0
I57: 0 | J57: 0 | K57: 0 | M57: 0 | N57: 0 | O57: 0 | P57: 0 | Q57: 0 | R57: 0
I58: 0 | J58: 0 | K58: 0 | M58: 0 | N58: 0 | O58: 0 | P58: 0 | Q58: 0 | R58: 0
B59: Interest on Credit Line | G59: 0.06 | I59: 5.520919349 | J59: =+SUM(J17:J58)/2*H59 -> 0 | M59: 0 | N59: =+SUM(N17:N58)/2*L59 -> 0 | O59: 5.520919349 | P59: =+SUM(P17:P58)/2*L59 -> 0 | Q59: 2788.064271 | R59: =+J59*E$7 -> 0
A60: Total Variable Costs | I60: 264.5814196 | J60: =SUM(J18:J59) -> 0 | M60: 0 | N60: =SUM(N18:N59) -> 0 | O60: 264.5814196 | P60: =SUM(P18:P59) -> 0 | Q60: 133613.6169 | R60: =SUM(R18:R59) -> 0
A61: Planned Returns Above Variable Costs: | I61: 17.41858044 | J61: =+J13-J60 -> 0 | M61: 0 | N61: =+N13-N60 -> 0 | O61: 17.41858044 | P61: =+P13-P60 -> 0 | Q61: 8796.383125 | R61: =+R13-R60 -> 0
B62: Breakeven Price to Cover Variable Costs | G62: 4.409690326 | H62: =IF(E10=0,"n/a",(YVarExp-(YTotExp+YTotRet-J10))/E10) -> n/a | I62: Bushel
Q63: Enterprise | R63: Enterprise
A64: FIXED COSTS | D64: Quantity | E64: Quantity | F64: Units | G64: $/Unit | H64: $/Unit | I64: Total | J64: Total | K64: Share | L64: Share | M64: Landlord | N64: Landlord | O64: Tenant | P64: Tenant | Q64: Total | R64: Total
B65: Machinery Depreciation
C66: Irrigation Equipment | D66: 1 | F66: Acre | G66: 28.18481848 | I66: 28.18481848 | J66: =E66*H66 -> 0 | K66: 0 | M66: 0 | N66: =J66*L66 -> 0 | O66: 28.18481848 | P66: =+J66-N66 -> 0 | Q66: 14233.33333 | R66: =+J66*E$7 -> 0
C67: Tractors/Self-Propelled | D67: 1 | F67: Acre | G67: 37.09711138 | I67: 37.09711138 | J67: 0 | K67: 0 | M67: 0 | N67: =J67*L67 -> 0 | O67: 37.09711138 | P67: 0 | Q67: 18734.04125 | R67: 0
C68: Implements | D68: 1 | F68: Acre | G68: 14.00628701 | I68: 14.00628701 | J68: 0 | K68: 0 | M68: 0 | N68: =J68*L68 -> 0 | O68: 14.00628701 | P68: 0 | Q68: 7073.174942 | R68: 0
B69: Equipment Investment
C70: Irrigation Equipment | D70: 293.5643564 | F70: Dollars | G70: 0.06 | I70: 17.61386139 | J70: =E70*H70 -> 0 | K70: 0 | M70: 0 | N70: =J70*L70 -> 0 | O70: 17.61386139 | P70: =+J70-N70 -> 0 | Q70: 8895 | R70: =+J70*E$7 -> 0
C71: Tractors/Self-Propelled | D71: 279.0369187 | F71: Dollars | G71: 0.06 | I71: 16.74221512 | J71: 0 | K71: 0 | M71: 0 | N71: =J71*L71 -> 0 | O71: 16.74221512 | P71: 0 | Q71: 8454.818637 | R71: 0
C72: Implements | D72: 84.17903386 | F72: Dollars | G72: 0.06 | I72: 5.050742032 | J72: 0 | K72: 0 | M72: 0 | N72: =J72*L72 -> 0 | O72: 5.050742032 | P72: 0 | Q72: 2550.624726 | R72: 0
B73: Salaried Labor | D73: 1 | F73: Acre | G73: 0 | I73: 0 | J73: 0 | K73: 0 | M73: 0 | N73: =J73*L73 -> 0 | O73: 0 | P73: =+J73-N73 -> 0 | Q73: 0 | R73: =+J73*E$7 -> 0
B74: Management Fee, Owner/Operator Labor | D74: 1 | F74: Acre | G74: 14.1 | I74: 14.1 | J74: 0 | K74: 0 | M74: 0 | N74: 0 | O74: 14.1 | P74: 0 | Q74: 7120.5 | R74: 0
B75: Allocated Establishment Cost | D75: 1 | F75: Acre | G75: 0 | I75: 0 | J75: 0 | K75: 0 | M75: 0 | N75: 0 | O75: 0 | P75: 0 | Q75: 0 | R75: 0
B76: LCB - Land Charge | D76: 1 | F76: Acre | G76: 70 | I76: 70 | J76: 0 | K76: 0 | M76: 0 | N76: 0 | O76: 70 | P76: 0 | Q76: 35350 | R76: 0
B77: Property Taxes | D77: 1 | F77: Acre | G77: 0 | I77: 0 | J77: 0 | K77: 0 | M77: 0 | N77: 0 | O77: 0 | P77: 0 | Q77: 0 | R77: 0
B78: Whole Farm Insurance | D78: 1 | F78: Acre | G78: 0 | I78: 0 | J78: 0 | K78: 0 | M78: 0 | N78: 0 | O78: 0 | P78: 0 | Q78: 0 | R78: 0
D79: 1 | G79: 0 | I79: 0 | J79: 0 | K79: 0 | M79: 0 | N79: 0 | O79: 0 | P79: 0 | Q79: 0 | R79: 0
D80: 1 | G80: 0 | I80: 0 | J80: =E80*H80 -> 0 | K80: 0 | M80: 0 | N80: 0 | O80: 0 | P80: 0 | Q80: 0 | R80: 0
A81: Total Fixed Costs | I81: 202.7950354 | J81: =+SUM(J66:J80) -> 0 | M81: 0 | N81: =+SUM(N66:N80) -> 0 | O81: 202.7950354 | P81: =+SUM(P66:P80) -> 0 | Q81: 102411.4929 | R81: =+SUM(R66:R80) -> 0
A82: Total Specified Costs | I82: 467.376455 | J82: =+J60+J81 -> 0 | M82: 0 | N82: =+N60+N81 -> 0 | O82: 467.376455 | P82: =+P60+P81 -> 0 | Q82: 236025.1098 | R82: =+R60+R81 -> 0
A84: Returns Above Specified Costs | I84: -185.376455 | J84: =+J13-J82 -> 0 | M84: 0 | N84: =+N13-N82 -> 0 | O84: -185.376455 | P84: =+P13-P82 -> 0 | Q84: -93615.10976 | R84: =+R13-R82 -> 0
A86: Breakeven Price to Cover Total Costs | G86: 7.789607583 | H86: =IF(E10=0,"n/a",(YTotExp-(YTotExp+YTotRet-J10))/E10) -> n/a | I86: Bushel
D88: Example Breakeven Prices
B89: Example | C89: Example | D89: To Cover | G89: To Cover
B90: Yield | C90: Yield | D90: Variable | G90: Total
B91: Percent | C91: Bushel | D91: Costs | G91: Costs
B92: 0.75 | C92: 45 | D92: 5.879587101 | G92: 10.38614344
B93: 0.9 | C93: 54 | D93: 4.899655918 | G93: 8.655119537
B94: 1 | C94: 60 | D94: 4.409690326 | G94: 7.789607583
B95: 1.1 | C95: 66 | D95: 4.008809387 | G95: 7.081461439
B96: 1.25 | C96: 75 | D96: 3.527752261 | G96: 6.231686066
A98: Developed by Extension Economists, Texas A&M AgriLife Extension Service, budgets@tamu.edu.
A100: Information presented is prepared solely as a general guide and not intended to recognize or predict the costs and returns from any one operation. Brand names are mentioned only as examples and imply no endorsement.

Sheet CottonUCB
A1: Projections for Planning Purposes Only -- Not to be Used without Updating
A2: 2021 Estimated Costs and Returns per Acre
A3: Cotton - GMO Seed, Conv. Till-12 Row, Dryland, 900 lb. Yield Goal - Upper Coast
A4: Enter your name for this budget in the cell above.
A5: Enter Your Values in the cells highlighed in MAROON.
E6: Your Acres | R6: Your
C7: Crop Acres | D7: 500 | L7: Your | Q7: Enterprise | R7: Enterprise
E8: Your | H8: Your | I8: Cash | J8: Your | K8: Landlord | L8: Landlord | N8: Your | P8: Your | Q8: Total | R8: Total
A9: REVENUE | D9: Quantity | E9: Quantity | F9: Units | G9: $/Unit | H9: $/Unit | I9: Total | J9: Total | K9: Share | L9: Share | M9: Landlord | N9: Landlord | O9: Tenant | P9: Tenant | Q9: (500 acres) | R9: ="(" & E7 & " acres)" -> ( acres)
B10: Cotton Lint | D10: 900 | F10: Pound | G10: 0.67 | I10: 603 | J10: =E10*H10 -> 0 | K10: 0 | M10: 0 | N10: =J10*L10 -> 0 | O10: 603 | P10: =+J10-N10 -> 0 | Q10: 301500 | R10: =+J10*E$7 -> 0
B11: Cottonseed | D11: 0.621 | F11: Ton | G11: 175 | I11: 108.675 | J11: 0 | K11: 0 | M11: 0 | N11: 0 | O11: 108.675 | P11: =+J11-N11 -> 0 | Q11: 54337.5 | R11: 0
D12: 0 | G12: 0 | I12: 0 | J12: 0 | K12: 0 | M12: 0 | N12: 0 | O12: 0 | P12: 0 | Q12: 0 | R12: 0
D13: 0 | G13: 0 | I13: 0 | J13: 0 | K13: 0 | M13: 0 | N13: 0 | O13: 0 | P13: 0 | Q13: 0 | R13: 0
A14: Total Revenue | I14: 711.675 | J14: =SUM(J10:J13) -> 0 | M14: 0 | N14: =SUM(N10:N13) -> 0 | O14: 711.675 | P14: =SUM(P10:P13) -> 0 | Q14: 355837.5 | R14: =SUM(R10:R13) -> 0
Q15: Enterprise | R15: Enterprise
A16: VARIABLE COSTS | D16: Quantity | E16: Quantity | F16: Units | G16: $/Unit | H16: $/Unit | I16: Total | J16: Total | K16: Share | L16: Share | M16: Landlord | N16: Landlord | O16: Tenant | P16: Tenant | Q16: Total | R16: Total
A17: Production Costs
B18: Herbicide
C19: Glyphosate (Generic) | D19: 2 | F19: Quart | G19: 3.38 | I19: 6.76 | J19: =E19*H19 -> 0 | K19: 0 | M19: 0 | N19: =J19*L19 -> 0 | O19: 6.76 | P19: =+J19-N19 -> 0 | Q19: 3380 | R19: =+J19*E$7 -> 0
C20: Cotton Early Season Herbicide | D20: 2 | F20: Quart | G20: 16.24 | I20: 32.48 | J20: 0 | K20: 0 | M20: 0 | N20: 0 | O20: 32.48 | P20: 0 | Q20: 16240 | R20: 0
C21: 2, 4D Amine` | D21: 2 | F21: Pint | G21: 1.43 | I21: 2.86 | J21: 0 | K21: 0 | M21: 0 | N21: 0 | O21: 2.86 | P21: 0 | Q21: 1430 | R21: 0
B22: Seed
C23: Cotton Seed - B2RF | D23: 40 | F23: Thousand | G23: 1.84 | I23: 73.6 | J23: 0 | K23: 0 | M23: 0 | N23: 0 | O23: 73.6 | P23: 0 | Q23: 36800 | R23: 0
C24: Tech Fee - B2RF | D24: 1 | F24: Acre | G24: 0 | I24: 0 | J24: 0 | K24: 0 | M24: 0 | N24: 0 | O24: 0 | P24: 0 | Q24: 0 | R24: 0
B25: Fertilizer
C26: 24-8-0` | D26: 0.1875 | F26: Ton | G26: 264 | I26: 49.5 | J26: 0 | K26: 0 | M26: 0 | N26: 0 | O26: 49.5 | P26: 0 | Q26: 24750 | R26: 0
B27: Custom
C28: Pick and Module | D28: 900 | F28: Pound | G28: 0.13 | I28: 117 | J28: 0 | K28: 0 | M28: 0 | N28: 0 | O28: 117 | P28: 0 | Q28: 58500 | R28: 0
C29: Ginning - Picker | D29: 900 | F29: Pound | G29: 0.125 | I29: 112.5 | J29: 0 | K29: 0 | M29: 0 | N29: 0 | O29: 112.5 | P29: 0 | Q29: 56250 | R29: 0
B30: Miscellaneous
C31: Crop Insurance -Cotton UC | D31: 1 | F31: Acre | G31: 10.06 | I31: 10.06 | J31: 0 | K31: 0 | M31: 0 | N31: 0 | O31: 10.06 | P31: 0 | Q31: 5030 | R31: 0
C32: Pickup Milage Charge | D32: 1 | F32: Acre | G32: 3.88 | I32: 3.88 | J32: 0 | K32: 0 | M32: 0 | N32: 0 | O32: 3.88 | P32: 0 | Q32: 1940 | R32: 0
C33: Boll Weevil Program UC | D33: 1.8 | F33: Bale | G33: 3.5 | I33: 6.3 | J33: 0 | K33: 0 | M33: 0 | N33: 0 | O33: 6.3 | P33: 0 | Q33: 3150 | R33: 0
B34: Insecticide
C35: Fleahopper Control UC | D35: 1.6 | F35: Ounce | G35: 1.08 | I35: 1.728 | J35: 0 | K35: 0 | M35: 0 | N35: 0 | O35: 1.728 | P35: 0 | Q35: 864 | R35: 0
C36: Stinkbug Control | D36: 8 | F36: Ounce | G36: 0.33 | I36: 2.64 | J36: 0 | K36: 0 | M36: 0 | N36: 0 | O36: 2.64 | P36: 0 | Q36: 1320 | R36: 0
B37: Other Chemicals
C38: Surfactant | D38: 0.2 | F38: Pint | G38: 1.39 | I38: 0.278 | J38: 0 | K38: 0 | M38: 0 | N38: 0 | O38: 0.278 | P38: 0 | Q38: 139 | R38: 0
C39: Generic PIX | D39: 32 | F39: Ounce | G39: 0.06 | I39: 1.92 | J39: 0 | K39: 0 | M39: 0 | N39: 0 | O39: 1.92 | P39: 0 | Q39: 960 | R39: 0
C40: Defoliants - Picker | D40: 4 | F40: Ounce | G40: 1.05 | I40: 4.2 | J40: 0 | K40: 0 | M40: 0 | N40: 0 | O40: 4.2 | P40: 0 | Q40: 2100 | R40: 0
C41: Ethephon | D41: 1.6 | F41: Ounce | G41: 0.15 | I41: 0.24 | J41: 0 | K41: 0 | M41: 0 | N41: 0 | O41: 0.24 | P41: 0 | Q41: 120 | R41: 0
B42: Other Labor
C43: Hand Labor | D43: 0.46 | F43: Hour | G43: 16 | I43: 7.36 | J43: 0 | K43: 0 | M43: 0 | N43: 0 | O43: 7.36 | P43: 0 | Q43: 3680 | R43: 0
D44: 0 | G44: 0 | I44: 0 | J44: 0 | K44: 0 | M44: 0 | N44: 0 | O44: 0 | P44: 0 | Q44: 0 | R44: 0
D45: 0 | G45: 0 | I45: 0 | J45: 0 | K45: 0 | M45: 0 | N45: 0 | O45: 0 | P45: 0 | Q45: 0 | R45: 0
D46: 0 | G46: 0 | I46: 0 | J46: =E46*H46 -> 0 | K46: 0 | M46: 0 | N46: =J46*L46 -> 0 | O46: 0 | P46: =+J46-N46 -> 0 | Q46: 0 | R46: =+J46*E$7 -> 0
B47: Machinery Labor
C48: Tractors/Self-Propelled | D48: 0.78 | F48: Hour | G48: 19.5 | I48: 15.21 | J48: =E48*H48 -> 0 | K48: 0 | M48: 0 | N48: =J48*L48 -> 0 | O48: 15.21 | P48: =+J48-N48 -> 0 | Q48: 7605 | R48: =+J48*E$7 -> 0
C49: Other Labor | D49: 0 | F49: Hour | G49: 19.5 | I49: 0 | J49: =E49*H49 -> 0 | K49: 0 | M49: 0 | N49: =J49*L49 -> 0 | O49: 0 | P49: =+J49-N49 -> 0 | Q49: 0 | R49: =+J49*E$7 -> 0
B51: Diesel Fuel
C52: Pickup/General Use Equipment | D52: 1 | F52: Acre | G52: 0 | I52: 0 | J52: =E52*H52 -> 0 | K52: 0 | M52: 0 | N52: =J52*L52 -> 0 | O52: 0 | P52: =+J52-N52 -> 0 | Q52: 0 | R52: =+J52*E$7 -> 0
C53: Tractors/Self-Propelled | D53: 9.41 | F53: Gallon | G53: 2.2 | I53: 20.702 | J53: =E53*H53 -> 0 | K53: 0 | M53: 0 | N53: =J53*L53 -> 0 | O53: 20.702 | P53: =+J53-N53 -> 0 | Q53: 10351 | R53: =+J53*E$7 -> 0
B55: Gasoline
C56: Pickup/General Use Equipment | D56: 1 | F56: Acre | G56: 0 | I56: 0 | J56: =E56*H56 -> 0 | K56: 0 | M56: 0 | N56: =J56*L56 -> 0 | O56: 0 | P56: =+J56-N56 -> 0 | Q56: 0 | R56: =+J56*E$7 -> 0
C57: Tractors/Self-Propelled | D57: 0 | F57: Gallon | G57: 2.4 | I57: 0 | J57: =E57*H57 -> 0 | K57: 0 | M57: 0 | N57: =J57*L57 -> 0 | O57: 0 | P57: =+J57-N57 -> 0 | Q57: 0 | R57: =+J57*E$7 -> 0
B59: Repairs & Maintenance
C60: Pickup/General Use Equipment | D60: 1 | F60: Acre | G60: 0 | I60: 0 | J60: =E60*H60 -> 0 | K60: 0 | M60: 0 | N60: =J60*L60 -> 0 | O60: 0 | P60: =+J60-N60 -> 0 | Q60: 0 | R60: =+J60*E$7 -> 0
C61: Irrigation Equipment | D61: 1 | F61: Acre | G61: 0 | I61: 0 | J61: 0 | K61: 0 | M61: 0 | N61: 0 | O61: 0 | P61: 0 | Q61: 0 | R61: 0
C62: Tractors/Self-Propelled | D62: 1 | F62: Acre | G62: 23.58109021 | I62: 23.58109021 | J62: 0 | K62: 0 | M62: 0 | N62: 0 | O62: 23.58109021 | P62: 0 | Q62: 11790.54511 | R62: 0
C63: Implements | D63: 1 | F63: Acre | G63: 16.90293233 | I63: 16.90293233 | J63: 0 | K63: 0 | M63: 0 | N63: 0 | O63: 16.90293233 | P63: 0 | Q63: 8451.466167 | R63: 0
I64: 0 | J64: 0 | K64: 0 | M64: 0 | N64: 0 | O64: 0 | P64: 0 | Q64: 0 | R64: 0
I65: 0 | J65: 0 | K65: 0 | M65: 0 | N65: 0 | O65: 0 | P65: 0 | Q65: 0 | R65: 0
B66: Interest on Credit Line | G66: 0.06 | I66: 12.49448098 | J66: =+SUM(J18:J65)/2*H66 -> 0 | M66: 0 | N66: =+SUM(N18:N65)/2*L66 -> 0 | O66: 12.49448098 | P66: =+SUM(P18:P65)/2*L66 -> 0 | Q66: 6247.24049 | R66: =+J66*E$7 -> 0
A67: Total Variable Costs | I67: 522.1965035 | J67: =SUM(J19:J66) -> 0 | M67: 0 | N67: =SUM(N19:N66) -> 0 | O67: 522.1965035 | P67: =SUM(P19:P66) -> 0 | Q67: 261098.2518 | R67: =SUM(R19:R66) -> 0
A68: Planned Returns Above Variable Costs: | I68: 189.4784965 | J68: =+J14-J67 -> 0 | M68: 0 | N68: =+N14-N67 -> 0 | O68: 189.4784965 | P68: =+P14-P67 -> 0 | Q68: 94739.24824 | R68: =+R14-R67 -> 0
B69: Breakeven Price to Cover Variable Costs | G69: 0.4594683373 | H69: =IF(E10=0,"n/a",(YVarExp-(YTotExp+YTotRet-J10))/E10) -> n/a | I69: Pound
Q70: Enterprise | R70: Enterprise
A71: FIXED COSTS | D71: Quantity | E71: Quantity | F71: Units | G71: $/Unit | H71: $/Unit | I71: Total | J71: Total | K71: Share | L71: Share | M71: Landlord | N71: Landlord | O71: Tenant | P71: Tenant | Q71: Total | R71: Total
B72: Machinery Depreciation
C73: Tractors/Self-Propelled | D73: 1 | F73: Acre | G73: 31.62894667 | I73: 31.62894667 | J73: =E73*H73 -> 0 | K73: 0 | M73: 0 | N73: =J73*L73 -> 0 | O73: 31.62894667 | P73: =+J73-N73 -> 0 | Q73: 15814.47334 | R73: =+J73*E$7 -> 0
C74: Implements | D74: 1 | F74: Acre | G74: 20.89503189 | I74: 20.89503189 | J74: 0 | K74: 0 | M74: 0 | N74: =J74*L74 -> 0 | O74: 20.89503189 | P74: 0 | Q74: 10447.51594 | R74: 0
B75: Equipment Investment
C76: Tractors/Self-Propelled | D76: 240.037401 | F76: Dollars | G76: 0.06 | I76: 14.40224406 | J76: =E76*H76 -> 0 | K76: 0 | M76: 0 | N76: =J76*L76 -> 0 | O76: 14.40224406 | P76: =+J76-N76 -> 0 | Q76: 7201.122029 | R76: =+J76*E$7 -> 0
C77: Implements | D77: 102.9081812 | F77: Dollars | G77: 0.06 | I77: 6.174490871 | J77: 0 | K77: 0 | M77: 0 | N77: =J77*L77 -> 0 | O77: 6.174490871 | P77: 0 | Q77: 3087.245436 | R77: 0
B78: Salaried Labor | D78: 1 | F78: Acre | G78: 0 | I78: 0 | J78: 0 | K78: 0 | M78: 0 | N78: =J78*L78 -> 0 | O78: 0 | P78: =+J78-N78 -> 0 | Q78: 0 | R78: =+J78*E$7 -> 0
B79: Management Fee, Owner/Operator Labor | D79: 1 | F79: Acre | G79: 35.58375 | I79: 35.58375 | J79: 0 | K79: 0 | M79: 0 | N79: 0 | O79: 35.58375 | P79: 0 | Q79: 17791.875 | R79: 0
B80: Allocated Establishment Cost | D80: 1 | F80: Acre | G80: 0 | I80: 0 | J80: 0 | K80: 0 | M80: 0 | N80: 0 | O80: 0 | P80: 0 | Q80: 0 | R80: 0
B81: UCB - Land Charge | D81: 1 | F81: Acre | G81: 85 | I81: 85 | J81: 0 | K81: 0 | M81: 0 | N81: 0 | O81: 85 | P81: 0 | Q81: 42500 | R81: 0
B82: Property Taxes | D82: 1 | F82: Acre | G82: 0 | I82: 0 | J82: 0 | K82: 0 | M82: 0 | N82: 0 | O82: 0 | P82: 0 | Q82: 0 | R82: 0
B83: Whole Farm Insurance | D83: 1 | F83: Acre | G83: 0 | I83: 0 | J83: 0 | K83: 0 | M83: 0 | N83: 0 | O83: 0 | P83: 0 | Q83: 0 | R83: 0
D84: 1 | G84: 0 | I84: 0 | J84: 0 | K84: 0 | M84: 0 | N84: 0 | O84: 0 | P84: 0 | Q84: 0 | R84: 0
D85: 1 | G85: 0 | I85: 0 | J85: =E85*H85 -> 0 | K85: 0 | M85: 0 | N85: 0 | O85: 0 | P85: 0 | Q85: 0 | R85: 0
A86: Total Fixed Costs | I86: 193.6844635 | J86: =+SUM(J73:J85) -> 0 | M86: 0 | N86: =+SUM(N73:N85) -> 0 | O86: 193.6844635 | P86: =+SUM(P73:P85) -> 0 | Q86: 96842.23175 | R86: =+SUM(R73:R85) -> 0
A87: Total Specified Costs | I87: 715.880967 | J87: =+J67+J86 -> 0 | M87: 0 | N87: =+N67+N86 -> 0 | O87: 715.880967 | P87: =+P67+P86 -> 0 | Q87: 357940.4835 | R87: =+R67+R86 -> 0
A89: Returns Above Specified Costs | I89: -4.205967018 | J89: =+J14-J87 -> 0 | M89: 0 | N89: =+N14-N87 -> 0 | O89: -4.205967018 | P89: =+P14-P87 -> 0 | Q89: -2102.983509 | R89: =+R14-R87 -> 0
A91: Breakeven Price to Cover Total Costs | G91: 0.6746732967 | H91: =IF(E10=0,"n/a",(YTotExp-(YTotExp+YTotRet-J10))/E10) -> n/a | I91: Pound
D93: Example Breakeven Prices
B94: Example | C94: Example | D94: To Cover | G94: To Cover
B95: Yield | C95: Yield | D95: Variable | G95: Total
B96: Percent | C96: Pound | D96: Costs | G96: Costs
B97: 0.75 | C97: 675 | D97: 0.6126244497 | G97: 0.8995643956
B98: 0.9 | C98: 810 | D98: 0.5105203747 | G98: 0.7496369963
B99: 1 | C99: 900 | D99: 0.4594683373 | G99: 0.6746732967
B100: 1.1 | C100: 990 | D100: 0.4176984884 | G100: 0.6133393606
B101: 1.25 | C101: 1125 | D101: 0.3675746698 | G101: 0.5397386373
A103: Developed by Extension Economists, Texas A&M AgriLife Extension Service, budgets@tamu.edu.
A105: Information presented is prepared solely as a general guide and not intended to recognize or predict the costs and returns from any one operation. Brand names are mentioned only as examples and imply no endorsement.

Sheet SorghumUCB
A1: Projections for Planning Purposes Only -- Not to be Used without Updating
A2: 2021 Estimated Costs and Returns per Acre
A3: Sorghum - Conventional Till-12 Row, Dryland, 90 bu. Yield Goal - Upper Coast
A4: Enter your name for this budget in the cell above.
A5: Enter Your Values in the cells highlighed in MAROON.
E6: Your Acres | R6: Your
C7: Crop Acres | D7: 500 | L7: Your | Q7: Enterprise | R7: Enterprise
E8: Your | H8: Your | I8: Cash | J8: Your | K8: Landlord | L8: Landlord | N8: Your | P8: Your | Q8: Total | R8: Total
A9: REVENUE | D9: Quantity | E9: Quantity | F9: Units | G9: $/Unit | H9: $/Unit | I9: Total | J9: Total | K9: Share | L9: Share | M9: Landlord | N9: Landlord | O9: Tenant | P9: Tenant | Q9: (500 acres) | R9: ="(" & E7 & " acres)" -> ( acres)
B10: Grain Sorghum, Upper Coast | D10: 90 | F10: Bushel | G10: 3.6 | I10: 324 | J10: =E10*H10 -> 0 | K10: 0 | M10: 0 | N10: =J10*L10 -> 0 | O10: 324 | P10: =+J10-N10 -> 0 | Q10: 162000 | R10: =+J10*E$7 -> 0
D11: 0 | G11: 0 | I11: 0 | J11: 0 | K11: 0 | M11: 0 | N11: 0 | O11: 0 | P11: =+J11-N11 -> 0 | Q11: 0 | R11: 0
D12: 0 | G12: 0 | I12: 0 | J12: 0 | K12: 0 | M12: 0 | N12: 0 | O12: 0 | P12: 0 | Q12: 0 | R12: 0
A13: Total Revenue | I13: 324 | J13: =SUM(J10:J12) -> 0 | M13: 0 | N13: =SUM(N10:N12) -> 0 | O13: 324 | P13: =SUM(P10:P12) -> 0 | Q13: 162000 | R13: =SUM(R10:R12) -> 0
Q14: Enterprise | R14: Enterprise
A15: VARIABLE COSTS | D15: Quantity | E15: Quantity | F15: Units | G15: $/Unit | H15: $/Unit | I15: Total | J15: Total | K15: Share | L15: Share | M15: Landlord | N15: Landlord | O15: Tenant | P15: Tenant | Q15: Total | R15: Total
A16: Production Costs
B17: Herbicide
C18: Glyphosate (Generic) | D18: 2 | F18: Quart | G18: 3.38 | I18: 6.76 | J18: =E18*H18 -> 0 | K18: 0 | M18: 0 | N18: =J18*L18 -> 0 | O18: 6.76 | P18: =+J18-N18 -> 0 | Q18: 3380 | R18: =+J18*E$7 -> 0
C19: 2, 4D Amine` | D19: 1 | F19: Pint | G19: 1.43 | I19: 1.43 | J19: 0 | K19: 0 | M19: 0 | N19: 0 | O19: 1.43 | P19: 0 | Q19: 715 | R19: 0
C20: Atrazine 4L` | D20: 2 | F20: Quart | G20: 3 | I20: 6 | J20: 0 | K20: 0 | M20: 0 | N20: 0 | O20: 6 | P20: 0 | Q20: 3000 | R20: 0
C21: Sorghum PreEmerge Herbicide | D21: 14 | F21: Ounce | G21: 0.92 | I21: 12.88 | J21: 0 | K21: 0 | M21: 0 | N21: 0 | O21: 12.88 | P21: 0 | Q21: 6440 | R21: 0
C22: Atrazine 4L | D22: 1 | F22: Quart | G22: 3 | I22: 3 | J22: 0 | K22: 0 | M22: 0 | N22: 0 | O22: 3 | P22: 0 | Q22: 1500 | R22: 0
B23: Seed
C24: Treated Sorghum Seed | D24: 7 | F24: Pound | G24: 3.2 | I24: 22.4 | J24: 0 | K24: 0 | M24: 0 | N24: 0 | O24: 22.4 | P24: 0 | Q24: 11200 | R24: 0
B25: Fertilizer
C26: 24-8-0` | D26: 0.21 | F26: Ton | G26: 264 | I26: 55.44 | J26: 0 | K26: 0 | M26: 0 | N26: 0 | O26: 55.44 | P26: 0 | Q26: 27720 | R26: 0
B27: Custom
C28: Apply by Air | D28: 1 | F28: Acre | G28: 7.8 | I28: 7.8 | J28: 0 | K28: 0 | M28: 0 | N28: 0 | O28: 7.8 | P28: 0 | Q28: 3900 | R28: 0
C29: Custom Grain Haul | D29: 50.4 | F29: CWT | G29: 0.5 | I29: 25.2 | J29: 0 | K29: 0 | M29: 0 | N29: 0 | O29: 25.2 | P29: 0 | Q29: 12600 | R29: 0
B30: Miscellaneous
C31: Crop Insurance -Sorghum UC | D31: 1 | F31: Acre | G31: 5.95 | I31: 5.95 | J31: 0 | K31: 0 | M31: 0 | N31: 0 | O31: 5.95 | P31: 0 | Q31: 2975 | R31: 0
B32: Insecticide
C33: Transform | D33: 1 | F33: Ounce | G33: 7.73 | I33: 7.73 | J33: 0 | K33: 0 | M33: 0 | N33: 0 | O33: 7.73 | P33: 0 | Q33: 3865 | R33: 0
C34: Headworn Control | D34: 0.0285 | F34: Ounce | G34: 1.16 | I34: 0.03306 | J34: 0 | K34: 0 | M34: 0 | N34: 0 | O34: 0.03306 | P34: 0 | Q34: 16.53 | R34: 0
B35: Other Labor
C36: Hand Labor | D36: 0.21 | F36: Hour | G36: 16 | I36: 3.36 | J36: 0 | K36: 0 | M36: 0 | N36: 0 | O36: 3.36 | P36: 0 | Q36: 1680 | R36: 0
D37: 0 | G37: 0 | I37: 0 | J37: 0 | K37: 0 | M37: 0 | N37: 0 | O37: 0 | P37: 0 | Q37: 0 | R37: 0
D38: 0 | G38: 0 | I38: 0 | J38: 0 | K38: 0 | M38: 0 | N38: 0 | O38: 0 | P38: 0 | Q38: 0 | R38: 0
D39: 0 | G39: 0 | I39: 0 | J39: =E39*H39 -> 0 | K39: 0 | M39: 0 | N39: =J39*L39 -> 0 | O39: 0 | P39: =+J39-N39 -> 0 | Q39: 0 | R39: =+J39*E$7 -> 0
B40: Machinery Labor
C41: Tractors/Self-Propelled | D41: 0.89 | F41: Hour | G41: 19.5 | I41: 17.355 | J41: =E41*H41 -> 0 | K41: 0 | M41: 0 | N41: =J41*L41 -> 0 | O41: 17.355 | P41: =+J41-N41 -> 0 | Q41: 8677.5 | R41: =+J41*E$7 -> 0
C42: Other Labor | D42: 0 | F42: Hour | G42: 19.5 | I42: 0 | J42: =E42*H42 -> 0 | K42: 0 | M42: 0 | N42: =J42*L42 -> 0 | O42: 0 | P42: =+J42-N42 -> 0 | Q42: 0 | R42: =+J42*E$7 -> 0
B44: Diesel Fuel
C45: Pickup/General Use Equipment | D45: 1 | F45: Acre | G45: 0 | I45: 0 | J45: =E45*H45 -> 0 | K45: 0 | M45: 0 | N45: =J45*L45 -> 0 | O45: 0 | P45: =+J45-N45 -> 0 | Q45: 0 | R45: =+J45*E$7 -> 0
C46: Tractors/Self-Propelled | D46: 10.04 | F46: Gallon | G46: 2.2 | I46: 22.088 | J46: =E46*H46 -> 0 | K46: 0 | M46: 0 | N46: =J46*L46 -> 0 | O46: 22.088 | P46: =+J46-N46 -> 0 | Q46: 11044 | R46: =+J46*E$7 -> 0
B48: Gasoline
C49: Pickup/General Use Equipment | D49: 1 | F49: Acre | G49: 0 | I49: 0 | J49: =E49*H49 -> 0 | K49: 0 | M49: 0 | N49: =J49*L49 -> 0 | O49: 0 | P49: =+J49-N49 -> 0 | Q49: 0 | R49: =+J49*E$7 -> 0
C50: Tractors/Self-Propelled | D50: 0 | F50: Gallon | G50: 2.4 | I50: 0 | J50: =E50*H50 -> 0 | K50: 0 | M50: 0 | N50: =J50*L50 -> 0 | O50: 0 | P50: =+J50-N50 -> 0 | Q50: 0 | R50: =+J50*E$7 -> 0
B52: Repairs & Maintenance
C53: Pickup/General Use Equipment | D53: 1 | F53: Acre | G53: 0 | I53: 0 | J53: =E53*H53 -> 0 | K53: 0 | M53: 0 | N53: =J53*L53 -> 0 | O53: 0 | P53: =+J53-N53 -> 0 | Q53: 0 | R53: =+J53*E$7 -> 0
C54: Irrigation Equipment | D54: 1 | F54: Acre | G54: 0 | I54: 0 | J54: 0 | K54: 0 | M54: 0 | N54: 0 | O54: 0 | P54: 0 | Q54: 0 | R54: 0
C55: Tractors/Self-Propelled | D55: 1 | F55: Acre | G55: 31.04739846 | I55: 31.04739846 | J55: 0 | K55: 0 | M55: 0 | N55: 0 | O55: 31.04739846 | P55: 0 | Q55: 15523.69923 | R55: 0
C56: Implements | D56: 1 | F56: Acre | G56: 20.31648139 | I56: 20.31648139 | J56: 0 | K56: 0 | M56: 0 | N56: 0 | O56: 20.31648139 | P56: 0 | Q56: 10158.2407 | R56: 0
I57: 0 | J57: 0 | K57: 0 | M57: 0 | N57: 0 | O57: 0 | P57: 0 | Q57: 0 | R57: 0
I58: 0 | J58: 0 | K58: 0 | M58: 0 | N58: 0 | O58: 0 | P58: 0 | Q58: 0 | R58: 0
B59: Interest on Credit Line | G59: 0.06 | I59: 8.40378333 | J59: =+SUM(J17:J58)/2*H59 -> 0 | M59: 0 | N59: =+SUM(N17:N58)/2*L59 -> 0 | O59: 8.40378333 | P59: =+SUM(P17:P58)/2*L59 -> 0 | Q59: 4201.891665 | R59: =+J59*E$7 -> 0
A60: Total Variable Costs | I60: 257.1937232 | J60: =SUM(J18:J59) -> 0 | M60: 0 | N60: =SUM(N18:N59) -> 0 | O60: 257.1937232 | P60: =SUM(P18:P59) -> 0 | Q60: 128596.8616 | R60: =SUM(R18:R59) -> 0
A61: Planned Returns Above Variable Costs: | I61: 66.80627682 | J61: =+J13-J60 -> 0 | M61: 0 | N61: =+N13-N60 -> 0 | O61: 66.80627682 | P61: =+P13-P60 -> 0 | Q61: 33403.13841 | R61: =+R13-R60 -> 0
B62: Breakeven Price to Cover Variable Costs | G62: 2.857708035 | H62: =IF(E10=0,"n/a",(YVarExp-(YTotExp+YTotRet-J10))/E10) -> n/a | I62: Bushel
Q63: Enterprise | R63: Enterprise
A64: FIXED COSTS | D64: Quantity | E64: Quantity | F64: Units | G64: $/Unit | H64: $/Unit | I64: Total | J64: Total | K64: Share | L64: Share | M64: Landlord | N64: Landlord | O64: Tenant | P64: Tenant | Q64: Total | R64: Total
B65: Machinery Depreciation
C66: Tractors/Self-Propelled | D66: 1 | F66: Acre | G66: 31.98595862 | I66: 31.98595862 | J66: =E66*H66 -> 0 | K66: 0 | M66: 0 | N66: =J66*L66 -> 0 | O66: 31.98595862 | P66: =+J66-N66 -> 0 | Q66: 15992.97931 | R66: =+J66*E$7 -> 0
C67: Implements | D67: 1 | F67: Acre | G67: 23.72566745 | I67: 23.72566745 | J67: 0 | K67: 0 | M67: 0 | N67: =J67*L67 -> 0 | O67: 23.72566745 | P67: 0 | Q67: 11862.83373 | R67: 0
B68: Equipment Investment
C69: Tractors/Self-Propelled | D69: 244.8123568 | F69: Dollars | G69: 0.06 | I69: 14.68874141 | J69: =E69*H69 -> 0 | K69: 0 | M69: 0 | N69: =J69*L69 -> 0 | O69: 14.68874141 | P69: =+J69-N69 -> 0 | Q69: 7344.370705 | R69: =+J69*E$7 -> 0
C70: Implements | D70: 139.2802616 | F70: Dollars | G70: 0.06 | I70: 8.356815698 | J70: 0 | K70: 0 | M70: 0 | N70: =J70*L70 -> 0 | O70: 8.356815698 | P70: 0 | Q70: 4178.407849 | R70: 0
B71: Salaried Labor | D71: 1 | F71: Acre | G71: 0 | I71: 0 | J71: 0 | K71: 0 | M71: 0 | N71: =J71*L71 -> 0 | O71: 0 | P71: =+J71-N71 -> 0 | Q71: 0 | R71: =+J71*E$7 -> 0
B72: Management Fee, Owner/Operator Labor | D72: 1 | F72: Acre | G72: 16.2 | I72: 16.2 | J72: 0 | K72: 0 | M72: 0 | N72: 0 | O72: 16.2 | P72: 0 | Q72: 8100 | R72: 0
B73: Allocated Establishment Cost | D73: 1 | F73: Acre | G73: 0 | I73: 0 | J73: 0 | K73: 0 | M73: 0 | N73: 0 | O73: 0 | P73: 0 | Q73: 0 | R73: 0
B74: UCB - Land Charge | D74: 1 | F74: Acre | G74: 85 | I74: 85 | J74: 0 | K74: 0 | M74: 0 | N74: 0 | O74: 85 | P74: 0 | Q74: 42500 | R74: 0
B75: Property Taxes | D75: 1 | F75: Acre | G75: 0 | I75: 0 | J75: 0 | K75: 0 | M75: 0 | N75: 0 | O75: 0 | P75: 0 | Q75: 0 | R75: 0
B76: Whole Farm Insurance | D76: 1 | F76: Acre | G76: 0 | I76: 0 | J76: 0 | K76: 0 | M76: 0 | N76: 0 | O76: 0 | P76: 0 | Q76: 0 | R76: 0
D77: 1 | G77: 0 | I77: 0 | J77: 0 | K77: 0 | M77: 0 | N77: 0 | O77: 0 | P77: 0 | Q77: 0 | R77: 0
D78: 1 | G78: 0 | I78: 0 | J78: =E78*H78 -> 0 | K78: 0 | M78: 0 | N78: 0 | O78: 0 | P78: 0 | Q78: 0 | R78: 0
A79: Total Fixed Costs | I79: 179.9571832 | J79: =+SUM(J66:J78) -> 0 | M79: 0 | N79: =+SUM(N66:N78) -> 0 | O79: 179.9571832 | P79: =+SUM(P66:P78) -> 0 | Q79: 89978.59159 | R79: =+SUM(R66:R78) -> 0
A80: Total Specified Costs | I80: 437.1509064 | J80: =+J60+J79 -> 0 | M80: 0 | N80: =+N60+N79 -> 0 | O80: 437.1509064 | P80: =+P60+P79 -> 0 | Q80: 218575.4532 | R80: =+R60+R79 -> 0
A82: Returns Above Specified Costs | I82: -113.1509064 | J82: =+J13-J80 -> 0 | M82: 0 | N82: =+N13-N80 -> 0 | O82: -113.1509064 | P82: =+P13-P80 -> 0 | Q82: -56575.45318 | R82: =+R13-R80 -> 0
A84: Breakeven Price to Cover Total Costs | G84: 4.857232293 | H84: =IF(E10=0,"n/a",(YTotExp-(YTotExp+YTotRet-J10))/E10) -> n/a | I84: Bushel
D86: Example Breakeven Prices
B87: Example | C87: Example | D87: To Cover | G87: To Cover
B88: Yield | C88: Yield | D88: Variable | G88: Total
B89: Percent | C89: Bushel | D89: Costs | G89: Costs
B90: 0.75 | C90: 67.5 | D90: 3.81027738 | G90: 6.476309724
B91: 0.9 | C91: 81 | D91: 3.17523115 | G91: 5.39692477
B92: 1 | C92: 90 | D92: 2.857708035 | G92: 4.857232293
B93: 1.1 | C93: 99 | D93: 2.597916396 | G93: 4.415665721
B94: 1.25 | C94: 112.5 | D94: 2.286166428 | G94: 3.885785834
A96: Developed by Extension Economists, Texas A&M AgriLife Extension Service, budgets@tamu.edu.
A98: Information presented is prepared solely as a general guide and not intended to recognize or predict the costs and returns from any one operation. Brand names are mentioned only as examples and imply no endorsement.

Sheet WheatUCB
A1: Projections for Planning Purposes Only -- Not to be Used without Updating
A2: 2021 Estimated Costs and Returns per Acre
A3: Soft Red Winter Wheat, 45 bu. Yield Goal - Upper Coast
A4: Enter your name for this budget in the cell above.
A5: Enter Your Values in the cells highlighed in MAROON.
E6: Your Acres | R6: Your
C7: Crop Acres | D7: 500 | L7: Your | Q7: Enterprise | R7: Enterprise
E8: Your | H8: Your | I8: Cash | J8: Your | K8: Landlord | L8: Landlord | N8: Your | P8: Your | Q8: Total | R8: Total
A9: REVENUE | D9: Quantity | E9: Quantity | F9: Units | G9: $/Unit | H9: $/Unit | I9: Total | J9: Total | K9: Share | L9: Share | M9: Landlord | N9: Landlord | O9: Tenant | P9: Tenant | Q9: (500 acres) | R9: ="(" & E7 & " acres)" -> ( acres)
B10: Soft Red Winter Wheat | D10: 45 | F10: Bushel | G10: 4.7 | I10: 211.5 | J10: =E10*H10 -> 0 | K10: 0 | M10: 0 | N10: =J10*L10 -> 0 | O10: 211.5 | P10: =+J10-N10 -> 0 | Q10: 105750 | R10: =+J10*E$7 -> 0
D11: 0 | G11: 0 | I11: 0 | J11: 0 | K11: 0 | M11: 0 | N11: 0 | O11: 0 | P11: =+J11-N11 -> 0 | Q11: 0 | R11: 0
D12: 0 | G12: 0 | I12: 0 | J12: 0 | K12: 0 | M12: 0 | N12: 0 | O12: 0 | P12: 0 | Q12: 0 | R12: 0
A13: Total Revenue | I13: 211.5 | J13: =SUM(J10:J12) -> 0 | M13: 0 | N13: =SUM(N10:N12) -> 0 | O13: 211.5 | P13: =SUM(P10:P12) -> 0 | Q13: 105750 | R13: =SUM(R10:R12) -> 0
Q14: Enterprise | R14: Enterprise
A15: VARIABLE COSTS | D15: Quantity | E15: Quantity | F15: Units | G15: $/Unit | H15: $/Unit | I15: Total | J15: Total | K15: Share | L15: Share | M15: Landlord | N15: Landlord | O15: Tenant | P15: Tenant | Q15: Total | R15: Total
A16: Production Costs
B17: Herbicide
C18: Wheat PostEmerge Herbicide | D18: 0.35 | F18: Ounce | G18: 10.08 | I18: 3.528 | J18: =E18*H18 -> 0 | K18: 0 | M18: 0 | N18: =J18*L18 -> 0 | O18: 3.528 | P18: =+J18-N18 -> 0 | Q18: 1764 | R18: =+J18*E$7 -> 0
B19: Seed
C20: Soft Red Wheat | D20: 90 | F20: Pound | G20: 0.292 | I20: 26.28 | J20: 0 | K20: 0 | M20: 0 | N20: 0 | O20: 26.28 | P20: 0 | Q20: 13140 | R20: 0
B21: Fertilizer
C22: 24-8-0` | D22: 0.1405 | F22: Ton | G22: 264 | I22: 37.092 | J22: 0 | K22: 0 | M22: 0 | N22: 0 | O22: 37.092 | P22: 0 | Q22: 18546 | R22: 0
C23: 46-0-0` | D23: 0.05 | F23: Ton | G23: 365 | I23: 18.25 | J23: 0 | K23: 0 | M23: 0 | N23: 0 | O23: 18.25 | P23: 0 | Q23: 9125 | R23: 0
B24: Custom
C25: Fertilizer Application UC | D25: 2 | F25: Acre | G25: 9 | I25: 18 | J25: 0 | K25: 0 | M25: 0 | N25: 0 | O25: 18 | P25: 0 | Q25: 9000 | R25: 0
C26: Custom Grain Haul | D26: 25.2 | F26: CWT | G26: 0.5 | I26: 12.6 | J26: 0 | K26: 0 | M26: 0 | N26: 0 | O26: 12.6 | P26: 0 | Q26: 6300 | R26: 0
B27: Miscellaneous
C28: Crop Insurance -Wheat UC | D28: 1 | F28: Acre | G28: 6.74 | I28: 6.74 | J28: 0 | K28: 0 | M28: 0 | N28: 0 | O28: 6.74 | P28: 0 | Q28: 3370 | R28: 0
C29: Hand Labor | D29: 0.0833 | F29: Hour | G29: 16 | I29: 1.3328 | J29: 0 | K29: 0 | M29: 0 | N29: 0 | O29: 1.3328 | P29: 0 | Q29: 666.4 | R29: 0
B30: Fungicides
C31: Wheat Fungicide | D31: 6 | F31: Ounce | G31: 2.48 | I31: 14.88 | J31: 0 | K31: 0 | M31: 0 | N31: 0 | O31: 14.88 | P31: 0 | Q31: 7440 | R31: 0
D32: 0 | G32: 0 | I32: 0 | J32: 0 | K32: 0 | M32: 0 | N32: 0 | O32: 0 | P32: 0 | Q32: 0 | R32: 0
D33: 0 | G33: 0 | I33: 0 | J33: 0 | K33: 0 | M33: 0 | N33: 0 | O33: 0 | P33: 0 | Q33: 0 | R33: 0
D34: 0 | G34: 0 | I34: 0 | J34: =E34*H34 -> 0 | K34: 0 | M34: 0 | N34: =J34*L34 -> 0 | O34: 0 | P34: =+J34-N34 -> 0 | Q34: 0 | R34: =+J34*E$7 -> 0
B35: Machinery Labor
C36: Tractors/Self-Propelled | D36: 0.65 | F36: Hour | G36: 19.5 | I36: 12.675 | J36: =E36*H36 -> 0 | K36: 0 | M36: 0 | N36: =J36*L36 -> 0 | O36: 12.675 | P36: =+J36-N36 -> 0 | Q36: 6337.5 | R36: =+J36*E$7 -> 0
C37: Other Labor | D37: 0 | F37: Hour | G37: 19.5 | I37: 0 | J37: =E37*H37 -> 0 | K37: 0 | M37: 0 | N37: =J37*L37 -> 0 | O37: 0 | P37: =+J37-N37 -> 0 | Q37: 0 | R37: =+J37*E$7 -> 0
B39: Diesel Fuel
C40: Pickup/General Use Equipment | D40: 1 | F40: Acre | G40: 0 | I40: 0 | J40: =E40*H40 -> 0 | K40: 0 | M40: 0 | N40: =J40*L40 -> 0 | O40: 0 | P40: =+J40-N40 -> 0 | Q40: 0 | R40: =+J40*E$7 -> 0
C41: Tractors/Self-Propelled | D41: 7.37 | F41: Gallon | G41: 2.2 | I41: 16.214 | J41: =E41*H41 -> 0 | K41: 0 | M41: 0 | N41: =J41*L41 -> 0 | O41: 16.214 | P41: =+J41-N41 -> 0 | Q41: 8107 | R41: =+J41*E$7 -> 0
B43: Gasoline
C44: Pickup/General Use Equipment | D44: 1 | F44: Acre | G44: 0 | I44: 0 | J44: =E44*H44 -> 0 | K44: 0 | M44: 0 | N44: =J44*L44 -> 0 | O44: 0 | P44: =+J44-N44 -> 0 | Q44: 0 | R44: =+J44*E$7 -> 0
C45: Tractors/Self-Propelled | D45: 0 | F45: Gallon | G45: 2.4 | I45: 0 | J45: =E45*H45 -> 0 | K45: 0 | M45: 0 | N45: =J45*L45 -> 0 | O45: 0 | P45: =+J45-N45 -> 0 | Q45: 0 | R45: =+J45*E$7 -> 0
B47: Repairs & Maintenance
C48: Pickup/General Use Equipment | D48: 1 | F48: Acre | G48: 0 | I48: 0 | J48: =E48*H48 -> 0 | K48: 0 | M48: 0 | N48: =J48*L48 -> 0 | O48: 0 | P48: =+J48-N48 -> 0 | Q48: 0 | R48: =+J48*E$7 -> 0
C49: Irrigation Equipment | D49: 1 | F49: Acre | G49: 0 | I49: 0 | J49: 0 | K49: 0 | M49: 0 | N49: 0 | O49: 0 | P49: 0 | Q49: 0 | R49: 0
C50: Tractors/Self-Propelled | D50: 1 | F50: Acre | G50: 25.72483884 | I50: 25.72483884 | J50: 0 | K50: 0 | M50: 0 | N50: 0 | O50: 25.72483884 | P50: 0 | Q50: 12862.41942 | R50: 0
C51: Implements | D51: 1 | F51: Acre | G51: 13.69342777 | I51: 13.69342777 | J51: 0 | K51: 0 | M51: 0 | N51: 0 | O51: 13.69342777 | P51: 0 | Q51: 6846.713886 | R51: 0
I52: 0 | J52: 0 | K52: 0 | M52: 0 | N52: 0 | O52: 0 | P52: 0 | Q52: 0 | R52: 0
I53: 0 | J53: 0 | K53: 0 | M53: 0 | N53: 0 | O53: 0 | P53: 0 | Q53: 0 | R53: 0
B54: Interest on Credit Line | G54: 0.06 | I54: 7.025515386 | J54: =+SUM(J17:J53)/2*H54 -> 0 | M54: 0 | N54: =+SUM(N17:N53)/2*L54 -> 0 | O54: 7.025515386 | P54: =+SUM(P17:P53)/2*L54 -> 0 | Q54: 3512.757693 | R54: =+J54*E$7 -> 0
A55: Total Variable Costs | I55: 214.035582 | J55: =SUM(J18:J54) -> 0 | M55: 0 | N55: =SUM(N18:N54) -> 0 | O55: 214.035582 | P55: =SUM(P18:P54) -> 0 | Q55: 107017.791 | R55: =SUM(R18:R54) -> 0
A56: Planned Returns Above Variable Costs: | I56: -2.535581999 | J56: =+J13-J55 -> 0 | M56: 0 | N56: =+N13-N55 -> 0 | O56: -2.535581999 | P56: =+P13-P55 -> 0 | Q56: -1267.790999 | R56: =+R13-R55 -> 0
B57: Breakeven Price to Cover Variable Costs | G57: 4.756346267 | H57: =IF(E10=0,"n/a",(YVarExp-(YTotExp+YTotRet-J10))/E10) -> n/a | I57: Bushel
Q58: Enterprise | R58: Enterprise
A59: FIXED COSTS | D59: Quantity | E59: Quantity | F59: Units | G59: $/Unit | H59: $/Unit | I59: Total | J59: Total | K59: Share | L59: Share | M59: Landlord | N59: Landlord | O59: Tenant | P59: Tenant | Q59: Total | R59: Total
B60: Machinery Depreciation
C61: Tractors/Self-Propelled | D61: 1 | F61: Acre | G61: 25.63851326 | I61: 25.63851326 | J61: =E61*H61 -> 0 | K61: 0 | M61: 0 | N61: =J61*L61 -> 0 | O61: 25.63851326 | P61: =+J61-N61 -> 0 | Q61: 12819.25663 | R61: =+J61*E$7 -> 0
C62: Implements | D62: 1 | F62: Acre | G62: 16.56464136 | I62: 16.56464136 | J62: 0 | K62: 0 | M62: 0 | N62: =J62*L62 -> 0 | O62: 16.56464136 | P62: 0 | Q62: 8282.320679 | R62: 0
B63: Equipment Investment
C64: Tractors/Self-Propelled | D64: 195.7574724 | F64: Dollars | G64: 0.06 | I64: 11.74544834 | J64: =E64*H64 -> 0 | K64: 0 | M64: 0 | N64: =J64*L64 -> 0 | O64: 11.74544834 | P64: =+J64-N64 -> 0 | Q64: 5872.724171 | R64: =+J64*E$7 -> 0
C65: Implements | D65: 95.12310522 | F65: Dollars | G65: 0.06 | I65: 5.707386313 | J65: 0 | K65: 0 | M65: 0 | N65: =J65*L65 -> 0 | O65: 5.707386313 | P65: 0 | Q65: 2853.693157 | R65: 0
B66: Salaried Labor | D66: 1 | F66: Acre | G66: 0 | I66: 0 | J66: 0 | K66: 0 | M66: 0 | N66: =J66*L66 -> 0 | O66: 0 | P66: =+J66-N66 -> 0 | Q66: 0 | R66: =+J66*E$7 -> 0
B67: Management Fee, Owner/Operator Labor | D67: 1 | F67: Acre | G67: 10.575 | I67: 10.575 | J67: 0 | K67: 0 | M67: 0 | N67: 0 | O67: 10.575 | P67: 0 | Q67: 5287.5 | R67: 0
B68: Allocated Establishment Cost | D68: 1 | F68: Acre | G68: 0 | I68: 0 | J68: 0 | K68: 0 | M68: 0 | N68: 0 | O68: 0 | P68: 0 | Q68: 0 | R68: 0
B69: UCB - Land Charge | D69: 1 | F69: Acre | G69: 85 | I69: 85 | J69: 0 | K69: 0 | M69: 0 | N69: 0 | O69: 85 | P69: 0 | Q69: 42500 | R69: 0
B70: Property Taxes | D70: 1 | F70: Acre | G70: 0 | I70: 0 | J70: 0 | K70: 0 | M70: 0 | N70: 0 | O70: 0 | P70: 0 | Q70: 0 | R70: 0
B71: Whole Farm Insurance | D71: 1 | F71: Acre | G71: 0 | I71: 0 | J71: 0 | K71: 0 | M71: 0 | N71: 0 | O71: 0 | P71: 0 | Q71: 0 | R71: 0
D72: 1 | G72: 0 | I72: 0 | J72: 0 | K72: 0 | M72: 0 | N72: 0 | O72: 0 | P72: 0 | Q72: 0 | R72: 0
D73: 1 | G73: 0 | I73: 0 | J73: =E73*H73 -> 0 | K73: 0 | M73: 0 | N73: 0 | O73: 0 | P73: 0 | Q73: 0 | R73: 0
A74: Total Fixed Costs | I74: 155.2309893 | J74: =+SUM(J61:J73) -> 0 | M74: 0 | N74: =+SUM(N61:N73) -> 0 | O74: 155.2309893 | P74: =+SUM(P61:P73) -> 0 | Q74: 77615.49464 | R74: =+SUM(R61:R73) -> 0
A75: Total Specified Costs | I75: 369.2665713 | J75: =+J55+J74 -> 0 | M75: 0 | N75: =+N55+N74 -> 0 | O75: 369.2665713 | P75: =+P55+P74 -> 0 | Q75: 184633.2856 | R75: =+R55+R74 -> 0
A77: Returns Above Specified Costs | I77: -157.7665713 | J77: =+J13-J75 -> 0 | M77: 0 | N77: =+N13-N75 -> 0 | O77: -157.7665713 | P77: =+P13-P75 -> 0 | Q77: -78883.28564 | R77: =+R13-R75 -> 0
A79: Breakeven Price to Cover Total Costs | G79: 8.205923806 | H79: =IF(E10=0,"n/a",(YTotExp-(YTotExp+YTotRet-J10))/E10) -> n/a | I79: Bushel
D81: Example Breakeven Prices
B82: Example | C82: Example | D82: To Cover | G82: To Cover
B83: Yield | C83: Yield | D83: Variable | G83: Total
B84: Percent | C84: Bushel | D84: Costs | G84: Costs
B85: 0.75 | C85: 33.75 | D85: 6.341795022 | G85: 10.94123174
B86: 0.9 | C86: 40.5 | D86: 5.284829185 | G86: 9.117693118
B87: 1 | C87: 45 | D87: 4.756346267 | G87: 8.205923806
B88: 1.1 | C88: 49.5 | D88: 4.323951151 | G88: 7.459930733
B89: 1.25 | C89: 56.25 | D89: 3.805077013 | G89: 6.564739045
A91: Developed by Extension Economists, Texas A&M AgriLife Extension Service, budgets@tamu.edu.
A93: Information presented is prepared solely as a general guide and not intended to recognize or predict the costs and returns from any one operation. Brand names are mentioned only as examples and imply no endorsement.

Sheet Corn
A1: Projections for Planning Purposes Only -- Not to be Used without Updating
A2: 2021 Estimated Costs and Returns per Acre
A3: Corn - GMO Seed, Conventional Till-12 Row, Dryland, 100 bu. Yield Goal - Upper Coast
A4: Enter your name for this budget in the cell above.
A5: Enter Your Values in the cells highlighed in MAROON.
E6: Your Acres | R6: Your
C7: Crop Acres | D7: 500 | L7: Your | Q7: Enterprise | R7: Enterprise
E8: Your | H8: Your | I8: Cash | J8: Your | K8: Landlord | L8: Landlord | N8: Your | P8: Your | Q8: Total | R8: Total
A9: REVENUE | D9: Quantity | E9: Quantity | F9: Units | G9: $/Unit | H9: $/Unit | I9: Total | J9: Total | K9: Share | L9: Share | M9: Landlord | N9: Landlord | O9: Tenant | P9: Tenant | Q9: (500 acres) | R9: ="(" & E7 & " acres)" -> ( acres)
B10: Corn | D10: 100 | F10: Bushel | G10: 3.6 | I10: 360 | J10: =E10*H10 -> 0 | K10: 0 | M10: 0 | N10: =J10*L10 -> 0 | O10: 360 | P10: =+J10-N10 -> 0 | Q10: 180000 | R10: =+J10*E$7 -> 0
D11: 0 | G11: 0 | I11: 0 | J11: 0 | K11: 0 | M11: 0 | N11: 0 | O11: 0 | P11: =+J11-N11 -> 0 | Q11: 0 | R11: 0
D12: 0 | G12: 0 | I12: 0 | J12: 0 | K12: 0 | M12: 0 | N12: 0 | O12: 0 | P12: 0 | Q12: 0 | R12: 0
A13: Total Revenue | I13: 360 | J13: =SUM(J10:J12) -> 0 | M13: 0 | N13: =SUM(N10:N12) -> 0 | O13: 360 | P13: =SUM(P10:P12) -> 0 | Q13: 180000 | R13: =SUM(R10:R12) -> 0
Q14: Enterprise | R14: Enterprise
A15: VARIABLE COSTS | D15: Quantity | E15: Quantity | F15: Units | G15: $/Unit | H15: $/Unit | I15: Total | J15: Total | K15: Share | L15: Share | M15: Landlord | N15: Landlord | O15: Tenant | P15: Tenant | Q15: Total | R15: Total
A16: Production Costs
B17: Seed
C18: Corn | D18: 25 | F18: Thousand | G18: 3.3 | I18: 82.5 | J18: =E18*H18 -> 0 | K18: 0 | M18: 0 | N18: =J18*L18 -> 0 | O18: 82.5 | P18: =+J18-N18 -> 0 | Q18: 41250 | R18: =+J18*E$7 -> 0
B19: Fertilizer
C20: 24-8-0` | D20: 0.25 | F20: Ton | G20: 264 | I20: 66 | J20: 0 | K20: 0 | M20: 0 | N20: 0 | O20: 66 | P20: 0 | Q20: 33000 | R20: 0
B21: Custom
C22: Custom Grain Haul | D22: 57 | F22: CWT | G22: 0.5 | I22: 28.5 | J22: 0 | K22: 0 | M22: 0 | N22: 0 | O22: 28.5 | P22: 0 | Q22: 14250 | R22: 0
B23: Herbicide
C24: Glyphosate (Generic) | D24: 2 | F24: Quart | G24: 3.38 | I24: 6.76 | J24: 0 | K24: 0 | M24: 0 | N24: 0 | O24: 6.76 | P24: 0 | Q24: 3380 | R24: 0
C25: 2, 4D Amine | D25: 1 | F25: Pint | G25: 2.07 | I25: 2.07 | J25: 0 | K25: 0 | M25: 0 | N25: 0 | O25: 2.07 | P25: 0 | Q25: 1035 | R25: 0
C26: Atrazine 4L | D26: 2 | F26: Quart | G26: 3 | I26: 6 | J26: 0 | K26: 0 | M26: 0 | N26: 0 | O26: 6 | P26: 0 | Q26: 3000 | R26: 0
C27: Corn PreEmerge Herbicide | D27: 2.1 | F27: Quart | G27: 9.62 | I27: 20.202 | J27: 0 | K27: 0 | M27: 0 | N27: 0 | O27: 20.202 | P27: 0 | Q27: 10101 | R27: 0
C28: Corn PostEmerge Herbicide | D28: 1 | F28: Quart | G28: 16.24 | I28: 16.24 | J28: 0 | K28: 0 | M28: 0 | N28: 0 | O28: 16.24 | P28: 0 | Q28: 8120 | R28: 0
B29: Insecticide
C30: Cutworm Control | D30: 1.25 | F30: Ounce | G30: 0.7 | I30: 0.875 | J30: 0 | K30: 0 | M30: 0 | N30: 0 | O30: 0.875 | P30: 0 | Q30: 437.5 | R30: 0
B31: Miscellaneous
C32: Crop Insurance -Corn | D32: 1 | F32: Acre | G32: 16.4 | I32: 16.4 | J32: 0 | K32: 0 | M32: 0 | N32: 0 | O32: 16.4 | P32: 0 | Q32: 8200 | R32: 0
C33: G&A Overhead | D33: 1 | F33: Acre | G33: 10.5 | I33: 10.5 | J33: 0 | K33: 0 | M33: 0 | N33: 0 | O33: 10.5 | P33: 0 | Q33: 5250 | R33: 0
B34: Other Chemicals
C35: Crop Oil | D35: 0.5 | F35: Pint | G35: 1.85 | I35: 0.925 | J35: 0 | K35: 0 | M35: 0 | N35: 0 | O35: 0.925 | P35: 0 | Q35: 462.5 | R35: 0
B36: Other Labor
C37: Hand Labor | D37: 0.21 | F37: Hour | G37: 16 | I37: 3.36 | J37: 0 | K37: 0 | M37: 0 | N37: 0 | O37: 3.36 | P37: 0 | Q37: 1680 | R37: 0
D38: 0 | G38: 0 | I38: 0 | J38: 0 | K38: 0 | M38: 0 | N38: 0 | O38: 0 | P38: 0 | Q38: 0 | R38: 0
D39: 0 | G39: 0 | I39: 0 | J39: 0 | K39: 0 | M39: 0 | N39: 0 | O39: 0 | P39: 0 | Q39: 0 | R39: 0
D40: 0 | G40: 0 | I40: 0 | J40: =E40*H40 -> 0 | K40: 0 | M40: 0 | N40: =J40*L40 -> 0 | O40: 0 | P40: =+J40-N40 -> 0 | Q40: 0 | R40: =+J40*E$7 -> 0
B41: Machinery Labor
C42: Tractors/Self-Propelled | D42: 0.68 | F42: Hour | G42: 19.5 | I42: 13.26 | J42: =E42*H42 -> 0 | K42: 0 | M42: 0 | N42: =J42*L42 -> 0 | O42: 13.26 | P42: =+J42-N42 -> 0 | Q42: 6630 | R42: =+J42*E$7 -> 0
C43: Other Labor | D43: 0 | F43: Hour | G43: 19.5 | I43: 0 | J43: =E43*H43 -> 0 | K43: 0 | M43: 0 | N43: =J43*L43 -> 0 | O43: 0 | P43: =+J43-N43 -> 0 | Q43: 0 | R43: =+J43*E$7 -> 0
B45: Diesel Fuel
C46: Pickup/General Use Equipment | D46: 1 | F46: Acre | G46: 0 | I46: 0 | J46: =E46*H46 -> 0 | K46: 0 | M46: 0 | N46: =J46*L46 -> 0 | O46: 0 | P46: =+J46-N46 -> 0 | Q46: 0 | R46: =+J46*E$7 -> 0
C47: Tractors/Self-Propelled | D47: 8.24 | F47: Gallon | G47: 2.2 | I47: 18.128 | J47: =E47*H47 -> 0 | K47: 0 | M47: 0 | N47: =J47*L47 -> 0 | O47: 18.128 | P47: =+J47-N47 -> 0 | Q47: 9064 | R47: =+J47*E$7 -> 0
B49: Gasoline
C50: Pickup/General Use Equipment | D50: 1 | F50: Acre | G50: 0 | I50: 0 | J50: =E50*H50 -> 0 | K50: 0 | M50: 0 | N50: =J50*L50 -> 0 | O50: 0 | P50: =+J50-N50 -> 0 | Q50: 0 | R50: =+J50*E$7 -> 0
C51: Tractors/Self-Propelled | D51: 0 | F51: Gallon | G51: 2.4 | I51: 0 | J51: =E51*H51 -> 0 | K51: 0 | M51: 0 | N51: =J51*L51 -> 0 | O51: 0 | P51: =+J51-N51 -> 0 | Q51: 0 | R51: =+J51*E$7 -> 0
B53: Repairs & Maintenance
C54: Pickup/General Use Equipment | D54: 1 | F54: Acre | G54: 0 | I54: 0 | J54: =E54*H54 -> 0 | K54: 0 | M54: 0 | N54: =J54*L54 -> 0 | O54: 0 | P54: =+J54-N54 -> 0 | Q54: 0 | R54: =+J54*E$7 -> 0
C55: Irrigation Equipment | D55: 1 | F55: Acre | G55: 0 | I55: 0 | J55: 0 | K55: 0 | M55: 0 | N55: 0 | O55: 0 | P55: 0 | Q55: 0 | R55: 0
C56: Tractors/Self-Propelled | D56: 1 | F56: Acre | G56: 26.22247307 | I56: 26.22247307 | J56: 0 | K56: 0 | M56: 0 | N56: 0 | O56: 26.22247307 | P56: 0 | Q56: 13111.23653 | R56: 0
C57: Implements | D57: 1 | F57: Acre | G57: 20.20147075 | I57: 20.20147075 | J57: 0 | K57: 0 | M57: 0 | N57: 0 | O57: 20.20147075 | P57: 0 | Q57: 10100.73537 | R57: 0
I58: 0 | J58: 0 | K58: 0 | M58: 0 | N58: 0 | O58: 0 | P58: 0 | Q58: 0 | R58: 0
I59: 0 | J59: 0 | K59: 0 | M59: 0 | N59: 0 | O59: 0 | P59: 0 | Q59: 0 | R59: 0
B60: Interest on Credit Line | G60: 0.06 | I60: 10.44431421 | J60: =+SUM(J17:J59)/2*H60 -> 0 | M60: 0 | N60: =+SUM(N17:N59)/2*L60 -> 0 | O60: 10.44431421 | P60: =+SUM(P17:P59)/2*L60 -> 0 | Q60: 5222.157105 | R60: =+J60*E$7 -> 0
A61: Total Variable Costs | I61: 348.588258 | J61: =SUM(J18:J60) -> 0 | M61: 0 | N61: =SUM(N18:N60) -> 0 | O61: 348.588258 | P61: =SUM(P18:P60) -> 0 | Q61: 174294.129 | R61: =SUM(R18:R60) -> 0
A62: Planned Returns Above Variable Costs: | I62: 11.41174198 | J62: =+J13-J61 -> 0 | M62: 0 | N62: =+N13-N61 -> 0 | O62: 11.41174198 | P62: =+P13-P61 -> 0 | Q62: 5705.870989 | R62: =+R13-R61 -> 0
B63: Breakeven Price to Cover Variable Costs | G63: 3.48588258 | H63: =IF(E10=0,"n/a",(YVarExp-(YTotExp+YTotRet-J10))/E10) -> n/a | I63: Bushel
Q64: Enterprise | R64: Enterprise
A65: FIXED COSTS | D65: Quantity | E65: Quantity | F65: Units | G65: $/Unit | H65: $/Unit | I65: Total | J65: Total | K65: Share | L65: Share | M65: Landlord | N65: Landlord | O65: Tenant | P65: Tenant | Q65: Total | R65: Total
B66: Machinery Depreciation
C67: Tractors/Self-Propelled | D67: 1 | F67: Acre | G67: 28.4630192 | I67: 28.4630192 | J67: =E67*H67 -> 0 | K67: 0 | M67: 0 | N67: =J67*L67 -> 0 | O67: 28.4630192 | P67: =+J67-N67 -> 0 | Q67: 14231.5096 | R67: =+J67*E$7 -> 0
C68: Implements | D68: 1 | F68: Acre | G68: 23.31897299 | I68: 23.31897299 | J68: 0 | K68: 0 | M68: 0 | N68: =J68*L68 -> 0 | O68: 23.31897299 | P68: 0 | Q68: 11659.48649 | R68: 0
B69: Equipment Investment
C70: Tractors/Self-Propelled | D70: 217.616973 | F70: Dollars | G70: 0.06 | I70: 13.05701838 | J70: =E70*H70 -> 0 | K70: 0 | M70: 0 | N70: =J70*L70 -> 0 | O70: 13.05701838 | P70: =+J70-N70 -> 0 | Q70: 6528.50919 | R70: =+J70*E$7 -> 0
C71: Implements | D71: 141.3769626 | F71: Dollars | G71: 0.06 | I71: 8.482617754 | J71: 0 | K71: 0 | M71: 0 | N71: =J71*L71 -> 0 | O71: 8.482617754 | P71: 0 | Q71: 4241.308877 | R71: 0
B72: Salaried Labor | D72: 1 | F72: Acre | G72: 0 | I72: 0 | J72: 0 | K72: 0 | M72: 0 | N72: =J72*L72 -> 0 | O72: 0 | P72: =+J72-N72 -> 0 | Q72: 0 | R72: =+J72*E$7 -> 0
B73: Management Fee, Owner/Operator Labor | D73: 1 | F73: Acre | G73: 18 | I73: 18 | J73: 0 | K73: 0 | M73: 0 | N73: 0 | O73: 18 | P73: 0 | Q73: 9000 | R73: 0
B74: Allocated Establishment Cost | D74: 1 | F74: Acre | G74: 0 | I74: 0 | J74: 0 | K74: 0 | M74: 0 | N74: 0 | O74: 0 | P74: 0 | Q74: 0 | R74: 0
B75: UCB - Land Charge | D75: 1 | F75: Acre | G75: 85 | I75: 85 | J75: 0 | K75: 0 | M75: 0 | N75: 0 | O75: 85 | P75: 0 | Q75: 42500 | R75: 0
B76: Property Taxes | D76: 1 | F76: Acre | G76: 0 | I76: 0 | J76: 0 | K76: 0 | M76: 0 | N76: 0 | O76: 0 | P76: 0 | Q76: 0 | R76: 0
B77: Whole Farm Insurance | D77: 1 | F77: Acre | G77: 0 | I77: 0 | J77: 0 | K77: 0 | M77: 0 | N77: 0 | O77: 0 | P77: 0 | Q77: 0 | R77: 0
D78: 1 | G78: 0 | I78: 0 | J78: 0 | K78: 0 | M78: 0 | N78: 0 | O78: 0 | P78: 0 | Q78: 0 | R78: 0
D79: 1 | G79: 0 | I79: 0 | J79: =E79*H79 -> 0 | K79: 0 | M79: 0 | N79: 0 | O79: 0 | P79: 0 | Q79: 0 | R79: 0
A80: Total Fixed Costs | I80: 176.3216283 | J80: =+SUM(J67:J79) -> 0 | M80: 0 | N80: =+SUM(N67:N79) -> 0 | O80: 176.3216283 | P80: =+SUM(P67:P79) -> 0 | Q80: 88160.81416 | R80: =+SUM(R67:R79) -> 0
A81: Total Specified Costs | I81: 524.9098863 | J81: =+J61+J80 -> 0 | M81: 0 | N81: =+N61+N80 -> 0 | O81: 524.9098863 | P81: =+P61+P80 -> 0 | Q81: 262454.9432 | R81: =+R61+R80 -> 0
A83: Returns Above Specified Costs | I83: -164.9098863 | J83: =+J13-J81 -> 0 | M83: 0 | N83: =+N13-N81 -> 0 | O83: -164.9098863 | P83: =+P13-P81 -> 0 | Q83: -82454.94317 | R83: =+R13-R81 -> 0
A85: Breakeven Price to Cover Total Costs | G85: 5.249098863 | H85: =IF(E10=0,"n/a",(YTotExp-(YTotExp+YTotRet-J10))/E10) -> n/a | I85: Bushel
D87: Example Breakeven Prices
B88: Example | C88: Example | D88: To Cover | G88: To Cover
B89: Yield | C89: Yield | D89: Variable | G89: Total
B90: Percent | C90: Bushel | D90: Costs | G90: Costs
B91: 0.75 | C91: 75 | D91: 4.64784344 | G91: 6.998798485
B92: 0.9 | C92: 90 | D92: 3.873202867 | G92: 5.832332071
B93: 1 | C93: 100 | D93: 3.48588258 | G93: 5.249098863
B94: 1.1 | C94: 110 | D94: 3.168984164 | G94: 4.771908058
B95: 1.25 | C95: 125 | D95: 2.788706064 | G95: 4.199279091
A97: Developed by Extension Economists, Texas A&M AgriLife Extension Service, budgets@tamu.edu.
A99: Information presented is prepared solely as a general guide and not intended to recognize or predict the costs and returns from any one operation. Brand names are mentioned only as examples and imply no endorsement.

Sheet Soybeans
A1: Projections for Planning Purposes Only -- Not to be Used without Updating
A2: 2021 Estimated Costs and Returns per Acre
A3: Soybeans - GMO Seed, Conventional Till-12 Row, Dryland, 30 bu. Yield Goal - Upper Coast
A4: Enter your name for this budget in the cell above.
A5: Enter Your Values in the cells highlighed in MAROON.
E6: Your Acres | R6: Your
C7: Crop Acres | D7: 500 | L7: Your | Q7: Enterprise | R7: Enterprise
E8: Your | H8: Your | I8: Cash | J8: Your | K8: Landlord | L8: Landlord | N8: Your | P8: Your | Q8: Total | R8: Total
A9: REVENUE | D9: Quantity | E9: Quantity | F9: Units | G9: $/Unit | H9: $/Unit | I9: Total | J9: Total | K9: Share | L9: Share | M9: Landlord | N9: Landlord | O9: Tenant | P9: Tenant | Q9: (500 acres) | R9: ="(" & E7 & " acres)" -> ( acres)
B10: Soybeans | D10: 30 | F10: Bushel | G10: 8.5 | I10: 255 | J10: =E10*H10 -> 0 | K10: 0 | M10: 0 | N10: =J10*L10 -> 0 | O10: 255 | P10: =+J10-N10 -> 0 | Q10: 127500 | R10: =+J10*E$7 -> 0
D11: 0 | G11: 0 | I11: 0 | J11: 0 | K11: 0 | M11: 0 | N11: 0 | O11: 0 | P11: =+J11-N11 -> 0 | Q11: 0 | R11: 0
D12: 0 | G12: 0 | I12: 0 | J12: 0 | K12: 0 | M12: 0 | N12: 0 | O12: 0 | P12: 0 | Q12: 0 | R12: 0
A13: Total Revenue | I13: 255 | J13: =SUM(J10:J12) -> 0 | M13: 0 | N13: =SUM(N10:N12) -> 0 | O13: 255 | P13: =SUM(P10:P12) -> 0 | Q13: 127500 | R13: =SUM(R10:R12) -> 0
Q14: Enterprise | R14: Enterprise
A15: VARIABLE COSTS | D15: Quantity | E15: Quantity | F15: Units | G15: $/Unit | H15: $/Unit | I15: Total | J15: Total | K15: Share | L15: Share | M15: Landlord | N15: Landlord | O15: Tenant | P15: Tenant | Q15: Total | R15: Total
A16: Production Costs
B17: Herbicide
C18: Glyphosate | D18: 4 | F18: Quart | G18: 5.5 | I18: 22 | J18: =E18*H18 -> 0 | K18: 0 | M18: 0 | N18: =J18*L18 -> 0 | O18: 22 | P18: =+J18-N18 -> 0 | Q18: 11000 | R18: =+J18*E$7 -> 0
C19: 2, 4D Amine` | D19: 1 | F19: Pint | G19: 1.43 | I19: 1.43 | J19: 0 | K19: 0 | M19: 0 | N19: 0 | O19: 1.43 | P19: 0 | Q19: 715 | R19: 0
C20: Soybean PreEmerge Herbicide | D20: 1 | F20: Pint | G20: 10.13 | I20: 10.13 | J20: 0 | K20: 0 | M20: 0 | N20: 0 | O20: 10.13 | P20: 0 | Q20: 5065 | R20: 0
B21: Seed
C22: Roundup Ready Soybean Seed | D22: 1 | F22: Bag | G22: 60 | I22: 60 | J22: 0 | K22: 0 | M22: 0 | N22: 0 | O22: 60 | P22: 0 | Q22: 30000 | R22: 0
C23: Inoculants | D23: 1 | F23: Bag | G23: 1.87 | I23: 1.87 | J23: 0 | K23: 0 | M23: 0 | N23: 0 | O23: 1.87 | P23: 0 | Q23: 935 | R23: 0
B24: Custom
C25: Custom Grain Haul | D25: 18 | F25: CWT | G25: 0.5 | I25: 9 | J25: 0 | K25: 0 | M25: 0 | N25: 0 | O25: 9 | P25: 0 | Q25: 4500 | R25: 0
B26: Miscellaneous
C27: Crop Insurance -Soybeans | D27: 1 | F27: Acre | G27: 8.19 | I27: 8.19 | J27: 0 | K27: 0 | M27: 0 | N27: 0 | O27: 8.19 | P27: 0 | Q27: 4095 | R27: 0
C28: G&A Overhead | D28: 1 | F28: Acre | G28: 10.5 | I28: 10.5 | J28: 0 | K28: 0 | M28: 0 | N28: 0 | O28: 10.5 | P28: 0 | Q28: 5250 | R28: 0
B29: Insecticide
C30: Stinkbug Control Soybeans | D30: 1.5 | F30: Pound | G30: 5.11 | I30: 7.665 | J30: 0 | K30: 0 | M30: 0 | N30: 0 | O30: 7.665 | P30: 0 | Q30: 3832.5 | R30: 0
B31: Other Labor
C32: Hand Labor | D32: 0.22 | F32: Hour | G32: 16 | I32: 3.52 | J32: 0 | K32: 0 | M32: 0 | N32: 0 | O32: 3.52 | P32: 0 | Q32: 1760 | R32: 0
B33: Other Chemicals
C34: Gromoxone | D34: 2 | F34: Pint | G34: 2.97 | I34: 5.94 | J34: 0 | K34: 0 | M34: 0 | N34: 0 | O34: 5.94 | P34: 0 | Q34: 2970 | R34: 0
C35: Surfactant | D35: 0.0125 | F35: Pint | G35: 1.39 | I35: 0.017375 | J35: 0 | K35: 0 | M35: 0 | N35: 0 | O35: 0.017375 | P35: 0 | Q35: 8.6875 | R35: 0
D36: 0 | G36: 0 | I36: 0 | J36: 0 | K36: 0 | M36: 0 | N36: 0 | O36: 0 | P36: 0 | Q36: 0 | R36: 0
D37: 0 | G37: 0 | I37: 0 | J37: 0 | K37: 0 | M37: 0 | N37: 0 | O37: 0 | P37: 0 | Q37: 0 | R37: 0
D38: 0 | G38: 0 | I38: 0 | J38: =E38*H38 -> 0 | K38: 0 | M38: 0 | N38: =J38*L38 -> 0 | O38: 0 | P38: =+J38-N38 -> 0 | Q38: 0 | R38: =+J38*E$7 -> 0
B39: Machinery Labor
C40: Tractors/Self-Propelled | D40: 0.72 | F40: Hour | G40: 19.5 | I40: 14.04 | J40: =E40*H40 -> 0 | K40: 0 | M40: 0 | N40: =J40*L40 -> 0 | O40: 14.04 | P40: =+J40-N40 -> 0 | Q40: 7020 | R40: =+J40*E$7 -> 0
C41: Other Labor | D41: 0 | F41: Hour | G41: 19.5 | I41: 0 | J41: =E41*H41 -> 0 | K41: 0 | M41: 0 | N41: =J41*L41 -> 0 | O41: 0 | P41: =+J41-N41 -> 0 | Q41: 0 | R41: =+J41*E$7 -> 0
B43: Diesel Fuel
C44: Pickup/General Use Equipment | D44: 1 | F44: Acre | G44: 0 | I44: 0 | J44: =E44*H44 -> 0 | K44: 0 | M44: 0 | N44: =J44*L44 -> 0 | O44: 0 | P44: =+J44-N44 -> 0 | Q44: 0 | R44: =+J44*E$7 -> 0
C45: Tractors/Self-Propelled | D45: 8.71 | F45: Gallon | G45: 2.2 | I45: 19.162 | J45: =E45*H45 -> 0 | K45: 0 | M45: 0 | N45: =J45*L45 -> 0 | O45: 19.162 | P45: =+J45-N45 -> 0 | Q45: 9581 | R45: =+J45*E$7 -> 0
B47: Gasoline
C48: Pickup/General Use Equipment | D48: 1 | F48: Acre | G48: 0 | I48: 0 | J48: =E48*H48 -> 0 | K48: 0 | M48: 0 | N48: =J48*L48 -> 0 | O48: 0 | P48: =+J48-N48 -> 0 | Q48: 0 | R48: =+J48*E$7 -> 0
C49: Tractors/Self-Propelled | D49: 0 | F49: Gallon | G49: 2.4 | I49: 0 | J49: =E49*H49 -> 0 | K49: 0 | M49: 0 | N49: =J49*L49 -> 0 | O49: 0 | P49: =+J49-N49 -> 0 | Q49: 0 | R49: =+J49*E$7 -> 0
B51: Repairs & Maintenance
C52: Pickup/General Use Equipment | D52: 1 | F52: Acre | G52: 0 | I52: 0 | J52: =E52*H52 -> 0 | K52: 0 | M52: 0 | N52: =J52*L52 -> 0 | O52: 0 | P52: =+J52-N52 -> 0 | Q52: 0 | R52: =+J52*E$7 -> 0
C53: Irrigation Equipment | D53: 1 | F53: Acre | G53: 0 | I53: 0 | J53: 0 | K53: 0 | M53: 0 | N53: 0 | O53: 0 | P53: 0 | Q53: 0 | R53: 0
C54: Tractors/Self-Propelled | D54: 1 | F54: Acre | G54: 26.8874982 | I54: 26.8874982 | J54: 0 | K54: 0 | M54: 0 | N54: 0 | O54: 26.8874982 | P54: 0 | Q54: 13443.7491 | R54: 0
C55: Implements | D55: 1 | F55: Acre | G55: 16.53930236 | I55: 16.53930236 | J55: 0 | K55: 0 | M55: 0 | N55: 0 | O55: 16.53930236 | P55: 0 | Q55: 8269.651178 | R55: 0
I56: 0 | J56: 0 | K56: 0 | M56: 0 | N56: 0 | O56: 0 | P56: 0 | Q56: 0 | R56: 0
I57: 0 | J57: 0 | K57: 0 | M57: 0 | N57: 0 | O57: 0 | P57: 0 | Q57: 0 | R57: 0
B58: Interest on Credit Line | G58: 0.06 | I58: 5.981958239 | J58: =+SUM(J17:J57)/2*H58 -> 0 | M58: 0 | N58: =+SUM(N17:N57)/2*L58 -> 0 | O58: 5.981958239 | P58: =+SUM(P17:P57)/2*L58 -> 0 | Q58: 2990.979119 | R58: =+J58*E$7 -> 0
A59: Total Variable Costs | I59: 222.8731338 | J59: =SUM(J18:J58) -> 0 | M59: 0 | N59: =SUM(N18:N58) -> 0 | O59: 222.8731338 | P59: =SUM(P18:P58) -> 0 | Q59: 111436.5669 | R59: =SUM(R18:R58) -> 0
A60: Planned Returns Above Variable Costs: | I60: 32.12686621 | J60: =+J13-J59 -> 0 | M60: 0 | N60: =+N13-N59 -> 0 | O60: 32.12686621 | P60: =+P13-P59 -> 0 | Q60: 16063.4331 | R60: =+R13-R59 -> 0
B61: Breakeven Price to Cover Variable Costs | G61: 7.42910446 | H61: =IF(E10=0,"n/a",(YVarExp-(YTotExp+YTotRet-J10))/E10) -> n/a | I61: Bushel
Q62: Enterprise | R62: Enterprise
A63: FIXED COSTS | D63: Quantity | E63: Quantity | F63: Units | G63: $/Unit | H63: $/Unit | I63: Total | J63: Total | K63: Share | L63: Share | M63: Landlord | N63: Landlord | O63: Tenant | P63: Tenant | Q63: Total | R63: Total
B64: Machinery Depreciation
C65: Tractors/Self-Propelled | D65: 1 | F65: Acre | G65: 31.07726338 | I65: 31.07726338 | J65: =E65*H65 -> 0 | K65: 0 | M65: 0 | N65: =J65*L65 -> 0 | O65: 31.07726338 | P65: =+J65-N65 -> 0 | Q65: 15538.63169 | R65: =+J65*E$7 -> 0
C66: Implements | D66: 1 | F66: Acre | G66: 20.05460896 | I66: 20.05460896 | J66: 0 | K66: 0 | M66: 0 | N66: =J66*L66 -> 0 | O66: 20.05460896 | P66: 0 | Q66: 10027.30448 | R66: 0
B67: Equipment Investment
C68: Tractors/Self-Propelled | D68: 236.158278 | F68: Dollars | G68: 0.06 | I68: 14.16949668 | J68: =E68*H68 -> 0 | K68: 0 | M68: 0 | N68: =J68*L68 -> 0 | O68: 14.16949668 | P68: =+J68-N68 -> 0 | Q68: 7084.748339 | R68: =+J68*E$7 -> 0
C69: Implements | D69: 110.0524111 | F69: Dollars | G69: 0.06 | I69: 6.603144664 | J69: 0 | K69: 0 | M69: 0 | N69: =J69*L69 -> 0 | O69: 6.603144664 | P69: 0 | Q69: 3301.572332 | R69: 0
B70: Salaried Labor | D70: 1 | F70: Acre | G70: 0 | I70: 0 | J70: 0 | K70: 0 | M70: 0 | N70: =J70*L70 -> 0 | O70: 0 | P70: =+J70-N70 -> 0 | Q70: 0 | R70: =+J70*E$7 -> 0
B71: Management Fee, Owner/Operator Labor | D71: 1 | F71: Acre | G71: 12.75 | I71: 12.75 | J71: 0 | K71: 0 | M71: 0 | N71: 0 | O71: 12.75 | P71: 0 | Q71: 6375 | R71: 0
B72: Allocated Establishment Cost | D72: 1 | F72: Acre | G72: 0 | I72: 0 | J72: 0 | K72: 0 | M72: 0 | N72: 0 | O72: 0 | P72: 0 | Q72: 0 | R72: 0
B73: UCB - Land Charge | D73: 1 | F73: Acre | G73: 85 | I73: 85 | J73: 0 | K73: 0 | M73: 0 | N73: 0 | O73: 85 | P73: 0 | Q73: 42500 | R73: 0
B74: Property Taxes | D74: 1 | F74: Acre | G74: 0 | I74: 0 | J74: 0 | K74: 0 | M74: 0 | N74: 0 | O74: 0 | P74: 0 | Q74: 0 | R74: 0
B75: Whole Farm Insurance | D75: 1 | F75: Acre | G75: 0 | I75: 0 | J75: 0 | K75: 0 | M75: 0 | N75: 0 | O75: 0 | P75: 0 | Q75: 0 | R75: 0
D76: 1 | G76: 0 | I76: 0 | J76: 0 | K76: 0 | M76: 0 | N76: 0 | O76: 0 | P76: 0 | Q76: 0 | R76: 0
D77: 1 | G77: 0 | I77: 0 | J77: =E77*H77 -> 0 | K77: 0 | M77: 0 | N77: 0 | O77: 0 | P77: 0 | Q77: 0 | R77: 0
A78: Total Fixed Costs | I78: 169.6545137 | J78: =+SUM(J65:J77) -> 0 | M78: 0 | N78: =+SUM(N65:N77) -> 0 | O78: 169.6545137 | P78: =+SUM(P65:P77) -> 0 | Q78: 84827.25684 | R78: =+SUM(R65:R77) -> 0
A79: Total Specified Costs | I79: 392.5276475 | J79: =+J59+J78 -> 0 | M79: 0 | N79: =+N59+N78 -> 0 | O79: 392.5276475 | P79: =+P59+P78 -> 0 | Q79: 196263.8237 | R79: =+R59+R78 -> 0
A81: Returns Above Specified Costs | I81: -137.5276475 | J81: =+J13-J79 -> 0 | M81: 0 | N81: =+N13-N79 -> 0 | O81: -137.5276475 | P81: =+P13-P79 -> 0 | Q81: -68763.82374 | R81: =+R13-R79 -> 0
A83: Breakeven Price to Cover Total Costs | G83: 13.08425492 | H83: =IF(E10=0,"n/a",(YTotExp-(YTotExp+YTotRet-J10))/E10) -> n/a | I83: Bushel
D85: Example Breakeven Prices
B86: Example | C86: Example | D86: To Cover | G86: To Cover
B87: Yield | C87: Yield | D87: Variable | G87: Total
B88: Percent | C88: Bushel | D88: Costs | G88: Costs
B89: 0.75 | C89: 22.5 | D89: 9.905472613 | G89: 17.44567322
B90: 0.9 | C90: 27 | D90: 8.254560511 | G90: 14.53806102
B91: 1 | C91: 30 | D91: 7.42910446 | G91: 13.08425492
B92: 1.1 | C92: 33 | D92: 6.753731327 | G92: 11.8947772
B93: 1.25 | C93: 37.5 | D93: 5.943283568 | G93: 10.46740393
A95: Developed by Extension Economists, Texas A&M AgriLife Extension Service, budgets@tamu.edu.
A97: Information presented is prepared solely as a general guide and not intended to recognize or predict the costs and returns from any one operation. Brand names are mentioned only as examples and imply no endorsement.

Sheet CoastalHay
A1: Projections for Planning Purposes Only -- Not to be Used without Updating
A2: 2021 Estimated Costs and Returns per Acre
A3: Coastal Bermudagrass Hay and Grazing (3 Cuttings)
A4: Enter your name for this budget in the cell above.
A5: Enter Your Values in the cells highlighed in MAROON.
E6: Your Acres | R6: Your
C7: Crop Acres | D7: 100 | L7: Your | Q7: Enterprise | R7: Enterprise
E8: Your | H8: Your | I8: Cash | J8: Your | K8: Landlord | L8: Landlord | N8: Your | P8: Your | Q8: Total | R8: Total
A9: REVENUE | D9: Quantity | E9: Quantity | F9: Units | G9: $/Unit | H9: $/Unit | I9: Total | J9: Total | K9: Share | L9: Share | M9: Landlord | N9: Landlord | O9: Tenant | P9: Tenant | Q9: (100 acres) | R9: ="(" & E7 & " acres)" -> ( acres)
B10: Coastal Hay | D10: 9 | F10: Roll | G10: 65 | I10: 585 | J10: =E10*H10 -> 0 | K10: 0 | M10: 0 | N10: =J10*L10 -> 0 | O10: 585 | P10: =+J10-N10 -> 0 | Q10: 58500 | R10: =+J10*E$7 -> 0
B11: Coastal Grazing | D11: 2 | F11: AUM | G11: 15 | I11: 30 | J11: 0 | K11: 0 | M11: 0 | N11: 0 | O11: 30 | P11: =+J11-N11 -> 0 | Q11: 3000 | R11: 0
D12: 0 | G12: 0 | I12: 0 | J12: 0 | K12: 0 | M12: 0 | N12: 0 | O12: 0 | P12: 0 | Q12: 0 | R12: 0
D13: 0 | G13: 0 | I13: 0 | J13: 0 | K13: 0 | M13: 0 | N13: 0 | O13: 0 | P13: 0 | Q13: 0 | R13: 0
A14: Total Revenue | I14: 615 | J14: =SUM(J10:J13) -> 0 | M14: 0 | N14: =SUM(N10:N13) -> 0 | O14: 615 | P14: =SUM(P10:P13) -> 0 | Q14: 61500 | R14: =SUM(R10:R13) -> 0
Q15: Enterprise | R15: Enterprise
A16: VARIABLE COSTS | D16: Quantity | E16: Quantity | F16: Units | G16: $/Unit | H16: $/Unit | I16: Total | J16: Total | K16: Share | L16: Share | M16: Landlord | N16: Landlord | O16: Tenant | P16: Tenant | Q16: Total | R16: Total
A17: Production Costs
B18: Herbicide
C19: Broadleaf Herbicide | D19: 1.5 | F19: Pint | G19: 5.91 | I19: 8.865 | J19: =E19*H19 -> 0 | K19: 0 | M19: 0 | N19: =J19*L19 -> 0 | O19: 8.865 | P19: =+J19-N19 -> 0 | Q19: 886.5 | R19: =+J19*E$7 -> 0
B20: Fertilizer
C21: 24-8-0 | D21: 0.3 | F21: Ton | G21: 266 | I21: 79.8 | J21: 0 | K21: 0 | M21: 0 | N21: 0 | O21: 79.8 | P21: 0 | Q21: 7980 | R21: 0
B22: Custom
C23: Custom Spread Truck | D23: 3 | F23: Acre | G23: 14.7 | I23: 44.1 | J23: 0 | K23: 0 | M23: 0 | N23: 0 | O23: 44.1 | P23: 0 | Q23: 4410 | R23: 0
B24: Miscellaneous
C25: Hay Wrap | D25: 9 | F25: Bale | G25: 1.43 | I25: 12.87 | J25: 0 | K25: 0 | M25: 0 | N25: 0 | O25: 12.87 | P25: 0 | Q25: 1287 | R25: 0
C26: Soil Test | D26: 1 | F26: Acre | G26: 0.2 | I26: 0.2 | J26: 0 | K26: 0 | M26: 0 | N26: 0 | O26: 0.2 | P26: 0 | Q26: 20 | R26: 0
D27: 0 | G27: 0 | I27: 0 | J27: 0 | K27: 0 | M27: 0 | N27: 0 | O27: 0 | P27: 0 | Q27: 0 | R27: 0
D28: 0 | G28: 0 | I28: 0 | J28: 0 | K28: 0 | M28: 0 | N28: 0 | O28: 0 | P28: 0 | Q28: 0 | R28: 0
D29: 0 | G29: 0 | I29: 0 | J29: =E29*H29 -> 0 | K29: 0 | M29: 0 | N29: =J29*L29 -> 0 | O29: 0 | P29: =+J29-N29 -> 0 | Q29: 0 | R29: =+J29*E$7 -> 0
B30: Machinery Labor
C31: Tractors/Self-Propelled | D31: 2.03 | F31: Hour | G31: 19.5 | I31: 39.585 | J31: =E31*H31 -> 0 | K31: 0 | M31: 0 | N31: =J31*L31 -> 0 | O31: 39.585 | P31: =+J31-N31 -> 0 | Q31: 3958.5 | R31: =+J31*E$7 -> 0
C32: Other Labor | D32: 0 | F32: Hour | G32: 19.5 | I32: 0 | J32: =E32*H32 -> 0 | K32: 0 | M32: 0 | N32: =J32*L32 -> 0 | O32: 0 | P32: =+J32-N32 -> 0 | Q32: 0 | R32: =+J32*E$7 -> 0
B34: Diesel Fuel
C35: Pickup/General Use Equipment | D35: 1 | F35: Acre | G35: 0 | I35: 0 | J35: =E35*H35 -> 0 | K35: 0 | M35: 0 | N35: =J35*L35 -> 0 | O35: 0 | P35: =+J35-N35 -> 0 | Q35: 0 | R35: =+J35*E$7 -> 0
C36: Tractors/Self-Propelled | D36: 9.21 | F36: Gallon | G36: 2.2 | I36: 20.262 | J36: =E36*H36 -> 0 | K36: 0 | M36: 0 | N36: =J36*L36 -> 0 | O36: 20.262 | P36: =+J36-N36 -> 0 | Q36: 2026.2 | R36: =+J36*E$7 -> 0
B38: Gasoline
C39: Pickup/General Use Equipment | D39: 1 | F39: Acre | G39: 0 | I39: 0 | J39: =E39*H39 -> 0 | K39: 0 | M39: 0 | N39: =J39*L39 -> 0 | O39: 0 | P39: =+J39-N39 -> 0 | Q39: 0 | R39: =+J39*E$7 -> 0
C40: Tractors/Self-Propelled | D40: 0 | F40: Gallon | G40: 2.4 | I40: 0 | J40: =E40*H40 -> 0 | K40: 0 | M40: 0 | N40: =J40*L40 -> 0 | O40: 0 | P40: =+J40-N40 -> 0 | Q40: 0 | R40: =+J40*E$7 -> 0
B42: Repairs & Maintenance
C43: Pickup/General Use Equipment | D43: 1 | F43: Acre | G43: 0 | I43: 0 | J43: =E43*H43 -> 0 | K43: 0 | M43: 0 | N43: =J43*L43 -> 0 | O43: 0 | P43: =+J43-N43 -> 0 | Q43: 0 | R43: =+J43*E$7 -> 0
C44: Irrigation Equipment | D44: 1 | F44: Acre | G44: 0 | I44: 0 | J44: 0 | K44: 0 | M44: 0 | N44: 0 | O44: 0 | P44: 0 | Q44: 0 | R44: 0
C45: Tractors/Self-Propelled | D45: 1 | F45: Acre | G45: 14.3619676 | I45: 14.3619676 | J45: 0 | K45: 0 | M45: 0 | N45: 0 | O45: 14.3619676 | P45: 0 | Q45: 1436.19676 | R45: 0
C46: Implements | D46: 1 | F46: Acre | G46: 7.961589045 | I46: 7.961589045 | J46: 0 | K46: 0 | M46: 0 | N46: 0 | O46: 7.961589045 | P46: 0 | Q46: 796.1589045 | R46: 0
I47: 0 | J47: 0 | K47: 0 | M47: 0 | N47: 0 | O47: 0 | P47: 0 | Q47: 0 | R47: 0
I48: 0 | J48: 0 | K48: 0 | M48: 0 | N48: 0 | O48: 0 | P48: 0 | Q48: 0 | R48: 0
B49: Interest on Credit Line | G49: 0.06 | I49: 5.113221978 | J49: =+SUM(J18:J48)/2*H49 -> 0 | M49: 0 | N49: =+SUM(N18:N48)/2*L49 -> 0 | O49: 5.113221978 | P49: =+SUM(P18:P48)/2*L49 -> 0 | Q49: 511.3221978 | R49: =+J49*E$7 -> 0
A50: Total Variable Costs | I50: 233.1187786 | J50: =SUM(J19:J49) -> 0 | M50: 0 | N50: =SUM(N19:N49) -> 0 | O50: 233.1187786 | P50: =SUM(P19:P49) -> 0 | Q50: 23311.87786 | R50: =SUM(R19:R49) -> 0
A51: Planned Returns Above Variable Costs: | I51: 381.8812214 | J51: =+J14-J50 -> 0 | M51: 0 | N51: =+N14-N50 -> 0 | O51: 381.8812214 | P51: =+P14-P50 -> 0 | Q51: 38188.12214 | R51: =+R14-R50 -> 0
B52: Breakeven Price to Cover Variable Costs | G52: 22.56875318 | H52: =IF(E10=0,"n/a",(YVarExp-(YTotExp+YTotRet-J10))/E10) -> n/a | I52: Roll
Q53: Enterprise | R53: Enterprise
A54: FIXED COSTS | D54: Quantity | E54: Quantity | F54: Units | G54: $/Unit | H54: $/Unit | I54: Total | J54: Total | K54: Share | L54: Share | M54: Landlord | N54: Landlord | O54: Tenant | P54: Tenant | Q54: Total | R54: Total
B55: Machinery Depreciation
C56: Tractors/Self-Propelled | D56: 1 | F56: Acre | G56: 12.47399032 | I56: 12.47399032 | J56: =E56*H56 -> 0 | K56: 0 | M56: 0 | N56: =J56*L56 -> 0 | O56: 12.47399032 | P56: =+J56-N56 -> 0 | Q56: 1247.399032 | R56: =+J56*E$7 -> 0
C57: Implements | D57: 1 | F57: Acre | G57: 12.4751815 | I57: 12.4751815 | J57: 0 | K57: 0 | M57: 0 | N57: =J57*L57 -> 0 | O57: 12.4751815 | P57: 0 | Q57: 1247.51815 | R57: 0
B58: Equipment Investment
C59: Tractors/Self-Propelled | D59: 97.17640849 | F59: Dollars | G59: 0.06 | I59: 5.830584509 | J59: =E59*H59 -> 0 | K59: 0 | M59: 0 | N59: =J59*L59 -> 0 | O59: 5.830584509 | P59: =+J59-N59 -> 0 | Q59: 583.0584509 | R59: =+J59*E$7 -> 0
C60: Implements | D60: 94.50432705 | F60: Dollars | G60: 0.06 | I60: 5.670259623 | J60: 0 | K60: 0 | M60: 0 | N60: =J60*L60 -> 0 | O60: 5.670259623 | P60: 0 | Q60: 567.0259623 | R60: 0
B61: Salaried Labor | D61: 1 | F61: Acre | G61: 0 | I61: 0 | J61: 0 | K61: 0 | M61: 0 | N61: =J61*L61 -> 0 | O61: 0 | P61: =+J61-N61 -> 0 | Q61: 0 | R61: =+J61*E$7 -> 0
B62: Management Fee, Owner/Operator Labor | D62: 1 | F62: Acre | G62: 0 | I62: 0 | J62: 0 | K62: 0 | M62: 0 | N62: 0 | O62: 0 | P62: 0 | Q62: 0 | R62: 0
B63: Allocated Establishment Cost | D63: 1 | F63: Acre | G63: 0 | I63: 0 | J63: 0 | K63: 0 | M63: 0 | N63: 0 | O63: 0 | P63: 0 | Q63: 0 | R63: 0
B64: Land - Hay Meadow | D64: 1 | F64: Acre | G64: 25 | I64: 25 | J64: 0 | K64: 0 | M64: 0 | N64: 0 | O64: 25 | P64: 0 | Q64: 2500 | R64: 0
B65: Property Taxes | D65: 1 | F65: Acre | G65: 0 | I65: 0 | J65: 0 | K65: 0 | M65: 0 | N65: 0 | O65: 0 | P65: 0 | Q65: 0 | R65: 0
B66: Whole Farm Insurance | D66: 1 | F66: Acre | G66: 0 | I66: 0 | J66: 0 | K66: 0 | M66: 0 | N66: 0 | O66: 0 | P66: 0 | Q66: 0 | R66: 0
D67: 1 | G67: 0 | I67: 0 | J67: 0 | K67: 0 | M67: 0 | N67: 0 | O67: 0 | P67: 0 | Q67: 0 | R67: 0
D68: 1 | G68: 0 | I68: 0 | J68: =E68*H68 -> 0 | K68: 0 | M68: 0 | N68: 0 | O68: 0 | P68: 0 | Q68: 0 | R68: 0
A69: Total Fixed Costs | I69: 61.45001595 | J69: =+SUM(J56:J68) -> 0 | M69: 0 | N69: =+SUM(N56:N68) -> 0 | O69: 61.45001595 | P69: =+SUM(P56:P68) -> 0 | Q69: 6145.001595 | R69: =+SUM(R56:R68) -> 0
A70: Total Specified Costs | I70: 294.5687946 | J70: =+J50+J69 -> 0 | M70: 0 | N70: =+N50+N69 -> 0 | O70: 294.5687946 | P70: =+P50+P69 -> 0 | Q70: 29456.87946 | R70: =+R50+R69 -> 0
A72: Returns Above Specified Costs | I72: 320.4312054 | J72: =+J14-J70 -> 0 | M72: 0 | N72: =+N14-N70 -> 0 | O72: 320.4312054 | P72: =+P14-P70 -> 0 | Q72: 32043.12054 | R72: =+R14-R70 -> 0
A74: Breakeven Price to Cover Total Costs | G74: 29.39653273 | H74: =IF(E10=0,"n/a",(YTotExp-(YTotExp+YTotRet-J10))/E10) -> n/a | I74: Roll
D76: Example Breakeven Prices
B77: Example | C77: Example | D77: To Cover | G77: To Cover
B78: Yield | C78: Yield | D78: Variable | G78: Total
B79: Percent | C79: Roll | D79: Costs | G79: Costs
B80: 0.75 | C80: 6.75 | D80: 30.09167091 | G80: 39.19537697
B81: 0.9 | C81: 8.1 | D81: 25.07639242 | G81: 32.66281414
B82: 1 | C82: 9 | D82: 22.56875318 | G82: 29.39653273
B83: 1.1 | C83: 9.9 | D83: 20.51704835 | G83: 26.72412066
B84: 1.25 | C84: 11.25 | D84: 18.05500254 | G84: 23.51722618
A86: Developed by Extension Economists, Texas A&M AgriLife Extension Service, budgets@tamu.edu.
A88: Information presented is prepared solely as a general guide and not intended to recognize or predict the costs and returns from any one operation. Brand names are mentioned only as examples and imply no endorsement.

Sheet CoastalPasture
A1: Projections for Planning Purposes Only -- Not to be Used without Updating
A2: 2021 Estimated Costs and Returns per Acre
A3: Coastal Bermudagrass Pasture
A4: Enter your name for this budget in the cell above.
A5: Enter Your Values in the cells highlighed in MAROON.
E6: Your Acres | R6: Your
C7: Crop Acres | D7: 400 | L7: Your | Q7: Enterprise | R7: Enterprise
E8: Your | H8: Your | I8: Cash | J8: Your | K8: Landlord | L8: Landlord | N8: Your | P8: Your | Q8: Total | R8: Total
A9: REVENUE | D9: Quantity | E9: Quantity | F9: Units | G9: $/Unit | H9: $/Unit | I9: Total | J9: Total | K9: Share | L9: Share | M9: Landlord | N9: Landlord | O9: Tenant | P9: Tenant | Q9: (400 acres) | R9: ="(" & E7 & " acres)" -> ( acres)
B10: 0 | D10: 0 | G10: 0 | I10: 0 | J10: =E10*H10 -> 0 | K10: 0 | M10: 0 | N10: =J10*L10 -> 0 | O10: 0 | P10: =+J10-N10 -> 0 | Q10: 0 | R10: =+J10*E$7 -> 0
D11: 0 | G11: 0 | I11: 0 | J11: 0 | K11: 0 | M11: 0 | N11: 0 | O11: 0 | P11: =+J11-N11 -> 0 | Q11: 0 | R11: 0
D12: 0 | G12: 0 | I12: 0 | J12: 0 | K12: 0 | M12: 0 | N12: 0 | O12: 0 | P12: 0 | Q12: 0 | R12: 0
A13: Total Revenue | I13: 0 | J13: =SUM(J10:J12) -> 0 | M13: 0 | N13: =SUM(N10:N12) -> 0 | O13: 0 | P13: =SUM(P10:P12) -> 0 | Q13: 0 | R13: =SUM(R10:R12) -> 0
Q14: Enterprise | R14: Enterprise
A15: VARIABLE COSTS | D15: Quantity | E15: Quantity | F15: Units | G15: $/Unit | H15: $/Unit | I15: Total | J15: Total | K15: Share | L15: Share | M15: Landlord | N15: Landlord | O15: Tenant | P15: Tenant | Q15: Total | R15: Total
A16: Production Costs
B17: Herbicide
C18: Broadleaf Herbicide | D18: 1.5 | F18: Pint | G18: 5.91 | I18: 8.865 | J18: =E18*H18 -> 0 | K18: 0 | M18: 0 | N18: =J18*L18 -> 0 | O18: 8.865 | P18: =+J18-N18 -> 0 | Q18: 3546 | R18: =+J18*E$7 -> 0
C19: Custom Pasture Spray | D19: 1 | F19: Acre | G19: 7 | I19: 7 | J19: 0 | K19: 0 | M19: 0 | N19: 0 | O19: 7 | P19: 0 | Q19: 2800 | R19: 0
B20: Fertilizer
C21: 24-8-0 | D21: 0.1 | F21: Ton | G21: 266 | I21: 26.6 | J21: 0 | K21: 0 | M21: 0 | N21: 0 | O21: 26.6 | P21: 0 | Q21: 10640 | R21: 0
B22: Custom
C23: Custom Spread Truck | D23: 1 | F23: Acre | G23: 14.7 | I23: 14.7 | J23: 0 | K23: 0 | M23: 0 | N23: 0 | O23: 14.7 | P23: 0 | Q23: 5880 | R23: 0
B24: Miscellaneous
C25: Soil Test | D25: 1 | F25: Acre | G25: 0.2 | I25: 0.2 | J25: 0 | K25: 0 | M25: 0 | N25: 0 | O25: 0.2 | P25: 0 | Q25: 80 | R25: 0
D26: 0 | G26: 0 | I26: 0 | J26: 0 | K26: 0 | M26: 0 | N26: 0 | O26: 0 | P26: 0 | Q26: 0 | R26: 0
D27: 0 | G27: 0 | I27: 0 | J27: 0 | K27: 0 | M27: 0 | N27: 0 | O27: 0 | P27: 0 | Q27: 0 | R27: 0
D28: 0 | G28: 0 | I28: 0 | J28: =E28*H28 -> 0 | K28: 0 | M28: 0 | N28: =J28*L28 -> 0 | O28: 0 | P28: =+J28-N28 -> 0 | Q28: 0 | R28: =+J28*E$7 -> 0
B29: Irrigation
C30: Energy Cost | D30: 7 | F30: AcreInch | G30: 2.1 | I30: 14.7 | J30: =E30*H30 -> 0 | K30: 0 | M30: 0 | N30: =J30*L30 -> 0 | O30: 14.7 | P30: =+J30-N30 -> 0 | Q30: 5880 | R30: =+J30*E$7 -> 0
C31: Irrigation Labor | D31: 0.448 | F31: Hour | G31: 19.5 | I31: 8.736 | J31: 0 | K31: 0 | M31: 0 | N31: 0 | O31: 8.736 | P31: 0 | Q31: 3494.4 | R31: 0
B32: Machinery Labor
C33: Tractors/Self-Propelled | D33: 0.18 | F33: Hour | G33: 19.5 | I33: 3.51 | J33: =E33*H33 -> 0 | K33: 0 | M33: 0 | N33: =J33*L33 -> 0 | O33: 3.51 | P33: =+J33-N33 -> 0 | Q33: 1404 | R33: =+J33*E$7 -> 0
C34: Other Labor | D34: 0 | F34: Hour | G34: 19.5 | I34: 0 | J34: =E34*H34 -> 0 | K34: 0 | M34: 0 | N34: =J34*L34 -> 0 | O34: 0 | P34: =+J34-N34 -> 0 | Q34: 0 | R34: =+J34*E$7 -> 0
B36: Diesel Fuel
C37: Pickup/General Use Equipment | D37: 1 | F37: Acre | G37: 0 | I37: 0 | J37: =E37*H37 -> 0 | K37: 0 | M37: 0 | N37: =J37*L37 -> 0 | O37: 0 | P37: =+J37-N37 -> 0 | Q37: 0 | R37: =+J37*E$7 -> 0
C38: Tractors/Self-Propelled | D38: 0.79 | F38: Gallon | G38: 2.2 | I38: 1.738 | J38: =E38*H38 -> 0 | K38: 0 | M38: 0 | N38: =J38*L38 -> 0 | O38: 1.738 | P38: =+J38-N38 -> 0 | Q38: 695.2 | R38: =+J38*E$7 -> 0
B40: Gasoline
C41: Pickup/General Use Equipment | D41: 1 | F41: Acre | G41: 0 | I41: 0 | J41: =E41*H41 -> 0 | K41: 0 | M41: 0 | N41: =J41*L41 -> 0 | O41: 0 | P41: =+J41-N41 -> 0 | Q41: 0 | R41: =+J41*E$7 -> 0
C42: Tractors/Self-Propelled | D42: 0 | F42: Gallon | G42: 2.4 | I42: 0 | J42: =E42*H42 -> 0 | K42: 0 | M42: 0 | N42: =J42*L42 -> 0 | O42: 0 | P42: =+J42-N42 -> 0 | Q42: 0 | R42: =+J42*E$7 -> 0
B44: Repairs & Maintenance
C45: Pickup/General Use Equipment | D45: 1 | F45: Acre | G45: 0 | I45: 0 | J45: =E45*H45 -> 0 | K45: 0 | M45: 0 | N45: =J45*L45 -> 0 | O45: 0 | P45: =+J45-N45 -> 0 | Q45: 0 | R45: =+J45*E$7 -> 0
C46: Irrigation Equipment | D46: 1 | F46: Acre | G46: 26.25 | I46: 26.25 | J46: 0 | K46: 0 | M46: 0 | N46: 0 | O46: 26.25 | P46: 0 | Q46: 10500 | R46: 0
C47: Tractors/Self-Propelled | D47: 1 | F47: Acre | G47: 1.247645685 | I47: 1.247645685 | J47: 0 | K47: 0 | M47: 0 | N47: 0 | O47: 1.247645685 | P47: 0 | Q47: 499.0582738 | R47: 0
C48: Implements | D48: 1 | F48: Acre | G48: 0.6425246305 | I48: 0.6425246305 | J48: 0 | K48: 0 | M48: 0 | N48: 0 | O48: 0.6425246305 | P48: 0 | Q48: 257.0098522 | R48: 0
I49: 0 | J49: 0 | K49: 0 | M49: 0 | N49: 0 | O49: 0 | P49: 0 | Q49: 0 | R49: 0
I50: 0 | J50: 0 | K50: 0 | M50: 0 | N50: 0 | O50: 0 | P50: 0 | Q50: 0 | R50: 0
B51: Interest on Credit Line | G51: 0.06 | I51: 3.118439959 | J51: =+SUM(J17:J50)/2*H51 -> 0 | M51: 0 | N51: =+SUM(N17:N50)/2*L51 -> 0 | O51: 3.118439959 | P51: =+SUM(P17:P50)/2*L51 -> 0 | Q51: 1247.375984 | R51: =+J51*E$7 -> 0
A52: Total Variable Costs | I52: 117.3076103 | J52: =SUM(J18:J51) -> 0 | M52: 0 | N52: =SUM(N18:N51) -> 0 | O52: 117.3076103 | P52: =SUM(P18:P51) -> 0 | Q52: 46923.04411 | R52: =SUM(R18:R51) -> 0
A53: Planned Returns Above Variable Costs: | I53: -117.3076103 | J53: =+J13-J52 -> 0 | M53: 0 | N53: =+N13-N52 -> 0 | O53: -117.3076103 | P53: =+P13-P52 -> 0 | Q53: -46923.04411 | R53: =+R13-R52 -> 0
B54: Breakeven Price to Cover Variable Costs | G54: n/a | H54: =IF(E10=0,"n/a",(YVarExp-(YTotExp+YTotRet-J10))/E10) -> n/a
Q55: Enterprise | R55: Enterprise
A56: FIXED COSTS | D56: Quantity | E56: Quantity | F56: Units | G56: $/Unit | H56: $/Unit | I56: Total | J56: Total | K56: Share | L56: Share | M56: Landlord | N56: Landlord | O56: Tenant | P56: Tenant | Q56: Total | R56: Total
B57: Machinery Depreciation
C58: Irrigation Equipment | D58: 1 | F58: Acre | G58: 16.7925 | I58: 16.7925 | J58: =E58*H58 -> 0 | K58: 0 | M58: 0 | N58: =J58*L58 -> 0 | O58: 16.7925 | P58: =+J58-N58 -> 0 | Q58: 6717 | R58: =+J58*E$7 -> 0
C59: Tractors/Self-Propelled | D59: 1 | F59: Acre | G59: 1.031387099 | I59: 1.031387099 | J59: 0 | K59: 0 | M59: 0 | N59: =J59*L59 -> 0 | O59: 1.031387099 | P59: 0 | Q59: 412.5548397 | R59: 0
C60: Implements | D60: 1 | F60: Acre | G60: 1.445680419 | I60: 1.445680419 | J60: 0 | K60: 0 | M60: 0 | N60: =J60*L60 -> 0 | O60: 1.445680419 | P60: 0 | Q60: 578.2721675 | R60: 0
B61: Equipment Investment
C62: Irrigation Equipment | D62: 156.30625 | F62: Dollars | G62: 0.06 | I62: 9.378375 | J62: =E62*H62 -> 0 | K62: 0 | M62: 0 | N62: =J62*L62 -> 0 | O62: 9.378375 | P62: =+J62-N62 -> 0 | Q62: 3751.35 | R62: =+J62*E$7 -> 0
C63: Tractors/Self-Propelled | D63: 8.034838208 | F63: Dollars | G63: 0.06 | I63: 0.4820902925 | J63: 0 | K63: 0 | M63: 0 | N63: =J63*L63 -> 0 | O63: 0.4820902925 | P63: 0 | Q63: 192.836117 | R63: 0
C64: Implements | D64: 6.184299569 | F64: Dollars | G64: 0.06 | I64: 0.3710579741 | J64: 0 | K64: 0 | M64: 0 | N64: =J64*L64 -> 0 | O64: 0.3710579741 | P64: 0 | Q64: 148.4231897 | R64: 0
B65: Salaried Labor | D65: 1 | F65: Acre | G65: 0 | I65: 0 | J65: 0 | K65: 0 | M65: 0 | N65: =J65*L65 -> 0 | O65: 0 | P65: =+J65-N65 -> 0 | Q65: 0 | R65: =+J65*E$7 -> 0
B66: Management Fee, Owner/Operator Labor | D66: 1 | F66: Acre | G66: 0 | I66: 0 | J66: 0 | K66: 0 | M66: 0 | N66: 0 | O66: 0 | P66: 0 | Q66: 0 | R66: 0
B67: Allocated Establishment Cost | D67: 1 | F67: Acre | G67: 0 | I67: 0 | J67: 0 | K67: 0 | M67: 0 | N67: 0 | O67: 0 | P67: 0 | Q67: 0 | R67: 0
B68: None | D68: 1 | F68: Acre | G68: 0 | I68: 0 | J68: 0 | K68: 0 | M68: 0 | N68: 0 | O68: 0 | P68: 0 | Q68: 0 | R68: 0
B69: Property Taxes | D69: 1 | F69: Acre | G69: 0 | I69: 0 | J69: 0 | K69: 0 | M69: 0 | N69: 0 | O69: 0 | P69: 0 | Q69: 0 | R69: 0
B70: Whole Farm Insurance | D70: 1 | F70: Acre | G70: 0 | I70: 0 | J70: 0 | K70: 0 | M70: 0 | N70: 0 | O70: 0 | P70: 0 | Q70: 0 | R70: 0
D71: 1 | G71: 0 | I71: 0 | J71: 0 | K71: 0 | M71: 0 | N71: 0 | O71: 0 | P71: 0 | Q71: 0 | R71: 0
D72: 1 | G72: 0 | I72: 0 | J72: =E72*H72 -> 0 | K72: 0 | M72: 0 | N72: 0 | O72: 0 | P72: 0 | Q72: 0 | R72: 0
A73: Total Fixed Costs | I73: 29.50109078 | J73: =+SUM(J58:J72) -> 0 | M73: 0 | N73: =+SUM(N58:N72) -> 0 | O73: 29.50109078 | P73: =+SUM(P58:P72) -> 0 | Q73: 11800.43631 | R73: =+SUM(R58:R72) -> 0
A74: Total Specified Costs | I74: 146.8087011 | J74: =+J52+J73 -> 0 | M74: 0 | N74: =+N52+N73 -> 0 | O74: 146.8087011 | P74: =+P52+P73 -> 0 | Q74: 58723.48042 | R74: =+R52+R73 -> 0
A76: Returns Above Specified Costs | I76: -146.8087011 | J76: =+J13-J74 -> 0 | M76: 0 | N76: =+N13-N74 -> 0 | O76: -146.8087011 | P76: =+P13-P74 -> 0 | Q76: -58723.48042 | R76: =+R13-R74 -> 0
A78: Breakeven Price to Cover Total Costs | G78: n/a | H78: =IF(E10=0,"n/a",(YTotExp-(YTotExp+YTotRet-J10))/E10) -> n/a
D80: Example Breakeven Prices
B81: Example | C81: Example | D81: To Cover | G81: To Cover
B82: Yield | C82: Yield | D82: Variable | G82: Total
B83: Percent | D83: Costs | G83: Costs
B84: 0.75 | C84: 0 | D84: 0 | G84: 0
B85: 0.9 | C85: 0 | D85: 0 | G85: 0
B86: 1 | C86: 0 | D86: 0 | G86: 0
B87: 1.1 | C87: 0 | D87: 0 | G87: 0
B88: 1.25 | C88: 0 | D88: 0 | G88: 0
A90: Developed by Extension Economists, Texas A&M AgriLife Extension Service, budgets@tamu.edu.
A92: Information presented is prepared solely as a general guide and not intended to recognize or predict the costs and returns from any one operation. Brand names are mentioned only as examples and imply no endorsement.

Sheet SorghumHay
A1: Projections for Planning Purposes Only -- Not to be Used without Updating
A2: 2021 Estimated Costs and Returns per Acre
A3: Sorghum Hay (2 Cuttings)
A4: Enter your name for this budget in the cell above.
A5: Enter Your Values in the cells highlighed in MAROON.
E6: Your Acres | R6: Your
C7: Crop Acres | D7: 100 | L7: Your | Q7: Enterprise | R7: Enterprise
E8: Your | H8: Your | I8: Cash | J8: Your | K8: Landlord | L8: Landlord | N8: Your | P8: Your | Q8: Total | R8: Total
A9: REVENUE | D9: Quantity | E9: Quantity | F9: Units | G9: $/Unit | H9: $/Unit | I9: Total | J9: Total | K9: Share | L9: Share | M9: Landlord | N9: Landlord | O9: Tenant | P9: Tenant | Q9: (100 acres) | R9: ="(" & E7 & " acres)" -> ( acres)
B10: Sorghum Hay | D10: 8 | F10: Roll | G10: 65 | I10: 520 | J10: =E10*H10 -> 0 | K10: 0 | M10: 0 | N10: =J10*L10 -> 0 | O10: 520 | P10: =+J10-N10 -> 0 | Q10: 52000 | R10: =+J10*E$7 -> 0
D11: 0 | G11: 0 | I11: 0 | J11: 0 | K11: 0 | M11: 0 | N11: 0 | O11: 0 | P11: =+J11-N11 -> 0 | Q11: 0 | R11: 0
D12: 0 | G12: 0 | I12: 0 | J12: 0 | K12: 0 | M12: 0 | N12: 0 | O12: 0 | P12: 0 | Q12: 0 | R12: 0
A13: Total Revenue | I13: 520 | J13: =SUM(J10:J12) -> 0 | M13: 0 | N13: =SUM(N10:N12) -> 0 | O13: 520 | P13: =SUM(P10:P12) -> 0 | Q13: 52000 | R13: =SUM(R10:R12) -> 0
Q14: Enterprise | R14: Enterprise
A15: VARIABLE COSTS | D15: Quantity | E15: Quantity | F15: Units | G15: $/Unit | H15: $/Unit | I15: Total | J15: Total | K15: Share | L15: Share | M15: Landlord | N15: Landlord | O15: Tenant | P15: Tenant | Q15: Total | R15: Total
A16: Production Costs
B17: Seed
C18: Sorghum Hay Seed | D18: 15 | F18: Pound | G18: 0.75 | I18: 11.25 | J18: =E18*H18 -> 0 | K18: 0 | M18: 0 | N18: =J18*L18 -> 0 | O18: 11.25 | P18: =+J18-N18 -> 0 | Q18: 1125 | R18: =+J18*E$7 -> 0
B19: Fertilizer
C20: 24-8-0 | D20: 0.2705 | F20: Ton | G20: 266 | I20: 71.953 | J20: 0 | K20: 0 | M20: 0 | N20: 0 | O20: 71.953 | P20: 0 | Q20: 7195.3 | R20: 0
B21: Custom
C22: Custom Spread Truck | D22: 2 | F22: Acre | G22: 14.7 | I22: 29.4 | J22: 0 | K22: 0 | M22: 0 | N22: 0 | O22: 29.4 | P22: 0 | Q22: 2940 | R22: 0
B23: Miscellaneous
C24: Hay Wrap | D24: 8 | F24: Bale | G24: 1.43 | I24: 11.44 | J24: 0 | K24: 0 | M24: 0 | N24: 0 | O24: 11.44 | P24: 0 | Q24: 1144 | R24: 0
C25: Soil Test | D25: 1 | F25: Acre | G25: 0.2 | I25: 0.2 | J25: 0 | K25: 0 | M25: 0 | N25: 0 | O25: 0.2 | P25: 0 | Q25: 20 | R25: 0
D26: 0 | G26: 0 | I26: 0 | J26: 0 | K26: 0 | M26: 0 | N26: 0 | O26: 0 | P26: 0 | Q26: 0 | R26: 0
D27: 0 | G27: 0 | I27: 0 | J27: 0 | K27: 0 | M27: 0 | N27: 0 | O27: 0 | P27: 0 | Q27: 0 | R27: 0
D28: 0 | G28: 0 | I28: 0 | J28: =E28*H28 -> 0 | K28: 0 | M28: 0 | N28: =J28*L28 -> 0 | O28: 0 | P28: =+J28-N28 -> 0 | Q28: 0 | R28: =+J28*E$7 -> 0
B29: Machinery Labor
C30: Tractors/Self-Propelled | D30: 2.06 | F30: Hour | G30: 19.5 | I30: 40.17 | J30: =E30*H30 -> 0 | K30: 0 | M30: 0 | N30: =J30*L30 -> 0 | O30: 40.17 | P30: =+J30-N30 -> 0 | Q30: 4017 | R30: =+J30*E$7 -> 0
C31: Other Labor | D31: 0 | F31: Hour | G31: 19.5 | I31: 0 | J31: =E31*H31 -> 0 | K31: 0 | M31: 0 | N31: =J31*L31 -> 0 | O31: 0 | P31: =+J31-N31 -> 0 | Q31: 0 | R31: =+J31*E$7 -> 0
B33: Diesel Fuel
C34: Pickup/General Use Equipment | D34: 1 | F34: Acre | G34: 0 | I34: 0 | J34: =E34*H34 -> 0 | K34: 0 | M34: 0 | N34: =J34*L34 -> 0 | O34: 0 | P34: =+J34-N34 -> 0 | Q34: 0 | R34: =+J34*E$7 -> 0
C35: Tractors/Self-Propelled | D35: 12.16 | F35: Gallon | G35: 2.2 | I35: 26.752 | J35: =E35*H35 -> 0 | K35: 0 | M35: 0 | N35: =J35*L35 -> 0 | O35: 26.752 | P35: =+J35-N35 -> 0 | Q35: 2675.2 | R35: =+J35*E$7 -> 0
B37: Gasoline
C38: Pickup/General Use Equipment | D38: 1 | F38: Acre | G38: 0 | I38: 0 | J38: =E38*H38 -> 0 | K38: 0 | M38: 0 | N38: =J38*L38 -> 0 | O38: 0 | P38: =+J38-N38 -> 0 | Q38: 0 | R38: =+J38*E$7 -> 0
C39: Tractors/Self-Propelled | D39: 0 | F39: Gallon | G39: 2.4 | I39: 0 | J39: =E39*H39 -> 0 | K39: 0 | M39: 0 | N39: =J39*L39 -> 0 | O39: 0 | P39: =+J39-N39 -> 0 | Q39: 0 | R39: =+J39*E$7 -> 0
B41: Repairs & Maintenance
C42: Pickup/General Use Equipment | D42: 1 | F42: Acre | G42: 0 | I42: 0 | J42: =E42*H42 -> 0 | K42: 0 | M42: 0 | N42: =J42*L42 -> 0 | O42: 0 | P42: =+J42-N42 -> 0 | Q42: 0 | R42: =+J42*E$7 -> 0
C43: Irrigation Equipment | D43: 1 | F43: Acre | G43: 0 | I43: 0 | J43: 0 | K43: 0 | M43: 0 | N43: 0 | O43: 0 | P43: 0 | Q43: 0 | R43: 0
C44: Tractors/Self-Propelled | D44: 1 | F44: Acre | G44: 17.12543925 | I44: 17.12543925 | J44: 0 | K44: 0 | M44: 0 | N44: 0 | O44: 17.12543925 | P44: 0 | Q44: 1712.543925 | R44: 0
C45: Implements | D45: 1 | F45: Acre | G45: 13.38089225 | I45: 13.38089225 | J45: 0 | K45: 0 | M45: 0 | N45: 0 | O45: 13.38089225 | P45: 0 | Q45: 1338.089225 | R45: 0
I46: 0 | J46: 0 | K46: 0 | M46: 0 | N46: 0 | O46: 0 | P46: 0 | Q46: 0 | R46: 0
I47: 0 | J47: 0 | K47: 0 | M47: 0 | N47: 0 | O47: 0 | P47: 0 | Q47: 0 | R47: 0
B48: Interest on Credit Line | G48: 0.06 | I48: 5.266735764 | J48: =+SUM(J17:J47)/2*H48 -> 0 | M48: 0 | N48: =+SUM(N17:N47)/2*L48 -> 0 | O48: 5.266735764 | P48: =+SUM(P17:P47)/2*L48 -> 0 | Q48: 526.6735764 | R48: =+J48*E$7 -> 0
A49: Total Variable Costs | I49: 226.9380673 | J49: =SUM(J18:J48) -> 0 | M49: 0 | N49: =SUM(N18:N48) -> 0 | O49: 226.9380673 | P49: =SUM(P18:P48) -> 0 | Q49: 22693.80673 | R49: =SUM(R18:R48) -> 0
A50: Planned Returns Above Variable Costs: | I50: 293.0619327 | J50: =+J13-J49 -> 0 | M50: 0 | N50: =+N13-N49 -> 0 | O50: 293.0619327 | P50: =+P13-P49 -> 0 | Q50: 29306.19327 | R50: =+R13-R49 -> 0
B51: Breakeven Price to Cover Variable Costs | G51: 28.36725841 | H51: =IF(E10=0,"n/a",(YVarExp-(YTotExp+YTotRet-J10))/E10) -> n/a | I51: Roll
Q52: Enterprise | R52: Enterprise
A53: FIXED COSTS | D53: Quantity | E53: Quantity | F53: Units | G53: $/Unit | H53: $/Unit | I53: Total | J53: Total | K53: Share | L53: Share | M53: Landlord | N53: Landlord | O53: Tenant | P53: Tenant | Q53: Total | R53: Total
B54: Machinery Depreciation
C55: Tractors/Self-Propelled | D55: 1 | F55: Acre | G55: 16.11848087 | I55: 16.11848087 | J55: =E55*H55 -> 0 | K55: 0 | M55: 0 | N55: =J55*L55 -> 0 | O55: 16.11848087 | P55: =+J55-N55 -> 0 | Q55: 1611.848087 | R55: =+J55*E$7 -> 0
C56: Implements | D56: 1 | F56: Acre | G56: 18.01626072 | I56: 18.01626072 | J56: 0 | K56: 0 | M56: 0 | N56: =J56*L56 -> 0 | O56: 18.01626072 | P56: 0 | Q56: 1801.626072 | R56: 0
B57: Equipment Investment
C58: Tractors/Self-Propelled | D58: 125.5681655 | F58: Dollars | G58: 0.06 | I58: 7.53408993 | J58: =E58*H58 -> 0 | K58: 0 | M58: 0 | N58: =J58*L58 -> 0 | O58: 7.53408993 | P58: =+J58-N58 -> 0 | Q58: 753.408993 | R58: =+J58*E$7 -> 0
C59: Implements | D59: 104.495075 | F59: Dollars | G59: 0.06 | I59: 6.269704501 | J59: 0 | K59: 0 | M59: 0 | N59: =J59*L59 -> 0 | O59: 6.269704501 | P59: 0 | Q59: 626.9704501 | R59: 0
B60: Salaried Labor | D60: 1 | F60: Acre | G60: 0 | I60: 0 | J60: 0 | K60: 0 | M60: 0 | N60: =J60*L60 -> 0 | O60: 0 | P60: =+J60-N60 -> 0 | Q60: 0 | R60: =+J60*E$7 -> 0
B61: Management Fee, Owner/Operator Labor | D61: 1 | F61: Acre | G61: 0 | I61: 0 | J61: 0 | K61: 0 | M61: 0 | N61: 0 | O61: 0 | P61: 0 | Q61: 0 | R61: 0
B62: Allocated Establishment Cost | D62: 1 | F62: Acre | G62: 0 | I62: 0 | J62: 0 | K62: 0 | M62: 0 | N62: 0 | O62: 0 | P62: 0 | Q62: 0 | R62: 0
B63: Land - Hay Meadow | D63: 1 | F63: Acre | G63: 25 | I63: 25 | J63: 0 | K63: 0 | M63: 0 | N63: 0 | O63: 25 | P63: 0 | Q63: 2500 | R63: 0
B64: Property Taxes | D64: 1 | F64: Acre | G64: 0 | I64: 0 | J64: 0 | K64: 0 | M64: 0 | N64: 0 | O64: 0 | P64: 0 | Q64: 0 | R64: 0
B65: Whole Farm Insurance | D65: 1 | F65: Acre | G65: 0 | I65: 0 | J65: 0 | K65: 0 | M65: 0 | N65: 0 | O65: 0 | P65: 0 | Q65: 0 | R65: 0
D66: 1 | G66: 0 | I66: 0 | J66: 0 | K66: 0 | M66: 0 | N66: 0 | O66: 0 | P66: 0 | Q66: 0 | R66: 0
D67: 1 | G67: 0 | I67: 0 | J67: =E67*H67 -> 0 | K67: 0 | M67: 0 | N67: 0 | O67: 0 | P67: 0 | Q67: 0 | R67: 0
A68: Total Fixed Costs | I68: 72.93853602 | J68: =+SUM(J55:J67) -> 0 | M68: 0 | N68: =+SUM(N55:N67) -> 0 | O68: 72.93853602 | P68: =+SUM(P55:P67) -> 0 | Q68: 7293.853602 | R68: =+SUM(R55:R67) -> 0
A69: Total Specified Costs | I69: 299.8766033 | J69: =+J49+J68 -> 0 | M69: 0 | N69: =+N49+N68 -> 0 | O69: 299.8766033 | P69: =+P49+P68 -> 0 | Q69: 29987.66033 | R69: =+R49+R68 -> 0
A71: Returns Above Specified Costs | I71: 220.1233967 | J71: =+J13-J69 -> 0 | M71: 0 | N71: =+N13-N69 -> 0 | O71: 220.1233967 | P71: =+P13-P69 -> 0 | Q71: 22012.33967 | R71: =+R13-R69 -> 0
A73: Breakeven Price to Cover Total Costs | G73: 37.48457541 | H73: =IF(E10=0,"n/a",(YTotExp-(YTotExp+YTotRet-J10))/E10) -> n/a | I73: Roll
D75: Example Breakeven Prices
B76: Example | C76: Example | D76: To Cover | G76: To Cover
B77: Yield | C77: Yield | D77: Variable | G77: Total
B78: Percent | C78: Roll | D78: Costs | G78: Costs
B79: 0.75 | C79: 6 | D79: 37.82301121 | G79: 49.97943388
B80: 0.9 | C80: 7.2 | D80: 31.51917601 | G80: 41.64952823
B81: 1 | C81: 8 | D81: 28.36725841 | G81: 37.48457541
B82: 1.1 | C82: 8.8 | D82: 25.78841673 | G82: 34.07688674
B83: 1.25 | C83: 10 | D83: 22.69380673 | G83: 29.98766033
A85: Developed by Extension Economists, Texas A&M AgriLife Extension Service, budgets@tamu.edu.
A87: Information presented is prepared solely as a general guide and not intended to recognize or predict the costs and returns from any one operation. Brand names are mentioned only as examples and imply no endorsement.

Sheet RiceFirstCrop
A1: Projections for Planning Purposes Only -- Not to be Used without Updating
A2: 2021 Estimated Costs and Returns per Acre
A3: Rice West of Houston, 1st Crop, Surface Water
A4: Enter your name for this budget in the cell above.
A5: Enter Your Values in the cells highlighed in MAROON.
E6: Your Acres | R6: Your
C7: Crop Acres | D7: 450 | L7: Your | Q7: Enterprise | R7: Enterprise
E8: Your | H8: Your | I8: Cash | J8: Your | K8: Landlord | L8: Landlord | N8: Your | P8: Your | Q8: Total | R8: Total
A9: REVENUE | D9: Quantity | E9: Quantity | F9: Units | G9: $/Unit | H9: $/Unit | I9: Total | J9: Total | K9: Share | L9: Share | M9: Landlord | N9: Landlord | O9: Tenant | P9: Tenant | Q9: (450 acres) | R9: ="(" & E7 & " acres)" -> ( acres)
B10: Rice 1st Crop Loan | D10: 70 | F10: CWT | G10: 7 | I10: 490 | J10: =E10*H10 -> 0 | K10: 0 | M10: 0 | N10: =J10*L10 -> 0 | O10: 490 | P10: =+J10-N10 -> 0 | Q10: 220500 | R10: =+J10*E$7 -> 0
B11: Rice 1st Crop Premium | D11: 70 | F11: CWT | G11: 5.5 | I11: 385 | J11: 0 | K11: 0 | M11: 0 | N11: 0 | O11: 385 | P11: =+J11-N11 -> 0 | Q11: 173250 | R11: 0
D12: 0 | G12: 0 | I12: 0 | J12: 0 | K12: 0 | M12: 0 | N12: 0 | O12: 0 | P12: 0 | Q12: 0 | R12: 0
D13: 0 | G13: 0 | I13: 0 | J13: 0 | K13: 0 | M13: 0 | N13: 0 | O13: 0 | P13: 0 | Q13: 0 | R13: 0
A14: Total Revenue | I14: 875 | J14: =SUM(J10:J13) -> 0 | M14: 0 | N14: =SUM(N10:N13) -> 0 | O14: 875 | P14: =SUM(P10:P13) -> 0 | Q14: 393750 | R14: =SUM(R10:R13) -> 0
Q15: Enterprise | R15: Enterprise
A16: VARIABLE COSTS | D16: Quantity | E16: Quantity | F16: Units | G16: $/Unit | H16: $/Unit | I16: Total | J16: Total | K16: Share | L16: Share | M16: Landlord | N16: Landlord | O16: Tenant | P16: Tenant | Q16: Total | R16: Total
A17: Production Costs
B18: Seed
C19: Rice | D19: 0.9 | F19: CWT | G19: 49 | I19: 44.1 | J19: =E19*H19 -> 0 | K19: 0 | M19: 0 | N19: =J19*L19 -> 0 | O19: 44.1 | P19: =+J19-N19 -> 0 | Q19: 19845 | R19: =+J19*E$7 -> 0
B20: Fertilizer
C21: 17-21-14-4.3S` | D21: 0.141 | F21: Ton | G21: 434 | I21: 61.194 | J21: 0 | K21: 0 | M21: 0 | N21: 0 | O21: 61.194 | P21: 0 | Q21: 27537.3 | R21: 0
C22: 33-0-0` | D22: 0.1 | F22: Ton | G22: 411 | I22: 41.1 | J22: 0 | K22: 0 | M22: 0 | N22: 0 | O22: 41.1 | P22: 0 | Q22: 18495 | R22: 0
C23: 46-0-0` | D23: 0.075 | F23: Ton | G23: 365 | I23: 27.375 | J23: 0 | K23: 0 | M23: 0 | N23: 0 | O23: 27.375 | P23: 0 | Q23: 12318.75 | R23: 0
B24: Custom
C25: Base Fertilizer | D25: 1 | F25: Acre | G25: 11.25 | I25: 11.25 | J25: 0 | K25: 0 | M25: 0 | N25: 0 | O25: 11.25 | P25: 0 | Q25: 5062.5 | R25: 0
C26: Ground Application | D26: 1 | F26: Acre | G26: 9 | I26: 9 | J26: 0 | K26: 0 | M26: 0 | N26: 0 | O26: 9 | P26: 0 | Q26: 4050 | R26: 0
C27: Survey Levees | D27: 1 | F27: Acre | G27: 6 | I27: 6 | J27: 0 | K27: 0 | M27: 0 | N27: 0 | O27: 6 | P27: 0 | Q27: 2700 | R27: 0
C28: Pre-Flood Application | D28: 1 | F28: Acre | G28: 11.87 | I28: 11.87 | J28: 0 | K28: 0 | M28: 0 | N28: 0 | O28: 11.87 | P28: 0 | Q28: 5341.5 | R28: 0
C29: Aerial Application | D29: 4.5 | F29: Acre | G29: 7.8 | I29: 35.1 | J29: 0 | K29: 0 | M29: 0 | N29: 0 | O29: 35.1 | P29: 0 | Q29: 15795 | R29: 0
C30: Top Dress | D30: 1 | F30: Acre | G30: 9 | I30: 9 | J30: 0 | K30: 0 | M30: 0 | N30: 0 | O30: 9 | P30: 0 | Q30: 4050 | R30: 0
C31: Rice Hauling | D31: 80.5 | F31: CWT | G31: 0.45 | I31: 36.225 | J31: 0 | K31: 0 | M31: 0 | N31: 0 | O31: 36.225 | P31: 0 | Q31: 16301.25 | R31: 0
C32: Rice Drying | D32: 80.5 | F32: CWT | G32: 1.25 | I32: 100.625 | J32: 0 | K32: 0 | M32: 0 | N32: 0 | O32: 100.625 | P32: 0 | Q32: 45281.25 | R32: 0
B33: Miscellaneous
C34: Crop Insurance -Rice Enterprise | D34: 1 | F34: Acre | G34: 8.55 | I34: 8.55 | J34: 0 | K34: 0 | M34: 0 | N34: 0 | O34: 8.55 | P34: 0 | Q34: 3847.5 | R34: 0
C35: G&A Overhead | D35: 1 | F35: Acre | G35: 10.5 | I35: 10.5 | J35: 0 | K35: 0 | M35: 0 | N35: 0 | O35: 10.5 | P35: 0 | Q35: 4725 | R35: 0
C36: Pickup Milage Charge - Rice | D36: 1 | F36: Acre | G36: 18.5 | I36: 18.5 | J36: 0 | K36: 0 | M36: 0 | N36: 0 | O36: 18.5 | P36: 0 | Q36: 8325 | R36: 0
C37: Base Water Charge | D37: 1 | F37: Acre | G37: 66.32 | I37: 66.32 | J37: 0 | K37: 0 | M37: 0 | N37: 0 | O37: 66.32 | P37: 0 | Q37: 29844 | R37: 0
C38: Butt Up Field | D38: 1 | F38: Acre | G38: 4 | I38: 4 | J38: 0 | K38: 0 | M38: 0 | N38: 0 | O38: 4 | P38: 0 | Q38: 1800 | R38: 0
C39: Plastic | D39: 1 | F39: Acre | G39: 2.5 | I39: 2.5 | J39: 0 | K39: 0 | M39: 0 | N39: 0 | O39: 2.5 | P39: 0 | Q39: 1125 | R39: 0
C40: Pipe | D40: 1 | F40: Acre | G40: 3 | I40: 3 | J40: 0 | K40: 0 | M40: 0 | N40: 0 | O40: 3 | P40: 0 | Q40: 1350 | R40: 0
C41: Commission | D41: 70 | F41: CWT | G41: 0.08 | I41: 5.6 | J41: 0 | K41: 0 | M41: 0 | N41: 0 | O41: 5.6 | P41: 0 | Q41: 2520 | R41: 0
C42: Check Off | D42: 70 | F42: CWT | G42: 0.08 | I42: 5.6 | J42: 0 | K42: 0 | M42: 0 | N42: 0 | O42: 5.6 | P42: 0 | Q42: 2520 | R42: 0
C43: Rice Storage | D43: 70 | F43: CWT | G43: 0.32 | I43: 22.4 | J43: 0 | K43: 0 | M43: 0 | N43: 0 | O43: 22.4 | P43: 0 | Q43: 10080 | R43: 0
B44: Insecticide
C45: Waterweevil | D45: 1.6 | F45: Ounce | G45: 2.68 | I45: 4.288 | J45: 0 | K45: 0 | M45: 0 | N45: 0 | O45: 4.288 | P45: 0 | Q45: 1929.6 | R45: 0
C46: Stinkbug Pyrthyroid Rice | D46: 3.2 | F46: Ounce | G46: 2.68 | I46: 8.576 | J46: 0 | K46: 0 | M46: 0 | N46: 0 | O46: 8.576 | P46: 0 | Q46: 3859.2 | R46: 0
B47: Herbicide
C48: Clomazone | D48: 0.1 | F48: Gallon | G48: 140.15 | I48: 14.015 | J48: 0 | K48: 0 | M48: 0 | N48: 0 | O48: 14.015 | P48: 0 | Q48: 6306.75 | R48: 0
C49: Rice PostEmerge Herbicide 1 | D49: 1 | F49: Acre | G49: 20 | I49: 20 | J49: 0 | K49: 0 | M49: 0 | N49: 0 | O49: 20 | P49: 0 | Q49: 9000 | R49: 0
C50: Rice PostEmerge Herbicide 2 | D50: 7 | F50: Ounce | G50: 2.11 | I50: 14.77 | J50: 0 | K50: 0 | M50: 0 | N50: 0 | O50: 14.77 | P50: 0 | Q50: 6646.5 | R50: 0
B51: Other Chemicals
C52: Herbicide Surfactant | D52: 2.5 | F52: Acre | G52: 1.5 | I52: 3.75 | J52: 0 | K52: 0 | M52: 0 | N52: 0 | O52: 3.75 | P52: 0 | Q52: 1687.5 | R52: 0
C53: Fungicide Surfactant | D53: 1 | F53: Acre | G53: 0.45 | I53: 0.45 | J53: 0 | K53: 0 | M53: 0 | N53: 0 | O53: 0.45 | P53: 0 | Q53: 202.5 | R53: 0
B54: Fungicides
C55: Rice Fungicide | D55: 1 | F55: Acre | G55: 29.98 | I55: 29.98 | J55: 0 | K55: 0 | M55: 0 | N55: 0 | O55: 29.98 | P55: 0 | Q55: 13491 | R55: 0
D56: 0 | G56: 0 | I56: 0 | J56: 0 | K56: 0 | M56: 0 | N56: 0 | O56: 0 | P56: 0 | Q56: 0 | R56: 0
D57: 0 | G57: 0 | I57: 0 | J57: 0 | K57: 0 | M57: 0 | N57: 0 | O57: 0 | P57: 0 | Q57: 0 | R57: 0
D58: 0 | G58: 0 | I58: 0 | J58: =E58*H58 -> 0 | K58: 0 | M58: 0 | N58: =J58*L58 -> 0 | O58: 0 | P58: =+J58-N58 -> 0 | Q58: 0 | R58: =+J58*E$7 -> 0
B59: Irrigation
C60: Water Cost | D60: 2.75 | F60: AcreFoot | G60: 15.8 | I60: 43.45 | J60: =E60*H60 -> 0 | K60: 0 | M60: 0 | N60: =J60*L60 -> 0 | O60: 43.45 | P60: =+J60-N60 -> 0 | Q60: 19552.5 | R60: =+J60*E$7 -> 0
C61: Irrigation Labor | D61: 1.57 | F61: Hour | G61: 19.5 | I61: 30.615 | J61: 0 | K61: 0 | M61: 0 | N61: 0 | O61: 30.615 | P61: 0 | Q61: 13776.75 | R61: 0
B62: Machinery Labor
C63: Tractors/Self-Propelled | D63: 1.26 | F63: Hour | G63: 19.5 | I63: 24.57 | J63: =E63*H63 -> 0 | K63: 0 | M63: 0 | N63: =J63*L63 -> 0 | O63: 24.57 | P63: =+J63-N63 -> 0 | Q63: 11056.5 | R63: =+J63*E$7 -> 0
C64: Other Labor | D64: 0 | F64: Hour | G64: 19.5 | I64: 0 | J64: =E64*H64 -> 0 | K64: 0 | M64: 0 | N64: =J64*L64 -> 0 | O64: 0 | P64: =+J64-N64 -> 0 | Q64: 0 | R64: =+J64*E$7 -> 0
B66: Diesel Fuel
C67: Pickup/General Use Equipment | D67: 1 | F67: Acre | G67: 0 | I67: 0 | J67: =E67*H67 -> 0 | K67: 0 | M67: 0 | N67: =J67*L67 -> 0 | O67: 0 | P67: =+J67-N67 -> 0 | Q67: 0 | R67: =+J67*E$7 -> 0
C68: Tractors/Self-Propelled | D68: 12.4 | F68: Gallon | G68: 2.2 | I68: 27.28 | J68: =E68*H68 -> 0 | K68: 0 | M68: 0 | N68: =J68*L68 -> 0 | O68: 27.28 | P68: =+J68-N68 -> 0 | Q68: 12276 | R68: =+J68*E$7 -> 0
B70: Gasoline
C71: Pickup/General Use Equipment | D71: 1 | F71: Acre | G71: 0 | I71: 0 | J71: =E71*H71 -> 0 | K71: 0 | M71: 0 | N71: =J71*L71 -> 0 | O71: 0 | P71: =+J71-N71 -> 0 | Q71: 0 | R71: =+J71*E$7 -> 0
C72: Tractors/Self-Propelled | D72: 0 | F72: Gallon | G72: 2.4 | I72: 0 | J72: =E72*H72 -> 0 | K72: 0 | M72: 0 | N72: =J72*L72 -> 0 | O72: 0 | P72: =+J72-N72 -> 0 | Q72: 0 | R72: =+J72*E$7 -> 0
B74: Repairs & Maintenance
C75: Pickup/General Use Equipment | D75: 1 | F75: Acre | G75: 0 | I75: 0 | J75: =E75*H75 -> 0 | K75: 0 | M75: 0 | N75: =J75*L75 -> 0 | O75: 0 | P75: =+J75-N75 -> 0 | Q75: 0 | R75: =+J75*E$7 -> 0
C76: Irrigation Equipment | D76: 1 | F76: Acre | G76: 0.01185185185 | I76: 0.01185185185 | J76: 0 | K76: 0 | M76: 0 | N76: 0 | O76: 0.01185185185 | P76: 0 | Q76: 5.333333333 | R76: 0
C77: Tractors/Self-Propelled | D77: 1 | F77: Acre | G77: 40.18724886 | I77: 40.18724886 | J77: 0 | K77: 0 | M77: 0 | N77: 0 | O77: 40.18724886 | P77: 0 | Q77: 18084.26199 | R77: 0
C78: Implements | D78: 1 | F78: Acre | G78: 25.50689959 | I78: 25.50689959 | J78: 0 | K78: 0 | M78: 0 | N78: 0 | O78: 25.50689959 | P78: 0 | Q78: 11478.10482 | R78: 0
I79: 0 | J79: 0 | K79: 0 | M79: 0 | N79: 0 | O79: 0 | P79: 0 | Q79: 0 | R79: 0
I80: 0 | J80: 0 | K80: 0 | M80: 0 | N80: 0 | O80: 0 | P80: 0 | Q80: 0 | R80: 0
B81: Interest on Credit Line | G81: 0.06 | I81: 30.78759127 | J81: =+SUM(J18:J80)/2*H81 -> 0 | M81: 0 | N81: =+SUM(N18:N80)/2*L81 -> 0 | O81: 30.78759127 | P81: =+SUM(P18:P80)/2*L81 -> 0 | Q81: 13854.41607 | R81: =+J81*E$7 -> 0
A82: Total Variable Costs | I82: 858.0465916 | J82: =SUM(J19:J81) -> 0 | M82: 0 | N82: =SUM(N19:N81) -> 0 | O82: 858.0465916 | P82: =SUM(P19:P81) -> 0 | Q82: 386120.9662 | R82: =SUM(R19:R81) -> 0
A83: Planned Returns Above Variable Costs: | I83: 16.95340842 | J83: =+J14-J82 -> 0 | M83: 0 | N83: =+N14-N82 -> 0 | O83: 16.95340842 | P83: =+P14-P82 -> 0 | Q83: 7629.033787 | R83: =+R14-R82 -> 0
B84: Breakeven Price to Cover Variable Costs | G84: 6.757808451 | H84: =IF(E10=0,"n/a",(YVarExp-(YTotExp+YTotRet-J10))/E10) -> n/a | I84: CWT
Q85: Enterprise | R85: Enterprise
A86: FIXED COSTS | D86: Quantity | E86: Quantity | F86: Units | G86: $/Unit | H86: $/Unit | I86: Total | J86: Total | K86: Share | L86: Share | M86: Landlord | N86: Landlord | O86: Tenant | P86: Tenant | Q86: Total | R86: Total
B87: Machinery Depreciation
C88: Irrigation Equipment | D88: 1 | F88: Acre | G88: 0.237037037 | I88: 0.237037037 | J88: =E88*H88 -> 0 | K88: 0 | M88: 0 | N88: =J88*L88 -> 0 | O88: 0.237037037 | P88: =+J88-N88 -> 0 | Q88: 106.6666667 | R88: =+J88*E$7 -> 0
C89: Tractors/Self-Propelled | D89: 1 | F89: Acre | G89: 39.73553653 | I89: 39.73553653 | J89: 0 | K89: 0 | M89: 0 | N89: =J89*L89 -> 0 | O89: 39.73553653 | P89: 0 | Q89: 17880.99144 | R89: 0
C90: Implements | D90: 1 | F90: Acre | G90: 32.30434593 | I90: 32.30434593 | J90: 0 | K90: 0 | M90: 0 | N90: =J90*L90 -> 0 | O90: 32.30434593 | P90: 0 | Q90: 14536.95567 | R90: 0
B91: Equipment Investment
C92: Irrigation Equipment | D92: 1.777777778 | F92: Dollars | G92: 0.06 | I92: 0.1066666667 | J92: =E92*H92 -> 0 | K92: 0 | M92: 0 | N92: =J92*L92 -> 0 | O92: 0.1066666667 | P92: =+J92-N92 -> 0 | Q92: 48 | R92: =+J92*E$7 -> 0
C93: Tractors/Self-Propelled | D93: 305.9715935 | F93: Dollars | G93: 0.06 | I93: 18.35829561 | J93: 0 | K93: 0 | M93: 0 | N93: =J93*L93 -> 0 | O93: 18.35829561 | P93: 0 | Q93: 8261.233025 | R93: 0
C94: Implements | D94: 211.5870731 | F94: Dollars | G94: 0.06 | I94: 12.69522438 | J94: 0 | K94: 0 | M94: 0 | N94: =J94*L94 -> 0 | O94: 12.69522438 | P94: 0 | Q94: 5712.850973 | R94: 0
B95: Salaried Labor | D95: 1 | F95: Acre | G95: 0 | I95: 0 | J95: 0 | K95: 0 | M95: 0 | N95: =J95*L95 -> 0 | O95: 0 | P95: =+J95-N95 -> 0 | Q95: 0 | R95: =+J95*E$7 -> 0
B96: Management Fee, Owner/Operator Labor | D96: 1 | F96: Acre | G96: 43.75 | I96: 43.75 | J96: 0 | K96: 0 | M96: 0 | N96: 0 | O96: 43.75 | P96: 0 | Q96: 19687.5 | R96: 0
B97: Allocated Establishment Cost | D97: 1 | F97: Acre | G97: 0 | I97: 0 | J97: 0 | K97: 0 | M97: 0 | N97: 0 | O97: 0 | P97: 0 | Q97: 0 | R97: 0
B98: Rice - Land Charge | D98: 1 | F98: Acre | G98: 130 | I98: 130 | J98: 0 | K98: 0 | M98: 0 | N98: 0 | O98: 130 | P98: 0 | Q98: 58500 | R98: 0
B99: Property Taxes | D99: 1 | F99: Acre | G99: 0 | I99: 0 | J99: 0 | K99: 0 | M99: 0 | N99: 0 | O99: 0 | P99: 0 | Q99: 0 | R99: 0
B100: Whole Farm Insurance | D100: 1 | F100: Acre | G100: 0 | I100: 0 | J100: 0 | K100: 0 | M100: 0 | N100: 0 | O100: 0 | P100: 0 | Q100: 0 | R100: 0
D101: 1 | G101: 0 | I101: 0 | J101: 0 | K101: 0 | M101: 0 | N101: 0 | O101: 0 | P101: 0 | Q101: 0 | R101: 0
D102: 1 | G102: 0 | I102: 0 | J102: =E102*H102 -> 0 | K102: 0 | M102: 0 | N102: 0 | O102: 0 | P102: 0 | Q102: 0 | R102: 0
A103: Total Fixed Costs | I103: 277.1871062 | J103: =+SUM(J88:J102) -> 0 | M103: 0 | N103: =+SUM(N88:N102) -> 0 | O103: 277.1871062 | P103: =+SUM(P88:P102) -> 0 | Q103: 124734.1978 | R103: =+SUM(R88:R102) -> 0
A104: Total Specified Costs | I104: 1135.233698 | J104: =+J82+J103 -> 0 | M104: 0 | N104: =+N82+N103 -> 0 | O104: 1135.233698 | P104: =+P82+P103 -> 0 | Q104: 510855.164 | R104: =+R82+R103 -> 0
A106: Returns Above Specified Costs | I106: -260.2336977 | J106: =+J14-J104 -> 0 | M106: 0 | N106: =+N14-N104 -> 0 | O106: -260.2336977 | P106: =+P14-P104 -> 0 | Q106: -117105.164 | R106: =+R14-R104 -> 0
A108: Breakeven Price to Cover Total Costs | G108: 10.71762425 | H108: =IF(E10=0,"n/a",(YTotExp-(YTotExp+YTotRet-J10))/E10) -> n/a | I108: CWT
D110: Example Breakeven Prices
B111: Example | C111: Example | D111: To Cover | G111: To Cover
B112: Yield | C112: Yield | D112: Variable | G112: Total
B113: Percent | C113: CWT | D113: Costs | G113: Costs
B114: 0.75 | C114: 52.5 | D114: 9.010411268 | G114: 14.29016567
B115: 0.9 | C115: 63 | D115: 7.508676057 | G115: 11.90847139
B116: 1 | C116: 70 | D116: 6.757808451 | G116: 10.71762425
B117: 1.1 | C117: 77 | D117: 6.143462228 | G117: 9.743294776
B118: 1.25 | C118: 87.5 | D118: 5.406246761 | G118: 8.574099403
A120: Developed by Extension Economists, Texas A&M AgriLife Extension Service, budgets@tamu.edu.
A122: Information presented is prepared solely as a general guide and not intended to recognize or predict the costs and returns from any one operation. Brand names are mentioned only as examples and imply no endorsement.

Sheet RiceSecondCrop
A1: Projections for Planning Purposes Only -- Not to be Used without Updating
A2: 2021 Estimated Costs and Returns per Acre
A3: Rice West of Houston, 2nd Crop, Surface Water
A4: Enter your name for this budget in the cell above.
A5: Enter Your Values in the cells highlighed in MAROON.
E6: Your Acres | R6: Your
C7: Crop Acres | D7: 450 | L7: Your | Q7: Enterprise | R7: Enterprise
E8: Your | H8: Your | I8: Cash | J8: Your | K8: Landlord | L8: Landlord | N8: Your | P8: Your | Q8: Total | R8: Total
A9: REVENUE | D9: Quantity | E9: Quantity | F9: Units | G9: $/Unit | H9: $/Unit | I9: Total | J9: Total | K9: Share | L9: Share | M9: Landlord | N9: Landlord | O9: Tenant | P9: Tenant | Q9: (450 acres) | R9: ="(" & E7 & " acres)" -> ( acres)
B10: Rice 2nd Crop Loan | D10: 16 | F10: CWT | G10: 7 | I10: 112 | J10: =E10*H10 -> 0 | K10: 0 | M10: 0 | N10: =J10*L10 -> 0 | O10: 112 | P10: =+J10-N10 -> 0 | Q10: 50400 | R10: =+J10*E$7 -> 0
B11: Rice 2nd Crop Premium | D11: 16 | F11: CWT | G11: 5.5 | I11: 88 | J11: 0 | K11: 0 | M11: 0 | N11: 0 | O11: 88 | P11: =+J11-N11 -> 0 | Q11: 39600 | R11: 0
D12: 0 | G12: 0 | I12: 0 | J12: 0 | K12: 0 | M12: 0 | N12: 0 | O12: 0 | P12: 0 | Q12: 0 | R12: 0
D13: 0 | G13: 0 | I13: 0 | J13: 0 | K13: 0 | M13: 0 | N13: 0 | O13: 0 | P13: 0 | Q13: 0 | R13: 0
A14: Total Revenue | I14: 200 | J14: =SUM(J10:J13) -> 0 | M14: 0 | N14: =SUM(N10:N13) -> 0 | O14: 200 | P14: =SUM(P10:P13) -> 0 | Q14: 90000 | R14: =SUM(R10:R13) -> 0
Q15: Enterprise | R15: Enterprise
A16: VARIABLE COSTS | D16: Quantity | E16: Quantity | F16: Units | G16: $/Unit | H16: $/Unit | I16: Total | J16: Total | K16: Share | L16: Share | M16: Landlord | N16: Landlord | O16: Tenant | P16: Tenant | Q16: Total | R16: Total
A17: Production Costs
B18: Fertilizer
C19: 46-0-0` | D19: 0.075 | F19: Ton | G19: 365 | I19: 27.375 | J19: =E19*H19 -> 0 | K19: 0 | M19: 0 | N19: =J19*L19 -> 0 | O19: 27.375 | P19: =+J19-N19 -> 0 | Q19: 12318.75 | R19: =+J19*E$7 -> 0
B20: Custom
C21: Top Dress | D21: 1 | F21: Acre | G21: 9 | I21: 9 | J21: 0 | K21: 0 | M21: 0 | N21: 0 | O21: 9 | P21: 0 | Q21: 4050 | R21: 0
C22: Aerial Application | D22: 1 | F22: Acre | G22: 7.8 | I22: 7.8 | J22: 0 | K22: 0 | M22: 0 | N22: 0 | O22: 7.8 | P22: 0 | Q22: 3510 | R22: 0
C23: Rice Hauling | D23: 19.3 | F23: CWT | G23: 0.45 | I23: 8.685 | J23: 0 | K23: 0 | M23: 0 | N23: 0 | O23: 8.685 | P23: 0 | Q23: 3908.25 | R23: 0
C24: Rice Drying | D24: 19.3 | F24: CWT | G24: 1.25 | I24: 24.125 | J24: 0 | K24: 0 | M24: 0 | N24: 0 | O24: 24.125 | P24: 0 | Q24: 10856.25 | R24: 0
B25: Insecticide
C26: Stinkbug Rice | D26: 0.222222 | F26: Pint | G26: 19.36 | I26: 4.30221792 | J26: 0 | K26: 0 | M26: 0 | N26: 0 | O26: 4.30221792 | P26: 0 | Q26: 1935.998064 | R26: 0
B27: Miscellaneous
C28: Check Off | D28: 16 | F28: CWT | G28: 0.08 | I28: 1.28 | J28: 0 | K28: 0 | M28: 0 | N28: 0 | O28: 1.28 | P28: 0 | Q28: 576 | R28: 0
C29: Commission | D29: 16 | F29: CWT | G29: 0.08 | I29: 1.28 | J29: 0 | K29: 0 | M29: 0 | N29: 0 | O29: 1.28 | P29: 0 | Q29: 576 | R29: 0
C30: Rice Storage | D30: 16 | F30: CWT | G30: 0.32 | I30: 5.12 | J30: 0 | K30: 0 | M30: 0 | N30: 0 | O30: 5.12 | P30: 0 | Q30: 2304 | R30: 0
D31: 0 | G31: 0 | I31: 0 | J31: 0 | K31: 0 | M31: 0 | N31: 0 | O31: 0 | P31: 0 | Q31: 0 | R31: 0
D32: 0 | G32: 0 | I32: 0 | J32: 0 | K32: 0 | M32: 0 | N32: 0 | O32: 0 | P32: 0 | Q32: 0 | R32: 0
D33: 0 | G33: 0 | I33: 0 | J33: =E33*H33 -> 0 | K33: 0 | M33: 0 | N33: =J33*L33 -> 0 | O33: 0 | P33: =+J33-N33 -> 0 | Q33: 0 | R33: =+J33*E$7 -> 0
B34: Irrigation
C35: Water Cost | D35: 1.9 | F35: AcreFoot | G35: 18.89 | I35: 35.891 | J35: =E35*H35 -> 0 | K35: 0 | M35: 0 | N35: =J35*L35 -> 0 | O35: 35.891 | P35: =+J35-N35 -> 0 | Q35: 16150.95 | R35: =+J35*E$7 -> 0
C36: Irrigation Labor | D36: 0.71 | F36: Hour | G36: 19.5 | I36: 13.845 | J36: 0 | K36: 0 | M36: 0 | N36: 0 | O36: 13.845 | P36: 0 | Q36: 6230.25 | R36: 0
B37: Machinery Labor
C38: Tractors/Self-Propelled | D38: 0.23 | F38: Hour | G38: 19.5 | I38: 4.485 | J38: =E38*H38 -> 0 | K38: 0 | M38: 0 | N38: =J38*L38 -> 0 | O38: 4.485 | P38: =+J38-N38 -> 0 | Q38: 2018.25 | R38: =+J38*E$7 -> 0
C39: Other Labor | D39: 0 | F39: Hour | G39: 19.5 | I39: 0 | J39: =E39*H39 -> 0 | K39: 0 | M39: 0 | N39: =J39*L39 -> 0 | O39: 0 | P39: =+J39-N39 -> 0 | Q39: 0 | R39: =+J39*E$7 -> 0
B41: Diesel Fuel
C42: Pickup/General Use Equipment | D42: 1 | F42: Acre | G42: 0 | I42: 0 | J42: =E42*H42 -> 0 | K42: 0 | M42: 0 | N42: =J42*L42 -> 0 | O42: 0 | P42: =+J42-N42 -> 0 | Q42: 0 | R42: =+J42*E$7 -> 0
C43: Tractors/Self-Propelled | D43: 1.95 | F43: Gallon | G43: 2.2 | I43: 4.29 | J43: =E43*H43 -> 0 | K43: 0 | M43: 0 | N43: =J43*L43 -> 0 | O43: 4.29 | P43: =+J43-N43 -> 0 | Q43: 1930.5 | R43: =+J43*E$7 -> 0
B45: Gasoline
C46: Pickup/General Use Equipment | D46: 1 | F46: Acre | G46: 0 | I46: 0 | J46: =E46*H46 -> 0 | K46: 0 | M46: 0 | N46: =J46*L46 -> 0 | O46: 0 | P46: =+J46-N46 -> 0 | Q46: 0 | R46: =+J46*E$7 -> 0
C47: Tractors/Self-Propelled | D47: 0 | F47: Gallon | G47: 2.4 | I47: 0 | J47: =E47*H47 -> 0 | K47: 0 | M47: 0 | N47: =J47*L47 -> 0 | O47: 0 | P47: =+J47-N47 -> 0 | Q47: 0 | R47: =+J47*E$7 -> 0
B49: Repairs & Maintenance
C50: Pickup/General Use Equipment | D50: 1 | F50: Acre | G50: 0 | I50: 0 | J50: =E50*H50 -> 0 | K50: 0 | M50: 0 | N50: =J50*L50 -> 0 | O50: 0 | P50: =+J50-N50 -> 0 | Q50: 0 | R50: =+J50*E$7 -> 0
C51: Irrigation Equipment | D51: 1 | F51: Acre | G51: 0.01185185185 | I51: 0.01185185185 | J51: 0 | K51: 0 | M51: 0 | N51: 0 | O51: 0.01185185185 | P51: 0 | Q51: 5.333333333 | R51: 0
C52: Tractors/Self-Propelled | D52: 1 | F52: Acre | G52: 9.151022106 | I52: 9.151022106 | J52: 0 | K52: 0 | M52: 0 | N52: 0 | O52: 9.151022106 | P52: 0 | Q52: 4117.959948 | R52: 0
C53: Implements | D53: 1 | F53: Acre | G53: 1.833278474 | I53: 1.833278474 | J53: 0 | K53: 0 | M53: 0 | N53: 0 | O53: 1.833278474 | P53: 0 | Q53: 824.9753135 | R53: 0
I54: 0 | J54: 0 | K54: 0 | M54: 0 | N54: 0 | O54: 0 | P54: 0 | Q54: 0 | R54: 0
I55: 0 | J55: 0 | K55: 0 | M55: 0 | N55: 0 | O55: 0 | P55: 0 | Q55: 0 | R55: 0
B56: Interest on Credit Line | G56: 0.06 | I56: 1.140257472 | J56: =+SUM(J18:J55)/2*H56 -> 0 | M56: 0 | N56: =+SUM(N18:N55)/2*L56 -> 0 | O56: 1.140257472 | P56: =+SUM(P18:P55)/2*L56 -> 0 | Q56: 513.1158626 | R56: =+J56*E$7 -> 0
A57: Total Variable Costs | I57: 159.6146278 | J57: =SUM(J19:J56) -> 0 | M57: 0 | N57: =SUM(N19:N56) -> 0 | O57: 159.6146278 | P57: =SUM(P19:P56) -> 0 | Q57: 71826.58252 | R57: =SUM(R19:R56) -> 0
A58: Planned Returns Above Variable Costs: | I58: 40.38537218 | J58: =+J14-J57 -> 0 | M58: 0 | N58: =+N14-N57 -> 0 | O58: 40.38537218 | P58: =+P14-P57 -> 0 | Q58: 18173.41748 | R58: =+R14-R57 -> 0
B59: Breakeven Price to Cover Variable Costs | G59: 4.475914239 | H59: =IF(E10=0,"n/a",(YVarExp-(YTotExp+YTotRet-J10))/E10) -> n/a | I59: CWT
Q60: Enterprise | R60: Enterprise
A61: FIXED COSTS | D61: Quantity | E61: Quantity | F61: Units | G61: $/Unit | H61: $/Unit | I61: Total | J61: Total | K61: Share | L61: Share | M61: Landlord | N61: Landlord | O61: Tenant | P61: Tenant | Q61: Total | R61: Total
B62: Machinery Depreciation
C63: Irrigation Equipment | D63: 1 | F63: Acre | G63: 0.237037037 | I63: 0.237037037 | J63: =E63*H63 -> 0 | K63: 0 | M63: 0 | N63: =J63*L63 -> 0 | O63: 0.237037037 | P63: =+J63-N63 -> 0 | Q63: 106.6666667 | R63: =+J63*E$7 -> 0
C64: Tractors/Self-Propelled | D64: 1 | F64: Acre | G64: 8.381283799 | I64: 8.381283799 | J64: 0 | K64: 0 | M64: 0 | N64: =J64*L64 -> 0 | O64: 8.381283799 | P64: 0 | Q64: 3771.577709 | R64: 0
C65: Implements | D65: 1 | F65: Acre | G65: 2.085469551 | I65: 2.085469551 | J65: 0 | K65: 0 | M65: 0 | N65: =J65*L65 -> 0 | O65: 2.085469551 | P65: 0 | Q65: 938.4612981 | R65: 0
B66: Equipment Investment
C67: Irrigation Equipment | D67: 1.777777778 | F67: Dollars | G67: 0.06 | I67: 0.1066666667 | J67: =E67*H67 -> 0 | K67: 0 | M67: 0 | N67: =J67*L67 -> 0 | O67: 0.1066666667 | P67: =+J67-N67 -> 0 | Q67: 48 | R67: =+J67*E$7 -> 0
C68: Tractors/Self-Propelled | D68: 63.14427205 | F68: Dollars | G68: 0.06 | I68: 3.788656323 | J68: 0 | K68: 0 | M68: 0 | N68: =J68*L68 -> 0 | O68: 3.788656323 | P68: 0 | Q68: 1704.895345 | R68: 0
C69: Implements | D69: 33.9653694 | F69: Dollars | G69: 0.06 | I69: 2.037922164 | J69: 0 | K69: 0 | M69: 0 | N69: =J69*L69 -> 0 | O69: 2.037922164 | P69: 0 | Q69: 917.0649738 | R69: 0
B70: Salaried Labor | D70: 1 | F70: Acre | G70: 0 | I70: 0 | J70: 0 | K70: 0 | M70: 0 | N70: =J70*L70 -> 0 | O70: 0 | P70: =+J70-N70 -> 0 | Q70: 0 | R70: =+J70*E$7 -> 0
B71: Management Fee, Owner/Operator Labor | D71: 1 | F71: Acre | G71: 10 | I71: 10 | J71: 0 | K71: 0 | M71: 0 | N71: 0 | O71: 10 | P71: 0 | Q71: 4500 | R71: 0
B72: Allocated Establishment Cost | D72: 1 | F72: Acre | G72: 0 | I72: 0 | J72: 0 | K72: 0 | M72: 0 | N72: 0 | O72: 0 | P72: 0 | Q72: 0 | R72: 0
B73: None | D73: 1 | F73: Acre | G73: 0 | I73: 0 | J73: 0 | K73: 0 | M73: 0 | N73: 0 | O73: 0 | P73: 0 | Q73: 0 | R73: 0
B74: Property Taxes | D74: 1 | F74: Acre | G74: 0 | I74: 0 | J74: 0 | K74: 0 | M74: 0 | N74: 0 | O74: 0 | P74: 0 | Q74: 0 | R74: 0
B75: Whole Farm Insurance | D75: 1 | F75: Acre | G75: 0 | I75: 0 | J75: 0 | K75: 0 | M75: 0 | N75: 0 | O75: 0 | P75: 0 | Q75: 0 | R75: 0
D76: 1 | G76: 0 | I76: 0 | J76: 0 | K76: 0 | M76: 0 | N76: 0 | O76: 0 | P76: 0 | Q76: 0 | R76: 0
D77: 1 | G77: 0 | I77: 0 | J77: =E77*H77 -> 0 | K77: 0 | M77: 0 | N77: 0 | O77: 0 | P77: 0 | Q77: 0 | R77: 0
A78: Total Fixed Costs | I78: 26.63703554 | J78: =+SUM(J63:J77) -> 0 | M78: 0 | N78: =+SUM(N63:N77) -> 0 | O78: 26.63703554 | P78: =+SUM(P63:P77) -> 0 | Q78: 11986.66599 | R78: =+SUM(R63:R77) -> 0
A79: Total Specified Costs | I79: 186.2516634 | J79: =+J57+J78 -> 0 | M79: 0 | N79: =+N57+N78 -> 0 | O79: 186.2516634 | P79: =+P57+P78 -> 0 | Q79: 83813.24851 | R79: =+R57+R78 -> 0
A81: Returns Above Specified Costs | I81: 13.74833664 | J81: =+J14-J79 -> 0 | M81: 0 | N81: =+N14-N79 -> 0 | O81: 13.74833664 | P81: =+P14-P79 -> 0 | Q81: 6186.751486 | R81: =+R14-R79 -> 0
A83: Breakeven Price to Cover Total Costs | G83: 6.14072896 | H83: =IF(E10=0,"n/a",(YTotExp-(YTotExp+YTotRet-J10))/E10) -> n/a | I83: CWT
D85: Example Breakeven Prices
B86: Example | C86: Example | D86: To Cover | G86: To Cover
B87: Yield | C87: Yield | D87: Variable | G87: Total
B88: Percent | C88: CWT | D88: Costs | G88: Costs
B89: 0.75 | C89: 12 | D89: 5.967885652 | G89: 8.187638614
B90: 0.9 | C90: 14.4 | D90: 4.973238043 | G90: 6.823032178
B91: 1 | C91: 16 | D91: 4.475914239 | G91: 6.14072896
B92: 1.1 | C92: 17.6 | D92: 4.069012945 | G92: 5.582480873
B93: 1.25 | C93: 20 | D93: 3.580731391 | G93: 4.912583168
A95: Developed by Extension Economists, Texas A&M AgriLife Extension Service, budgets@tamu.edu.
A97: Information presented is prepared solely as a general guide and not intended to recognize or predict the costs and returns from any one operation. Brand names are mentioned only as examples and imply no endorsement.

Sheet CowCalf
A1: Projections for Planning Purposes Only -- Not to be Used without Updating
A2: 2021 Estimated Costs and Returns per Animal Unit
A3: Cow-Calf Improved Pasture
A4: Enter your name for this budget in the cell above.
A5: Enter Your Values in the cells highlighed in MAROON.
E6: Your Cows
B7: Animal Units (AU) | D7: 100 | F7: Animal Unit | N7: Your
B8: Breeding Females | D8: 100 | F8: Calf | G8: Your | M8: Enterprise | N8: Enterprise
E9: Your | F9: Quantity | G9: Quantity | J9: Your | L9: Your | M9: Total | N9: Total
A10: REVENUE | D10: Head | E10: Head | F10: Per Head | G10: Per Head | H10: Units | I10: $/Unit | J10: $/Unit | K10: Total | L10: Total | M10: ="(" & D7 & " AUs)" -> (100 AUs) | N10: ="(" & E7 & " AUs)" -> ( AUs)
B11: Steer | D11: 0.43 | F11: 4.8 | H11: CWT | I11: 160 | K11: 330.24 | L11: =+E11*G11*J11 -> 0 | M11: 33024 | N11: =+L11*E$7 -> 0
B12: Heifer | D12: 0.43 | F12: 4.5 | H12: CWT | I12: 150 | K12: 290.25 | L12: =+E12*G12*J12 -> 0 | M12: 29025 | N12: =+L12*E$7 -> 0
B13: Cull Cow | D13: 0.15 | F13: 9 | H13: CWT | I13: 55 | K13: 74.25 | L13: 0 | M13: 7425 | N13: 0
B14: Cull Bull | D14: 0.01 | F14: 16 | H14: CWT | I14: 65 | K14: 10.4 | L14: 0 | M14: 1040 | N14: 0
D15: 0 | F15: 0 | I15: 0 | K15: 0 | L15: 0 | M15: 0 | N15: 0
D16: 0 | F16: 0 | I16: 0 | K16: 0 | L16: 0 | M16: 0 | N16: 0
A17: Total Revenue | F17: 399.9 | K17: 705.14 | L17: =+SUM(L11:L16) -> 0 | M17: 70514 | N17: =+SUM(N11:N16) -> 0
F18: 550.9
F19: 151 | M19: Enterprise | N19: Enterprise
A20: VARIABLE COSTS | F20: Quantity | G20: Quantity | H20: Units | I20: $/Unit | J20: $/Unit | K20: Total | L20: Total | M20: Total | N20: Total
A21: Production Costs
B22: Miscellaneous
F23: 1 | I23: 0 | K23: 0 | L23: =+J23*G23 -> 0 | M23: 0 | N23: =+L23*E$7 -> 0
F24: 1 | I24: 0 | K24: 0 | L24: 0 | M24: 0 | N24: 0
B25: Marketing Expense | F25: 1 | H25: AU | I25: 31.188 | K25: 31.188 | L25: 0 | M25: 3118.8 | N25: 0
B26: Feed
C27: Bermuda Hay | F27: 2 | H27: Roll | I27: 65 | K27: 130 | L27: =+J27*G27 -> 0 | M27: 13000 | N27: =+L27*E$7 -> 0
C28: 40% Cottonseed Meal Cubes | F28: 1 | H28: CWT | I28: 29.75 | K28: 29.75 | L28: 0 | M28: 2975 | N28: 0
C29: Salt and Mineral | F29: 40 | H29: Pound | I29: 0.19 | K29: 7.6 | L29: 0 | M29: 760 | N29: 0
F30: 0 | I30: 0 | K30: 0 | L30: 0 | M30: 0 | N30: 0
F31: 0 | I31: 0 | K31: 0 | L31: 0 | M31: 0 | N31: 0
F32: 0 | I32: 0 | K32: 0 | L32: 0 | M32: 0 | N32: 0
B33: Vet. Medicine
C34: Bull Exam | F34: 0.04 | H34: Head | I34: 75 | K34: 3 | L34: =+J34*G34 -> 0 | M34: 300 | N34: =+L34*E$7 -> 0
C35: Fly Control | F35: 1.9 | H35: Head | I35: 2.85 | K35: 5.415 | L35: 0 | M35: 541.5 | N35: 0
C36: 4-Way Respiratory + Vibrio + Lepto | F36: 1.04 | H36: Head | I36: 2.03 | K36: 2.1112 | L36: 0 | M36: 211.12 | N36: 0
C37: 8-Way Clostridials | F37: 2.94 | H37: Head | I37: 0.48 | K37: 1.4112 | L37: 0 | M37: 141.12 | N37: 0
C38: Dewormer-Avermectin | F38: 2.35 | H38: Head | I38: 3.71 | K38: 8.7185 | L38: 0 | M38: 871.85 | N38: 0
C39: Implants | F39: 0.43 | H39: Head | I39: 1.38 | K39: 0.5934 | L39: 0 | M39: 59.34 | N39: 0
C40: Pregnancy Check | F40: 1 | H40: Head | I40: 6 | K40: 6 | L40: 0 | M40: 600 | N40: 0
C41: Pasturella+8 Way Clostridial | F41: 0.86 | H41: Head | I41: 3.44 | K41: 2.9584 | L41: 0 | M41: 295.84 | N41: 0
C42: 4-Way Respiratory + Vibrio +Lepto | F42: 0.86 | H42: Head | I42: 2.03 | K42: 1.7458 | L42: 0 | M42: 174.58 | N42: 0
F43: 0 | I43: 0 | K43: 0 | L43: 0 | M43: 0 | N43: 0
F44: 0 | I44: 0 | K44: 0 | L44: 0 | M44: 0 | N44: 0
F45: 0 | I45: 0 | K45: 0 | L45: 0 | M45: 0 | N45: 0
B46: Fuel | F46: 1 | H46: AU | I46: 7.728 | K46: 7.728 | L46: 0 | M46: 772.8 | N46: 0
B47: Lube (As a % of fuel) | F47: 0.05 | H47: Percent | I47: 7.728 | K47: 0.3864 | L47: 0 | M47: 38.64 | N47: 0
B48: Repairs | F48: 1 | H48: AU | I48: 10.11393333 | K48: 10.11393333 | L48: 0 | M48: 1011.393333 | N48: 0
B49: Labor | F49: 0.4 | H49: Hours | I49: 17 | K49: 6.8 | L49: 0 | M49: 680 | N49: 0
B50: Utilities | F50: 1 | H50: AU | I50: 0 | K50: 0 | L50: 0 | M50: 0 | N50: 0
K51: 0 | L51: =+J51*G51 -> 0 | M51: 0 | N51: 0
B52: Purchase Breeding Female | F52: 1 | I52: 0 | K52: 0 | L52: 0 | M52: 0 | N52: 0
B53: Purchase Breeding Male | F53: 1 | I53: 0 | K53: 0 | L53: 0 | M53: 0 | N53: 0
B54: Purchase Older Repalcement Female | F54: 1 | I54: 0 | K54: 0 | L54: 0 | M54: 0 | N54: 0
B55: Purchase Younger Repalcement Female | F55: 1 | I55: 0 | K55: 0 | L55: 0 | M55: 0 | N55: 0
B56: Interest on Credit Line | I56: 0.06 | K56: 14.42488648 | L56: =+SUM(L21:L55)/2*J56 -> 0 | M56: 1442.488648 | N56: 0
A57: Total Variable Costs | K57: 269.9447198 | L57: =+SUM(L23:L56) -> 0 | M57: 26994.47198 | N57: =+SUM(N23:N56) -> 0
A59: Planned Returns Above Variable Costs: | K59: 435.1952802 | L59: =+L17-L57 -> 0 | M59: 43519.52802 | N59: =+N17-N57 -> 0
B60: Average Calf Breakeven Price to Cover Variable Costs | I60: 46.33526377 | J60: =IF((E11*G11+E12*G12)=0,"n/a",(L57-SUM(L13:L16))/(E11*G11+E12*G12)) -> n/a | K60: CWT
M61: Enterprise | N61: Enterprise
A62: FIXED COSTS | F62: Quantity | G62: Quantity | H62: Units | I62: $/Unit | J62: $/Unit | K62: Total | L62: Total | M62: Total | N62: Total
B63: Depreciation - Equipment | F63: 1 | H63: AU | I63: 28.71566667 | K63: 28.71566667 | L63: =+G63*J63 -> 0 | M63: 2871.566667 | N63: =+L63*E$7 -> 0
B64: Depreciation - Livestock | F64: 1 | H64: AU | I64: 186.4285714 | K64: 186.4285714 | L64: 0 | M64: 18642.85714 | N64: 0
B65: Equipment Investment | F65: 140.7965 | H65: dollars | I65: 0.06 | K65: 8.44779 | L65: 0 | M65: 844.779 | N65: 0
B66: Insurance | F66: 1 | H66: AU | I66: 0 | K66: 0 | L66: 0 | M66: 0 | N66: 0
B67: Management Fee, Owner/Operator Labor | F67: 1 | H67: AU | I67: 20 | K67: 20 | L67: =+J67*G67 -> 0 | M67: 2000 | N67: 0
B68: Salaried Labor | F68: 1 | H68: AU | I68: 0 | K68: 0 | L68: =+J68*G68 -> 0 | M68: 0 | N68: 0
B69: Pasture Cost | F69: 8 | H69: Acres | I69: 20 | K69: 160 | L69: 0 | M69: 16000 | N69: 0
K70: 0 | L70: =+G70*J70 -> 0 | M70: 0 | N70: 0
K71: 0 | L71: 0 | M71: 0 | N71: 0
A72: Total Fixed Costs | K72: 403.5920281 | L72: =+SUM(L63:L69) -> 0 | M72: 40359.20281 | N72: =+SUM(N63:N69) -> 0
A73: Total Costs | K73: 673.5367479 | L73: =+L57+L72 -> 0 | M73: 67353.67479 | N73: =+N57+N72 -> 0
A74: Planned Returns to Management, Risk, and Profit: | K74: 31.60325209 | L74: =+L17-L73 -> 0 | M74: 3160.325209 | N74: =+N17-N73 -> 0
B75: Average Calf Breakeven Price to Cover Total Costs | I75: 147.2585016 | J75: =IF((E11*G11+E12*G12)=0,"n/a",(L73-SUM(L13:L16))/(E11*G11+E12*G12)) -> n/a | K75: CWT
C77: Sensitivity Analysis for Example
C78: Example Weaning Percent | D78: Example Gross Sales per Animal Unit | F78: Pounds Produced per Animal Unit | H78: Example Breakeven Calf Pay Weight to Cover Total Cost | K78: Example Average Breakeven Price to Cover Total Cost
C79: 0.92 | D79: 748.43 | F79: 578.8 | H79: 492.8987009 | K79: 137.6546863
C80: 0.89 | D80: 726.785 | F80: 564.85 | H80: 512.8810807 | K80: 142.2947319
C81: 0.86 | D81: 705.14 | F81: 550.9 | H81: 534.5521122 | K81: 147.2585016
C82: 0.83 | D82: 683.495 | F82: 536.95 | H82: 558.1352937 | K82: 152.581098
C83: 0.8 | D83: 661.85 | F83: 523 | H83: 583.8953841 | K83: 158.3028892
D85: ="Example Male "&F8&" Price" -> Example Male Calf Price | K85: =+I11 -> 160
D86: ="Example Female "&F8&" Price" -> Example Female Calf Price | K86: =+I12 -> 150
D87: ="Example Weighted Average "&F8&" Price ($/cwt)" -> Example Weighted Average Calf Price ($/cwt) | K87: =+(K11+K12)/(D11*F11+D12*F12) -> 155.1612903
A89: Developed by Extension Economists, Texas A&M AgriLife Extension Service, budgets@tamu.edu.
A91: Information presented is prepared solely as a general guide and not intended to recognize or predict the costs and returns from any one operation. Brand names are mentioned only as examples and imply no endorsement.

Sheet StockersSummer
A1: Projections for Planning Purposes Only -- Not to be Used without Updating
A2: 2021 Estimated Costs and Returns per Animal
A3: Summer Stocker Calf Budget (160 Days Grazing)
A4: Enter your name for this budget in the cell above.
A5: Enter Your Values in the cells highlighed in MAROON. | M5: Stocker
E6: Your Head | N6: Your
B7: Number of Head | D7: 320 | G7: Your | M7: Enterprise | N7: Enterprise
E8: Your | F8: Pay Weight | G8: Weight | J8: Your | L8: Your | M8: Total | N8: Total
A9: REVENUE | D9: Head | E9: Head | F9: or Amount | G9: or Amount | H9: Units | I9: $/Unit | J9: $/Unit | K9: Total | L9: Total | M9: ="(" & D7 & " Head)" -> (320 Head) | N9: ="(" & E7 & " Head)" -> ( Head)
B11: Stocker | D11: 0.96 | F11: 7.5 | H11: CWT | I11: 151 | K11: 1087.2 | L11: =+J11*G11*E11 -> 0 | M11: 347904 | N11: =+L11*E$7 -> 0
D12: 0.96 | F12: 0 | I12: 0 | K12: 0 | L12: 0 | M12: 0 | N12: 0
D13: 0.96 | F13: 0 | I13: 0 | K13: 0 | L13: 0 | M13: 0 | N13: 0
A14: Total Revenue | K14: 1087.2 | L14: =+L11 -> 0 | M14: 347904 | N14: 0
M15: Enterprise | N15: Enterprise
A16: VARIABLE COSTS | F16: Quantity | G16: Quantity | H16: Units | I16: $/Unit | J16: $/Unit | K16: Total | L16: Total | M16: Total | N16: Total
A17: Production Costs
B18: Stocker Purchase | F18: 5 | H18: CWT | I18: 155 | K18: 775 | L18: =+J18*G18 -> 0 | M18: 248000 | N18: =+L18*E$7 -> 0
B19: Stocker Delivery | F19: 1 | H19: Head | I19: 7.5 | K19: 7.5 | L19: =+J19*G19 -> 0 | M19: 2400 | N19: =+L19*E$7 -> 0
B20: Grazing
C21: Acre Lease | F21: 0.003125 | H21: Acre | I21: 0 | K21: 0 | L21: 0 | M21: 0 | N21: =+L21*E$7 -> 0
C22: Grazing by Month | F22: 5 | H22: Month | I22: 10 | K22: 50 | L22: 0 | M22: 16000 | N22: 0
C23: Gain Contract | F23: 0 | H23: Pounds | I23: 0 | K23: 0 | L23: 0 | M23: 0 | N23: 0
C24: On Weight Per Month | F24: 0 | H24: Month | I24: 0 | K24: 0 | L24: =+G24*J24*G18 -> 0 | M24: 0 | N24: 0
B25: Health
C26: Health and Vet - Stocker | F26: 6.73 | H26: Ounce | I26: 1.16 | K26: 7.8068 | L26: =+J26*G26 -> 0 | M26: 2498.176 | N26: =+L26*E$7 -> 0
F27: 0 | I27: 0 | K27: 0 | L27: 0 | M27: 0 | N27: 0
F28: 0 | I28: 0 | K28: 0 | L28: 0 | M28: 0 | N28: 0
F29: 0 | I29: 0 | K29: 0 | L29: 0 | M29: 0 | N29: 0
B30: Feed
C31: Salt and Mineral | F31: 15 | H31: Pound | I31: 0.19 | K31: 2.85 | L31: 0 | M31: 912 | N31: 0
F32: 0 | I32: 0 | K32: 0 | L32: 0 | M32: 0 | N32: 0
F33: 0 | I33: 0 | K33: 0 | L33: 0 | M33: 0 | N33: 0
F34: 0 | I34: 0 | K34: 0 | L34: 0 | M34: 0 | N34: 0
B35: Miscellaneous
C36: Preconditioning | F36: 1 | H36: Acre | I36: 2.5 | K36: 2.5 | L36: =+J36*G36 -> 0 | M36: 800 | N36: =+L36*E$7 -> 0
F37: 1 | I37: 0 | K37: 0 | L37: 0 | M37: 0 | N37: 0
F38: 1 | I38: 0 | K38: 0 | L38: 0 | M38: 0 | N38: 0
B39: Fuel | F39: 1 | H39: Head | I39: 0 | K39: 0 | L39: 0 | M39: 0 | N39: 0
B40: Lube (As a % of fuel) | F40: 0.1 | H40: Percent | I40: 0 | K40: 0 | L40: 0 | M40: 0 | N40: 0
B41: Utilities | F41: 1 | H41: Head | I41: 0 | K41: 0 | L41: 0 | M41: 0 | N41: 0
B42: Repairs | F42: 1 | H42: Head | I42: 0 | K42: 0 | L42: 0 | M42: 0 | N42: 0
B43: Marketing | F43: 0.96 | H43: Head | I43: 0 | K43: 0 | L43: 0 | M43: 0 | N43: 0
B44: Labor | F44: 1 | H44: Head | I44: 132.04375 | K44: 132.04375 | L44: 0 | M44: 42254 | N44: 0
K45: 0 | L45: =+J45*G45 -> 0 | M45: 0 | N45: =+L45*E$7 -> 0
K46: 0 | L46: =+J46*G46 -> 0 | M46: 0 | N46: =+L46*E$7 -> 0
B47: Interest on Credit Line | I47: 0.06 | K47: 23.49455045 | L47: =+SUM(L18:L44)*J47/2 -> 0 | M47: 7518.256144 | N47: 0
A48: Total Variable Costs | K48: 1001.1951 | L48: =+SUM(L18:L47) -> 0 | M48: 320382.4321 | N48: =+SUM(N18:N47) -> 0
A50: Planned Returns Above Variable Costs: | K50: 86.00489955 | L50: =+L14-L48 -> 0 | M50: 27521.56786 | N50: =+N14-N48 -> 0
B52: Breakeven Price to Cover Variable Costs | I52: 139.0548751 | J52: =+IF(G11=0,"n/a",(L48-SUM(L12:L13))/(G11*E11)) -> n/a | K52: CWT
M53: Enterprise | N53: Enterprise
A54: FIXED COSTS | F54: Quantity | G54: Quantity | H54: Units | I54: $/Unit | J54: $/Unit | K54: Total | L54: Total | M54: Total | N54: Total
B56: Depreciation | F56: 1 | H56: Head | I56: 0 | K56: 0 | L56: =+J56*G56 -> 0 | M56: 0 | N56: =+L56*E$7 -> 0
B57: Equipment Investment | F57: 0 | H57: dollars | I57: 0.06 | K57: 0 | L57: 0 | M57: 0 | N57: 0
B58: Salaried Labor | F58: 1 | H58: Head | I58: 0 | K58: 0 | L58: 0 | M58: 0 | N58: 0
B59: Management Fee, Owner/Operator Labor | F59: 1 | H59: Head | I59: 0 | K59: 0 | L59: 0 | M59: 0 | N59: 0
B60: Insurance | F60: 1 | H60: Head | I60: 0 | K60: 0 | L60: 0 | M60: 0 | N60: 0
K61: 0 | L61: 0 | M61: 0 | N61: 0
K62: 0 | L62: 0 | M62: 0 | N62: 0
A63: Total Fixed Costs | K63: 0 | L63: =+SUM(L56:L60) -> 0 | M63: 0 | N63: =+SUM(N56:N60) -> 0
A65: Total Costs | K65: 1001.1951 | L65: =+L48+L63 -> 0 | M65: 320382.4321 | N65: =+N48+N63 -> 0
A67: Planned Returns to Management, Risk, and Profit: | K67: 86.00489955 | L67: =+L50-L63 -> 0 | M67: 27521.56786 | N67: =+N50-N63 -> 0
A69: Breakeven Price to Cover Total Costs | I69: 139.0548751 | J69: =+IF(G11=0,"n/a",(L65-SUM(L12:L13))/(G11*E11)) -> n/a | K69: CWT
C71: Example Breakeven Sensitivity Analysis
F72: Purchase Weight (Lbs/Hd): 500 | H72: Sales Price/Cwt of $Total
F73: Sales Price/Cwt 151.00 | H73: Purchase Price/Cwt 155.00
C74: ADG (Lbs/day) | D74: Net Pay Weight with Shrink | F74: Breakeven Purchase Price ($/CWT) | H74: Breakeven Sales Price ($/CWT)
C75: 1.65 | D75: 770.6 | F75: 178.1733319 | H75: 135.3376023
C76: 1.5125 | D76: 748.05 | F76: 171.6356359 | H76: 139.4173602
C77: 1.375 | D77: 750 | F77: 172.2009799 | H77: 139.0548751
C78: 1.2375 | D78: 702.95 | F78: 158.5602439 | H78: 148.3621258
C79: 1.1 | D79: 680.4 | F79: 152.0225479 | H79: 153.2791833
A81: Developed by Extension Economists, Texas A&M AgriLife Extension Service, budgets@tamu.edu.
A83: Information presented is prepared solely as a general guide and not intended to recognize or predict the costs and returns from any one operation. Brand names are mentioned only as examples and imply no endorsement.

Sheet StockerWinter
A1: Projections for Planning Purposes Only -- Not to be Used without Updating
A2: 2021 Estimated Costs and Returns per Animal
A3: Winter Stocker Calf Budget (110 Says Grazing)
A4: Enter your name for this budget in the cell above.
A5: Enter Your Values in the cells highlighed in MAROON. | M5: Stocker
E6: Your Head | N6: Your
B7: Number of Head | D7: 320 | G7: Your | M7: Enterprise | N7: Enterprise
E8: Your | F8: Pay Weight | G8: Weight | J8: Your | L8: Your | M8: Total | N8: Total
A9: REVENUE | D9: Head | E9: Head | F9: or Amount | G9: or Amount | H9: Units | I9: $/Unit | J9: $/Unit | K9: Total | L9: Total | M9: ="(" & D7 & " Head)" -> (320 Head) | N9: ="(" & E7 & " Head)" -> ( Head)
B11: Stocker | D11: 0.96 | F11: 6.1 | H11: CWT | I11: 142 | K11: 831.552 | L11: =+J11*G11*E11 -> 0 | M11: 266096.64 | N11: =+L11*E$7 -> 0
D12: 0.96 | F12: 0 | I12: 0 | K12: 0 | L12: 0 | M12: 0 | N12: 0
D13: 0.96 | F13: 0 | I13: 0 | K13: 0 | L13: 0 | M13: 0 | N13: 0
A14: Total Revenue | K14: 831.552 | L14: =+L11 -> 0 | M14: 266096.64 | N14: 0
M15: Enterprise | N15: Enterprise
A16: VARIABLE COSTS | F16: Quantity | G16: Quantity | H16: Units | I16: $/Unit | J16: $/Unit | K16: Total | L16: Total | M16: Total | N16: Total
A17: Production Costs
B18: Stocker Purchase | F18: 4 | H18: CWT | I18: 172 | K18: 688 | L18: =+J18*G18 -> 0 | M18: 220160 | N18: =+L18*E$7 -> 0
B19: Stocker Delivery | F19: 1 | H19: Head | I19: 7.5 | K19: 7.5 | L19: =+J19*G19 -> 0 | M19: 2400 | N19: =+L19*E$7 -> 0
B20: Grazing
C21: Acre Lease | F21: 0.003125 | H21: Acre | I21: 0 | K21: 0 | L21: 0 | M21: 0 | N21: =+L21*E$7 -> 0
C22: Grazing by Month | F22: 0 | H22: Month | I22: 0 | K22: 0 | L22: 0 | M22: 0 | N22: 0
C23: Gain Contract | F23: 193.3333333 | H23: Pounds | I23: 0.5 | K23: 96.66666667 | L23: 0 | M23: 30933.33333 | N23: 0
C24: On Weight Per Month | F24: 0 | H24: Month | I24: 0 | K24: 0 | L24: =+G24*J24*G18 -> 0 | M24: 0 | N24: 0
B25: Health
C26: Health and Vet - Stocker | F26: 6.73 | H26: Ounce | I26: 1.16 | K26: 7.8068 | L26: =+J26*G26 -> 0 | M26: 2498.176 | N26: =+L26*E$7 -> 0
F27: 0 | I27: 0 | K27: 0 | L27: 0 | M27: 0 | N27: 0
F28: 0 | I28: 0 | K28: 0 | L28: 0 | M28: 0 | N28: 0
F29: 0 | I29: 0 | K29: 0 | L29: 0 | M29: 0 | N29: 0
B30: Feed
C31: Salt and Mineral | F31: 15 | H31: Pound | I31: 0.19 | K31: 2.85 | L31: 0 | M31: 912 | N31: 0
C32: Bermuda Hay | F32: 0.083 | H32: Roll | I32: 65 | K32: 5.395 | L32: 0 | M32: 1726.4 | N32: 0
F33: 0 | I33: 0 | K33: 0 | L33: 0 | M33: 0 | N33: 0
F34: 0 | I34: 0 | K34: 0 | L34: 0 | M34: 0 | N34: 0
F35: 0 | I35: 0 | K35: 0 | L35: 0 | M35: 0 | N35: 0
B36: Miscellaneous
C37: Preconditioning | F37: 1 | H37: Acre | I37: 2.5 | K37: 2.5 | L37: =+J37*G37 -> 0 | M37: 800 | N37: =+L37*E$7 -> 0
F38: 1 | I38: 0 | K38: 0 | L38: 0 | M38: 0 | N38: 0
F39: 1 | I39: 0 | K39: 0 | L39: 0 | M39: 0 | N39: 0
B40: Fuel | F40: 1 | H40: Head | I40: 0 | K40: 0 | L40: 0 | M40: 0 | N40: 0
B41: Lube (As a % of fuel) | F41: 0.1 | H41: Percent | I41: 0 | K41: 0 | L41: 0 | M41: 0 | N41: 0
B42: Utilities | F42: 1 | H42: Head | I42: 0 | K42: 0 | L42: 0 | M42: 0 | N42: 0
B43: Repairs | F43: 1 | H43: Head | I43: 0 | K43: 0 | L43: 0 | M43: 0 | N43: 0
B44: Marketing | F44: 0.96 | H44: Head | I44: 0 | K44: 0 | L44: 0 | M44: 0 | N44: 0
B45: Labor | F45: 1 | H45: Head | I45: 94.54375 | K45: 94.54375 | L45: 0 | M45: 30254 | N45: 0
K46: 0 | L46: =+J46*G46 -> 0 | M46: 0 | N46: =+L46*E$7 -> 0
K47: 0 | L47: =+J47*G47 -> 0 | M47: 0 | N47: =+L47*E$7 -> 0
B48: Interest on Credit Line | I48: 0.06 | K48: 13.76111301 | L48: =+SUM(L18:L45)*J48/2 -> 0 | M48: 4403.556162 | N48: 0
A49: Total Variable Costs | K49: 919.0233297 | L49: =+SUM(L18:L48) -> 0 | M49: 294087.4655 | N49: =+SUM(N18:N48) -> 0
A51: Planned Returns Above Variable Costs: | K51: -87.47132967 | L51: =+L14-L49 -> 0 | M51: -27990.8255 | N51: =+N14-N49 -> 0
B53: Breakeven Price to Cover Variable Costs | I53: 156.937044 | J53: =+IF(G11=0,"n/a",(L49-SUM(L12:L13))/(G11*E11)) -> n/a | K53: CWT
M54: Enterprise | N54: Enterprise
A55: FIXED COSTS | F55: Quantity | G55: Quantity | H55: Units | I55: $/Unit | J55: $/Unit | K55: Total | L55: Total | M55: Total | N55: Total
B57: Depreciation | F57: 1 | H57: Head | I57: 0 | K57: 0 | L57: =+J57*G57 -> 0 | M57: 0 | N57: =+L57*E$7 -> 0
B58: Equipment Investment | F58: 0 | H58: dollars | I58: 0.06 | K58: 0 | L58: 0 | M58: 0 | N58: 0
B59: Salaried Labor | F59: 1 | H59: Head | I59: 0 | K59: 0 | L59: 0 | M59: 0 | N59: 0
B60: Management Fee, Owner/Operator Labor | F60: 1 | H60: Head | I60: 0 | K60: 0 | L60: 0 | M60: 0 | N60: 0
B61: Insurance | F61: 1 | H61: Head | I61: 0 | K61: 0 | L61: 0 | M61: 0 | N61: 0
K62: 0 | L62: 0 | M62: 0 | N62: 0
K63: 0 | L63: 0 | M63: 0 | N63: 0
A64: Total Fixed Costs | K64: 0 | L64: =+SUM(L57:L61) -> 0 | M64: 0 | N64: =+SUM(N57:N61) -> 0
A66: Total Costs | K66: 919.0233297 | L66: =+L49+L64 -> 0 | M66: 294087.4655 | N66: =+N49+N64 -> 0
A68: Planned Returns to Management, Risk, and Profit: | K68: -87.47132967 | L68: =+L51-L64 -> 0 | M68: -27990.8255 | N68: =+N51-N64 -> 0
A70: Breakeven Price to Cover Total Costs | I70: 156.937044 | J70: =+IF(G11=0,"n/a",(L66-SUM(L12:L13))/(G11*E11)) -> n/a | K70: CWT
C72: Example Breakeven Sensitivity Analysis
F73: Purchase Weight (Lbs/Hd): 400 | H73: Sales Price/Cwt of $Total
F74: Sales Price/Cwt 142.00 | H74: Purchase Price/Cwt 172.00
C75: ADG (Lbs/day) | D75: Net Pay Weight with Shrink | F75: Breakeven Purchase Price ($/CWT) | H75: Breakeven Sales Price ($/CWT)
C76: 2.024727273 | D76: 624.7447273 | F76: 155.1571706 | H76: 153.2331409
C77: 1.856 | D77: 606.016 | F77: 148.7744204 | H77: 157.9687613
C78: 1.687272727 | D78: 610 | F78: 150.1321676 | H78: 156.937044
C79: 1.518545455 | D79: 568.5585455 | F79: 136.0089199 | H79: 168.3759704
C80: 1.349818182 | D80: 549.8298182 | F80: 129.6261696 | H80: 174.1113226
A82: Developed by Extension Economists, Texas A&M AgriLife Extension Service, budgets@tamu.edu.
A84: Information presented is prepared solely as a general guide and not intended to recognize or predict the costs and returns from any one operation. Brand names are mentioned only as examples and imply no endorsement.

Sheet Livestock Budget
A1: Estimated Costs and Returns per Animal or Breeding Female
A3: Livestock Budget
A5: Number of Head of Livestock | D5: 0
A7: Enter Your Values in the cells highlighed in MAROON. | H7: Enterprise
A8: REVENUE | C8: Head | D8: Quantity | E8: Units | F8: $/Unit | G8: Total | H8: Total
B9: Males Sold | C9: 0 | D9: 0 | E9: CWT | F9: 0 | G9: =IF($D$5=0,0,C9/$D$5*D9*F9) -> 0 | H9: =+G9*$D$5 -> 0
B10: Females Sold | C10: 0 | D10: 0 | E10: CWT | F10: 0 | G10: =IF($D$5=0,0,C10/$D$5*D10*F10) -> 0 | H10: =+G10*$D$5 -> 0
B11: Cull Breeding Females | C11: 0 | D11: 0 | E11: CWT | F11: 0 | G11: 0 | H11: 0
B12: Cull Breeding Males | C12: 0 | D12: 0 | E12: CWT | F12: 0 | G12: 0 | H12: 0
B13: Stocker or Feed Animal | C13: 0 | D13: 0 | E13: CWT | F13: 0 | G13: 0 | H13: 0
B14: Other Revenue | C14: 0 | D14: 0 | E14: CWT | F14: 0 | G14: 0 | H14: 0
B15: Other Revenue | C15: 0 | D15: 0 | E15: CWT | F15: 0 | G15: 0 | H15: 0
B16: Other Revenue | C16: 0 | D16: 0 | E16: CWT | F16: 0 | G16: 0 | H16: 0
A18: Total Revenue | G18: =+SUM(G9:G17) -> 0 | H18: =+SUM(H9:H17) -> 0
H20: Enterprise
A21: VARIABLE COSTS | D21: Quantity | E21: Units | F21: $/Unit | G21: Total | H21: Total
A22: Production Costs
B23: Animal Purchase Price, if applicable | D23: 0 | E23: Cwt | F23: 0 | G23: =D23*F23 -> 0 | H23: =+G23*$D$5 -> 0
B24: Pasture | C24: =+SUM(G25:G28) -> 0
C25: Pasture 1 | D25: 0 | E25: Acre | F25: 0 | G25: =D25*F25 -> 0 | H25: =+G25*$D$5 -> 0
C26: Pasture 2 | D26: 0 | E26: Acre | F26: 0 | G26: 0 | H26: 0
C27: Pasture 3 | D27: 0 | E27: Acre | F27: 0 | G27: 0 | H27: 0
C28: Pasture 4 | D28: 0 | E28: Acre | F28: 0 | G28: 0 | H28: 0
B29: Feed | C29: =SUM(G30:G37) -> 0
C30: Hay | D30: 0 | E30: Bales | F30: 0 | G30: =D30*F30 -> 0 | H30: =+G30*$D$5 -> 0
C31: Supplement | D31: 0 | E31: Cwt,lb,etc | F31: 0 | G31: =D31*F31 -> 0 | H31: =+G31*$D$5 -> 0
C32: Salt Minerals | D32: 0 | E32: Cwt | F32: 0 | G32: 0 | H32: 0
C33: Other Feed | D33: 0 | E33: Cwt,lb,etc | F33: 0 | G33: 0 | H33: 0
C34: Other Feed | D34: 0 | E34: Cwt,lb,etc | F34: 0 | G34: 0 | H34: 0
C35: Other Feed | D35: 0 | E35: Cwt,lb,etc | F35: 0 | G35: 0 | H35: 0
C36: Other Feed | D36: 0 | E36: Cwt,lb,etc | F36: 0 | G36: 0 | H36: 0
C37: Other Feed | D37: 0 | E37: Cwt,lb,etc | F37: 0 | G37: 0 | H37: 0
B38: Health | C38: =SUM(G39:G48) -> 0
C39: Vet/Medicine 1 | D39: 0 | E39: Visit,dose,cc's, etc. | F39: 0 | G39: =D39*F39 -> 0 | H39: =+G39*$D$5 -> 0
C40: Vet/Medicine 2 | D40: 0 | E40: Visit,dose,cc's, etc. | F40: 0 | G40: 0 | H40: 0
C41: Vet/Medicine 3 | D41: 0 | E41: Visit,dose,cc's, etc. | F41: 0 | G41: 0 | H41: 0
C42: Vet/Medicine 4 | D42: 0 | E42: Visit,dose,cc's, etc. | F42: 0 | G42: 0 | H42: 0
C43: Vet/Medicine 5 | D43: 0 | E43: Visit,dose,cc's, etc. | F43: 0 | G43: 0 | H43: 0
C44: Vet/Medicine 6 | D44: 0 | E44: Visit,dose,cc's, etc. | F44: 0 | G44: 0 | H44: 0
C45: Vet/Medicine 7 | D45: 0 | E45: Visit,dose,cc's, etc. | F45: 0 | G45: 0 | H45: 0
C46: Vet/Medicine 8 | D46: 0 | E46: Visit,dose,cc's, etc. | F46: 0 | G46: 0 | H46: 0
C47: Vet/Medicine 9 | D47: 0 | E47: Visit,dose,cc's, etc. | F47: 0 | G47: 0 | H47: 0
C48: Vet/Medicine 10 | D48: 0 | E48: Visit,dose,cc's, etc. | F48: 0 | G48: 0 | H48: 0
B50: Fuel, Lube, Repair | D50: 1 | E50: Head | F50: 0 | G50: 0 | H50: 0
B52: Labor | D52: 0 | E52: Hours | F52: 0 | G52: 0 | H52: 0
B54: Other Variable Expense | D54: 0 | E54: Cwt,lb,etc | F54: 0 | G54: 0 | H54: 0
B55: Other Variable Expense | D55: 0 | E55: Cwt,lb,etc | F55: 0 | G55: 0 | H55: 0
B56: Other Variable Expense | D56: 0 | E56: Cwt,lb,etc | F56: 0 | G56: 0 | H56: 0
B57: Other Variable Expense | D57: 0 | E57: Cwt,lb,etc | F57: 0 | G57: 0 | H57: 0
B58: Other Variable Expense | D58: 0 | E58: Cwt,lb,etc | F58: 0 | G58: 0 | H58: 0
B59: Other Variable Expense | D59: 0 | E59: Cwt,lb,etc | F59: 0 | G59: 0 | H59: 0
B61: Operating Interest | F61: 0 | G61: =+SUM(G23:G59)/2*F61 -> 0 | H61: 0
A63: Total Variable Costs | G63: =+SUM(G23:G62) -> 0 | H63: =+SUM(H23:H62) -> 0
A65: Planned Returns Above Variable Costs | G65: =+G18-G63 -> 0 | H65: =+H18-H63 -> 0
B67: Breakeven Price to Cover Variable Costs | E67: =IF((H101/100+C13*D13)=0,0,(G63-SUM(G11:G12,G14:G16))/(H101/100+C13/D5*D13)) -> 0 | F67: =+E9 -> CWT
H69: Enterprise
A70: FIXED COSTS | D70: Quantity | E70: Units | F70: $/Unit | G70: Total | H70: Total
B71: Depreciation - Equipment | D71: 0 | E71: Head,$,etc | F71: 0 | G71: =D71*F71 -> 0 | H71: =+G71*$D$5 -> 0
B72: Depreciation - Livestock | D72: 0 | E72: Head,$,etc | F72: 0 | G72: =D72*F72 -> 0 | H72: 0
B73: Equipment Investment | D73: 0 | E73: Head,$,etc | F73: 0 | G73: 0 | H73: 0
B74: Insurance | D74: 0 | E74: Head,$,etc | F74: 0 | G74: 0 | H74: 0
B75: Management Fee | D75: 0 | E75: Head,$,etc | F75: 0 | G75: 0 | H75: 0
B76: Owner/Operator Labor | D76: 0 | E76: Head,$,etc | F76: 0 | G76: 0 | H76: 0
B77: Salaried Labor | D77: 0 | E77: Head,$,etc | F77: 0 | G77: 0 | H77: 0
B78: Other Fixed Expense | D78: 0 | E78: Head,$,etc | F78: 0 | G78: 0 | H78: 0
B79: Other Fixed Expense | D79: 0 | E79: Head,$,etc | F79: 0 | G79: 0 | H79: 0
B80: Other Fixed Expense | D80: 0 | E80: Head,$,etc | F80: 0 | G80: 0 | H80: 0
B81: Other Fixed Expense | D81: 0 | E81: Head,$,etc | F81: 0 | G81: 0 | H81: 0
B82: Other Fixed Expense | D82: 0 | E82: Head,$,etc | F82: 0 | G82: 0 | H82: 0
D84: Total Fixed Costs | G84: =+SUM(G71:G83) -> 0 | H84: =+SUM(H71:H83) -> 0
D86: Total Specified Costs | G86: =+G63+G84 -> 0 | H86: =+H63+H84 -> 0
D88: Returns Above Specifiied Costs | G88: =+G18-G86 -> 0 | H88: =+H18-H86 -> 0
B90: Breakeven Price to Cover Total Costs | E90: =IF((H101/100+C13*D13)=0,0,(G86-SUM(G11:G12,G14:G16))/(H101/100+C13/D5*D13)) -> 0 | F90: =+F67 -> CWT
B93: Sensitivity Analysis for Your Breeding Herd or Flock Values
B94: Your Weaning Percent | C94: Your Gross Sales per Head | D94: Pounds Produced per Head | E94: ="Your Breakeven Pay Weight to Cover Total Cost" -> Your Breakeven Pay Weight to Cover Total Cost | G94: Your Average Breakeven Price to Cover Total Cost
B95: =+B96-0.03 -> -0.06 | C95: =+IF($B$97=0,0,YTotRet-$G$9-$G$10+($G$9+$G$10)*B95/$B$97) -> 0 | D95: =IF($B$97=0,0,$H$101*B95/$B$97+$H$102) -> 0 | E95: =IF($C$97=0,0,(YTotExp-($G$18-$G$9-$G$10))/(YPrice/100)/(B95-$C$11/$D$5)) -> 0 | G95: =IF(D95-$H$102=0,0,(YTotExp-($G$18-$G$9-$G$10))/(D95-$H$102)*100) -> 0
B96: =+B97-0.03 -> -0.03 | C96: =+IF($B$97=0,0,YTotRet-$G$9-$G$10+($G$9+$G$10)*B96/$B$97) -> 0 | D96: =IF($B$97=0,0,$H$101*B96/$B$97+$H$102) -> 0 | E96: =IF($C$97=0,0,(YTotExp-($G$18-$G$9-$G$10))/(YPrice/100)/(B96-$C$11/$D$5)) -> 0 | G96: =IF(D96-$H$102=0,0,(YTotExp-($G$18-$G$9-$G$10))/(D96-$H$102)*100) -> 0
B97: 0 | C97: =+G18 -> 0 | D97: =H101+H102 -> 0 | E97: =IF($C$97=0,0,(YTotExp-($G$18-$G$9-$G$10))/(YPrice/100)/(B97-$C$11/$D$5)) -> 0 | G97: =IF(D97-$H$102=0,0,(YTotExp-($G$18-$G$9-$G$10))/(D97-$H$102)*100) -> 0
B98: =+B97+0.03 -> 0.03 | C98: =+IF($B$97=0,0,YTotRet-$G$9-$G$10+($G$9+$G$10)*B98/$B$97) -> 0 | D98: =IF($B$97=0,0,$H$101*B98/$B$97+$H$102) -> 0 | E98: =IF($C$97=0,0,(YTotExp-($G$18-$G$9-$G$10))/(YPrice/100)/(B98-$C$11/$D$5)) -> 0 | G98: =IF(D98-$H$102=0,0,(YTotExp-($G$18-$G$9-$G$10))/(D98-$H$102)*100) -> 0
B99: =+B98+0.03 -> 0.06 | C99: =+IF($B$97=0,0,YTotRet-$G$9-$G$10+($G$9+$G$10)*B99/$B$97) -> 0 | D99: =IF($B$97=0,0,$H$101*B99/$B$97+$H$102) -> 0 | E99: =IF($C$97=0,0,(YTotExp-($G$18-$G$9-$G$10))/(YPrice/100)/(B99-$C$11/$D$5)) -> 0 | G99: =IF(D99-$H$102=0,0,(YTotExp-($G$18-$G$9-$G$10))/(D99-$H$102)*100) -> 0
C101: Your Male Price | F101: =+F9 -> 0 | H101: =IF(D5=0,0,(C9*D9+C10*D10)*100/D5) -> 0
C102: Your Female Price | F102: =+F10 -> 0 | H102: =IF(D5=0,0,(C11*D11+C12*D12)*100/D5) -> 0
C103: Your Weighted Average Price ($/cwt) | F103: =+IF((C9*D9+C10*D10)=0,F13,(G9+G10)/((C9*D9+C10*D10)/D5)) -> 0
C105: Your Stocker or Feeder Breakeven Sensitivity Analysis
C106: Your Average Daily Gain | E106: 0 | F106: Pounds per Day
C107: =+"Your Animal"&IF(M25="Stocker"," Grazing"," Feeding")&" Days" -> Your Animal Feeding Days | E107: 0 | F107: Days
C108: Your Sale Shrink | E108: 0
C109: Average Daily Gain (Pounds/day) | D109: Net Pay Weight with Shrink (Pounds) | F109: =+"Purchase Weight (Pounds/Head): "&D23*100 -> Purchase Weight (Pounds/Head): 0 | H109: Sales Price/Cwt of $Total
F110: ="Sales Price "&IF(F13="",".00",TEXT(F13,"#.00")) -> Sales Price .00 | H110: ="Purchase Price "&IF(F23="",".00",TEXT(F23,"#.00")) -> Purchase Price .00
F111: Breakeven Purchase Price ($/CWT) | H111: Breakeven Sales Price ($/CWT)
C112: =+C114*1.2 -> 0 | D112: =+(C112*$E$107+$D$23*100)*(1-$E$108) -> 0 | F112: =IF($D$23=0,0,(((D112*$F$13/100*($C$13/$D$5))-($G$86-SUM($G$14:$G$16)-$G$23))/(100*$D$23))*100) -> 0 | H112: =IF($C$13=0,0,($G$86-SUM($G$14:$G$16))/(D112*($C$13/$D$5)*100)) -> 0
C113: =+C114*1.1 -> 0 | D113: =+(C113*$E$107+$D$23*100)*(1-$E$108) -> 0 | F113: =IF($D$23=0,0,(((D113*$F$13/100*($C$13/$D$5))-($G$86-SUM($G$14:$G$16)-$G$23))/(100*$D$23))*100) -> 0 | H113: =IF($C$13=0,0,($G$86-SUM($G$14:$G$16))/(D113*($C$13/$D$5)*100)) -> 0
C114: =+E106 -> 0 | D114: =+(C114*$E$107+$D$23*100)*(1-$E$108) -> 0 | F114: =IF($D$23=0,0,(((D114*$F$13/100*($C$13/$D$5))-($G$86-SUM($G$14:$G$16)-$G$23))/(100*$D$23))*100) -> 0 | H114: =IF($C$13=0,0,($G$86-SUM($G$14:$G$16))/(D114*($C$13/$D$5)*100)) -> 0
C115: =+C114*0.9 -> 0 | D115: =+(C115*$E$107+$D$23*100)*(1-$E$108) -> 0 | F115: =IF($D$23=0,0,(((D115*$F$13/100*($C$13/$D$5))-($G$86-SUM($G$14:$G$16)-$G$23))/(100*$D$23))*100) -> 0 | H115: =IF($C$13=0,0,($G$86-SUM($G$14:$G$16))/(D115*($C$13/$D$5)*100)) -> 0
C116: =+C114*0.8 -> 0 | D116: =+(C116*$E$107+$D$23*100)*(1-$E$108) -> 0 | F116: =IF($D$23=0,0,(((D116*$F$13/100*($C$13/$D$5))-($G$86-SUM($G$14:$G$16)-$G$23))/(100*$D$23))*100) -> 0 | H116: =IF($C$13=0,0,($G$86-SUM($G$14:$G$16))/(D116*($C$13/$D$5)*100)) -> 0

Sheet Crop Budget
A1: Estimated Costs and Returns per Acre
A3: Crop Enterprise
A5: Number of Acres of Crop | D5: 0
A7: Enter Your Values in the cells highlighed in MAROON. | G7: Enterprise
A8: REVENUE | C8: Quantity | D8: Units | E8: $/Unit | F8: Total | G8: Total
B9: Primary Product | C9: 0 | D9: Cwt,lb,etc | E9: 0 | F9: =C9*E9 -> 0 | G9: =+F9*$D$5 -> 0
B10: Secondary Product | C10: 0 | D10: Cwt,lb,etc | E10: 0 | F10: =C10*E10 -> 0 | G10: =+F10*$D$5 -> 0
B11: Secondary Product | C11: 0 | D11: Cwt,lb,etc | E11: 0 | F11: 0 | G11: 0
B12: Secondary Product | C12: 0 | D12: Cwt,lb,etc | E12: 0 | F12: 0 | G12: 0
B13: Secondary Product | C13: 0 | D13: Cwt,lb,etc | E13: 0 | F13: 0 | G13: 0
B14: Secondary Product | C14: 0 | D14: Cwt,lb,etc | E14: 0 | F14: 0 | G14: 0
B15: Secondary Product | C15: 0 | D15: Cwt,lb,etc | E15: 0 | F15: 0 | G15: 0
B16: Secondary Product | C16: 0 | D16: Cwt,lb,etc | E16: 0 | F16: 0 | G16: 0
A18: Total Revenue | F18: =+SUM(F9:F16) -> 0 | G18: =+SUM(G9:G16) -> 0
G20: Enterprise
A21: VARIABLE COSTS | C21: Quantity | D21: Units | E21: $/Unit | F21: Total | G21: Total
A23: Custom Field and Harvest Operations
B24: Custom Field Operation 1 | C24: 0 | D24: Acre | E24: 0 | F24: =C24*E24 -> 0 | G24: =+F24*$D$5 -> 0
B25: Custom Field Operation 2 | C25: 0 | D25: Acre | E25: 0 | F25: 0 | G25: 0
B26: Custom Field Operation 3 | C26: 0 | D26: Acre | E26: 0 | F26: 0 | G26: 0
B27: Custom Field Operation 4 | C27: 0 | D27: Acre | E27: 0 | F27: 0 | G27: 0
B28: Custom Field Operation 5 | C28: 0 | D28: Acre | E28: 0 | F28: 0 | G28: 0
B29: Custom Field Operation 6 | C29: 0 | D29: Acre | E29: 0 | F29: 0 | G29: 0
A30: Machinery Expenses
B31: Diesel | C31: 0 | D31: Gallon | E31: 0 | F31: =C31*E31 -> 0 | G31: 0
B32: Gasoline | C32: 0 | D32: Gallon | E32: 0 | F32: 0 | G32: 0
B33: Lube | C33: 0 | D33: Acre | E33: 0 | F33: 0 | G33: 0
B34: Repairs | C34: 0 | D34: Acre | E34: 0 | F34: 0 | G34: 0
B35: Other Machinery Expense 1 | C35: 0 | D35: Acre | E35: 0 | F35: 0 | G35: 0
B36: Other Machinery Expense 2 | C36: 0 | D36: Acre | E36: 0 | F36: 0 | G36: 0
A37: Labor
B38: Labor 1 | C38: 0 | D38: Hour | E38: 0 | F38: =C38*E38 -> 0 | G38: 0
B39: Labor 2 | C39: 0 | D39: Hour | E39: 0 | F39: 0 | G39: 0
B40: Labor 3 | C40: 0 | D40: Hour | E40: 0 | F40: 0 | G40: 0
B41: Labor 4 | C41: 0 | D41: Hour | E41: 0 | F41: 0 | G41: 0
B42: Labor 5 | C42: 0 | D42: Hour | E42: 0 | F42: 0 | G42: 0
B43: Irrigation Labor | C43: 0 | D43: Hour | E43: 0 | F43: 0 | G43: 0
A44: Seed or Transplants
B45: Seed | C45: 0 | D45: Pound | E45: 0 | F45: =C45*E45 -> 0 | G45: 0
B46: Seed Treatment | C46: 0 | D46: Pound | E46: 0 | F46: 0 | G46: 0
B47: Seed Fee | C47: 0 | D47: Pound | E47: 0 | F47: 0 | G47: 0
B48: Transplants | C48: 0 | D48: Thousand | E48: 0 | F48: 0 | G48: 0
B49: Mulch | C49: 0 | D49: Foot | E49: 0 | F49: 0 | G49: 0
B50: Other Seed or Transplant | C50: 0 | D50: Pound | E50: 0 | F50: 0 | G50: 0
A51: Fertilizer and Lime
B52: Fertlizer 1 | C52: 0 | D52: Pound | E52: 0 | F52: =C52*E52 -> 0 | G52: 0
B53: Fertlizer 2 | C53: 0 | D53: Pound | E53: 0 | F53: 0 | G53: 0
B54: Fertlizer 3 | C54: 0 | D54: Pound | E54: 0 | F54: 0 | G54: 0
B55: Fertlizer 4 | C55: 0 | D55: Pound | E55: 0 | F55: 0 | G55: 0
B56: Fertlizer 5 | C56: 0 | D56: Pound | E56: 0 | F56: 0 | G56: 0
B57: Lime | C57: 0 | D57: Ton | E57: 0 | F57: 0 | G57: 0
B58: Other Soil Amendment 1 | C58: 0 | D58: Pound | E58: 0 | F58: 0 | G58: 0
B59: Other Soil Amendment 2 | C59: 0 | D59: Pound | E59: 0 | F59: 0 | G59: 0
A60: Herbicides
B61: Herbicide 1 | C61: 0 | D61: Lb,Oz,Acre | E61: 0 | F61: =C61*E61 -> 0 | G61: 0
B62: Herbicide 2 | C62: 0 | D62: Lb,Oz,Acre | E62: 0 | F62: 0 | G62: 0
B63: Herbicide 3 | C63: 0 | D63: Lb,Oz,Acre | E63: 0 | F63: 0 | G63: 0
B64: Herbicide 4 | C64: 0 | D64: Lb,Oz,Acre | E64: 0 | F64: 0 | G64: 0
B65: Herbicide 5 | C65: 0 | D65: Lb,Oz,Acre | E65: 0 | F65: 0 | G65: 0
B66: Herbicide 6 | C66: 0 | D66: Lb,Oz,Acre | E66: 0 | F66: 0 | G66: 0
A67: Insecticides
B68: Insecticide 1 | C68: 0 | D68: Lb,Oz,Acre | E68: 0 | F68: =C68*E68 -> 0 | G68: 0
B69: Insecticide 2 | C69: 0 | D69: Lb,Oz,Acre | E69: 0 | F69: 0 | G69: 0
B70: Insecticide 3 | C70: 0 | D70: Lb,Oz,Acre | E70: 0 | F70: 0 | G70: 0
B71: Insecticide 4 | C71: 0 | D71: Lb,Oz,Acre | E71: 0 | F71: 0 | G71: 0
B72: Insecticide 5 | C72: 0 | D72: Lb,Oz,Acre | E72: 0 | F72: 0 | G72: 0
B73: Insecticide 6 | C73: 0 | D73: Lb,Oz,Acre | E73: 0 | F73: 0 | G73: 0
A74: Fungicides
B75: Fungicide 1 | C75: 0 | D75: Lb,Oz,Acre | E75: 0 | F75: =C75*E75 -> 0 | G75: 0
B76: Fungicide 2 | C76: 0 | D76: Lb,Oz,Acre | E76: 0 | F76: 0 | G76: 0
B77: Fungicide 3 | C77: 0 | D77: Lb,Oz,Acre | E77: 0 | F77: 0 | G77: 0
B78: Fungicide 4 | C78: 0 | D78: Lb,Oz,Acre | E78: 0 | F78: 0 | G78: 0
B79: Fungicide 5 | C79: 0 | D79: Lb,Oz,Acre | E79: 0 | F79: 0 | G79: 0
B80: Fungicide 6 | C80: 0 | D80: Lb,Oz,Acre | E80: 0 | F80: 0 | G80: 0
A81: Growth Regulators
B82: Growth Regulator 1 | C82: 0 | D82: Lb,Oz,Acre | E82: 0 | F82: =C82*E82 -> 0 | G82: 0
B83: Growth Regulator 2 | C83: 0 | D83: Lb,Oz,Acre | E83: 0 | F83: 0 | G83: 0
B84: Growth Regulator 3 | C84: 0 | D84: Lb,Oz,Acre | E84: 0 | F84: 0 | G84: 0
B85: Growth Regulator 4 | C85: 0 | D85: Lb,Oz,Acre | E85: 0 | F85: 0 | G85: 0
B86: Growth Regulator 5 | C86: 0 | D86: Lb,Oz,Acre | E86: 0 | F86: 0 | G86: 0
B87: Growth Regulator 6 | C87: 0 | D87: Lb,Oz,Acre | E87: 0 | F87: 0 | G87: 0
A88: Other Chemicals
B89: Fumigant | C89: 0 | D89: Lb,Oz,Acre | E89: 0 | F89: =C89*E89 -> 0 | G89: 0
B90: Other Chemical 1 | C90: 0 | D90: Lb,Oz,Acre | E90: 0 | F90: 0 | G90: =+F90*$D$5 -> 0
B91: Other Chemical 2 | C91: 0 | D91: Lb,Oz,Acre | E91: 0 | F91: 0 | G91: =+F91*$D$5 -> 0
B92: Other Chemical 3 | C92: 0 | D92: Lb,Oz,Acre | E92: 0 | F92: 0 | G92: =+F92*$D$5 -> 0
B93: Other Chemical 4 | C93: 0 | D93: Lb,Oz,Acre | E93: 0 | F93: 0 | G93: =+F93*$D$5 -> 0
B94: Other Chemical 5 | C94: 0 | D94: Lb,Oz,Acre | E94: 0 | F94: 0 | G94: =+F94*$D$5 -> 0
A95: Irrigation
B96: Well Expense | C96: 0 | D96: Acre | E96: 0 | F96: =C96*E96 -> 0 | G96: =+F96*$D$5 -> 0
B97: Pump Fuel | C97: 0 | D97: Mcf,kWh,Gallon | E97: 0 | F97: 0 | G97: 0
B98: Pump Expense | C98: 0 | D98: Acre | E98: 0 | F98: 0 | G98: 0
B99: Irrigation Equipment Expense | C99: 0 | D99: Acre | E99: 0 | F99: 0 | G99: 0
B100: Repairs | C100: 0 | D100: Acre | E100: 0 | F100: 0 | G100: 0
B101: Drip Tape | C101: 0 | D101: Foot,Acre | E101: 0 | F101: 0 | G101: 0
B102: Water Cost | C102: 0 | D102: AcIn,Gallon | E102: 0 | F102: 0 | G102: 0
B103: Other Irrigation Expense 1 | C103: 0 | D103: Acre | E103: 0 | F103: 0 | G103: 0
B104: Other Irrigation Expense 2 | C104: 0 | D104: Acre | E104: 0 | F104: 0 | G104: 0
A105: Miscellaneous Expenses
B106: Crop Insurance | C106: 0 | D106: Acre | E106: 0 | F106: =C106*E106 -> 0 | G106: 0
B107: Other Variable Expense 1 | C107: 0 | D107: Enter Unit | E107: 0 | F107: 0 | G107: 0
B108: Other Variable Expense 2 | C108: 0 | D108: Enter Unit | E108: 0 | F108: 0 | G108: 0
B109: Other Variable Expense 3 | C109: 0 | D109: Enter Unit | E109: 0 | F109: 0 | G109: 0
B110: Other Variable Expense 4 | C110: 0 | D110: Enter Unit | E110: 0 | F110: 0 | G110: 0
B111: Other Variable Expense 5 | C111: 0 | D111: Enter Unit | E111: 0 | F111: 0 | G111: 0
B112: Other Variable Expense 6 | C112: 0 | D112: Enter Unit | E112: 0 | F112: 0 | G112: 0
B113: Other Variable Expense 7 | C113: 0 | D113: Enter Unit | E113: 0 | F113: 0 | G113: 0
B114: Other Variable Expense 8 | C114: 0 | D114: Enter Unit | E114: 0 | F114: 0 | G114: 0
B116: Operating Interest | E116: 0 | F116: =+SUM(F23:F115)/2*E116 -> 0 | G116: =+F116*$D$6 -> 0
A118: Total Variable Costs | F118: =+SUM(F23:F116) -> 0 | G118: =+SUM(G23:G116) -> 0
A120: Planned Returns Above Variable Costs | F120: =+F18-F118 -> 0 | G120: =+G18-G118 -> 0
B122: Breakeven Price to Cover Variable Costs | E122: =+IF(C9=0,0,F118-SUM(F10:F16)/C9) -> 0 | F122: =+D9 -> Cwt,lb,etc
G124: Enterprise
A125: FIXED COSTS | C125: Quantity | D125: Units | E125: $/Unit | F125: Total | G125: Total
B126: Land Rent or Expense | C126: 1 | D126: Acre | E126: 0 | F126: =C126*E126 -> 0 | G126: =+F126*$D$6 -> 0
B127: Depreciation - Equipment | C127: 1 | D127: Acre | E127: 0 | F127: =C127*E127 -> 0 | G127: 0
B128: Equipment Investment | C128: 0 | D128: $ | E128: 0 | F128: 0 | G128: 0
B129: Insurance | C129: 1 | D129: Acre | E129: 0 | F129: 0 | G129: 0
B130: Management Fee | C130: 1 | D130: Acre | E130: 0 | F130: 0 | G130: 0
B131: Owner/Operator Labor | C131: 0 | D131: Acre | E131: 0 | F131: 0 | G131: 0
B132: Salaried Labor | C132: 1 | D132: Acre,$,etc | E132: 0 | F132: 0 | G132: 0
B133: Other Fixed Expense | C133: 0 | D133: Acre,$,etc | E133: 0 | F133: 0 | G133: 0
B134: Other Fixed Expense | C134: 0 | D134: Acre,$,etc | E134: 0 | F134: 0 | G134: 0
B135: Other Fixed Expense | C135: 0 | D135: Acre,$,etc | E135: 0 | F135: 0 | G135: 0
B136: Other Fixed Expense | C136: 0 | D136: Acre,$,etc | E136: 0 | F136: 0 | G136: 0
B137: Other Fixed Expense | C137: 0 | D137: Acre,$,etc | E137: 0 | F137: 0 | G137: 0
D139: Total Fixed Costs | F139: =+SUM(F126:F137) -> 0 | G139: =+SUM(G126:G137) -> 0
D141: Total Specified Costs | F141: =+F118+F139 -> 0 | G141: =+G118+G139 -> 0
D143: Returns Above Specifiied Costs | F143: =+F18-F141 -> 0 | G143: =+G18-G141 -> 0
B145: Breakeven Price to Cover Total Costs | E145: =+IF(C9=0,0,F141-SUM(F10:F16)/C9) -> 0 | F145: =+D9 -> Cwt,lb,etc
B147: Breakeven Prices for Your Crop
E148: Price To Cover | G148: Price To Cover
B149: Yield | C149: Yield | E149: Variable | G149: Total
B150: Percent | C150: =+D9 -> Cwt,lb,etc | E150: Costs | G150: Costs
B151: 0.75 | C151: =+$C$153*B151 -> 0 | E151: =+IF(C151=0,0,($F$118-SUM($F$10:$F$16))/C151) -> 0 | G151: =+IF(C151=0,0,($F$141-SUM($F$10:$F$16))/C151) -> 0
B152: 0.9 | C152: =+$C$153*B152 -> 0 | E152: =+IF(C152=0,0,($F$118-SUM($F$10:$F$16))/C152) -> 0 | G152: =+IF(C152=0,0,($F$141-SUM($F$10:$F$16))/C152) -> 0
B153: 1 | C153: =+C9 -> 0 | E153: =+IF(C153=0,0,($F$118-SUM($F$10:$F$16))/C153) -> 0 | G153: =+IF(C153=0,0,($F$141-SUM($F$10:$F$16))/C153) -> 0
B154: 1.1 | C154: 0 | E154: =+IF(C154=0,0,($F$118-SUM($F$10:$F$16))/C154) -> 0 | G154: =+IF(C154=0,0,($F$141-SUM($F$10:$F$16))/C154) -> 0
B155: 1.25 | C155: 0 | E155: =+IF(C155=0,0,($F$118-SUM($F$10:$F$16))/C155) -> 0 | G155: =+IF(C155=0,0,($F$141-SUM($F$10:$F$16))/C155) -> 0

Sheet Comparative Returns - Cash Rent
A1: Comparative Returns - Cash Rent
B3: Returns Above Total Specified Expenses | E3: Total Direct Expenses | H3: Breakeven Yield to Cover Total Costs at Price Entered
B4: Total Costs | C4: Variable Costs | E4: Total Costs | F4: Variable Costs | H4: Price | I4: Units | J4: Total Costs | K4: Variable Costs
A5: FORAGE CROPS
A7: =+CoastalHay!A3 -> Coastal Bermudagrass Hay and Grazing (3 Cuttings) | B7: =+CoastalHay!TotRet -> 320.4312054 | C7: =+CoastalHay!VarRet -> 381.8812214 | E7: =+CoastalHay!TotExp -> 294.5687946 | F7: =+CoastalHay!VarExp -> 233.1187786 | H7: =+CoastalHay!Price -> 65 | I7: =+CoastalHay!Unit -> Roll | J7: =+IF($H7=0,0,E7/$H7) -> 4.531827609 | K7: 3.586442748
A8: =+CoastalPasture!A3 -> Coastal Bermudagrass Pasture | B8: =+CoastalPasture!TotRet -> -146.8087011 | C8: =+CoastalPasture!VarRet -> -117.3076103 | E8: =+CoastalPasture!TotExp -> 146.8087011 | F8: =+CoastalPasture!VarExp -> 117.3076103 | H8: =+CoastalPasture!Price -> 0 | I8: =+CoastalPasture!Unit ->  | J8: 0 | K8: 0
A9: =+SorghumHay!A3 -> Sorghum Hay (2 Cuttings) | B9: =+SorghumHay!TotRet -> 220.1233967 | C9: =+SorghumHay!VarRet -> 293.0619327 | E9: =+SorghumHay!TotExp -> 299.8766033 | F9: =+SorghumHay!VarExp -> 226.9380673 | H9: =+SorghumHay!Price -> 65 | I9: =+SorghumHay!Unit -> Roll | J9: 4.613486204 | K9: 3.491354881
A11: FIELD CROPS - IRRIGATED
A13: =+IrrigatedCotton!A3 -> Cotton - Genetically Modified Seed, Conv. Till-24 Row, Irrigated, 1250 lb. Yield Goal | B13: =+IrrigatedCotton!TotRet -> 78.35963189 | C13: =+IrrigatedCotton!VarRet -> 309.9232714 | E13: =+IrrigatedCotton!TotExp -> 909.6403681 | F13: =+IrrigatedCotton!VarExp -> 678.0767286 | H13: =+IrrigatedCotton!Price -> 0.67 | I13: =+IrrigatedCotton!Unit -> Pound | J13: =+IF($H13=0,0,E13/$H13) -> 1357.672191 | K13: 1012.054819
A14: =+IrrigatedSesame!A3 -> Sesame - Conventional Till-12 Row, Irrigated, 1100 lb. Yield Goal | B14: =+IrrigatedSesame!TotRet -> 65.46692882 | C14: =+IrrigatedSesame!VarRet -> 293.9519635 | E14: =+IrrigatedSesame!TotExp -> 440.5330712 | F14: =+IrrigatedSesame!VarExp -> 212.0480365 | H14: =+IrrigatedSesame!Price -> 0.46 | I14: =+IrrigatedSesame!Unit -> Pound | J14: 957.6805895 | K14: 460.9739924
A15: =+IrrigatedSorghumLCB!A3 -> Sorghum - Conventional Till-24 Row, Irrigated, 100 bu. Yield Goal | B15: =+IrrigatedSorghumLCB!TotRet -> -181.0620836 | C15: =+IrrigatedSorghumLCB!VarRet -> 44.61339074 | E15: =+IrrigatedSorghumLCB!TotExp -> 541.0620836 | F15: =+IrrigatedSorghumLCB!VarExp -> 315.3866093 | H15: =+IrrigatedSorghumLCB!Price -> 3.6 | I15: =+IrrigatedSorghumLCB!Unit -> Bushel | J15: 150.2950232 | K15: 87.60739146
A16: =+IrrigatedWheatLCB!A3 -> Hard Red Spring Wheat, Irrigated, 60 bu. Yield Goal | B16: =+IrrigatedWheatLCB!TotRet -> -185.376455 | C16: =+IrrigatedWheatLCB!VarRet -> 17.41858044 | E16: =+IrrigatedWheatLCB!TotExp -> 467.376455 | F16: =+IrrigatedWheatLCB!VarExp -> 264.5814196 | H16: =+IrrigatedWheatLCB!Price -> 4.7 | I16: =+IrrigatedWheatLCB!Unit -> Bushel | J16: 99.44179893 | K16: 56.29391905
A18: FIELD CROPS - DRYLAND, LOWER COAST
A20: =+CanolaLCB!A3 -> Canola, Dryland, 1500 lb. Yield Goal - Lower Coast | B20: =+CanolaLCB!TotRet -> -127.9045346 | C20: =+CanolaLCB!VarRet -> 11.98115054 | E20: =+CanolaLCB!TotExp -> 352.9045346 | F20: =+CanolaLCB!VarExp -> 213.0188495 | H20: =+CanolaLCB!Price -> 0.15 | I20: =+CanolaLCB!Unit -> Pound | J20: =+IF($H20=0,0,E20/$H20) -> 2352.696897 | K20: 1420.125663
A21: =+CottonLCB!A3 -> Cotton - Conventional Seed, Till-24 Row, Dryland, 800 lb. Yield Goal - Lower Coast | B21: =+CottonLCB!TotRet -> 8.845917248 | C21: =+CottonLCB!VarRet -> 179.1018991 | E21: =+CottonLCB!TotExp -> 628.6540828 | F21: =+CottonLCB!VarExp -> 458.3981009 | H21: =+CottonLCB!Price -> 0.67 | I21: =+CottonLCB!Unit -> Pound | J21: 938.2896757 | K21: 684.1762699
A22: =+Cotton!A3 -> Cotton - Genetically Modified Seed, Conv. Till-24 Row, Dryland, 800 lb. Yield Goal - Lower Coast | B22: =+Cotton!TotRet -> -9.310710907 | C22: =+Cotton!VarRet -> 158.9292487 | E22: =+Cotton!TotExp -> 646.8107109 | F22: =+Cotton!VarExp -> 478.5707513 | H22: =+Cotton!Price -> 0.67 | I22: =+Cotton!Unit -> Pound | J22: 965.3891208 | K22: 714.2847034
A23: =+Sesame!A3 -> Sesame - Conventional Till-12 Row, Dryland, 800 lb. Yield Goal - Lower Coast | B23: =+Sesame!TotRet -> 20.61103115 | C23: =+Sesame!VarRet -> 196.3973859 | E23: =+Sesame!TotExp -> 347.3889688 | F23: =+Sesame!VarExp -> 171.6026141 | H23: =+Sesame!Price -> 0.46 | I23: =+Sesame!Unit -> Pound | J23: 755.1934105 | K23: 373.049161
A24: =+SorghumLCB!A3 -> Sorghum - Conventional Till-24 Row, Dryland, 72 bu. Yield Goal - Lower Coast | B24: =+SorghumLCB!TotRet -> -139.3453521 | C24: =+SorghumLCB!VarRet -> 37.29532878 | E24: =+SorghumLCB!TotExp -> 398.5453521 | F24: =+SorghumLCB!VarExp -> 221.9046712 | H24: =+SorghumLCB!Price -> 3.6 | I24: =+SorghumLCB!Unit -> Bushel | J24: 110.7070423 | K24: 61.64018645
A25: =+WheatLCB!A3 -> Hard Red Spring Wheat, Dryland, 35 bu. Yield Goal - Lower Coast | B25: =+WheatLCB!TotRet -> -138.5324561 | C25: =+WheatLCB!VarRet -> -3.687793264 | E25: =+WheatLCB!TotExp -> 303.0324561 | F25: =+WheatLCB!VarExp -> 168.1877933 | H25: =+WheatLCB!Price -> 4.7 | I25: =+WheatLCB!Unit -> Bushel | J25: 64.47499065 | K25: 35.78463686
A26: =+WheatNW!A3 -> Hard Red Spring Wheat, Dryland, 35 bu. Yield Goal, Northwest - Lower Coast | B26: =+WheatNW!TotRet -> -143.2434155 | C26: =+WheatNW!VarRet -> -8.398752681 | E26: =+WheatNW!TotExp -> 307.7434155 | F26: =+WheatNW!VarExp -> 172.8987527 | H26: =+WheatNW!Price -> 4.7 | I26: =+WheatNW!Unit -> Bushel | J26: 65.47732245 | K26: 36.78696866
A28: FIELD CROPS - DRYLAND, UPPER COAST
A30: =+Corn!A3 -> Corn - GMO Seed, Conventional Till-12 Row, Dryland, 100 bu. Yield Goal - Upper Coast | B30: =+Corn!TotRet -> -164.9098863 | C30: =+Corn!VarRet -> 11.41174198 | E30: =+Corn!TotExp -> 524.9098863 | F30: =+Corn!VarExp -> 348.588258 | H30: =+Corn!Price -> 3.6 | I30: =+Corn!Unit -> Bushel | J30: =+IF($H30=0,0,E30/$H30) -> 145.8083018 | K30: 96.83007167
A31: =+CottonUCB!A3 -> Cotton - GMO Seed, Conv. Till-12 Row, Dryland, 900 lb. Yield Goal - Upper Coast | B31: =+CottonUCB!TotRet -> -4.205967018 | C31: =+CottonUCB!VarRet -> 189.4784965 | E31: =+CottonUCB!TotExp -> 715.880967 | F31: =+CottonUCB!VarExp -> 522.1965035 | H31: =+CottonUCB!Price -> 0.67 | I31: =+CottonUCB!Unit -> Pound | J31: 1068.479055 | K31: 779.3977665
A32: =+SorghumUCB!A3 -> Sorghum - Conventional Till-12 Row, Dryland, 90 bu. Yield Goal - Upper Coast | B32: =+SorghumUCB!TotRet -> -113.1509064 | C32: =+SorghumUCB!VarRet -> 66.80627682 | E32: =+SorghumUCB!TotExp -> 437.1509064 | F32: =+SorghumUCB!VarExp -> 257.1937232 | H32: =+SorghumUCB!Price -> 3.6 | I32: =+SorghumUCB!Unit -> Bushel | J32: 121.4308073 | K32: 71.44270088
A33: =+Soybeans!A3 -> Soybeans - GMO Seed, Conventional Till-12 Row, Dryland, 30 bu. Yield Goal - Upper Coast | B33: =+Soybeans!TotRet -> -137.5276475 | C33: =+Soybeans!VarRet -> 32.12686621 | E33: =+Soybeans!TotExp -> 392.5276475 | F33: =+Soybeans!VarExp -> 222.8731338 | H33: =+Soybeans!Price -> 8.5 | I33: =+Soybeans!Unit -> Bushel | J33: 46.17972323 | K33: 26.22036868
A34: =+WheatUCB!A3 -> Soft Red Winter Wheat, 45 bu. Yield Goal - Upper Coast | B34: =+WheatUCB!TotRet -> -157.7665713 | C34: =+WheatUCB!VarRet -> -2.535581999 | E34: =+WheatUCB!TotExp -> 369.2665713 | F34: =+WheatUCB!VarExp -> 214.035582 | H34: =+WheatUCB!Price -> 4.7 | I34: =+WheatUCB!Unit -> Bushel | J34: 78.56735559 | K34: 45.53948553
A36: FIELD CROPS - RICE
A38: =+RiceFirstCrop!A3 -> Rice West of Houston, 1st Crop, Surface Water | B38: =+RiceFirstCrop!TotRet -> -260.2336977 | C38: =+RiceFirstCrop!VarRet -> 16.95340842 | E38: =+RiceFirstCrop!TotExp -> 1135.233698 | F38: =+RiceFirstCrop!VarExp -> 858.0465916 | H38: =+RiceFirstCrop!Price -> 7 | I38: =+RiceFirstCrop!Unit -> CWT | J38: =+IF($H38=0,0,E38/$H38) -> 162.1762425 | K38: =+IF($H38=0,0,F38/$H38) -> 122.5780845
A39: =+RiceSecondCrop!A3 -> Rice West of Houston, 2nd Crop, Surface Water | B39: =+RiceSecondCrop!TotRet -> 13.74833664 | C39: =+RiceSecondCrop!VarRet -> 40.38537218 | E39: =+RiceSecondCrop!TotExp -> 186.2516634 | F39: =+RiceSecondCrop!VarExp -> 159.6146278 | H39: =+RiceSecondCrop!Price -> 7 | I39: =+RiceSecondCrop!Unit -> CWT | J39: =+IF($H39=0,0,E39/$H39) -> 26.60738048 | K39: =+IF($H39=0,0,F39/$H39) -> 22.80208969
A41: LIVESTOCK
A43: =+CowCalf!A3 -> Cow-Calf Improved Pasture | B43: =+CowCalf!TotRet -> 31.60325209 | C43: =+CowCalf!VarRet -> 435.1952802 | E43: =+CowCalf!TotExp -> 673.5367479 | F43: =+CowCalf!VarExp -> 269.9447198 | H43: =+CowCalf!Price -> 155.1612903 | I43: =+CowCalf!Unit -> CWT | J43: =+IF($H43=0,0,E43/$H43) -> 4.340881327 | K43: 1.739768464
A44: =+StockersSummer!A3 -> Summer Stocker Calf Budget (160 Days Grazing) | B44: =+StockersSummer!TotRet -> 86.00489955 | C44: =+StockersSummer!VarRet -> 86.00489955 | E44: =+StockersSummer!TotExp -> 1001.1951 | F44: =+StockersSummer!VarExp -> 1001.1951 | H44: =+StockersSummer!Price -> 151 | I44: =+StockersSummer!Unit -> CWT | J44: 6.630431129 | K44: 6.630431129
A45: =+StockerWinter!A3 -> Winter Stocker Calf Budget (110 Says Grazing) | B45: =+StockerWinter!TotRet -> -87.47132967 | C45: =+StockerWinter!VarRet -> -87.47132967 | E45: =+StockerWinter!TotExp -> 919.0233297 | F45: =+StockerWinter!VarExp -> 919.0233297 | H45: =+StockerWinter!Price -> 142 | I45: =+StockerWinter!Unit -> CWT | J45: =+IF($H45=0,0,E45/$H45) -> 6.471995279 | K45: =+IF($H45=0,0,F45/$H45) -> 6.471995279

Sheet Your Returns - Cash Rent
A1: Your Returns - Cash Rent
B3: Quantity | C3: Returns Above Total Specified Expenses | F3: Total Direct Expenses | I3: Breakeven Yield to Cover Total Costs at Price Entered
B4: Acres, AUs, or Head | C4: Total Costs | D4: Variable Costs | F4: Total Costs | G4: Variable Costs | I4: Price | J4: Units | K4: Total Costs | L4: Variable Costs
A5: FORAGE CROPS
A7: =+CoastalHay!A3 -> Coastal Bermudagrass Hay and Grazing (3 Cuttings) | B7: =+CoastalHay!E7 -> 0 | C7: =+CoastalHay!YTotRet -> 0 | D7: =+CoastalHay!YVarRet -> 0 | F7: =+CoastalHay!YTotExp -> 0 | G7: =+CoastalHay!YVarExp -> 0 | I7: =+CoastalHay!YPrice -> 0 | J7: =+CoastalHay!Unit -> Roll | K7: =+IF($I7=0,0,F7/$I7) -> 0 | L7: 0
A8: =+CoastalPasture!A3 -> Coastal Bermudagrass Pasture | B8: =+CoastalPasture!E7 -> 0 | C8: =+CoastalPasture!YTotRet -> 0 | D8: =+CoastalPasture!YVarRet -> 0 | F8: =+CoastalPasture!YTotExp -> 0 | G8: =+CoastalPasture!YVarExp -> 0 | I8: =+CoastalPasture!YPrice -> 0 | J8: =+CoastalPasture!Unit ->  | K8: 0 | L8: 0
A9: =+SorghumHay!A3 -> Sorghum Hay (2 Cuttings) | B9: =+SorghumHay!E7 -> 0 | C9: =+SorghumHay!YTotRet -> 0 | D9: =+SorghumHay!YVarRet -> 0 | F9: =+SorghumHay!YTotExp -> 0 | G9: =+SorghumHay!YVarExp -> 0 | I9: =+SorghumHay!YPrice -> 0 | J9: =+SorghumHay!Unit -> Roll | K9: 0 | L9: 0
A11: FIELD CROPS - IRRIGATED
A13: =+IrrigatedCotton!A3 -> Cotton - Genetically Modified Seed, Conv. Till-24 Row, Irrigated, 1250 lb. Yield Goal | B13: =+IrrigatedCotton!E7 -> 0 | C13: =+IrrigatedCotton!YTotRet -> 0 | D13: =+IrrigatedCotton!YVarRet -> 0 | F13: =+IrrigatedCotton!YTotExp -> 0 | G13: =+IrrigatedCotton!YVarExp -> 0 | I13: =+IrrigatedCotton!YPrice -> 0 | J13: =+IrrigatedCotton!Unit -> Pound | K13: =+IF($I13=0,0,F13/$I13) -> 0 | L13: =+IF($I13=0,0,G13/$I13) -> 0
A14: =+IrrigatedSesame!A3 -> Sesame - Conventional Till-12 Row, Irrigated, 1100 lb. Yield Goal | B14: =+IrrigatedSesame!E7 -> 0 | C14: =+IrrigatedSesame!YTotRet -> 0 | D14: =+IrrigatedSesame!YVarRet -> 0 | F14: =+IrrigatedSesame!YTotExp -> 0 | G14: =+IrrigatedSesame!YVarExp -> 0 | I14: =+IrrigatedSesame!YPrice -> 0 | J14: =+IrrigatedSesame!Unit -> Pound | K14: =+IF($I14=0,0,F14/$I14) -> 0 | L14: 0
A15: =+IrrigatedSorghumLCB!A3 -> Sorghum - Conventional Till-24 Row, Irrigated, 100 bu. Yield Goal | B15: =+IrrigatedSorghumLCB!E7 -> 0 | C15: =+IrrigatedSorghumLCB!YTotRet -> 0 | D15: =+IrrigatedSorghumLCB!YVarRet -> 0 | F15: =+IrrigatedSorghumLCB!YTotExp -> 0 | G15: =+IrrigatedSorghumLCB!YVarExp -> 0 | I15: =+IrrigatedSorghumLCB!YPrice -> 0 | J15: =+IrrigatedSorghumLCB!Unit -> Bushel | K15: 0 | L15: 0
A16: =+IrrigatedWheatLCB!A3 -> Hard Red Spring Wheat, Irrigated, 60 bu. Yield Goal | B16: =+IrrigatedWheatLCB!E7 -> 0 | C16: =+IrrigatedWheatLCB!YTotRet -> 0 | D16: =+IrrigatedWheatLCB!YVarRet -> 0 | F16: =+IrrigatedWheatLCB!YTotExp -> 0 | G16: =+IrrigatedWheatLCB!YVarExp -> 0 | I16: =+IrrigatedWheatLCB!YPrice -> 0 | J16: =+IrrigatedWheatLCB!Unit -> Bushel | K16: 0 | L16: 0
A18: FIELD CROPS - DRYLAND, LOWER COAST
A20: =+CanolaLCB!A3 -> Canola, Dryland, 1500 lb. Yield Goal - Lower Coast | B20: =+CanolaLCB!E7 -> 0 | C20: =+CanolaLCB!YTotRet -> 0 | D20: =+CanolaLCB!YVarRet -> 0 | F20: =+CanolaLCB!YTotExp -> 0 | G20: =+CanolaLCB!YVarExp -> 0 | I20: =+CanolaLCB!YPrice -> 0 | J20: =+CanolaLCB!Unit -> Pound | K20: =+IF($I20=0,0,F20/$I20) -> 0 | L20: 0
A21: =+CottonLCB!A3 -> Cotton - Conventional Seed, Till-24 Row, Dryland, 800 lb. Yield Goal - Lower Coast | B21: =+CottonLCB!E7 -> 0 | C21: =+CottonLCB!YTotRet -> 0 | D21: =+CottonLCB!YVarRet -> 0 | F21: =+CottonLCB!YTotExp -> 0 | G21: =+CottonLCB!YVarExp -> 0 | I21: =+CottonLCB!YPrice -> 0 | J21: =+CottonLCB!Unit -> Pound | K21: 0 | L21: 0
A22: =+Cotton!A3 -> Cotton - Genetically Modified Seed, Conv. Till-24 Row, Dryland, 800 lb. Yield Goal - Lower Coast | B22: =+Cotton!E7 -> 0 | C22: =+Cotton!YTotRet -> 0 | D22: =+Cotton!YVarRet -> 0 | F22: =+Cotton!YTotExp -> 0 | G22: =+Cotton!YVarExp -> 0 | I22: =+Cotton!YPrice -> 0 | J22: =+Cotton!Unit -> Pound | K22: 0 | L22: 0
A23: =+Sesame!A3 -> Sesame - Conventional Till-12 Row, Dryland, 800 lb. Yield Goal - Lower Coast | B23: =+Sesame!E7 -> 0 | C23: =+Sesame!YTotRet -> 0 | D23: =+Sesame!YVarRet -> 0 | F23: =+Sesame!YTotExp -> 0 | G23: =+Sesame!YVarExp -> 0 | I23: =+Sesame!YPrice -> 0 | J23: =+Sesame!Unit -> Pound | K23: 0 | L23: 0
A24: =+SorghumLCB!A3 -> Sorghum - Conventional Till-24 Row, Dryland, 72 bu. Yield Goal - Lower Coast | B24: =+SorghumLCB!E7 -> 0 | C24: =+SorghumLCB!YTotRet -> 0 | D24: =+SorghumLCB!YVarRet -> 0 | F24: =+SorghumLCB!YTotExp -> 0 | G24: =+SorghumLCB!YVarExp -> 0 | I24: =+SorghumLCB!YPrice -> 0 | J24: =+SorghumLCB!Unit -> Bushel | K24: 0 | L24: 0
A25: =+WheatLCB!A3 -> Hard Red Spring Wheat, Dryland, 35 bu. Yield Goal - Lower Coast | B25: =+WheatLCB!E7 -> 0 | C25: =+WheatLCB!YTotRet -> 0 | D25: =+WheatLCB!YVarRet -> 0 | F25: =+WheatLCB!YTotExp -> 0 | G25: =+WheatLCB!YVarExp -> 0 | I25: =+WheatLCB!YPrice -> 0 | J25: =+WheatLCB!Unit -> Bushel | K25: 0 | L25: 0
A26: =+WheatNW!A3 -> Hard Red Spring Wheat, Dryland, 35 bu. Yield Goal, Northwest - Lower Coast | B26: =+WheatNW!E7 -> 0 | C26: =+WheatNW!YTotRet -> 0 | D26: =+WheatNW!YVarRet -> 0 | F26: =+WheatNW!YTotExp -> 0 | G26: =+WheatNW!YVarExp -> 0 | I26: =+WheatNW!YPrice -> 0 | J26: =+WheatNW!Unit -> Bushel | K26: 0 | L26: 0
A28: FIELD CROPS - DRYLAND, UPPER COAST
A30: =+Corn!A3 -> Corn - GMO Seed, Conventional Till-12 Row, Dryland, 100 bu. Yield Goal - Upper Coast | B30: =+Corn!E7 -> 0 | C30: =+Corn!YTotRet -> 0 | D30: =+Corn!YVarRet -> 0 | F30: =+Corn!YTotExp -> 0 | G30: =+Corn!YVarExp -> 0 | I30: =+Corn!YPrice -> 0 | J30: =+Corn!Unit -> Bushel | K30: =+IF($I30=0,0,F30/$I30) -> 0 | L30: 0
A31: =+CottonUCB!A3 -> Cotton - GMO Seed, Conv. Till-12 Row, Dryland, 900 lb. Yield Goal - Upper Coast | B31: =+CottonUCB!E7 -> 0 | C31: =+CottonUCB!YTotRet -> 0 | D31: =+CottonUCB!YVarRet -> 0 | F31: =+CottonUCB!YTotExp -> 0 | G31: =+CottonUCB!YVarExp -> 0 | I31: =+CottonUCB!YPrice -> 0 | J31: =+CottonUCB!Unit -> Pound | K31: 0 | L31: 0
A32: =+SorghumUCB!A3 -> Sorghum - Conventional Till-12 Row, Dryland, 90 bu. Yield Goal - Upper Coast | B32: =+SorghumUCB!E7 -> 0 | C32: =+SorghumUCB!YTotRet -> 0 | D32: =+SorghumUCB!YVarRet -> 0 | F32: =+SorghumUCB!YTotExp -> 0 | G32: =+SorghumUCB!YVarExp -> 0 | I32: =+SorghumUCB!YPrice -> 0 | J32: =+SorghumUCB!Unit -> Bushel | K32: 0 | L32: 0
A33: =+Soybeans!A3 -> Soybeans - GMO Seed, Conventional Till-12 Row, Dryland, 30 bu. Yield Goal - Upper Coast | B33: =+Soybeans!E7 -> 0 | C33: =+Soybeans!YTotRet -> 0 | D33: =+Soybeans!YVarRet -> 0 | F33: =+Soybeans!YTotExp -> 0 | G33: =+Soybeans!YVarExp -> 0 | I33: =+Soybeans!YPrice -> 0 | J33: =+Soybeans!Unit -> Bushel | K33: 0 | L33: 0
A34: =+WheatUCB!A3 -> Soft Red Winter Wheat, 45 bu. Yield Goal - Upper Coast | B34: =+WheatUCB!E7 -> 0 | C34: =+WheatUCB!YTotRet -> 0 | D34: =+WheatUCB!YVarRet -> 0 | F34: =+WheatUCB!YTotExp -> 0 | G34: =+WheatUCB!YVarExp -> 0 | I34: =+WheatUCB!YPrice -> 0 | J34: =+WheatUCB!Unit -> Bushel | K34: 0 | L34: 0
A36: FIELD CROPS - RICE
A38: =+RiceFirstCrop!A3 -> Rice West of Houston, 1st Crop, Surface Water | B38: =+RiceFirstCrop!E7 -> 0 | C38: =+RiceFirstCrop!YTotRet -> 0 | D38: =+RiceFirstCrop!YVarRet -> 0 | F38: =+RiceFirstCrop!YTotExp -> 0 | G38: =+RiceFirstCrop!YVarExp -> 0 | I38: =+RiceFirstCrop!YPrice -> 0 | J38: =+RiceFirstCrop!Unit -> CWT | K38: =+IF($I38=0,0,F38/$I38) -> 0 | L38: =+IF($I38=0,0,G38/$I38) -> 0
A39: =+RiceSecondCrop!A3 -> Rice West of Houston, 2nd Crop, Surface Water | B39: =+RiceSecondCrop!E7 -> 0 | C39: =+RiceSecondCrop!YTotRet -> 0 | D39: =+RiceSecondCrop!YVarRet -> 0 | F39: =+RiceSecondCrop!YTotExp -> 0 | G39: =+RiceSecondCrop!YVarExp -> 0 | I39: =+RiceSecondCrop!YPrice -> 0 | J39: =+RiceSecondCrop!Unit -> CWT | K39: =+IF($I39=0,0,F39/$I39) -> 0 | L39: =+IF($I39=0,0,G39/$I39) -> 0
A41: LIVESTOCK
A43: =+CowCalf!A3 -> Cow-Calf Improved Pasture | B43: =+CowCalf!E7 -> 0 | C43: =+CowCalf!YTotRet -> 0 | D43: =+CowCalf!YVarRet -> 0 | F43: =+CowCalf!YTotExp -> 0 | G43: =+CowCalf!YVarExp -> 0 | I43: =+CowCalf!YPrice ->  | J43: =+CowCalf!Unit -> CWT | K43: =+IF($I43=0,0,F43/$I43) -> 
A44: =+StockersSummer!A3 -> Summer Stocker Calf Budget (160 Days Grazing) | B44: =+StockersSummer!E7 -> 0 | C44: =+StockersSummer!YTotRet -> 0 | D44: =+StockersSummer!YVarRet -> 0 | F44: =+StockersSummer!YTotExp -> 0 | G44: =+StockersSummer!YVarExp -> 0 | I44: =+StockersSummer!YPrice -> 0 | J44: =+StockersSummer!Unit -> CWT | K44: 0 | L44: 0
A45: =+StockerWinter!A3 -> Winter Stocker Calf Budget (110 Says Grazing) | B45: =+StockerWinter!E7 -> 0 | C45: =+StockerWinter!YTotRet -> 0 | D45: =+StockerWinter!YVarRet -> 0 | F45: =+StockerWinter!YTotExp -> 0 | G45: =+StockerWinter!YVarExp -> 0 | I45: =+StockerWinter!YPrice -> 0 | J45: =+StockerWinter!Unit -> CWT | K45: =+IF($I45=0,0,F45/$I45) -> 0 | L45: =+IF($I45=0,0,G45/$I45) -> 0
A47: OTHER BUDGETS
A49: =+'Livestock Budget'!A3 -> Livestock Budget | B49: =+'Livestock Budget'!D5 -> 0 | C49: =+'Livestock Budget'!YTotRet -> 0 | D49: =+'Livestock Budget'!YVarRet -> 0 | F49: =+'Livestock Budget'!YTotExp -> 0 | G49: =+'Livestock Budget'!YVarExp -> 0 | I49: =+'Livestock Budget'!YPrice -> 0 | J49: =+'Livestock Budget'!Unit -> CWT | K49: =+IF($I49=0,0,F49/$I49) -> 0 | L49: =+IF($I49=0,0,G49/$I49) -> 0
A50: =+'Crop Budget'!A3 -> Crop Enterprise | B50: =+'Crop Budget'!D5 -> 0 | C50: =+'Crop Budget'!YTotRet -> 0 | D50: =+'Crop Budget'!YVarRet -> 0 | F50: =+'Crop Budget'!YTotExp -> 0 | G50: =+'Crop Budget'!YVarExp -> 0 | I50: =+'Crop Budget'!YPrice -> 0 | J50: =+'Crop Budget'!Unit -> Cwt,lb,etc | K50: =+IF($I50=0,0,F50/$I50) -> 0 | L50: =+IF($I50=0,0,G50/$I50) -> 0
